Workbook

Sheet Control
B1: State Inventory Tool - Municipal Solid Waste Module
B3: This tool estimates state methane emissions from municipal solid waste disposal. While default data is available,
B4: it is recommended that you use your own data or review the default data carefully.
B7: 1. Choose a State
B8: This step is very important - it selects the correct default variables for your state.
B9: 2. Describe and enter the type of state disposal data that you have (if any):
B13: If you have state-wide annual disposal data. . .
B15: If you choose this option, skip question 3 and proceed to question 4.
B17: If you choose this option, annual disposal quantities for years 1961 through 1989 are calculated based on national per
B18: capita disposal in 1960, 1970, 1980, and your state's per capita disposal in 1990.
B19: If you have no disposal data. . .
B21: If you choose this option, emissions calculations are based on state population and national per capita landfilling rates.
B23: 3. Enter population data (if state disposal data from 1961-2018 are incomplete)
A24: 1 | B24: Population data is necessary in order to backcast disposal data or calculate WIP. This step may safely be skipped (defaults will be used if necessary).
F30: Landfills
B31: ="4. View the preliminary calculations of methane emissions from MSW landfills in "&VLOOKUP(SelectedState,States,2,FALSE)&"." -> 4. View the preliminary calculations of methane emissions from MSW landfills in Select a State. . ..
B32: Note that these totals do not yet account for adjustment from methane flaring and LFGTE projects.
B34: 5. Adjust CH4 emissions for amount of CH4 flared.
B35: If methane flares are in use at landfills in your state, you can enter estimates of the tons flared.
B36: You can also use default data (if available), or omit this section. Default data comes from EPA's Landfill Methane Outreach Project (LMOP) database.
B44: 6. Adjust CH4 emissions for amount of CH4 recovered at landfill-gas-to-energy (LFGTE) projects.
B45: If Landfill Gas to Energy (LFGTE) Projects exist in your state, enter estimates of the landfill gas recovered.
B46: You can also use default data (if available), or omit this section. Default data comes from EPA's Landfill Methane Outreach Project (LMOP) database.
B55: 7. Estimate CH4 generated at industrial landfills.
B56: Methane generation from industrial landfills in the U.S. is assumed to be approximately 7% of generation from MSW landfills.
B57: You can adjust this value, if you wish, below, or enter a value of zero to omit industrial landfills from this module.
C59: Methane emissions from industrial landfills are equal to | G59: 0.07 | H59: of methane generation from MSW landfills in my state.
B61: 8. Select landfill CH4 oxidation factor
B62: The EPA estimates that 10% of landfill methane that is not flared or recovered is oxidized in the top layer of soil over the landfill.
B63: Methane emissions are then reduced by this "oxidation factor." This factor is affected by many factors, including latitude and soil
B64: characteristics. You may use the default or enter your own value below.
E66: Default Oxidation Factor | G66: Oxidation Factor Used | I66: Use the Default? (Check for Yes)
B67: Oxidation Factor | E67: =DefOFactor -> 0.1
F69: Waste Combustion
B71: 9. Fill In the variables that are used to estimate emissions from waste combustion.
B72: Either Type in the value/percentage or Click the Default Box
B74: Fraction Oxidized | E74: Default Fraction Oxidized | G74: Fraction Oxidized Used | I74: Use the Default? (Check for Yes)
B75: Plastics | E75: 0.98
B76: Synthetic Rubber in MSW | E76: 0.98
B77: Synthetic Fibers | E77: 0.98
B79: Enter waste combustion data for your state or use the default values
B84: 10. - 14. Proceed to the following combustion worksheets to calculate emissions:
B85: 10. CO2 from Plastics Combustion
B86: 11. CO2 from Combustion of Synthetic Rubber in MSW
B87: 12. CO2 from Combustion of Synthetic Fibers
B88: 13. N2O from MSW Combustion
B90: 14. CH4 from MSW Combustion
B91: ="15. After completing steps 1 through 14, click View Results to proceed to the emissions summary worksheet for "&VLOOKUP(SelectedState,States,2,FALSE)&"." -> 15. After completing steps 1 through 14, click View Results to proceed to the emissions summary worksheet for Select a State. . ..
B96: 16. Export the results for use in the Synthesis Tool.
B104: Key factors used in this module
B105: The default GWPs used in this module are from the IPCC Fourth Assessment Report (AR4) but can be adjusted in the cells below to reflect other sources.
C106: C / CO2 | F106: =12/44 -> 0.2727272727
C107: Metric tons / short ton | F107: 0.90718
C108: CH4 global warming potential (GWP)* | F108: 25
C109: N2O global warming potential (GWP)* | F109: 298
C110: * As of January 2014, the UNFCCC approved the use of new (AR4) GWPs for GHG Inventories.

Sheet Results
A1: ="14. "&VLOOKUP(SelectedState,States,2,FALSE)&" Emissions Summary" -> 14. Select a State. . . Emissions Summary
A2: ="This Worksheet Provides a Summary of Emissions from Landfills and Waste Combustion Once All Control Steps Have Been Completed." -> This Worksheet Provides a Summary of Emissions from Landfills and Waste Combustion Once All Control Steps Have Been Completed.
B3: Year Of Inventory Update | C3: 2020
B5: =Tracker!B13 -> Emissions were not calculated for the following sources: MSW Landfills, Industrial Landfills, Waste Combustion- Plastics, Waste Combustion- Synthetic Rubber, Waste Combustion- Synthetic Fibers, and Waste Combustion- N2O.
B6: Total Emissions from Landfills and Waste Combustion (MMTCO2E)*
C7: 1990 | D7: 1991 | E7: 1992 | F7: 1993 | G7: 1994 | H7: 1995 | I7: 1996 | J7: 1997 | K7: 1998 | L7: 1999 | M7: 2000 | N7: 2001 | O7: 2002 | P7: 2003 | Q7: 2004 | R7: 2005 | S7: 2006 | T7: 2007 | U7: 2008 | V7: 2009 | W7: 2010 | X7: 2011 | Y7: 2012 | Z7: 2013 | AA7: 2014 | AB7: 2015 | AC7: 2016 | AD7: 2017 | AE7: 2018 | AF7: 2019 | AG7: 2020
B8: CH4 | C8: =C38/CO2_C -> 0 | D8: 0 | E8: 0 | F8: 0 | G8: 0 | H8: 0 | I8: 0 | J8: 0 | K8: 0 | L8: 0 | M8: 0 | N8: 0 | O8: 0 | P8: 0 | Q8: 0 | R8: 0 | S8: =S38/CO2_C -> 0 | T8: 0 | U8: 0 | V8: 0 | W8: 0 | X8: 0 | Y8: 0 | Z8: 0 | AA8: 0 | AB8: 0 | AC8: 0 | AD8: 0 | AE8: 0 | AF8: 0 | AG8: =AG38/CO2_C -> 0
B9: CO2 | C9: =C39/CO2_C -> 0 | D9: 0 | E9: 0 | F9: 0 | G9: 0 | H9: 0 | I9: 0 | J9: 0 | K9: 0 | L9: 0 | M9: 0 | N9: 0 | O9: 0 | P9: 0 | Q9: 0 | R9: 0 | S9: =S39/CO2_C -> 0 | T9: 0 | U9: 0 | V9: 0 | W9: 0 | X9: 0 | Y9: 0 | Z9: 0 | AA9: 0 | AB9: =AB39/CO2_C -> 0 | AC9: 0 | AD9: 0 | AE9: 0 | AF9: 0 | AG9: 0
B10: N2O | C10: =C40/CO2_C -> 0 | D10: 0 | E10: 0 | F10: 0 | G10: 0 | H10: 0 | I10: 0 | J10: 0 | K10: 0 | L10: 0 | M10: 0 | N10: 0 | O10: 0 | P10: 0 | Q10: 0 | R10: 0 | S10: =S40/CO2_C -> 0 | T10: 0 | U10: 0 | V10: 0 | W10: 0 | X10: 0 | Y10: 0 | Z10: 0 | AA10: 0 | AB10: 0 | AC10: 0 | AD10: 0 | AE10: 0 | AF10: 0 | AG10: 0
B11: Total | C11: =C41/CO2_C -> 0 | D11: 0 | E11: 0 | F11: 0 | G11: 0 | H11: 0 | I11: 0 | J11: 0 | K11: 0 | L11: 0 | M11: 0 | N11: 0 | O11: 0 | P11: 0 | Q11: 0 | R11: 0 | S11: 0 | T11: 0 | U11: 0 | V11: 0 | W11: 0 | X11: 0 | Y11: 0 | Z11: 0 | AA11: 0 | AB11: =AB41/CO2_C -> 0 | AC11: 0 | AD11: 0 | AE11: 0 | AF11: 0 | AG11: 0
C12: =IF(C11=0,0,COLUMN()-2) -> 0 | D12: =IF(D11=0,0,COLUMN()-2) -> 0 | E12: =IF(E11=0,0,COLUMN()-2) -> 0 | F12: 0 | G12: 0 | H12: 0 | I12: 0 | J12: 0 | K12: 0 | L12: 0 | M12: 0 | N12: 0 | O12: 0 | P12: 0 | Q12: 0 | R12: 0 | S12: 0 | T12: 0 | U12: 0 | V12: 0 | W12: 0 | X12: 0 | Y12: 0 | Z12: 0 | AA12: =IF(AA11=0,0,COLUMN()-2) -> 0 | AB12: =IF(AB11=0,0,COLUMN()-2) -> 0 | AC12: 0 | AD12: 0 | AE12: 0 | AF12: 0 | AG12: 0 | AH12: 1
B13: * When default flaring and LFGTE activity data are utilized for DE, ME, NH, PA, RI, VT, and WI landfill methane avoided is greater than landfill methane produced. This is a result of using various sources of default data.
B14: CH4 Emissions from Landfills (MTCO2E)
C15: 1990 | D15: 1991 | E15: 1992 | F15: 1993 | G15: 1994 | H15: 1995 | I15: 1996 | J15: 1997 | K15: 1998 | L15: 1999 | M15: 2000 | N15: 2001 | O15: 2002 | P15: 2003 | Q15: 2004 | R15: 2005 | S15: 2006 | T15: 2007 | U15: 2008 | V15: 2009 | W15: 2010 | X15: 2011 | Y15: 2012 | Z15: 2013 | AA15: 2014 | AB15: 2015 | AC15: 2016 | AD15: 2017 | AE15: 2018 | AF15: 2019 | AG15: 2020
B16: Potential CH4 | C16: =C45/CO2_C -> 0 | D16: 0 | E16: 0 | F16: 0 | G16: 0 | H16: 0 | I16: 0 | J16: 0 | K16: 0 | L16: 0 | M16: 0 | N16: 0 | O16: 0 | P16: 0 | Q16: 0 | R16: 0 | S16: =S45/CO2_C -> 0 | T16: 0 | U16: 0 | V16: 0 | W16: 0 | X16: 0 | Y16: 0 | Z16: 0 | AA16: 0 | AB16: 0 | AC16: 0 | AD16: 0 | AE16: 0 | AF16: 0 | AG16: 0
B17: MSW Generation | C17: =C46/CO2_C -> 0 | D17: 0 | E17: 0 | F17: 0 | G17: 0 | H17: 0 | I17: 0 | J17: 0 | K17: 0 | L17: 0 | M17: 0 | N17: 0 | O17: 0 | P17: 0 | Q17: 0 | R17: 0 | S17: =S46/CO2_C -> 0 | T17: 0 | U17: 0 | V17: 0 | W17: 0 | X17: 0 | Y17: 0 | Z17: 0 | AA17: 0 | AB17: 0 | AC17: 0 | AD17: 0 | AE17: 0 | AF17: 0 | AG17: 0
B18: Industrial Generation | C18: =C47/CO2_C -> 0 | D18: 0 | E18: 0 | F18: 0 | G18: 0 | H18: 0 | I18: 0 | J18: 0 | K18: 0 | L18: 0 | M18: 0 | N18: 0 | O18: 0 | P18: 0 | Q18: 0 | R18: 0 | S18: =S47/CO2_C -> 0 | T18: 0 | U18: 0 | V18: 0 | W18: 0 | X18: 0 | Y18: 0 | Z18: 0 | AA18: 0 | AB18: 0 | AC18: 0 | AD18: 0 | AE18: 0 | AF18: 0 | AG18: 0
B19: CH4 Avoided | C19: =C48/CO2_C -> 0 | D19: 0 | E19: 0 | F19: 0 | G19: 0 | H19: 0 | I19: 0 | J19: 0 | K19: 0 | L19: 0 | M19: 0 | N19: 0 | O19: 0 | P19: 0 | Q19: 0 | R19: 0 | S19: =S48/CO2_C -> 0 | T19: 0 | U19: 0 | V19: 0 | W19: 0 | X19: 0 | Y19: 0 | Z19: 0 | AA19: 0 | AB19: 0 | AC19: 0 | AD19: 0 | AE19: 0 | AF19: 0 | AG19: 0
B20: Flare | C20: =C49/CO2_C -> 0 | D20: 0 | E20: 0 | F20: 0 | G20: 0 | H20: 0 | I20: 0 | J20: 0 | K20: 0 | L20: 0 | M20: 0 | N20: 0 | O20: 0 | P20: 0 | Q20: 0 | R20: 0 | S20: =S49/CO2_C -> 0 | T20: 0 | U20: 0 | V20: 0 | W20: 0 | X20: 0 | Y20: 0 | Z20: 0 | AA20: 0 | AB20: 0 | AC20: 0 | AD20: 0 | AE20: 0 | AF20: 0 | AG20: 0
B21: Landfill Gas-to-Energy | C21: =C50/CO2_C -> 0 | D21: 0 | E21: 0 | F21: 0 | G21: 0 | H21: 0 | I21: 0 | J21: 0 | K21: 0 | L21: 0 | M21: 0 | N21: 0 | O21: 0 | P21: 0 | Q21: 0 | R21: 0 | S21: =S50/CO2_C -> 0 | T21: 0 | U21: 0 | V21: 0 | W21: 0 | X21: 0 | Y21: 0 | Z21: 0 | AA21: 0 | AB21: 0 | AC21: 0 | AD21: 0 | AE21: 0 | AF21: 0 | AG21: 0
B22: Oxidation at MSW Landfills | C22: =((C17+C19)*OxidationFactor) -> 0 | D22: 0 | E22: 0 | F22: 0 | G22: 0 | H22: 0 | I22: 0 | J22: 0 | K22: 0 | L22: 0 | M22: 0 | N22: 0 | O22: 0 | P22: 0 | Q22: 0 | R22: 0 | S22: =((S17+S19)*OxidationFactor) -> 0 | T22: 0 | U22: 0 | V22: 0 | W22: 0 | X22: 0 | Y22: 0 | Z22: 0 | AA22: 0 | AB22: 0 | AC22: 0 | AD22: 0 | AE22: 0 | AF22: 0 | AG22: 0
B23: Oxidation at Industrial Landfills | C23: =C18*OxidationFactor -> 0 | D23: 0 | E23: 0 | F23: 0 | G23: 0 | H23: 0 | I23: 0 | J23: 0 | K23: 0 | L23: 0 | M23: 0 | N23: 0 | O23: 0 | P23: 0 | Q23: 0 | R23: 0 | S23: =S18*OxidationFactor -> 0 | T23: 0 | U23: 0 | V23: 0 | W23: 0 | X23: 0 | Y23: 0 | Z23: 0 | AA23: 0 | AB23: 0 | AC23: 0 | AD23: 0 | AE23: 0 | AF23: 0 | AG23: 0
B24: Total CH4 Emissions | C24: =C16+C19-C22-C23 -> 0 | D24: =D16+D19-D22-D23 -> 0 | E24: 0 | F24: 0 | G24: 0 | H24: 0 | I24: 0 | J24: 0 | K24: 0 | L24: 0 | M24: 0 | N24: 0 | O24: 0 | P24: 0 | Q24: 0 | R24: 0 | S24: =S16+S19-S22-S23 -> 0 | T24: 0 | U24: 0 | V24: 0 | W24: 0 | X24: 0 | Y24: 0 | Z24: 0 | AA24: 0 | AB24: 0 | AC24: 0 | AD24: =AD16+AD19-AD22-AD23 -> 0 | AE24: 0 | AF24: 0 | AG24: 0
B25: ="Landfill emissions (from MSW and Industrial Generation) are provided to 2020 and assume 2016 as the proxy for the Waste in Place that will generate emissions in future years." -> Landfill emissions (from MSW and Industrial Generation) are provided to 2020 and assume 2016 as the proxy for the Waste in Place that will generate emissions in future years.
B26: CO2, N2O, and CH4 Emissions from Waste Combustion (MTCO2E)
B27: Gas/Waste Product | C27: 1990 | D27: 1991 | E27: 1992 | F27: 1993 | G27: 1994 | H27: 1995 | I27: 1996 | J27: 1997 | K27: 1998 | L27: 1999 | M27: 2000 | N27: 2001 | O27: 2002 | P27: 2003 | Q27: 2004 | R27: 2005 | S27: 2006 | T27: 2007 | U27: 2008 | V27: 2009 | W27: 2010 | X27: 2011 | Y27: 2012 | Z27: 2013 | AA27: 2014 | AB27: 2015 | AC27: 2016 | AD27: 2017 | AE27: 2018 | AF27: 2019 | AG27: 2020
B28: CO2 | C28: =C57/CO2_C -> 0 | D28: 0 | E28: 0 | F28: 0 | G28: 0 | H28: 0 | I28: 0 | J28: 0 | K28: 0 | L28: 0 | M28: 0 | N28: 0 | O28: 0 | P28: 0 | Q28: 0 | R28: 0 | S28: =S57/CO2_C -> 0 | T28: 0 | U28: 0 | V28: 0 | W28: 0 | X28: 0 | Y28: 0 | Z28: 0 | AA28: 0 | AB28: 0 | AC28: 0 | AD28: 0 | AE28: 0 | AF28: 0 | AG28: 0
B29: Plastics | C29: =IFERROR(C58/CO2_C,0) -> 0 | D29: 0 | E29: 0 | F29: 0 | G29: 0 | H29: 0 | I29: 0 | J29: 0 | K29: 0 | L29: 0 | M29: 0 | N29: 0 | O29: 0 | P29: 0 | Q29: 0 | R29: 0 | S29: 0 | T29: 0 | U29: 0 | V29: 0 | W29: 0 | X29: 0 | Y29: 0 | Z29: 0 | AA29: 0 | AB29: 0 | AC29: 0 | AD29: 0 | AE29: 0 | AF29: 0 | AG29: 0
B30: Synthetic Rubber in MSW | C30: =IFERROR(C59/CO2_C,0) -> 0 | D30: 0 | E30: 0 | F30: 0 | G30: 0 | H30: 0 | I30: 0 | J30: 0 | K30: 0 | L30: 0 | M30: 0 | N30: 0 | O30: 0 | P30: 0 | Q30: 0 | R30: 0 | S30: 0 | T30: 0 | U30: 0 | V30: 0 | W30: 0 | X30: 0 | Y30: 0 | Z30: 0 | AA30: 0 | AB30: 0 | AC30: 0 | AD30: 0 | AE30: 0 | AF30: 0 | AG30: 0
B31: Synthetic Fibers | C31: =IFERROR(C60/CO2_C,0) -> 0 | D31: 0 | E31: 0 | F31: 0 | G31: 0 | H31: 0 | I31: 0 | J31: 0 | K31: 0 | L31: 0 | M31: 0 | N31: 0 | O31: 0 | P31: 0 | Q31: 0 | R31: 0 | S31: 0 | T31: 0 | U31: 0 | V31: 0 | W31: 0 | X31: 0 | Y31: 0 | Z31: 0 | AA31: 0 | AB31: 0 | AC31: 0 | AD31: 0 | AE31: 0 | AF31: 0 | AG31: 0
B32: N2O | C32: =C61/CO2_C -> 0 | D32: 0 | E32: 0 | F32: 0 | G32: 0 | H32: 0 | I32: 0 | J32: 0 | K32: 0 | L32: 0 | M32: 0 | N32: 0 | O32: 0 | P32: 0 | Q32: 0 | R32: 0 | S32: =S61/CO2_C -> 0 | T32: 0 | U32: 0 | V32: 0 | W32: 0 | X32: 0 | Y32: 0 | Z32: 0 | AA32: 0 | AB32: 0 | AC32: 0 | AD32: 0 | AE32: 0 | AF32: 0 | AG32: 0
B33: CH4 | C33: 0 | D33: 0 | E33: 0 | F33: 0 | G33: 0 | H33: 0 | I33: 0 | J33: 0 | K33: 0 | L33: 0 | M33: 0 | N33: 0 | O33: 0 | P33: 0 | Q33: 0 | R33: 0 | S33: 0 | T33: 0 | U33: 0 | V33: 0 | W33: 0 | X33: 0 | Y33: 0 | Z33: 0 | AA33: 0 | AB33: 0 | AC33: 0 | AD33: 0 | AE33: 0 | AF33: 0 | AG33: 0
B34: Total CO2, N2O, CH4 Emissions | C34: =C63/CO2_C -> 0 | D34: 0 | E34: 0 | F34: 0 | G34: 0 | H34: 0 | I34: 0 | J34: 0 | K34: 0 | L34: 0 | M34: 0 | N34: 0 | O34: 0 | P34: 0 | Q34: 0 | R34: 0 | S34: =S63/CO2_C -> 0 | T34: 0 | U34: 0 | V34: 0 | W34: 0 | X34: 0 | Y34: 0 | Z34: 0 | AA34: 0 | AB34: 0 | AC34: 0 | AD34: 0 | AE34: 0 | AF34: 0 | AG34: 0
B36: Total Emissions from Landfills and Waste Combustion (MMTCE)
C37: 1990 | D37: 1991 | E37: 1992 | F37: 1993 | G37: 1994 | H37: 1995 | I37: 1996 | J37: 1997 | K37: 1998 | L37: 1999 | M37: 2000 | N37: 2001 | O37: 2002 | P37: 2003 | Q37: 2004 | R37: 2005 | S37: 2006 | T37: 2007 | U37: 2008 | V37: 2009 | W37: 2010 | X37: 2011 | Y37: 2012 | Z37: 2013 | AA37: 2014 | AB37: 2015 | AC37: 2016 | AD37: 2017 | AE37: 2018 | AF37: 2019 | AG37: 2020
B38: CH4 | C38: =(C53+C62)/10^6 -> 0 | D38: =(D53+D62)/10^6 -> 0 | E38: 0 | F38: 0 | G38: 0 | H38: 0 | I38: 0 | J38: 0 | K38: 0 | L38: 0 | M38: 0 | N38: 0 | O38: 0 | P38: 0 | Q38: 0 | R38: 0 | S38: 0 | T38: 0 | U38: 0 | V38: 0 | W38: 0 | X38: 0 | Y38: 0 | Z38: 0 | AA38: 0 | AB38: 0 | AC38: 0 | AD38: 0 | AE38: 0 | AF38: =(AF53+AF62)/10^6 -> 0 | AG38: =(AG53+AG62)/10^6 -> 0
B39: CO2 | C39: =C57/10^6 -> 0 | D39: 0 | E39: 0 | F39: 0 | G39: 0 | H39: 0 | I39: 0 | J39: 0 | K39: 0 | L39: 0 | M39: 0 | N39: 0 | O39: 0 | P39: 0 | Q39: 0 | R39: 0 | S39: =S57/10^6 -> 0 | T39: 0 | U39: 0 | V39: 0 | W39: 0 | X39: 0 | Y39: 0 | Z39: 0 | AA39: 0 | AB39: 0 | AC39: 0 | AD39: 0 | AE39: 0 | AF39: 0 | AG39: 0
B40: N2O | C40: =C61/10^6 -> 0 | D40: 0 | E40: 0 | F40: 0 | G40: 0 | H40: 0 | I40: 0 | J40: 0 | K40: 0 | L40: 0 | M40: 0 | N40: 0 | O40: 0 | P40: 0 | Q40: 0 | R40: 0 | S40: =S61/10^6 -> 0 | T40: 0 | U40: 0 | V40: 0 | W40: 0 | X40: 0 | Y40: 0 | Z40: 0 | AA40: 0 | AB40: 0 | AC40: 0 | AD40: 0 | AE40: 0 | AF40: 0 | AG40: 0
B41: Total | C41: =SUM(C38:C40) -> 0 | D41: =SUM(D38:D40) -> 0 | E41: 0 | F41: 0 | G41: 0 | H41: 0 | I41: 0 | J41: 0 | K41: 0 | L41: 0 | M41: =SUM(M38:M40) -> 0 | N41: 0 | O41: 0 | P41: 0 | Q41: 0 | R41: 0 | S41: =SUM(S38:S40) -> 0 | T41: 0 | U41: 0 | V41: 0 | W41: 0 | X41: 0 | Y41: 0 | Z41: 0 | AA41: 0 | AB41: 0 | AC41: 0 | AD41: 0 | AE41: 0 | AF41: 0 | AG41: 0
B43: CH4 Emissions from Landfills (MTCE)
C44: 1990 | D44: 1991 | E44: 1992 | F44: 1993 | G44: 1994 | H44: 1995 | I44: 1996 | J44: 1997 | K44: 1998 | L44: 1999 | M44: 2000 | N44: 2001 | O44: 2002 | P44: 2003 | Q44: 2004 | R44: 2005 | S44: 2006 | T44: 2007 | U44: 2008 | V44: 2009 | W44: 2010 | X44: 2011 | Y44: 2012 | Z44: 2013 | AA44: 2014 | AB44: 2015 | AC44: 2016 | AD44: 2017 | AE44: 2018 | AF44: 2019 | AG44: 2020
B45: Potential CH4 | C45: =C46+C47 -> 0 | D45: 0 | E45: 0 | F45: 0 | G45: 0 | H45: 0 | I45: 0 | J45: 0 | K45: 0 | L45: 0 | M45: 0 | N45: 0 | O45: 0 | P45: 0 | Q45: 0 | R45: 0 | S45: =S46+S47 -> 0 | T45: 0 | U45: 0 | V45: 0 | W45: 0 | X45: 0 | Y45: 0 | Z45: 0 | AA45: 0 | AB45: 0 | AC45: 0 | AD45: 0 | AE45: 0 | AF45: 0 | AG45: =AG46+AG47 -> 0
B46: MSW Generation | C46: =IF(C44<=$C$3,VLOOKUP(C44,'FOD Calcs'!$A$13:$D$73,4,FALSE)*CO2_C,0) -> 0 | D46: =IF(D44<=$C$3,VLOOKUP(D44,'FOD Calcs'!$A$13:$D$73,4,FALSE)*CO2_C,0) -> 0 | E46: =IF(E44<=$C$3,VLOOKUP(E44,'FOD Calcs'!$A$13:$D$73,4,FALSE)*CO2_C,0) -> 0 | F46: =IF(F44<=$C$3,VLOOKUP(F44,'FOD Calcs'!$A$13:$D$73,4,FALSE)*CO2_C,0) -> 0 | G46: =IF(G44<=$C$3,VLOOKUP(G44,'FOD Calcs'!$A$13:$D$73,4,FALSE)*CO2_C,0) -> 0 | H46: =IF(H44<=$C$3,VLOOKUP(H44,'FOD Calcs'!$A$13:$D$73,4,FALSE)*CO2_C,0) -> 0 | I46: =IF(I44<=$C$3,VLOOKUP(I44,'FOD Calcs'!$A$13:$D$73,4,FALSE)*CO2_C,0) -> 0 | J46: =IF(J44<=$C$3,VLOOKUP(J44,'FOD Calcs'!$A$13:$D$73,4,FALSE)*CO2_C,0) -> 0 | K46: =IF(K44<=$C$3,VLOOKUP(K44,'FOD Calcs'!$A$13:$D$73,4,FALSE)*CO2_C,0) -> 0 | L46: =IF(L44<=$C$3,VLOOKUP(L44,'FOD Calcs'!$A$13:$D$73,4,FALSE)*CO2_C,0) -> 0 | M46: =IF(M44<=$C$3,VLOOKUP(M44,'FOD Calcs'!$A$13:$D$73,4,FALSE)*CO2_C,0) -> 0 | N46: =IF(N44<=$C$3,VLOOKUP(N44,'FOD Calcs'!$A$13:$D$73,4,FALSE)*CO2_C,0) -> 0 | O46: =IF(O44<=$C$3,VLOOKUP(O44,'FOD Calcs'!$A$13:$D$73,4,FALSE)*CO2_C,0) -> 0 | P46: =IF(P44<=$C$3,VLOOKUP(P44,'FOD Calcs'!$A$13:$D$73,4,FALSE)*CO2_C,0) -> 0 | Q46: =IF(Q44<=$C$3,VLOOKUP(Q44,'FOD Calcs'!$A$13:$D$73,4,FALSE)*CO2_C,0) -> 0 | R46: =IF(R44<=$C$3,VLOOKUP(R44,'FOD Calcs'!$A$13:$D$73,4,FALSE)*CO2_C,0) -> 0 | S46: =IF(S44<=$C$3,VLOOKUP(S44,'FOD Calcs'!$A$13:$D$73,4,FALSE)*CO2_C,0) -> 0 | T46: =IF(T44<=$C$3,VLOOKUP(T44,'FOD Calcs'!$A$13:$D$73,4,FALSE)*CO2_C,0) -> 0 | U46: =IF(U44<=$C$3,VLOOKUP(U44,'FOD Calcs'!$A$13:$D$73,4,FALSE)*CO2_C,0) -> 0 | V46: =IF(V44<=$C$3,VLOOKUP(V44,'FOD Calcs'!$A$13:$D$73,4,FALSE)*CO2_C,0) -> 0 | W46: =IF(W44<=$C$3,VLOOKUP(W44,'FOD Calcs'!$A$13:$D$73,4,FALSE)*CO2_C,0) -> 0 | X46: =IF(X44<=$C$3,VLOOKUP(X44,'FOD Calcs'!$A$13:$D$73,4,FALSE)*CO2_C,0) -> 0 | Y46: =IF(Y44<=$C$3,VLOOKUP(Y44,'FOD Calcs'!$A$13:$D$73,4,FALSE)*CO2_C,0) -> 0 | Z46: =IF(Z44<=$C$3,VLOOKUP(Z44,'FOD Calcs'!$A$13:$D$73,4,FALSE)*CO2_C,0) -> 0 | AA46: =IF(AA44<=$C$3,VLOOKUP(AA44,'FOD Calcs'!$A$13:$D$73,4,FALSE)*CO2_C,0) -> 0 | AB46: =IF(AB44<=$C$3,VLOOKUP(AB44,'FOD Calcs'!$A$13:$D$73,4,FALSE)*CO2_C,0) -> 0 | AC46: =IF(AC44<=$C$3,VLOOKUP(AC44,'FOD Calcs'!$A$13:$D$73,4,FALSE)*CO2_C,0) -> 0 | AD46: =IF(AD44<=$C$3,VLOOKUP(AD44,'FOD Calcs'!$A$13:$D$73,4,FALSE)*CO2_C,0) -> 0 | AE46: =IF(AE44<=$C$3,VLOOKUP(AE44,'FOD Calcs'!$A$13:$D$73,4,FALSE)*CO2_C,0) -> 0 | AF46: =IF(AF44<=$C$3,VLOOKUP(AF44,'FOD Calcs'!$A$13:$D$73,4,FALSE)*CO2_C,0) -> 0 | AG46: =IF(AG44<=$C$3,VLOOKUP(AG44,'FOD Calcs'!$A$13:$D$73,4,FALSE)*CO2_C,0) -> 0
B47: Industrial Generation | C47: =C46*IndustrialPercent -> 0 | D47: =D46*IndustrialPercent -> 0 | E47: =E46*IndustrialPercent -> 0 | F47: 0 | G47: 0 | H47: 0 | I47: 0 | J47: 0 | K47: 0 | L47: 0 | M47: =M46*IndustrialPercent -> 0 | N47: 0 | O47: 0 | P47: 0 | Q47: 0 | R47: 0 | S47: =S46*IndustrialPercent -> 0 | T47: 0 | U47: 0 | V47: 0 | W47: 0 | X47: 0 | Y47: 0 | Z47: 0 | AA47: 0 | AB47: 0 | AC47: 0 | AD47: 0 | AE47: 0 | AF47: 0 | AG47: 0
B48: CH4 Avoided | C48: =IF(ABS(C49+C50)>C46,-C46,C49+C50) -> 0 | D48: =IF(ABS(D49+D50)>D46,-D46,D49+D50) -> 0 | E48: 0 | F48: 0 | G48: 0 | H48: 0 | I48: 0 | J48: 0 | K48: 0 | L48: 0 | M48: 0 | N48: 0 | O48: 0 | P48: 0 | Q48: 0 | R48: 0 | S48: 0 | T48: 0 | U48: 0 | V48: 0 | W48: 0 | X48: 0 | Y48: 0 | Z48: 0 | AA48: 0 | AB48: 0 | AC48: 0 | AD48: 0 | AE48: 0 | AF48: 0 | AG48: 0
B49: Flare | C49: =-Flaring!$D8*MT_per_T*GWP*CO2_C -> 0 | D49: =-Flaring!$D9*MT_per_T*GWP*CO2_C -> 0 | E49: =-Flaring!$D10*MT_per_T*GWP*CO2_C -> 0 | F49: =-Flaring!$D11*MT_per_T*GWP*CO2_C -> 0 | G49: =-Flaring!$D12*MT_per_T*GWP*CO2_C -> 0 | H49: =-Flaring!$D13*MT_per_T*GWP*CO2_C -> 0 | I49: =-Flaring!$D14*MT_per_T*GWP*CO2_C -> 0 | J49: =-Flaring!$D15*MT_per_T*GWP*CO2_C -> 0 | K49: =-Flaring!$D16*MT_per_T*GWP*CO2_C -> 0 | L49: =-Flaring!$D17*MT_per_T*GWP*CO2_C -> 0 | M49: =-Flaring!$D18*MT_per_T*GWP*CO2_C -> 0 | N49: =-Flaring!$D19*MT_per_T*GWP*CO2_C -> 0 | O49: =-Flaring!$D20*MT_per_T*GWP*CO2_C -> 0 | P49: =-Flaring!$D21*MT_per_T*GWP*CO2_C -> 0 | Q49: =-Flaring!$D22*MT_per_T*GWP*CO2_C -> 0 | R49: =-Flaring!$D23*MT_per_T*GWP*CO2_C -> 0 | S49: =-Flaring!$D24*MT_per_T*GWP*CO2_C -> 0 | T49: =-Flaring!$D25*MT_per_T*GWP*CO2_C -> 0 | U49: =-Flaring!$D26*MT_per_T*GWP*CO2_C -> 0 | V49: =-Flaring!$D27*MT_per_T*GWP*CO2_C -> 0 | W49: =-Flaring!$D28*MT_per_T*GWP*CO2_C -> 0 | X49: =-Flaring!$D29*MT_per_T*GWP*CO2_C -> 0 | Y49: =-Flaring!$D30*MT_per_T*GWP*CO2_C -> 0 | Z49: =-Flaring!$D31*MT_per_T*GWP*CO2_C -> 0 | AA49: =-Flaring!$D32*MT_per_T*GWP*CO2_C -> 0 | AB49: =-Flaring!$D33*MT_per_T*GWP*CO2_C -> 0 | AC49: =-Flaring!$D34*MT_per_T*GWP*CO2_C -> 0 | AD49: =-Flaring!$D35*MT_per_T*GWP*CO2_C -> 0 | AE49: =-Flaring!$D36*MT_per_T*GWP*CO2_C -> 0 | AF49: =-Flaring!$D37*MT_per_T*GWP*CO2_C -> 0 | AG49: =-Flaring!$D38*MT_per_T*GWP*CO2_C -> 0
B50: Landfill Gas-to-Energy | C50: =-LFGTE!$D8*MT_per_T*GWP*CO2_C -> 0 | D50: =-LFGTE!$D9*MT_per_T*GWP*CO2_C -> 0 | E50: =-LFGTE!$D10*MT_per_T*GWP*CO2_C -> 0 | F50: =-LFGTE!$D11*MT_per_T*GWP*CO2_C -> 0 | G50: =-LFGTE!$D12*MT_per_T*GWP*CO2_C -> 0 | H50: =-LFGTE!$D13*MT_per_T*GWP*CO2_C -> 0 | I50: =-LFGTE!$D14*MT_per_T*GWP*CO2_C -> 0 | J50: =-LFGTE!$D15*MT_per_T*GWP*CO2_C -> 0 | K50: =-LFGTE!$D16*MT_per_T*GWP*CO2_C -> 0 | L50: =-LFGTE!$D17*MT_per_T*GWP*CO2_C -> 0 | M50: =-LFGTE!$D18*MT_per_T*GWP*CO2_C -> 0 | N50: =-LFGTE!$D19*MT_per_T*GWP*CO2_C -> 0 | O50: =-LFGTE!$D20*MT_per_T*GWP*CO2_C -> 0 | P50: =-LFGTE!$D21*MT_per_T*GWP*CO2_C -> 0 | Q50: =-LFGTE!$D22*MT_per_T*GWP*CO2_C -> 0 | R50: =-LFGTE!$D23*MT_per_T*GWP*CO2_C -> 0 | S50: =-LFGTE!$D24*MT_per_T*GWP*CO2_C -> 0 | T50: =-LFGTE!$D25*MT_per_T*GWP*CO2_C -> 0 | U50: =-LFGTE!$D26*MT_per_T*GWP*CO2_C -> 0 | V50: =-LFGTE!$D27*MT_per_T*GWP*CO2_C -> 0 | W50: =-LFGTE!$D28*MT_per_T*GWP*CO2_C -> 0 | X50: =-LFGTE!$D29*MT_per_T*GWP*CO2_C -> 0 | Y50: =-LFGTE!$D30*MT_per_T*GWP*CO2_C -> 0 | Z50: =-LFGTE!$D31*MT_per_T*GWP*CO2_C -> 0 | AA50: =-LFGTE!$D32*MT_per_T*GWP*CO2_C -> 0 | AB50: =-LFGTE!$D33*MT_per_T*GWP*CO2_C -> 0 | AC50: =-LFGTE!$D34*MT_per_T*GWP*CO2_C -> 0 | AD50: =-LFGTE!$D35*MT_per_T*GWP*CO2_C -> 0 | AE50: =-LFGTE!$D36*MT_per_T*GWP*CO2_C -> 0 | AF50: =-LFGTE!$D37*MT_per_T*GWP*CO2_C -> 0 | AG50: =-LFGTE!$D38*MT_per_T*GWP*CO2_C -> 0
B51: Oxidation at MSW Landfills | C51: =((C46+C48)*OxidationFactor) -> 0 | D51: 0 | E51: 0 | F51: 0 | G51: 0 | H51: 0 | I51: 0 | J51: 0 | K51: 0 | L51: 0 | M51: 0 | N51: 0 | O51: 0 | P51: 0 | Q51: 0 | R51: 0 | S51: =((S46+S48)*OxidationFactor) -> 0 | T51: 0 | U51: 0 | V51: 0 | W51: 0 | X51: 0 | Y51: 0 | Z51: 0 | AA51: 0 | AB51: 0 | AC51: 0 | AD51: 0 | AE51: 0 | AF51: 0 | AG51: 0
B52: Oxidation at Industrial Landfills | C52: =C47*OxidationFactor -> 0 | D52: =D47*OxidationFactor -> 0 | E52: =E47*OxidationFactor -> 0 | F52: 0 | G52: 0 | H52: 0 | I52: 0 | J52: 0 | K52: 0 | L52: 0 | M52: =M47*OxidationFactor -> 0 | N52: 0 | O52: 0 | P52: 0 | Q52: 0 | R52: 0 | S52: =S47*OxidationFactor -> 0 | T52: 0 | U52: 0 | V52: 0 | W52: 0 | X52: 0 | Y52: 0 | Z52: 0 | AA52: 0 | AB52: 0 | AC52: 0 | AD52: 0 | AE52: 0 | AF52: 0 | AG52: 0
B53: Total CH4 Emissions | C53: =C45+C48-C51-C52 -> 0 | D53: 0 | E53: 0 | F53: 0 | G53: 0 | H53: 0 | I53: 0 | J53: 0 | K53: 0 | L53: 0 | M53: 0 | N53: 0 | O53: 0 | P53: 0 | Q53: 0 | R53: 0 | S53: =S45+S48-S51-S52 -> 0 | T53: 0 | U53: 0 | V53: 0 | W53: 0 | X53: 0 | Y53: 0 | Z53: 0 | AA53: 0 | AB53: 0 | AC53: 0 | AD53: 0 | AE53: 0 | AF53: =AF45+AF48-AF51-AF52 -> 0 | AG53: =AG45+AG48-AG51-AG52 -> 0
B55: CO2 and N2O Emissions from Waste Combustion (MTCE)
B56: Gas/Waste Product | C56: 1990 | D56: 1991 | E56: 1992 | F56: 1993 | G56: 1994 | H56: 1995 | I56: 1996 | J56: 1997 | K56: 1998 | L56: 1999 | M56: 2000 | N56: 2001 | O56: 2002 | P56: 2003 | Q56: 2004 | R56: 2005 | S56: 2006 | T56: 2007 | U56: 2008 | V56: 2009 | W56: 2010 | X56: 2011 | Y56: 2012 | Z56: 2013 | AA56: 2014 | AB56: 2015 | AC56: 2016 | AD56: 2017 | AE56: 2018 | AF56: 2019 | AG56: 2020
B57: CO2 | C57: =SUM(C58:C60) -> 0 | D57: 0 | E57: 0 | F57: 0 | G57: 0 | H57: 0 | I57: 0 | J57: 0 | K57: 0 | L57: 0 | M57: =SUM(M58:M60) -> 0 | N57: 0 | O57: 0 | P57: 0 | Q57: 0 | R57: 0 | S57: 0 | T57: 0 | U57: 0 | V57: 0 | W57: 0 | X57: 0 | Y57: 0 | Z57: 0 | AA57: 0 | AB57: =IFERROR(SUM(AB58:AB60),0) -> 0 | AC57: 0 | AD57: 0 | AE57: 0 | AF57: 0 | AG57: 0
B58: Plastics | C58: =CO2_Plastics!$J6 -> 0 | D58: =CO2_Plastics!$J17 -> 0 | E58: =CO2_Plastics!$J28 -> 0 | F58: =CO2_Plastics!$J39 -> 0 | G58: =CO2_Plastics!$J50 -> 0 | H58: =CO2_Plastics!$J61 -> 0 | I58: =CO2_Plastics!$J72 -> 0 | J58: =CO2_Plastics!$J83 -> 0 | K58: =CO2_Plastics!$J94 -> 0 | L58: =CO2_Plastics!$J105 -> 0 | M58: =CO2_Plastics!$J116 -> 0 | N58: =CO2_Plastics!$J127 -> 0 | O58: =CO2_Plastics!$J138 -> 0 | P58: =CO2_Plastics!$J149 -> 0 | Q58: =CO2_Plastics!$J160 -> 0 | R58: =CO2_Plastics!$J171 -> 0 | S58: =CO2_Plastics!$J182 -> 0 | T58: =CO2_Plastics!$J193 -> 0 | U58: =CO2_Plastics!$J204 -> 0 | V58: =CO2_Plastics!$J215 -> 0 | W58: =CO2_Plastics!$J226 -> 0 | X58: =CO2_Plastics!$J237 -> 0 | Y58: =CO2_Plastics!$J248 -> 0 | Z58: =CO2_Plastics!$J259 -> 0 | AA58: =CO2_Plastics!$J270 -> 0 | AB58: =CO2_Plastics!$J281 -> 0 | AC58: =CO2_Plastics!$J292 -> 0 | AD58: =CO2_Plastics!$J303 -> 0 | AE58: =CO2_Plastics!$J314 -> 0 | AF58: =CO2_Plastics!$J325 -> 0 | AG58: =CO2_Plastics!$J336 -> 0
B59: Synthetic Rubber in MSW | C59: ='CO2_Syn. Rubber'!J6 -> 0 | D59: ='CO2_Syn. Rubber'!J15 -> 0 | E59: ='CO2_Syn. Rubber'!J24 -> 0 | F59: ='CO2_Syn. Rubber'!J33 -> 0 | G59: ='CO2_Syn. Rubber'!J42 -> 0 | H59: ='CO2_Syn. Rubber'!J51 -> 0 | I59: ='CO2_Syn. Rubber'!J60 -> 0 | J59: ='CO2_Syn. Rubber'!J69 -> 0 | K59: ='CO2_Syn. Rubber'!J78 -> 0 | L59: ='CO2_Syn. Rubber'!J87 -> 0 | M59: ='CO2_Syn. Rubber'!$J96 -> 0 | N59: ='CO2_Syn. Rubber'!$J105 -> 0 | O59: ='CO2_Syn. Rubber'!$J114 -> 0 | P59: ='CO2_Syn. Rubber'!$J123 -> 0 | Q59: ='CO2_Syn. Rubber'!$J132 -> 0 | R59: ='CO2_Syn. Rubber'!$J141 -> 0 | S59: ='CO2_Syn. Rubber'!$J150 -> 0 | T59: ='CO2_Syn. Rubber'!$J159 -> 0 | U59: ='CO2_Syn. Rubber'!$J168 -> 0 | V59: ='CO2_Syn. Rubber'!$J177 -> 0 | W59: ='CO2_Syn. Rubber'!$J186 -> 0 | X59: ='CO2_Syn. Rubber'!$J195 -> 0 | Y59: ='CO2_Syn. Rubber'!$J204 -> 0 | Z59: ='CO2_Syn. Rubber'!$J213 -> 0 | AA59: ='CO2_Syn. Rubber'!$J222 -> 0 | AB59: ='CO2_Syn. Rubber'!$J231 -> 0 | AC59: ='CO2_Syn. Rubber'!$J240 -> 0 | AD59: ='CO2_Syn. Rubber'!$J249 -> 0 | AE59: ='CO2_Syn. Rubber'!$J258 -> 0 | AF59: ='CO2_Syn. Rubber'!$J267 -> 0 | AG59: ='CO2_Syn. Rubber'!$J276 -> 0
B60: Synthetic Fibers | C60: ='CO2_Syn. Fibers'!J6 -> 0 | D60: ='CO2_Syn. Fibers'!J7 -> 0 | E60: ='CO2_Syn. Fibers'!J8 -> 0 | F60: ='CO2_Syn. Fibers'!J9 -> 0 | G60: ='CO2_Syn. Fibers'!J10 -> 0 | H60: ='CO2_Syn. Fibers'!J11 -> 0 | I60: ='CO2_Syn. Fibers'!J12 -> 0 | J60: ='CO2_Syn. Fibers'!J13 -> 0 | K60: ='CO2_Syn. Fibers'!J14 -> 0 | L60: ='CO2_Syn. Fibers'!J15 -> 0 | M60: ='CO2_Syn. Fibers'!$J16 -> 0 | N60: ='CO2_Syn. Fibers'!$J17 -> 0 | O60: ='CO2_Syn. Fibers'!$J18 -> 0 | P60: ='CO2_Syn. Fibers'!$J19 -> 0 | Q60: ='CO2_Syn. Fibers'!$J20 -> 0 | R60: ='CO2_Syn. Fibers'!$J21 -> 0 | S60: ='CO2_Syn. Fibers'!$J22 -> 0 | T60: ='CO2_Syn. Fibers'!$J23 -> 0 | U60: ='CO2_Syn. Fibers'!$J24 -> 0 | V60: ='CO2_Syn. Fibers'!$J25 -> 0 | W60: ='CO2_Syn. Fibers'!$J26 -> 0 | X60: ='CO2_Syn. Fibers'!$J27 -> 0 | Y60: ='CO2_Syn. Fibers'!$J28 -> 0 | Z60: ='CO2_Syn. Fibers'!$J29 -> 0 | AA60: ='CO2_Syn. Fibers'!$J30 -> 0 | AB60: ='CO2_Syn. Fibers'!$J31 -> 0 | AC60: ='CO2_Syn. Fibers'!$J32 -> 0 | AD60: ='CO2_Syn. Fibers'!$J33 -> 0 | AE60: ='CO2_Syn. Fibers'!$J34 -> 0 | AF60: ='CO2_Syn. Fibers'!$J35 -> 0 | AG60: ='CO2_Syn. Fibers'!$J36 -> 0
B61: N2O | C61: =N2O_MSW!$N$7 -> 0 | D61: =N2O_MSW!$N$8 -> 0 | E61: =N2O_MSW!$N$9 -> 0 | F61: =N2O_MSW!$N$10 -> 0 | G61: =N2O_MSW!$N$11 -> 0 | H61: =N2O_MSW!$N$12 -> 0 | I61: =N2O_MSW!$N$13 -> 0 | J61: =N2O_MSW!$N$14 -> 0 | K61: =N2O_MSW!$N$15 -> 0 | L61: =N2O_MSW!$N$16 -> 0 | M61: =N2O_MSW!$N$17 -> 0 | N61: =N2O_MSW!$N$18 -> 0 | O61: =N2O_MSW!$N$19 -> 0 | P61: =N2O_MSW!$N$20 -> 0 | Q61: =N2O_MSW!$N$21 -> 0 | R61: =N2O_MSW!$N$22 -> 0 | S61: =N2O_MSW!$N$23 -> 0 | T61: =N2O_MSW!$N$24 -> 0 | U61: =N2O_MSW!$N$25 -> 0 | V61: =N2O_MSW!$N$26 -> 0 | W61: =N2O_MSW!$N$27 -> 0 | X61: =N2O_MSW!$N$28 -> 0 | Y61: =N2O_MSW!$N$29 -> 0 | Z61: =N2O_MSW!$N$30 -> 0 | AA61: =N2O_MSW!$N$31 -> 0 | AB61: =N2O_MSW!$N$32 -> 0 | AC61: =N2O_MSW!$N$33 -> 0 | AD61: =N2O_MSW!$N$34 -> 0 | AE61: =N2O_MSW!$N$35 -> 0 | AF61: =N2O_MSW!$N$36 -> 0 | AG61: =N2O_MSW!$N$37 -> 0
B62: CH4 | C62: =CH4_MSW!$N$7 -> 0 | D62: =CH4_MSW!$N$8 -> 0 | E62: =CH4_MSW!$N$9 -> 0 | F62: =CH4_MSW!$N$10 -> 0 | G62: =CH4_MSW!$N$11 -> 0 | H62: =CH4_MSW!$N$12 -> 0 | I62: =CH4_MSW!$N$13 -> 0 | J62: =CH4_MSW!$N$14 -> 0 | K62: =CH4_MSW!$N$15 -> 0 | L62: =CH4_MSW!$N$16 -> 0 | M62: =CH4_MSW!$N$17 -> 0 | N62: =CH4_MSW!$N$18 -> 0 | O62: =CH4_MSW!$N$19 -> 0 | P62: =CH4_MSW!$N$20 -> 0 | Q62: =CH4_MSW!$N$21 -> 0 | R62: =CH4_MSW!$N$22 -> 0 | S62: =CH4_MSW!$N$23 -> 0 | T62: =CH4_MSW!$N$24 -> 0 | U62: =CH4_MSW!$N$25 -> 0 | V62: =CH4_MSW!$N$26 -> 0 | W62: =CH4_MSW!$N$27 -> 0 | X62: =CH4_MSW!$N$28 -> 0 | Y62: =CH4_MSW!$N$29 -> 0 | Z62: =CH4_MSW!$N$30 -> 0 | AA62: =CH4_MSW!$N$31 -> 0 | AB62: =CH4_MSW!$N$32 -> 0 | AC62: =CH4_MSW!$N$33 -> 0 | AD62: =CH4_MSW!$N$34 -> 0 | AE62: =CH4_MSW!$N$35 -> 0 | AF62: =CH4_MSW!$N$36 -> 0 | AG62: =CH4_MSW!$N$37 -> 0
B63: Total CO2, N2O, CH4 Emissions | C63: =C57+C61+C62 -> 0 | D63: =D57+D61+D62 -> 0 | E63: 0 | F63: 0 | G63: 0 | H63: 0 | I63: 0 | J63: 0 | K63: 0 | L63: 0 | M63: 0 | N63: 0 | O63: 0 | P63: 0 | Q63: 0 | R63: 0 | S63: 0 | T63: 0 | U63: 0 | V63: 0 | W63: 0 | X63: 0 | Y63: 0 | Z63: 0 | AA63: 0 | AB63: 0 | AC63: 0 | AD63: 0 | AE63: 0 | AF63: =AF57+AF61+AF62 -> 0 | AG63: 0
P70: ="GHG Emissions from Landfills and Waste Combustion (MMTCO2E), 1990 - "&Lookups!J43 -> GHG Emissions from Landfills and Waste Combustion (MMTCO2E), 1990 - 2018
P71: ="Methane Emissions from Landfills (MTCO2E), 1990 - "&Lookups!J43 -> Methane Emissions from Landfills (MTCO2E), 1990 - 2018
P72: ="Emissions from Waste Combustion (MTCO2E), 1990 - "&Lookups!J43 -> Emissions from Waste Combustion (MTCO2E), 1990 - 2018

Sheet Tracker (hidden)
A1: Sector | B1: Sum | C1: Not included? | D1: Text of missing sector | E1: "and"? | F1: Punctuation | G1: Text used
A2: MSW Landfills | B2: =SUM(Results!C46:R46) -> 0 | C2: =IF(ISERROR(B2),TRUE,IF(B2=0,TRUE,FALSE)) -> TRUE | D2: =IF(C2=TRUE," "&A2,"") -> MSW Landfills | E2: =IF(AND($C$9=A2,$C$8>1)," and","") ->  | F2: =IF(C2=TRUE,IF($C$9=A2,".",","),"") -> , | G2: =E2&D2&F2 -> MSW Landfills,
A3: Industrial Landfills | B3: =SUM(Results!C47:R47) -> 0 | C3: TRUE | D3: Industrial Landfills | F3: , | G3: Industrial Landfills,
A4: Waste Combustion- Plastics | B4: =SUM(Results!C58:R58) -> 0 | C4: TRUE | D4: Waste Combustion- Plastics | F4: , | G4: Waste Combustion- Plastics,
A5: Waste Combustion- Synthetic Rubber | B5: =SUM(Results!C59:R59) -> 0 | C5: TRUE | D5: Waste Combustion- Synthetic Rubber | F5: , | G5: Waste Combustion- Synthetic Rubber,
A6: Waste Combustion- Synthetic Fibers | B6: =SUM(Results!C60:R60) -> 0 | C6: TRUE | D6: Waste Combustion- Synthetic Fibers | F6: , | G6: Waste Combustion- Synthetic Fibers,
A7: Waste Combustion- N2O | B7: =SUM(Results!C61:R61) -> 0 | C7: TRUE | D7: Waste Combustion- N2O | E7: and | F7: . | G7: and Waste Combustion- N2O.
B8: Count | C8: =COUNTIF(C2:C7,TRUE) -> 6
B9: Last | C9: =IF(C7=TRUE,A7,IF(C6=TRUE,A6,IF(C5=TRUE,A5,IF(C4=TRUE,A4,IF(C3=TRUE,A3,IF(C2=TRUE,A2,)))))) -> Waste Combustion- N2O
A11: Part A | B11: =IF(C8>1,"Emissions were not calculated for the following sources:","Emissions were not calculated for the following sources:") -> Emissions were not calculated for the following sources:
A12: Part B | B12: =G2&G3&G4&G5&G6&G7 -> MSW Landfills, Industrial Landfills, Waste Combustion- Plastics, Waste Combustion- Synthetic Rubber, Waste Combustion- Synthetic Fibers, and Waste Combustion- N2O.
A13: Final | B13: =IF(C8=0,0,B11&B12) -> Emissions were not calculated for the following sources: MSW Landfills, Industrial Landfills, Waste Combustion- Plastics, Waste Combustion- Synthetic Rubber, Waste Combustion- Synthetic Fibers, and Waste Combustion- N2O.

Sheet Uncertainty
A2: Uncertainty Associated With Waste Emissions Estimates
B3: Excerpted from EIIP Guidance, Chapter 13.

Sheet Flaring
A1: ="Methane Avoided in " & VLOOKUP(SelectedState,States,2,FALSE) & " from Flaring (short tons):" -> Methane Avoided in Select a State. . . from Flaring (short tons):
A2: * When default flaring and LFGTE activity data are utilized for DE, ME, NH, PA, RI, VT, and WI landfill methane avoided is greater than landfill methane produced. This is a result of using various sources of default data. The tool corrects for this error by setting landfill methane avoided equal to landfill methane produced.
A3: Please investigate state-specific sources of flaring data if this occurs in your state.
B5: Methane Avoided from Landfill Gas Flaring Projects (short tons)
A7: Year | B7: Default Data | D7: Data Used
A8: 1990 | B8: =VLOOKUP(SelectedState,FlaringDefaultData,A8-1988,FALSE)*10^6/MT_per_T/CO2_C/GWP -> 
A9: 1991
A10: 1992
A11: 1993
A12: 1994
A13: 1995
A14: 1996
A15: 1997
A16: 1998
A17: 1999
A18: 2000
A19: 2001
A20: 2002
A21: 2003
A22: 2004
A23: 2005
A24: 2006
A25: 2007
A26: 2008
A27: 2009
A28: 2010
A29: 2011
A30: 2012
A31: 2013
A32: 2014
A33: 2015
A34: 2016 | B34: =VLOOKUP(SelectedState,FlaringDefaultData,A34-1988,FALSE)*10^6/MT_per_T/CO2_C/GWP -> 
A35: 2017
A36: 2018
A37: 2019
A38: 2020

Sheet LFGTE
A1: ="Methane Recovered in " & VLOOKUP(SelectedState,States,2,FALSE) & " from LFGTE Projects (tons):" -> Methane Recovered in Select a State. . . from LFGTE Projects (tons):
A2: * When default flaring and LFGTE activity data are utilized for DE, ME, NH, PA, RI, VT, and WI landfill methane avoided is greater than landfill methane produced. This is a result of using various sources of default data. The tool corrects for this error by setting landfill methane avoided equal to landfill methane produced.
A3: Please investigate state-specific sources of LFGTE data if this occurs in your state.
B5: Methane Recovered from LFGTE Projects (short tons)
A7: Year | B7: Default Data | D7: Data Used
A8: 1990 | B8: =VLOOKUP(SelectedState,LFGTEDefaultData,A8-1988,FALSE)*10^6/MT_per_T/CO2_C/GWP -> 
A9: 1991
A10: 1992
A11: 1993
A12: 1994
A13: 1995
A14: 1996
A15: 1997
A16: 1998
A17: 1999
A18: 2000
A19: 2001
A20: 2002
A21: 2003
A22: 2004
A23: 2005
A24: 2006
A25: 2007
A26: 2008
A27: 2009
A28: 2010
A29: 2011
A30: 2012
A31: 2013
A32: 2014
A33: 2015
A34: 2016
A35: 2017
A36: 2018
A37: 2019
A38: 2020

Sheet State Population
A1: ="3. Population data for " & VLOOKUP(SelectedState,States,2,FALSE) -> 3. Population data for Select a State. . .
A3: Year | B3: Default Population | D3: Population Used
A4: 1960 | B4: =_xlfn.IFNA(Population!$B$59,"") ->  | D4: =B4 -> 
A5: 1961 | B5: =_xlfn.IFNA(Population!$C$59,"") -> 
A6: 1962 | B6: =_xlfn.IFNA(Population!$D$59,"") -> 
A7: 1963 | B7: =_xlfn.IFNA(Population!$E$59,"") -> 
A8: 1964 | B8: =_xlfn.IFNA(Population!$F$59,"") -> 
A9: 1965 | B9: =_xlfn.IFNA(Population!$G$59,"") -> 
A10: 1966 | B10: =_xlfn.IFNA(Population!$H$59,"") -> 
A11: 1967 | B11: =_xlfn.IFNA(Population!$I$59,"") -> 
A12: 1968 | B12: =_xlfn.IFNA(Population!$J$59,"") -> 
A13: 1969 | B13: =_xlfn.IFNA(Population!$K$59,"") -> 
A14: 1970 | B14: =_xlfn.IFNA(Population!$L$59,"") -> 
A15: 1971 | B15: =_xlfn.IFNA(Population!$M$59,"") -> 
A16: 1972 | B16: =_xlfn.IFNA(Population!$N$59,"") -> 
A17: 1973 | B17: =_xlfn.IFNA(Population!$O$59,"") -> 
A18: 1974 | B18: =_xlfn.IFNA(Population!$P$59,"") -> 
A19: 1975 | B19: =_xlfn.IFNA(Population!$Q$59,"") -> 
A20: 1976 | B20: =_xlfn.IFNA(Population!$R$59,"") -> 
A21: 1977 | B21: =_xlfn.IFNA(Population!$S$59,"") -> 
A22: 1978 | B22: =_xlfn.IFNA(Population!$T$59,"") -> 
A23: 1979 | B23: =_xlfn.IFNA(Population!$U$59,"") -> 
A24: 1980 | B24: =_xlfn.IFNA(Population!$V$59,"") -> 
A25: 1981 | B25: =_xlfn.IFNA(Population!$W$59,"") -> 
A26: 1982 | B26: =_xlfn.IFNA(Population!$X$59,"") -> 
A27: 1983 | B27: =_xlfn.IFNA(Population!$Y$59,"") -> 
A28: 1984 | B28: =_xlfn.IFNA(Population!$Z$59,"") -> 
A29: 1985 | B29: =_xlfn.IFNA(Population!$AA$59,"") -> 
A30: 1986 | B30: =_xlfn.IFNA(Population!$AB$59,"") -> 
A31: 1987 | B31: =_xlfn.IFNA(Population!$AC$59,"") -> 
A32: 1988 | B32: =_xlfn.IFNA(Population!$AD$59,"") -> 
A33: 1989 | B33: =_xlfn.IFNA(Population!$AE$59,"") -> 
A34: 1990 | B34: =_xlfn.IFNA(Population!$AF$59,"") -> 
A35: 1991 | B35: =_xlfn.IFNA(Population!$AG$59,"") -> 
A36: 1992 | B36: =_xlfn.IFNA(Population!$AH$59,"") ->  | D36: =B36 -> 
A37: 1993 | B37: =_xlfn.IFNA(Population!$AI$59,"") -> 
A38: 1994 | B38: =_xlfn.IFNA(Population!$AJ$59,"") -> 
A39: 1995 | B39: =_xlfn.IFNA(Population!$AK$59,"") -> 
A40: 1996 | B40: =_xlfn.IFNA(Population!$AL$59,"") -> 
A41: 1997 | B41: =_xlfn.IFNA(Population!$AM$59,"") -> 
A42: 1998 | B42: =_xlfn.IFNA(Population!$AN$59,"") -> 
A43: 1999 | B43: =_xlfn.IFNA(Population!$AO$59,"") -> 
A44: 2000 | B44: =_xlfn.IFNA(Population!$AP$59,"") -> 
A45: 2001 | B45: =_xlfn.IFNA(Population!$AQ$59,"") -> 
A46: 2002 | B46: =_xlfn.IFNA(Population!$AR$59,"") -> 
A47: 2003 | B47: =_xlfn.IFNA(Population!$AS$59,"") -> 
A48: 2004 | B48: =_xlfn.IFNA(Population!$AT$59,"") -> 
A49: 2005 | B49: =_xlfn.IFNA(Population!$AU$59,"") -> 
A50: 2006 | B50: =_xlfn.IFNA(Population!$AV$59,"") -> 
A51: 2007 | B51: =_xlfn.IFNA(Population!$AW$59,"") -> 
A52: 2008 | B52: =_xlfn.IFNA(Population!$AX$59,"") -> 
A53: 2009 | B53: =_xlfn.IFNA(Population!$AY$59,"") -> 
A54: 2010 | B54: =_xlfn.IFNA(Population!$AZ$59,"") -> 
A55: 2011 | B55: =_xlfn.IFNA(Population!$BA$59,"") -> 
A56: 2012 | B56: =_xlfn.IFNA(Population!$BB$59,"") -> 
A57: 2013 | B57: =_xlfn.IFNA(Population!$BC$59,"") -> 
A58: 2014 | B58: =_xlfn.IFNA(Population!$BD$59,"") -> 
A59: 2015 | B59: =_xlfn.IFNA(Population!$BE$59,"") -> 
A60: 2016 | B60: =_xlfn.IFNA(Population!$BF$59,"") -> 
A61: 2017 | B61: =_xlfn.IFNA(Population!$BG$59,"") -> 
A62: 2018 | B62: =_xlfn.IFNA(Population!$BH$59,"") ->  | D62: =B62 -> 
A63: 2019 | B63: =_xlfn.IFNA(Population!$BI$59,"") -> 
A64: 2020 | B64: =_xlfn.IFNA(Population!$BJ$59,"") -> 

Sheet State Disposal
A1: ="2. Quantity Landfilled in "&VLOOKUP(SelectedState,States,2,FALSE)&" (Tons Disposed)" -> 2. Quantity Landfilled in Select a State. . . (Tons Disposed)
A3: =IF(DisposalChoice=5,AA1,0) -> 0
A4: Year | C4: Annual Disposal (tons)
A6: 1960
A7: 1961
A8: 1962
A9: 1963
A10: 1964
A11: 1965
A12: 1966
A13: 1967
A14: 1968
A15: 1969
A16: 1970
A17: 1971
A18: 1972
A19: 1973
A20: 1974
A21: 1975
A22: 1976
A23: 1977
A24: 1978
A25: 1979
A26: 1980
A27: 1981
A28: 1982
A29: 1983
A30: 1984
A31: 1985
A32: 1986
A33: 1987
A34: 1988
A35: 1989
A36: 1990
A37: 1991
A38: 1992
A39: 1993
A40: 1994
A41: 1995
A42: 1996
A43: 1997
A44: 1998
A45: 1999
A46: 2000
A47: 2001
A48: 2002
A49: 2003
A50: 2004
A51: 2005
A52: 2006
A53: 2007
A54: 2008
A55: 2009
A56: 2010
A57: 2011
A58: 2012
A59: 2013
A60: 2014
A61: 2015
A62: 2016
A63: 2017
A64: 2018
A65: 2019
A66: 2020

Sheet FOD Calcs
A1: ="4. Methane Emissions from Landfills in "&VLOOKUP(SelectedState,States,2,FALSE)&" Using the First Order Decay Model." -> 4. Methane Emissions from Landfills in Select a State. . . Using the First Order Decay Model.
A2: This sheet performs calculations; no data are entered below.
G10: Emissions by year of waste disposal (cubic meters of CH4)
F11: =ROW(A13) -> 13 | G11: =ROW(A14) -> 14 | H11: =ROW(B15) -> 15 | I11: =ROW(C16) -> 16 | J11: =ROW(D17) -> 17 | K11: =ROW(E18) -> 18 | L11: =ROW(F19) -> 19 | M11: =ROW(G20) -> 20 | N11: =ROW(H21) -> 21 | O11: =ROW(I22) -> 22 | P11: =ROW(J23) -> 23 | Q11: =ROW(K24) -> 24 | R11: =ROW(L25) -> 25 | S11: =ROW(M26) -> 26 | T11: =ROW(N27) -> 27 | U11: =ROW(O28) -> 28 | V11: =ROW(P29) -> 29 | W11: =ROW(Q30) -> 30 | X11: =ROW(R31) -> 31 | Y11: =ROW(S32) -> 32 | Z11: =ROW(T33) -> 33 | AA11: =ROW(U34) -> 34 | AB11: =ROW(V35) -> 35 | AC11: =ROW(W36) -> 36 | AD11: =ROW(X37) -> 37 | AE11: =ROW(Y38) -> 38 | AF11: =ROW(Z39) -> 39 | AG11: =ROW(AA40) -> 40 | AH11: =ROW(AB41) -> 41 | AI11: =ROW(AC42) -> 42 | AJ11: =ROW(AD43) -> 43 | AK11: =ROW(AE44) -> 44 | AL11: =ROW(AF45) -> 45 | AM11: =ROW(AG46) -> 46 | AN11: =ROW(AH47) -> 47 | AO11: =ROW(AI48) -> 48 | AP11: =ROW(AJ49) -> 49 | AQ11: =ROW(AK50) -> 50 | AR11: =ROW(AL51) -> 51 | AS11: =ROW(AM52) -> 52 | AT11: =ROW(AN53) -> 53 | AU11: =ROW(AO54) -> 54 | AV11: =ROW(AP55) -> 55 | AW11: =ROW(AQ56) -> 56 | AX11: =ROW(AR57) -> 57 | AY11: =ROW(AS58) -> 58 | AZ11: =ROW(AT59) -> 59 | BA11: =ROW(AU60) -> 60 | BB11: =ROW(AV61) -> 61 | BC11: =ROW(AW62) -> 62 | BD11: =ROW(AX63) -> 63 | BE11: =ROW(AY64) -> 64 | BF11: =ROW(AZ65) -> 65 | BG11: =ROW(BA66) -> 66 | BH11: =ROW(BB67) -> 67 | BI11: =ROW(BC68) -> 68 | BJ11: =ROW(BD69) -> 69 | BK11: =ROW(BE70) -> 70 | BL11: =ROW(BF71) -> 71 | BM11: =ROW(BG72) -> 72 | BN11: =ROW(BH73) -> 73
A12: Year | B12: Waste Disposed (metric tons) | C12: Total Waste (metric tons) | D12: Potential Emissions (MTCO2E) | F12: 1960 | G12: 1961 | H12: 1962 | I12: 1963 | J12: 1964 | K12: 1965 | L12: 1966 | M12: 1967 | N12: 1968 | O12: 1969 | P12: 1970 | Q12: 1971 | R12: 1972 | S12: 1973 | T12: 1974 | U12: 1975 | V12: 1976 | W12: 1977 | X12: 1978 | Y12: 1979 | Z12: 1980 | AA12: 1981 | AB12: 1982 | AC12: 1983 | AD12: 1984 | AE12: 1985 | AF12: 1986 | AG12: 1987 | AH12: 1988 | AI12: 1989 | AJ12: 1990 | AK12: 1991 | AL12: 1992 | AM12: 1993 | AN12: 1994 | AO12: 1995 | AP12: 1996 | AQ12: 1997 | AR12: 1998 | AS12: 1999 | AT12: 2000 | AU12: 2001 | AV12: 2002 | AW12: 2003 | AX12: 2004 | AY12: 2005 | AZ12: 2006 | BA12: 2007 | BB12: 2008 | BC12: 2009 | BD12: 2010 | BE12: 2011 | BF12: 2012 | BG12: 2013 | BH12: 2014 | BI12: 2015 | BJ12: 2016 | BK12: 2017 | BL12: 2018 | BM12: 2019 | BN12: 2020
A13: 1960 | B13: ='State Disposal'!C6*MT_per_T -> 0 | C13: =B13 -> 0 | D13: =(((SUM(F13:BN13)/M3_FT3)*g_ft3)/g_mt)*GWP -> 0 | F13: =IF(F$12>=$A13,"",INDIRECT("B"&F$11)*L*((EXP(-k*((($A13)-1)-F$12)))-(EXP(-k*($A13-F$12))))) ->  | P13: =IF(P$12>=$A13,"",INDIRECT("B"&P$11)*L*((EXP(-k*((($A13)-1)-P$12)))-(EXP(-k*($A13-P$12))))) ->  | Z13: =IF(Z$12>=$A13,"",INDIRECT("B"&Z$11)*L*((EXP(-k*((($A13)-1)-Z$12)))-(EXP(-k*($A13-Z$12))))) ->  | AJ13: =IF(AJ$12>=$A13,"",INDIRECT("B"&AJ$11)*L*((EXP(-k*((($A13)-1)-AJ$12)))-(EXP(-k*($A13-AJ$12))))) ->  | AT13: =IF(AT$12>=$A13,"",INDIRECT("B"&AT$11)*L*((EXP(-k*((($A13)-1)-AT$12)))-(EXP(-k*($A13-AT$12))))) ->  | BJ13: =IF(BJ$12>=$A13,"",INDIRECT("B"&BJ$11)*L*((EXP(-k*((($A13)-1)-BJ$12)))-(EXP(-k*($A13-BJ$12))))) ->  | BK13: =IF(BK$12>=$A13,"",INDIRECT("B"&BK$11)*L*((EXP(-k*((($A13)-1)-BK$12)))-(EXP(-k*($A13-BK$12))))) ->  | BL13: =IF(BL$12>=$A13,"",INDIRECT("B"&BL$11)*L*((EXP(-k*((($A13)-1)-BL$12)))-(EXP(-k*($A13-BL$12))))) ->  | BM13: =IF(BM$12>=$A13,"",INDIRECT("B"&BM$11)*L*((EXP(-k*((($A13)-1)-BM$12)))-(EXP(-k*($A13-BM$12))))) ->  | BN13: =IF(BN$12>=$A13,"",INDIRECT("B"&BN$11)*L*((EXP(-k*((($A13)-1)-BN$12)))-(EXP(-k*($A13-BN$12))))) -> 
A14: 1961 | B14: ='State Disposal'!C7*MT_per_T -> 0 | C14: =B14+C13 -> 0 | D14: 0 | F14: =IF(F$12>=$A14,"",(1-EXP(-k))/k*k*INDIRECT("B"&F$11)*L*(EXP(-k*($A14-F$12)))) -> 0 | P14: =IF(P$12>=$A14,"",(1-EXP(-k))/k*k*INDIRECT("B"&P$11)*L*(EXP(-k*($A14-P$12)))) ->  | Z14: =IF(Z$12>=$A14,"",(1-EXP(-k))/k*k*INDIRECT("B"&Z$11)*L*(EXP(-k*($A14-Z$12)))) ->  | AJ14: =IF(AJ$12>=$A14,"",(1-EXP(-k))/k*k*INDIRECT("B"&AJ$11)*L*(EXP(-k*($A14-AJ$12)))) ->  | AT14: =IF(AT$12>=$A14,"",(1-EXP(-k))/k*k*INDIRECT("B"&AT$11)*L*(EXP(-k*($A14-AT$12)))) ->  | BD14: =IF(BD$12>=$A14,"",(1-EXP(-k))/k*k*INDIRECT("B"&BD$11)*L*(EXP(-k*($A14-BD$12)))) -> 
A15: 1962 | B15: ='State Disposal'!C8*MT_per_T -> 0 | C15: =B15+C14 -> 0 | D15: 0 | F15: 0 | G15: 0
A16: 1963 | B16: ='State Disposal'!C9*MT_per_T -> 0 | C16: 0 | D16: 0 | F16: 0 | G16: 0 | H16: 0
A17: 1964 | B17: ='State Disposal'!C10*MT_per_T -> 0 | C17: 0 | D17: 0 | F17: 0 | G17: 0 | H17: 0 | I17: 0
A18: 1965 | B18: ='State Disposal'!C11*MT_per_T -> 0 | C18: 0 | D18: 0 | F18: 0 | G18: 0 | H18: 0 | I18: 0 | J18: 0
A19: 1966 | B19: ='State Disposal'!C12*MT_per_T -> 0 | C19: 0 | D19: 0 | F19: 0 | G19: 0 | H19: 0 | I19: 0 | J19: 0 | K19: 0
A20: 1967 | B20: ='State Disposal'!C13*MT_per_T -> 0 | C20: 0 | D20: 0 | F20: 0 | G20: 0 | H20: 0 | I20: 0 | J20: 0 | K20: 0 | L20: 0
A21: 1968 | B21: ='State Disposal'!C14*MT_per_T -> 0 | C21: 0 | D21: 0 | F21: 0 | G21: 0 | H21: 0 | I21: 0 | J21: 0 | K21: 0 | L21: 0 | M21: 0
A22: 1969 | B22: ='State Disposal'!C15*MT_per_T -> 0 | C22: 0 | D22: 0 | F22: 0 | G22: 0 | H22: 0 | I22: 0 | J22: 0 | K22: 0 | L22: 0 | M22: 0 | N22: 0
A23: 1970 | B23: ='State Disposal'!C16*MT_per_T -> 0 | C23: 0 | D23: 0 | F23: 0 | G23: 0 | H23: 0 | I23: 0 | J23: 0 | K23: 0 | L23: 0 | M23: 0 | N23: 0 | O23: 0
A24: 1971 | B24: ='State Disposal'!C17*MT_per_T -> 0 | C24: 0 | D24: 0 | F24: =IF(F$12>=$A24,"",(1-EXP(-k))/k*k*INDIRECT("B"&F$11)*L*(EXP(-k*($A24-F$12)))) -> 0 | G24: 0 | H24: 0 | I24: 0 | J24: 0 | K24: 0 | L24: 0 | M24: 0 | N24: 0 | O24: 0 | P24: =IF(P$12>=$A24,"",(1-EXP(-k))/k*k*INDIRECT("B"&P$11)*L*(EXP(-k*($A24-P$12)))) -> 0 | Z24: =IF(Z$12>=$A24,"",(1-EXP(-k))/k*k*INDIRECT("B"&Z$11)*L*(EXP(-k*($A24-Z$12)))) ->  | AJ24: =IF(AJ$12>=$A24,"",(1-EXP(-k))/k*k*INDIRECT("B"&AJ$11)*L*(EXP(-k*($A24-AJ$12)))) ->  | AT24: =IF(AT$12>=$A24,"",(1-EXP(-k))/k*k*INDIRECT("B"&AT$11)*L*(EXP(-k*($A24-AT$12)))) ->  | BD24: =IF(BD$12>=$A24,"",(1-EXP(-k))/k*k*INDIRECT("B"&BD$11)*L*(EXP(-k*($A24-BD$12)))) -> 
A25: 1972 | B25: ='State Disposal'!C18*MT_per_T -> 0 | C25: 0 | D25: 0 | F25: 0 | G25: 0 | H25: 0 | I25: 0 | J25: 0 | K25: 0 | L25: 0 | M25: 0 | N25: 0 | O25: 0 | P25: 0 | Q25: 0
A26: 1973 | B26: ='State Disposal'!C19*MT_per_T -> 0 | C26: 0 | D26: 0 | F26: 0 | G26: 0 | H26: 0 | I26: 0 | J26: 0 | K26: 0 | L26: 0 | M26: 0 | N26: 0 | O26: 0 | P26: 0 | Q26: 0 | R26: 0
A27: 1974 | B27: ='State Disposal'!C20*MT_per_T -> 0 | C27: 0 | D27: 0 | F27: 0 | G27: 0 | H27: 0 | I27: 0 | J27: 0 | K27: 0 | L27: 0 | M27: 0 | N27: 0 | O27: 0 | P27: 0 | Q27: 0 | R27: 0 | S27: 0
A28: 1975 | B28: ='State Disposal'!C21*MT_per_T -> 0 | C28: 0 | D28: 0 | F28: 0 | G28: 0 | H28: 0 | I28: 0 | J28: 0 | K28: 0 | L28: 0 | M28: 0 | N28: 0 | O28: 0 | P28: 0 | Q28: 0 | R28: 0 | S28: 0 | T28: 0
A29: 1976 | B29: ='State Disposal'!C22*MT_per_T -> 0 | C29: 0 | D29: 0 | F29: 0 | G29: 0 | H29: 0 | I29: 0 | J29: 0 | K29: 0 | L29: 0 | M29: 0 | N29: 0 | O29: 0 | P29: 0 | Q29: 0 | R29: 0 | S29: 0 | T29: 0 | U29: 0
A30: 1977 | B30: ='State Disposal'!C23*MT_per_T -> 0 | C30: 0 | D30: 0 | F30: 0 | G30: 0 | H30: 0 | I30: 0 | J30: 0 | K30: 0 | L30: 0 | M30: 0 | N30: 0 | O30: 0 | P30: 0 | Q30: 0 | R30: 0 | S30: 0 | T30: 0 | U30: 0 | V30: 0
A31: 1978 | B31: ='State Disposal'!C24*MT_per_T -> 0 | C31: 0 | D31: 0 | F31: 0 | G31: 0 | H31: 0 | I31: 0 | J31: 0 | K31: 0 | L31: 0 | M31: 0 | N31: 0 | O31: 0 | P31: 0 | Q31: 0 | R31: 0 | S31: 0 | T31: 0 | U31: 0 | V31: 0 | W31: 0
A32: 1979 | B32: ='State Disposal'!C25*MT_per_T -> 0 | C32: 0 | D32: 0 | F32: 0 | G32: 0 | H32: 0 | I32: 0 | J32: 0 | K32: 0 | L32: 0 | M32: 0 | N32: 0 | O32: 0 | P32: 0 | Q32: 0 | R32: 0 | S32: 0 | T32: 0 | U32: 0 | V32: 0 | W32: 0 | X32: 0
A33: 1980 | B33: ='State Disposal'!C26*MT_per_T -> 0 | C33: 0 | D33: 0 | F33: 0 | G33: 0 | H33: 0 | I33: 0 | J33: 0 | K33: 0 | L33: 0 | M33: 0 | N33: 0 | O33: 0 | P33: 0 | Q33: 0 | R33: 0 | S33: 0 | T33: 0 | U33: 0 | V33: 0 | W33: 0 | X33: 0 | Y33: 0
A34: 1981 | B34: ='State Disposal'!C27*MT_per_T -> 0 | C34: 0 | D34: 0 | F34: =IF(F$12>=$A34,"",(1-EXP(-k))/k*k*INDIRECT("B"&F$11)*L*(EXP(-k*($A34-F$12)))) -> 0 | G34: 0 | H34: 0 | I34: 0 | J34: 0 | K34: 0 | L34: 0 | M34: 0 | N34: 0 | O34: 0 | P34: =IF(P$12>=$A34,"",(1-EXP(-k))/k*k*INDIRECT("B"&P$11)*L*(EXP(-k*($A34-P$12)))) -> 0 | Q34: 0 | R34: 0 | S34: 0 | T34: 0 | U34: 0 | V34: 0 | W34: 0 | X34: 0 | Y34: 0 | Z34: =IF(Z$12>=$A34,"",(1-EXP(-k))/k*k*INDIRECT("B"&Z$11)*L*(EXP(-k*($A34-Z$12)))) -> 0 | AJ34: =IF(AJ$12>=$A34,"",(1-EXP(-k))/k*k*INDIRECT("B"&AJ$11)*L*(EXP(-k*($A34-AJ$12)))) ->  | AT34: =IF(AT$12>=$A34,"",(1-EXP(-k))/k*k*INDIRECT("B"&AT$11)*L*(EXP(-k*($A34-AT$12)))) ->  | BD34: =IF(BD$12>=$A34,"",(1-EXP(-k))/k*k*INDIRECT("B"&BD$11)*L*(EXP(-k*($A34-BD$12)))) -> 
A35: 1982 | B35: ='State Disposal'!C28*MT_per_T -> 0 | C35: 0 | D35: 0 | F35: 0 | G35: 0 | H35: 0 | I35: 0 | J35: 0 | K35: 0 | L35: 0 | M35: 0 | N35: 0 | O35: 0 | P35: 0 | Q35: 0 | R35: 0 | S35: 0 | T35: 0 | U35: 0 | V35: 0 | W35: 0 | X35: 0 | Y35: 0 | Z35: 0 | AA35: 0
A36: 1983 | B36: ='State Disposal'!C29*MT_per_T -> 0 | C36: 0 | D36: 0 | F36: 0 | G36: 0 | H36: 0 | I36: 0 | J36: 0 | K36: 0 | L36: 0 | M36: 0 | N36: 0 | O36: 0 | P36: 0 | Q36: 0 | R36: 0 | S36: 0 | T36: 0 | U36: 0 | V36: 0 | W36: 0 | X36: 0 | Y36: 0 | Z36: 0 | AA36: 0 | AB36: 0
A37: 1984 | B37: ='State Disposal'!C30*MT_per_T -> 0 | C37: 0 | D37: 0 | F37: 0 | G37: 0 | H37: 0 | I37: 0 | J37: 0 | K37: 0 | L37: 0 | M37: 0 | N37: 0 | O37: 0 | P37: 0 | Q37: 0 | R37: 0 | S37: 0 | T37: 0 | U37: 0 | V37: 0 | W37: 0 | X37: 0 | Y37: 0 | Z37: 0 | AA37: 0 | AB37: 0 | AC37: 0
A38: 1985 | B38: ='State Disposal'!C31*MT_per_T -> 0 | C38: 0 | D38: 0 | F38: 0 | G38: 0 | H38: 0 | I38: 0 | J38: 0 | K38: 0 | L38: 0 | M38: 0 | N38: 0 | O38: 0 | P38: 0 | Q38: 0 | R38: 0 | S38: 0 | T38: 0 | U38: 0 | V38: 0 | W38: 0 | X38: 0 | Y38: 0 | Z38: 0 | AA38: 0 | AB38: 0 | AC38: 0 | AD38: 0
A39: 1986 | B39: ='State Disposal'!C32*MT_per_T -> 0 | C39: 0 | D39: 0 | F39: 0 | G39: 0 | H39: 0 | I39: 0 | J39: 0 | K39: 0 | L39: 0 | M39: 0 | N39: 0 | O39: 0 | P39: 0 | Q39: 0 | R39: 0 | S39: 0 | T39: 0 | U39: 0 | V39: 0 | W39: 0 | X39: 0 | Y39: 0 | Z39: 0 | AA39: 0 | AB39: 0 | AC39: 0 | AD39: 0 | AE39: 0
A40: 1987 | B40: ='State Disposal'!C33*MT_per_T -> 0 | C40: 0 | D40: 0 | F40: 0 | G40: 0 | H40: 0 | I40: 0 | J40: 0 | K40: 0 | L40: 0 | M40: 0 | N40: 0 | O40: 0 | P40: 0 | Q40: 0 | R40: 0 | S40: 0 | T40: 0 | U40: 0 | V40: 0 | W40: 0 | X40: 0 | Y40: 0 | Z40: 0 | AA40: 0 | AB40: 0 | AC40: 0 | AD40: 0 | AE40: 0 | AF40: 0
A41: 1988 | B41: ='State Disposal'!C34*MT_per_T -> 0 | C41: 0 | D41: 0 | F41: 0 | G41: 0 | H41: 0 | I41: 0 | J41: 0 | K41: 0 | L41: 0 | M41: 0 | N41: 0 | O41: 0 | P41: 0 | Q41: 0 | R41: 0 | S41: 0 | T41: 0 | U41: 0 | V41: 0 | W41: 0 | X41: 0 | Y41: 0 | Z41: 0 | AA41: 0 | AB41: 0 | AC41: 0 | AD41: 0 | AE41: 0 | AF41: 0 | AG41: 0
A42: 1989 | B42: ='State Disposal'!C35*MT_per_T -> 0 | C42: 0 | D42: 0 | F42: 0 | G42: 0 | H42: 0 | I42: 0 | J42: 0 | K42: 0 | L42: 0 | M42: 0 | N42: 0 | O42: 0 | P42: 0 | Q42: 0 | R42: 0 | S42: 0 | T42: 0 | U42: 0 | V42: 0 | W42: 0 | X42: 0 | Y42: 0 | Z42: 0 | AA42: 0 | AB42: 0 | AC42: 0 | AD42: 0 | AE42: 0 | AF42: 0 | AG42: 0 | AH42: 0
A43: 1990 | B43: ='State Disposal'!C36*MT_per_T -> 0 | C43: 0 | D43: 0 | F43: 0 | G43: 0 | H43: 0 | I43: 0 | J43: 0 | K43: 0 | L43: 0 | M43: 0 | N43: 0 | O43: 0 | P43: 0 | Q43: 0 | R43: 0 | S43: 0 | T43: 0 | U43: 0 | V43: 0 | W43: 0 | X43: 0 | Y43: 0 | Z43: 0 | AA43: 0 | AB43: 0 | AC43: 0 | AD43: 0 | AE43: 0 | AF43: 0 | AG43: 0 | AH43: 0 | AI43: 0
A44: 1991 | B44: ='State Disposal'!C37*MT_per_T -> 0 | C44: 0 | D44: 0 | F44: =IF(F$12>=$A44,"",(1-EXP(-k))/k*k*INDIRECT("B"&F$11)*L*(EXP(-k*($A44-F$12)))) -> 0 | G44: 0 | H44: 0 | I44: 0 | J44: 0 | K44: 0 | L44: 0 | M44: 0 | N44: 0 | O44: 0 | P44: =IF(P$12>=$A44,"",(1-EXP(-k))/k*k*INDIRECT("B"&P$11)*L*(EXP(-k*($A44-P$12)))) -> 0 | Q44: 0 | R44: 0 | S44: 0 | T44: 0 | U44: 0 | V44: 0 | W44: 0 | X44: 0 | Y44: 0 | Z44: =IF(Z$12>=$A44,"",(1-EXP(-k))/k*k*INDIRECT("B"&Z$11)*L*(EXP(-k*($A44-Z$12)))) -> 0 | AA44: 0 | AB44: 0 | AC44: 0 | AD44: 0 | AE44: 0 | AF44: 0 | AG44: 0 | AH44: 0 | AI44: 0 | AJ44: =IF(AJ$12>=$A44,"",(1-EXP(-k))/k*k*INDIRECT("B"&AJ$11)*L*(EXP(-k*($A44-AJ$12)))) -> 0 | AT44: =IF(AT$12>=$A44,"",(1-EXP(-k))/k*k*INDIRECT("B"&AT$11)*L*(EXP(-k*($A44-AT$12)))) ->  | BD44: =IF(BD$12>=$A44,"",(1-EXP(-k))/k*k*INDIRECT("B"&BD$11)*L*(EXP(-k*($A44-BD$12)))) -> 
A45: 1992 | B45: ='State Disposal'!C38*MT_per_T -> 0 | C45: 0 | D45: =(((SUM(F45:BN45)/M3_FT3)*g_ft3)/g_mt)*GWP -> 0 | F45: 0 | G45: 0 | H45: 0 | I45: 0 | J45: 0 | K45: 0 | L45: 0 | M45: 0 | N45: 0 | O45: 0 | P45: 0 | Q45: 0 | R45: 0 | S45: 0 | T45: 0 | U45: 0 | V45: 0 | W45: 0 | X45: 0 | Y45: 0 | Z45: 0 | AA45: 0 | AB45: 0 | AC45: 0 | AD45: 0 | AE45: 0 | AF45: 0 | AG45: 0 | AH45: 0 | AI45: 0 | AJ45: 0 | AK45: 0
A46: 1993 | B46: ='State Disposal'!C39*MT_per_T -> 0 | C46: 0 | D46: 0 | F46: 0 | G46: 0 | H46: 0 | I46: 0 | J46: 0 | K46: 0 | L46: 0 | M46: 0 | N46: 0 | O46: 0 | P46: 0 | Q46: 0 | R46: 0 | S46: 0 | T46: 0 | U46: 0 | V46: 0 | W46: 0 | X46: 0 | Y46: 0 | Z46: 0 | AA46: 0 | AB46: 0 | AC46: 0 | AD46: 0 | AE46: 0 | AF46: 0 | AG46: 0 | AH46: 0 | AI46: 0 | AJ46: 0 | AK46: 0 | AL46: 0
A47: 1994 | B47: ='State Disposal'!C40*MT_per_T -> 0 | C47: 0 | D47: 0 | F47: 0 | G47: 0 | H47: 0 | I47: 0 | J47: 0 | K47: 0 | L47: 0 | M47: 0 | N47: 0 | O47: 0 | P47: 0 | Q47: 0 | R47: 0 | S47: 0 | T47: 0 | U47: 0 | V47: 0 | W47: 0 | X47: 0 | Y47: 0 | Z47: 0 | AA47: 0 | AB47: 0 | AC47: 0 | AD47: 0 | AE47: 0 | AF47: 0 | AG47: 0 | AH47: 0 | AI47: 0 | AJ47: 0 | AK47: 0 | AL47: 0 | AM47: 0
A48: 1995 | B48: ='State Disposal'!C41*MT_per_T -> 0 | C48: 0 | D48: 0 | F48: 0 | G48: 0 | H48: 0 | I48: 0 | J48: 0 | K48: 0 | L48: 0 | M48: 0 | N48: 0 | O48: 0 | P48: 0 | Q48: 0 | R48: 0 | S48: 0 | T48: 0 | U48: 0 | V48: 0 | W48: 0 | X48: 0 | Y48: 0 | Z48: 0 | AA48: 0 | AB48: 0 | AC48: 0 | AD48: 0 | AE48: 0 | AF48: 0 | AG48: 0 | AH48: 0 | AI48: 0 | AJ48: 0 | AK48: 0 | AL48: 0 | AM48: 0 | AN48: 0
A49: 1996 | B49: ='State Disposal'!C42*MT_per_T -> 0 | C49: 0 | D49: 0 | F49: 0 | G49: 0 | H49: 0 | I49: 0 | J49: 0 | K49: 0 | L49: 0 | M49: 0 | N49: 0 | O49: 0 | P49: 0 | Q49: 0 | R49: 0 | S49: 0 | T49: 0 | U49: 0 | V49: 0 | W49: 0 | X49: 0 | Y49: 0 | Z49: 0 | AA49: 0 | AB49: 0 | AC49: 0 | AD49: 0 | AE49: 0 | AF49: 0 | AG49: 0 | AH49: 0 | AI49: 0 | AJ49: 0 | AK49: 0 | AL49: 0 | AM49: 0 | AN49: 0 | AO49: 0
A50: 1997 | B50: ='State Disposal'!C43*MT_per_T -> 0 | C50: 0 | D50: 0 | F50: 0 | G50: 0 | H50: 0 | I50: 0 | J50: 0 | K50: 0 | L50: 0 | M50: 0 | N50: 0 | O50: 0 | P50: 0 | Q50: 0 | R50: 0 | S50: 0 | T50: 0 | U50: 0 | V50: 0 | W50: 0 | X50: 0 | Y50: 0 | Z50: 0 | AA50: 0 | AB50: 0 | AC50: 0 | AD50: 0 | AE50: 0 | AF50: 0 | AG50: 0 | AH50: 0 | AI50: 0 | AJ50: 0 | AK50: 0 | AL50: 0 | AM50: 0 | AN50: 0 | AO50: 0 | AP50: 0
A51: 1998 | B51: ='State Disposal'!C44*MT_per_T -> 0 | C51: 0 | D51: 0 | F51: 0 | G51: 0 | H51: 0 | I51: 0 | J51: 0 | K51: 0 | L51: 0 | M51: 0 | N51: 0 | O51: 0 | P51: 0 | Q51: 0 | R51: 0 | S51: 0 | T51: 0 | U51: 0 | V51: 0 | W51: 0 | X51: 0 | Y51: 0 | Z51: 0 | AA51: 0 | AB51: 0 | AC51: 0 | AD51: 0 | AE51: 0 | AF51: 0 | AG51: 0 | AH51: 0 | AI51: 0 | AJ51: 0 | AK51: 0 | AL51: 0 | AM51: 0 | AN51: 0 | AO51: 0 | AP51: 0 | AQ51: 0
A52: 1999 | B52: ='State Disposal'!C45*MT_per_T -> 0 | C52: 0 | D52: 0 | F52: 0 | G52: 0 | H52: 0 | I52: 0 | J52: 0 | K52: 0 | L52: 0 | M52: 0 | N52: 0 | O52: 0 | P52: 0 | Q52: 0 | R52: 0 | S52: 0 | T52: 0 | U52: 0 | V52: 0 | W52: 0 | X52: 0 | Y52: 0 | Z52: 0 | AA52: 0 | AB52: 0 | AC52: 0 | AD52: 0 | AE52: 0 | AF52: 0 | AG52: 0 | AH52: 0 | AI52: 0 | AJ52: 0 | AK52: 0 | AL52: 0 | AM52: 0 | AN52: 0 | AO52: 0 | AP52: 0 | AQ52: 0 | AR52: 0
A53: 2000 | B53: ='State Disposal'!C46*MT_per_T -> 0 | C53: 0 | D53: 0 | F53: 0 | G53: 0 | H53: 0 | I53: 0 | J53: 0 | K53: 0 | L53: 0 | M53: 0 | N53: 0 | O53: 0 | P53: 0 | Q53: 0 | R53: 0 | S53: 0 | T53: 0 | U53: 0 | V53: 0 | W53: 0 | X53: 0 | Y53: 0 | Z53: 0 | AA53: 0 | AB53: 0 | AC53: 0 | AD53: 0 | AE53: 0 | AF53: 0 | AG53: 0 | AH53: 0 | AI53: 0 | AJ53: 0 | AK53: 0 | AL53: 0 | AM53: 0 | AN53: 0 | AO53: 0 | AP53: 0 | AQ53: 0 | AR53: 0 | AS53: 0
A54: 2001 | B54: ='State Disposal'!C47*MT_per_T -> 0 | C54: 0 | D54: 0 | F54: =IF(F$12>=$A54,"",(1-EXP(-k))/k*k*INDIRECT("B"&F$11)*L*(EXP(-k*($A54-F$12)))) -> 0 | G54: 0 | H54: 0 | I54: 0 | J54: 0 | K54: 0 | L54: 0 | M54: 0 | N54: 0 | O54: 0 | P54: =IF(P$12>=$A54,"",(1-EXP(-k))/k*k*INDIRECT("B"&P$11)*L*(EXP(-k*($A54-P$12)))) -> 0 | Q54: 0 | R54: 0 | S54: 0 | T54: 0 | U54: 0 | V54: 0 | W54: 0 | X54: 0 | Y54: 0 | Z54: =IF(Z$12>=$A54,"",(1-EXP(-k))/k*k*INDIRECT("B"&Z$11)*L*(EXP(-k*($A54-Z$12)))) -> 0 | AA54: 0 | AB54: 0 | AC54: 0 | AD54: 0 | AE54: 0 | AF54: 0 | AG54: 0 | AH54: 0 | AI54: 0 | AJ54: =IF(AJ$12>=$A54,"",(1-EXP(-k))/k*k*INDIRECT("B"&AJ$11)*L*(EXP(-k*($A54-AJ$12)))) -> 0 | AK54: 0 | AL54: 0 | AM54: 0 | AN54: 0 | AO54: 0 | AP54: 0 | AQ54: 0 | AR54: 0 | AS54: 0 | AT54: =IF(AT$12>=$A54,"",(1-EXP(-k))/k*k*INDIRECT("B"&AT$11)*L*(EXP(-k*($A54-AT$12)))) -> 0 | BD54: =IF(BD$12>=$A54,"",(1-EXP(-k))/k*k*INDIRECT("B"&BD$11)*L*(EXP(-k*($A54-BD$12)))) -> 
A55: 2002 | B55: ='State Disposal'!C48*MT_per_T -> 0 | C55: 0 | D55: 0 | F55: 0 | G55: 0 | H55: 0 | I55: 0 | J55: 0 | K55: 0 | L55: 0 | M55: 0 | N55: 0 | O55: 0 | P55: 0 | Q55: 0 | R55: 0 | S55: 0 | T55: 0 | U55: 0 | V55: 0 | W55: 0 | X55: 0 | Y55: 0 | Z55: 0 | AA55: 0 | AB55: 0 | AC55: 0 | AD55: 0 | AE55: 0 | AF55: 0 | AG55: 0 | AH55: 0 | AI55: 0 | AJ55: 0 | AK55: 0 | AL55: 0 | AM55: 0 | AN55: 0 | AO55: 0 | AP55: 0 | AQ55: 0 | AR55: 0 | AS55: 0 | AT55: 0 | AU55: 0
A56: 2003 | B56: ='State Disposal'!C49*MT_per_T -> 0 | C56: 0 | D56: 0 | F56: 0 | G56: 0 | H56: 0 | I56: 0 | J56: 0 | K56: 0 | L56: 0 | M56: 0 | N56: 0 | O56: 0 | P56: 0 | Q56: 0 | R56: 0 | S56: 0 | T56: 0 | U56: 0 | V56: 0 | W56: 0 | X56: 0 | Y56: 0 | Z56: 0 | AA56: 0 | AB56: 0 | AC56: 0 | AD56: 0 | AE56: 0 | AF56: 0 | AG56: 0 | AH56: 0 | AI56: 0 | AJ56: 0 | AK56: 0 | AL56: 0 | AM56: 0 | AN56: 0 | AO56: 0 | AP56: 0 | AQ56: 0 | AR56: 0 | AS56: 0 | AT56: 0 | AU56: 0 | AV56: 0
A57: 2004 | B57: ='State Disposal'!C50*MT_per_T -> 0 | C57: 0 | D57: 0 | F57: 0 | G57: 0 | H57: 0 | I57: 0 | J57: 0 | K57: 0 | L57: 0 | M57: 0 | N57: 0 | O57: 0 | P57: 0 | Q57: 0 | R57: 0 | S57: 0 | T57: 0 | U57: 0 | V57: 0 | W57: 0 | X57: 0 | Y57: 0 | Z57: 0 | AA57: 0 | AB57: 0 | AC57: 0 | AD57: 0 | AE57: 0 | AF57: 0 | AG57: 0 | AH57: 0 | AI57: 0 | AJ57: 0 | AK57: 0 | AL57: 0 | AM57: 0 | AN57: 0 | AO57: 0 | AP57: 0 | AQ57: 0 | AR57: 0 | AS57: 0 | AT57: 0 | AU57: 0 | AV57: 0 | AW57: 0
A58: 2005 | B58: ='State Disposal'!C51*MT_per_T -> 0 | C58: 0 | D58: 0 | F58: 0 | G58: 0 | H58: 0 | I58: 0 | J58: 0 | K58: 0 | L58: 0 | M58: 0 | N58: 0 | O58: 0 | P58: 0 | Q58: 0 | R58: 0 | S58: 0 | T58: 0 | U58: 0 | V58: 0 | W58: 0 | X58: 0 | Y58: 0 | Z58: 0 | AA58: 0 | AB58: 0 | AC58: 0 | AD58: 0 | AE58: 0 | AF58: 0 | AG58: 0 | AH58: 0 | AI58: 0 | AJ58: 0 | AK58: 0 | AL58: 0 | AM58: 0 | AN58: 0 | AO58: 0 | AP58: 0 | AQ58: 0 | AR58: 0 | AS58: 0 | AT58: 0 | AU58: 0 | AV58: 0 | AW58: 0 | AX58: 0
A59: 2006 | B59: ='State Disposal'!C52*MT_per_T -> 0 | C59: 0 | D59: 0 | F59: 0 | G59: 0 | H59: 0 | I59: 0 | J59: 0 | K59: 0 | L59: 0 | M59: 0 | N59: 0 | O59: 0 | P59: 0 | Q59: 0 | R59: 0 | S59: 0 | T59: 0 | U59: 0 | V59: 0 | W59: 0 | X59: 0 | Y59: 0 | Z59: 0 | AA59: 0 | AB59: 0 | AC59: 0 | AD59: 0 | AE59: 0 | AF59: 0 | AG59: 0 | AH59: 0 | AI59: 0 | AJ59: 0 | AK59: 0 | AL59: 0 | AM59: 0 | AN59: 0 | AO59: 0 | AP59: 0 | AQ59: 0 | AR59: 0 | AS59: 0 | AT59: 0 | AU59: 0 | AV59: 0 | AW59: 0 | AX59: 0 | AY59: 0
A60: 2007 | B60: ='State Disposal'!C53*MT_per_T -> 0 | C60: 0 | D60: 0 | F60: 0 | G60: 0 | H60: 0 | I60: 0 | J60: 0 | K60: 0 | L60: 0 | M60: 0 | N60: 0 | O60: 0 | P60: 0 | Q60: 0 | R60: 0 | S60: 0 | T60: 0 | U60: 0 | V60: 0 | W60: 0 | X60: 0 | Y60: 0 | Z60: 0 | AA60: 0 | AB60: 0 | AC60: 0 | AD60: 0 | AE60: 0 | AF60: 0 | AG60: 0 | AH60: 0 | AI60: 0 | AJ60: 0 | AK60: 0 | AL60: 0 | AM60: 0 | AN60: 0 | AO60: 0 | AP60: 0 | AQ60: 0 | AR60: 0 | AS60: 0 | AT60: 0 | AU60: 0 | AV60: 0 | AW60: 0 | AX60: 0 | AY60: 0 | AZ60: 0
A61: 2008 | B61: ='State Disposal'!C54*MT_per_T -> 0 | C61: 0 | D61: 0 | F61: 0 | G61: 0 | H61: 0 | I61: 0 | J61: 0 | K61: 0 | L61: 0 | M61: 0 | N61: 0 | O61: 0 | P61: 0 | Q61: 0 | R61: 0 | S61: 0 | T61: 0 | U61: 0 | V61: 0 | W61: 0 | X61: 0 | Y61: 0 | Z61: 0 | AA61: 0 | AB61: 0 | AC61: 0 | AD61: 0 | AE61: 0 | AF61: 0 | AG61: 0 | AH61: 0 | AI61: 0 | AJ61: 0 | AK61: 0 | AL61: 0 | AM61: 0 | AN61: 0 | AO61: 0 | AP61: 0 | AQ61: 0 | AR61: 0 | AS61: 0 | AT61: 0 | AU61: 0 | AV61: 0 | AW61: 0 | AX61: 0 | AY61: 0 | AZ61: 0 | BA61: 0
A62: 2009 | B62: ='State Disposal'!C55*MT_per_T -> 0 | C62: 0 | D62: 0 | F62: 0 | G62: 0 | H62: 0 | I62: 0 | J62: 0 | K62: 0 | L62: 0 | M62: 0 | N62: 0 | O62: 0 | P62: 0 | Q62: 0 | R62: 0 | S62: 0 | T62: 0 | U62: 0 | V62: 0 | W62: 0 | X62: 0 | Y62: 0 | Z62: 0 | AA62: 0 | AB62: 0 | AC62: 0 | AD62: 0 | AE62: 0 | AF62: 0 | AG62: 0 | AH62: 0 | AI62: 0 | AJ62: 0 | AK62: 0 | AL62: 0 | AM62: 0 | AN62: 0 | AO62: 0 | AP62: 0 | AQ62: 0 | AR62: 0 | AS62: 0 | AT62: 0 | AU62: 0 | AV62: 0 | AW62: 0 | AX62: 0 | AY62: 0 | AZ62: 0 | BA62: 0 | BB62: 0
A63: 2010 | B63: ='State Disposal'!C56*MT_per_T -> 0 | C63: 0 | D63: 0 | F63: 0 | G63: 0 | H63: 0 | I63: 0 | J63: 0 | K63: 0 | L63: 0 | M63: 0 | N63: 0 | O63: 0 | P63: 0 | Q63: 0 | R63: 0 | S63: 0 | T63: 0 | U63: 0 | V63: 0 | W63: 0 | X63: 0 | Y63: 0 | Z63: 0 | AA63: 0 | AB63: 0 | AC63: 0 | AD63: 0 | AE63: 0 | AF63: 0 | AG63: 0 | AH63: 0 | AI63: 0 | AJ63: 0 | AK63: 0 | AL63: 0 | AM63: 0 | AN63: 0 | AO63: 0 | AP63: 0 | AQ63: 0 | AR63: 0 | AS63: 0 | AT63: 0 | AU63: 0 | AV63: 0 | AW63: 0 | AX63: 0 | AY63: 0 | AZ63: 0 | BA63: 0 | BB63: 0 | BC63: 0
A64: 2011 | B64: ='State Disposal'!C57*MT_per_T -> 0 | C64: 0 | D64: 0 | F64: =IF(F$12>=$A64,"",(1-EXP(-k))/k*k*INDIRECT("B"&F$11)*L*(EXP(-k*($A64-F$12)))) -> 0 | G64: 0 | H64: 0 | I64: 0 | J64: 0 | K64: 0 | L64: 0 | M64: 0 | N64: 0 | O64: 0 | P64: =IF(P$12>=$A64,"",(1-EXP(-k))/k*k*INDIRECT("B"&P$11)*L*(EXP(-k*($A64-P$12)))) -> 0 | Q64: 0 | R64: 0 | S64: 0 | T64: 0 | U64: 0 | V64: 0 | W64: 0 | X64: 0 | Y64: 0 | Z64: =IF(Z$12>=$A64,"",(1-EXP(-k))/k*k*INDIRECT("B"&Z$11)*L*(EXP(-k*($A64-Z$12)))) -> 0 | AA64: 0 | AB64: 0 | AC64: 0 | AD64: 0 | AE64: 0 | AF64: 0 | AG64: 0 | AH64: 0 | AI64: 0 | AJ64: =IF(AJ$12>=$A64,"",(1-EXP(-k))/k*k*INDIRECT("B"&AJ$11)*L*(EXP(-k*($A64-AJ$12)))) -> 0 | AK64: 0 | AL64: 0 | AM64: 0 | AN64: 0 | AO64: 0 | AP64: 0 | AQ64: 0 | AR64: 0 | AS64: 0 | AT64: =IF(AT$12>=$A64,"",(1-EXP(-k))/k*k*INDIRECT("B"&AT$11)*L*(EXP(-k*($A64-AT$12)))) -> 0 | AU64: 0 | AV64: 0 | AW64: 0 | AX64: 0 | AY64: 0 | AZ64: 0 | BA64: 0 | BB64: 0 | BC64: 0 | BD64: =IF(BD$12>=$A64,"",(1-EXP(-k))/k*k*INDIRECT("B"&BD$11)*L*(EXP(-k*($A64-BD$12)))) -> 0
A65: 2012 | B65: ='State Disposal'!C58*MT_per_T -> 0 | C65: 0 | D65: 0 | F65: 0 | G65: 0 | H65: 0 | I65: 0 | J65: 0 | K65: 0 | L65: 0 | M65: 0 | N65: 0 | O65: 0 | P65: 0 | Q65: 0 | R65: 0 | S65: 0 | T65: 0 | U65: 0 | V65: 0 | W65: 0 | X65: 0 | Y65: 0 | Z65: 0 | AA65: 0 | AB65: 0 | AC65: 0 | AD65: 0 | AE65: 0 | AF65: 0 | AG65: 0 | AH65: 0 | AI65: 0 | AJ65: 0 | AK65: 0 | AL65: 0 | AM65: 0 | AN65: 0 | AO65: 0 | AP65: 0 | AQ65: 0 | AR65: 0 | AS65: 0 | AT65: 0 | AU65: 0 | AV65: 0 | AW65: 0 | AX65: 0 | AY65: 0 | AZ65: 0 | BA65: 0 | BB65: 0 | BC65: 0 | BD65: 0 | BE65: 0
A66: 2013 | B66: ='State Disposal'!C59*MT_per_T -> 0 | C66: 0 | D66: 0 | F66: 0 | G66: 0 | H66: 0 | I66: 0 | J66: 0 | K66: 0 | L66: 0 | M66: 0 | N66: 0 | O66: 0 | P66: 0 | Q66: 0 | R66: 0 | S66: 0 | T66: 0 | U66: 0 | V66: 0 | W66: 0 | X66: 0 | Y66: 0 | Z66: 0 | AA66: 0 | AB66: 0 | AC66: 0 | AD66: 0 | AE66: 0 | AF66: 0 | AG66: 0 | AH66: 0 | AI66: 0 | AJ66: 0 | AK66: 0 | AL66: 0 | AM66: 0 | AN66: 0 | AO66: 0 | AP66: 0 | AQ66: 0 | AR66: 0 | AS66: 0 | AT66: 0 | AU66: 0 | AV66: 0 | AW66: 0 | AX66: 0 | AY66: 0 | AZ66: 0 | BA66: 0 | BB66: 0 | BC66: 0 | BD66: 0 | BE66: 0 | BF66: 0
A67: 2014 | B67: ='State Disposal'!C60*MT_per_T -> 0 | C67: 0 | D67: 0 | F67: 0 | G67: 0 | H67: 0 | I67: 0 | J67: 0 | K67: 0 | L67: 0 | M67: 0 | N67: 0 | O67: 0 | P67: 0 | Q67: 0 | R67: 0 | S67: 0 | T67: 0 | U67: 0 | V67: 0 | W67: 0 | X67: 0 | Y67: 0 | Z67: 0 | AA67: 0 | AB67: 0 | AC67: 0 | AD67: 0 | AE67: 0 | AF67: 0 | AG67: 0 | AH67: 0 | AI67: 0 | AJ67: 0 | AK67: 0 | AL67: 0 | AM67: 0 | AN67: 0 | AO67: 0 | AP67: 0 | AQ67: 0 | AR67: 0 | AS67: 0 | AT67: 0 | AU67: 0 | AV67: 0 | AW67: 0 | AX67: 0 | AY67: 0 | AZ67: 0 | BA67: 0 | BB67: 0 | BC67: 0 | BD67: 0 | BE67: 0 | BF67: 0 | BG67: 0
A68: 2015 | B68: ='State Disposal'!C61*MT_per_T -> 0 | C68: 0 | D68: 0 | F68: 0 | G68: 0 | H68: 0 | I68: 0 | J68: 0 | K68: 0 | L68: 0 | M68: 0 | N68: 0 | O68: 0 | P68: 0 | Q68: 0 | R68: 0 | S68: 0 | T68: 0 | U68: 0 | V68: 0 | W68: 0 | X68: 0 | Y68: 0 | Z68: 0 | AA68: 0 | AB68: 0 | AC68: 0 | AD68: 0 | AE68: 0 | AF68: 0 | AG68: 0 | AH68: 0 | AI68: 0 | AJ68: 0 | AK68: 0 | AL68: 0 | AM68: 0 | AN68: 0 | AO68: 0 | AP68: 0 | AQ68: 0 | AR68: 0 | AS68: 0 | AT68: 0 | AU68: 0 | AV68: 0 | AW68: 0 | AX68: 0 | AY68: 0 | AZ68: 0 | BA68: 0 | BB68: 0 | BC68: 0 | BD68: 0 | BE68: 0 | BF68: 0 | BG68: 0 | BH68: 0
A69: 2016 | B69: ='State Disposal'!C62*MT_per_T -> 0 | C69: 0 | D69: 0 | F69: 0 | G69: 0 | H69: 0 | I69: 0 | J69: 0 | K69: 0 | L69: 0 | M69: 0 | N69: 0 | O69: 0 | P69: 0 | Q69: 0 | R69: 0 | S69: 0 | T69: 0 | U69: 0 | V69: 0 | W69: 0 | X69: 0 | Y69: 0 | Z69: 0 | AA69: 0 | AB69: 0 | AC69: 0 | AD69: 0 | AE69: 0 | AF69: 0 | AG69: 0 | AH69: 0 | AI69: 0 | AJ69: 0 | AK69: 0 | AL69: 0 | AM69: 0 | AN69: 0 | AO69: 0 | AP69: 0 | AQ69: 0 | AR69: 0 | AS69: 0 | AT69: 0 | AU69: 0 | AV69: 0 | AW69: 0 | AX69: 0 | AY69: 0 | AZ69: 0 | BA69: 0 | BB69: 0 | BC69: 0 | BD69: 0 | BE69: 0 | BF69: 0 | BG69: 0 | BH69: 0 | BI69: 0
A70: 2017 | B70: ='State Disposal'!C63*MT_per_T -> 0 | C70: 0 | D70: 0 | F70: 0 | G70: 0 | H70: 0 | I70: 0 | J70: 0 | K70: 0 | L70: 0 | M70: 0 | N70: 0 | O70: 0 | P70: 0 | Q70: 0 | R70: 0 | S70: 0 | T70: 0 | U70: 0 | V70: 0 | W70: 0 | X70: 0 | Y70: 0 | Z70: 0 | AA70: 0 | AB70: 0 | AC70: 0 | AD70: 0 | AE70: 0 | AF70: 0 | AG70: 0 | AH70: 0 | AI70: 0 | AJ70: 0 | AK70: 0 | AL70: 0 | AM70: 0 | AN70: 0 | AO70: 0 | AP70: 0 | AQ70: 0 | AR70: 0 | AS70: 0 | AT70: 0 | AU70: 0 | AV70: 0 | AW70: 0 | AX70: 0 | AY70: 0 | AZ70: 0 | BA70: 0 | BB70: 0 | BC70: 0 | BD70: 0 | BE70: 0 | BF70: 0 | BG70: 0 | BH70: 0 | BI70: 0 | BJ70: 0
A71: 2018 | B71: ='State Disposal'!C64*MT_per_T -> 0 | C71: 0 | D71: 0 | F71: 0 | G71: 0 | H71: 0 | I71: 0 | J71: 0 | K71: 0 | L71: 0 | M71: 0 | N71: 0 | O71: 0 | P71: 0 | Q71: 0 | R71: 0 | S71: 0 | T71: 0 | U71: 0 | V71: 0 | W71: 0 | X71: 0 | Y71: 0 | Z71: 0 | AA71: 0 | AB71: 0 | AC71: 0 | AD71: 0 | AE71: 0 | AF71: 0 | AG71: 0 | AH71: 0 | AI71: 0 | AJ71: 0 | AK71: 0 | AL71: 0 | AM71: 0 | AN71: 0 | AO71: 0 | AP71: 0 | AQ71: 0 | AR71: 0 | AS71: 0 | AT71: 0 | AU71: 0 | AV71: 0 | AW71: 0 | AX71: 0 | AY71: 0 | AZ71: 0 | BA71: 0 | BB71: 0 | BC71: 0 | BD71: 0 | BE71: 0 | BF71: 0 | BG71: 0 | BH71: 0 | BI71: 0 | BJ71: 0 | BK71: 0
A72: 2019 | B72: ='State Disposal'!C65*MT_per_T -> 0 | C72: 0 | D72: =(((SUM(F72:BN72)/M3_FT3)*g_ft3)/g_mt)*GWP -> 0 | F72: 0 | G72: 0 | H72: 0 | I72: 0 | J72: 0 | K72: 0 | L72: 0 | M72: 0 | N72: 0 | O72: 0 | P72: 0 | Q72: 0 | R72: 0 | S72: 0 | T72: 0 | U72: 0 | V72: 0 | W72: 0 | X72: 0 | Y72: 0 | Z72: 0 | AA72: 0 | AB72: 0 | AC72: 0 | AD72: 0 | AE72: 0 | AF72: 0 | AG72: 0 | AH72: 0 | AI72: 0 | AJ72: 0 | AK72: 0 | AL72: 0 | AM72: 0 | AN72: 0 | AO72: 0 | AP72: 0 | AQ72: 0 | AR72: 0 | AS72: 0 | AT72: 0 | AU72: 0 | AV72: 0 | AW72: 0 | AX72: 0 | AY72: 0 | AZ72: 0 | BA72: 0 | BB72: 0 | BC72: 0 | BD72: 0 | BE72: 0 | BF72: 0 | BG72: 0 | BH72: 0 | BI72: 0 | BJ72: 0 | BK72: 0 | BL72: 0
A73: 2020 | B73: ='State Disposal'!C66*MT_per_T -> 0 | C73: 0 | D73: 0 | F73: 0 | G73: 0 | H73: 0 | I73: 0 | J73: 0 | K73: 0 | L73: 0 | M73: 0 | N73: 0 | O73: 0 | P73: 0 | Q73: 0 | R73: 0 | S73: 0 | T73: 0 | U73: 0 | V73: 0 | W73: 0 | X73: 0 | Y73: 0 | Z73: 0 | AA73: 0 | AB73: 0 | AC73: 0 | AD73: 0 | AE73: 0 | AF73: 0 | AG73: 0 | AH73: 0 | AI73: 0 | AJ73: 0 | AK73: 0 | AL73: 0 | AM73: 0 | AN73: 0 | AO73: 0 | AP73: 0 | AQ73: 0 | AR73: 0 | AS73: 0 | AT73: 0 | AU73: 0 | AV73: 0 | AW73: 0 | AX73: 0 | AY73: 0 | AZ73: 0 | BA73: 0 | BB73: 0 | BC73: 0 | BD73: 0 | BE73: 0 | BF73: 0 | BG73: 0 | BH73: 0 | BI73: 0 | BJ73: 0 | BK73: 0 | BL73: 0 | BM73: 0

Sheet State MSW Combusted
A1: ="Municipal Solid Waste Combusted in " & VLOOKUP(SelectedState,States,2,FALSE) & ":" -> Municipal Solid Waste Combusted in Select a State. . .:
A2: Year | B2: Default State MSW Combusted (short tons) | D2: State MSW Combusted Used (short tons)
A3: 1990 | B3: =VLOOKUP(SelectedState,'MSW Combusted'!$A$4:$AF$55,A3-1988,FALSE) -> 
A4: 1991 | B4: =VLOOKUP(SelectedState,'MSW Combusted'!$A$4:$AF$55,A4-1988,FALSE) -> 
A5: 1992 | B5: =VLOOKUP(SelectedState,'MSW Combusted'!$A$4:$AF$55,A5-1988,FALSE) -> 
A6: 1993 | B6: =VLOOKUP(SelectedState,'MSW Combusted'!$A$4:$AF$55,A6-1988,FALSE) -> 
A7: 1994 | B7: =VLOOKUP(SelectedState,'MSW Combusted'!$A$4:$AF$55,A7-1988,FALSE) -> 
A8: 1995 | B8: =VLOOKUP(SelectedState,'MSW Combusted'!$A$4:$AF$55,A8-1988,FALSE) -> 
A9: 1996 | B9: =VLOOKUP(SelectedState,'MSW Combusted'!$A$4:$AF$55,A9-1988,FALSE) -> 
A10: 1997 | B10: =VLOOKUP(SelectedState,'MSW Combusted'!$A$4:$AF$55,A10-1988,FALSE) -> 
A11: 1998 | B11: =VLOOKUP(SelectedState,'MSW Combusted'!$A$4:$AF$55,A11-1988,FALSE) -> 
A12: 1999 | B12: =VLOOKUP(SelectedState,'MSW Combusted'!$A$4:$AF$55,A12-1988,FALSE) -> 
A13: 2000 | B13: =VLOOKUP(SelectedState,'MSW Combusted'!$A$4:$AF$55,A13-1988,FALSE) -> 
A14: 2001 | B14: =VLOOKUP(SelectedState,'MSW Combusted'!$A$4:$AF$55,A14-1988,FALSE) -> 
A15: 2002 | B15: =VLOOKUP(SelectedState,'MSW Combusted'!$A$4:$AF$55,A15-1988,FALSE) -> 
A16: 2003 | B16: =VLOOKUP(SelectedState,'MSW Combusted'!$A$4:$AF$55,A16-1988,FALSE) -> 
A17: 2004 | B17: =VLOOKUP(SelectedState,'MSW Combusted'!$A$4:$AF$55,A17-1988,FALSE) -> 
A18: 2005 | B18: =VLOOKUP(SelectedState,'MSW Combusted'!$A$4:$AF$55,A18-1988,FALSE) -> 
A19: 2006 | B19: =VLOOKUP(SelectedState,'MSW Combusted'!$A$4:$AF$55,A19-1988,FALSE) -> 
A20: 2007 | B20: =VLOOKUP(SelectedState,'MSW Combusted'!$A$4:$AF$55,A20-1988,FALSE) -> 
A21: 2008 | B21: =VLOOKUP(SelectedState,'MSW Combusted'!$A$4:$AF$55,A21-1988,FALSE) -> 
A22: 2009 | B22: =VLOOKUP(SelectedState,'MSW Combusted'!$A$4:$AF$55,A22-1988,FALSE) -> 
A23: 2010 | B23: =VLOOKUP(SelectedState,'MSW Combusted'!$A$4:$AF$55,A23-1988,FALSE) -> 
A24: 2011 | B24: =VLOOKUP(SelectedState,'MSW Combusted'!$A$4:$AF$55,A24-1988,FALSE) -> 
A25: 2012 | B25: =VLOOKUP(SelectedState,'MSW Combusted'!$A$4:$AF$55,A25-1988,FALSE) -> 
A26: 2013 | B26: =VLOOKUP(SelectedState,'MSW Combusted'!$A$4:$AF$55,A26-1988,FALSE) -> 
A27: 2014 | B27: =VLOOKUP(SelectedState,'MSW Combusted'!$A$4:$AF$55,A27-1988,FALSE) -> 
A28: 2015 | B28: =VLOOKUP(SelectedState,'MSW Combusted'!$A$4:$AF$55,A28-1988,FALSE) -> 
A29: 2016 | B29: =VLOOKUP(SelectedState,'MSW Combusted'!$A$4:$AF$55,A29-1988,FALSE) -> 
A30: 2017 | B30: =VLOOKUP(SelectedState,'MSW Combusted'!$A$4:$AF$55,A30-1988,FALSE) -> 
A31: 2018 | B31: =VLOOKUP(SelectedState,'MSW Combusted'!$A$4:$AF$55,A31-1988,FALSE) -> 
A32: 2019 | B32: =VLOOKUP(SelectedState,'MSW Combusted'!$A$4:$AF$55,A32-1988,FALSE) -> 
A33: 2020 | B33: =VLOOKUP(SelectedState,'MSW Combusted'!$A$4:$AF$55,A33-1988,FALSE) -> 

Sheet CO2_Plastics
A1: ="10. CO2 from Plastics Combustion in "&VLOOKUP(SelectedState,Lookups!A3:B52,2,FALSE) -> 
A4: CO2 from Plastics Combustion | F4: 1990
B5: Proportion of Discards | D5: State MSW Combusted (short tons) | F5: Carbon Content | H5: Fraction Oxidized | J5: Emissions (MTCE) | L5: Emissions (MTCO2E)
A6: Plastics | C6: x | D6: ='State MSW Combusted'!$D$3 -> 0 | E6: x | F6: =SUMPRODUCT(F7:F13,'MSW Discarded'!$C$9:$C$15)/SUM('MSW Discarded'!$C$9:$C$15) -> 0.7870377704 | G6: x | H6: =PlasticsFraction -> 0 | I6: = | J6: =B6*D6*F6*H6*Lookups!$K$16 -> 0 | K6: = | L6: =J6/CO2_C -> 0
A7: PET | C7: x | D7: =D6 -> 0 | E7: x | F7: =120/192 -> 0.625 | G7: x | H7: =PlasticsFraction -> 0 | I7: = | J7: =B7*D7*F7*H7*Lookups!$K$16 -> 0 | K7: = | L7: 0
A8: HDPE | C8: x | D8: =D7 -> 0 | E8: x | F8: =12/14 -> 0.8571428571 | G8: x | H8: 0 | I8: = | J8: =B8*D8*F8*H8*Lookups!$K$16 -> 0 | K8: = | L8: 0
A9: PVC | C9: x | D9: 0 | E9: x | F9: =24/62.5 -> 0.384 | G9: x | H9: 0 | I9: = | J9: =B9*D9*F9*H9*Lookups!$K$16 -> 0 | K9: = | L9: 0
A10: LDPE/LLDPE | C10: x | D10: 0 | E10: x | F10: =12/14 -> 0.8571428571 | G10: x | H10: 0 | I10: = | J10: =B10*D10*F10*H10*Lookups!$K$16 -> 0 | K10: = | L10: 0
A11: PP | C11: x | D11: 0 | E11: x | F11: =12/14 -> 0.8571428571 | G11: x | H11: 0 | I11: = | J11: =B11*D11*F11*H11*Lookups!$K$16 -> 0 | K11: = | L11: 0
A12: PS | C12: x | D12: 0 | E12: x | F12: =96/104 -> 0.9230769231 | G12: x | H12: 0 | I12: = | J12: =B12*D12*F12*H12*Lookups!$K$16 -> 0 | K12: = | L12: 0
A13: Other | C13: x | D13: 0 | E13: x | F13: 0.6582861265 | G13: x | H13: 0 | I13: = | J13: =B13*D13*F13*H13*Lookups!$K$16 -> 0 | K13: = | L13: 0
A15: CO2 from Plastics Combustion | F15: =F4+1 -> 1991
B16: Proportion of Discards | D16: State MSW Combusted (short tons) | F16: Carbon Content | H16: Fraction Oxidized | J16: Emissions (MTCE) | L16: Emissions (MTCO2E)
A17: Plastics | C17: x | D17: ='State MSW Combusted'!$D4 -> 0 | E17: x | F17: =SUMPRODUCT(F18:F24,'MSW Discarded'!$D$9:$D$15)/SUM('MSW Discarded'!$D$9:$D$15) -> 0.7870377704 | G17: x | H17: =PlasticsFraction -> 0 | I17: = | J17: =B17*D17*F17*H17*Lookups!$K$16 -> 0 | K17: = | L17: =J17/CO2_C -> 0
A18: PET | C18: x | D18: =D17 -> 0 | E18: x | F18: =120/192 -> 0.625 | G18: x | H18: =PlasticsFraction -> 0 | I18: = | J18: =B18*D18*F18*H18*Lookups!$K$16 -> 0 | K18: = | L18: 0
A19: HDPE | C19: x | D19: =D18 -> 0 | E19: x | F19: =12/14 -> 0.8571428571 | G19: x | H19: 0 | I19: = | J19: =B19*D19*F19*H19*Lookups!$K$16 -> 0 | K19: = | L19: 0
A20: PVC | C20: x | D20: 0 | E20: x | F20: =24/62.5 -> 0.384 | G20: x | H20: 0 | I20: = | J20: =B20*D20*F20*H20*Lookups!$K$16 -> 0 | K20: = | L20: 0
A21: LDPE/LLDPE | C21: x | D21: 0 | E21: x | F21: =12/14 -> 0.8571428571 | G21: x | H21: 0 | I21: = | J21: =B21*D21*F21*H21*Lookups!$K$16 -> 0 | K21: = | L21: 0
A22: PP | C22: x | D22: 0 | E22: x | F22: =12/14 -> 0.8571428571 | G22: x | H22: 0 | I22: = | J22: =B22*D22*F22*H22*Lookups!$K$16 -> 0 | K22: = | L22: 0
A23: PS | C23: x | D23: 0 | E23: x | F23: =96/104 -> 0.9230769231 | G23: x | H23: 0 | I23: = | J23: =B23*D23*F23*H23*Lookups!$K$16 -> 0 | K23: = | L23: 0
A24: Other | C24: x | D24: 0 | E24: x | F24: 0.6582861265 | G24: x | H24: 0 | I24: = | J24: =B24*D24*F24*H24*Lookups!$K$16 -> 0 | K24: = | L24: 0
A26: CO2 from Plastics Combustion | F26: =F15+1 -> 1992
B27: Proportion of Discards | D27: State MSW Combusted (short tons) | F27: Carbon Content | H27: Fraction Oxidized | J27: Emissions (MTCE) | L27: Emissions (MTCO2E)
A28: Plastics | C28: x | D28: ='State MSW Combusted'!$D$5 -> 0 | E28: x | F28: =SUMPRODUCT(F29:F35,'MSW Discarded'!$E$9:$E$15)/SUM('MSW Discarded'!$E$9:$E$15) -> 0.7870377704 | G28: x | H28: =PlasticsFraction -> 0 | I28: = | J28: =B28*D28*F28*H28*Lookups!$K$16 -> 0 | K28: = | L28: =J28/CO2_C -> 0
A29: PET | C29: x | D29: =D28 -> 0 | E29: x | F29: =120/192 -> 0.625 | G29: x | H29: =PlasticsFraction -> 0 | I29: = | J29: =B29*D29*F29*H29*Lookups!$K$16 -> 0 | K29: = | L29: 0
A30: HDPE | C30: x | D30: =D29 -> 0 | E30: x | F30: =12/14 -> 0.8571428571 | G30: x | H30: 0 | I30: = | J30: =B30*D30*F30*H30*Lookups!$K$16 -> 0 | K30: = | L30: 0
A31: PVC | C31: x | D31: 0 | E31: x | F31: =24/62.5 -> 0.384 | G31: x | H31: 0 | I31: = | J31: =B31*D31*F31*H31*Lookups!$K$16 -> 0 | K31: = | L31: 0
A32: LDPE/LLDPE | C32: x | D32: 0 | E32: x | F32: =12/14 -> 0.8571428571 | G32: x | H32: 0 | I32: = | J32: =B32*D32*F32*H32*Lookups!$K$16 -> 0 | K32: = | L32: 0
A33: PP | C33: x | D33: 0 | E33: x | F33: =12/14 -> 0.8571428571 | G33: x | H33: 0 | I33: = | J33: =B33*D33*F33*H33*Lookups!$K$16 -> 0 | K33: = | L33: 0
A34: PS | C34: x | D34: 0 | E34: x | F34: =96/104 -> 0.9230769231 | G34: x | H34: 0 | I34: = | J34: =B34*D34*F34*H34*Lookups!$K$16 -> 0 | K34: = | L34: 0
A35: Other | C35: x | D35: 0 | E35: x | F35: 0.6582861265 | G35: x | H35: 0 | I35: = | J35: =B35*D35*F35*H35*Lookups!$K$16 -> 0 | K35: = | L35: 0
A37: CO2 from Plastics Combustion | F37: =F26+1 -> 1993
B38: Proportion of Discards | D38: State MSW Combusted (short tons) | F38: Carbon Content | H38: Fraction Oxidized | J38: Emissions (MTCE) | L38: Emissions (MTCO2E)
A39: Plastics | C39: x | D39: ='State MSW Combusted'!$D$6 -> 0 | E39: x | F39: =SUMPRODUCT(F40:F46,'MSW Discarded'!$F$9:$F$15)/SUM('MSW Discarded'!$F$9:$F$15) -> 0.7870377704 | G39: x | H39: =PlasticsFraction -> 0 | I39: = | J39: =B39*D39*F39*H39*Lookups!$K$16 -> 0 | K39: = | L39: =J39/CO2_C -> 0
A40: PET | C40: x | D40: =D39 -> 0 | E40: x | F40: =120/192 -> 0.625 | G40: x | H40: =PlasticsFraction -> 0 | I40: = | J40: =B40*D40*F40*H40*Lookups!$K$16 -> 0 | K40: = | L40: 0
A41: HDPE | C41: x | D41: =D40 -> 0 | E41: x | F41: =12/14 -> 0.8571428571 | G41: x | H41: 0 | I41: = | J41: =B41*D41*F41*H41*Lookups!$K$16 -> 0 | K41: = | L41: 0
A42: PVC | C42: x | D42: 0 | E42: x | F42: =24/62.5 -> 0.384 | G42: x | H42: 0 | I42: = | J42: =B42*D42*F42*H42*Lookups!$K$16 -> 0 | K42: = | L42: 0
A43: LDPE/LLDPE | C43: x | D43: 0 | E43: x | F43: =12/14 -> 0.8571428571 | G43: x | H43: 0 | I43: = | J43: =B43*D43*F43*H43*Lookups!$K$16 -> 0 | K43: = | L43: 0
A44: PP | C44: x | D44: 0 | E44: x | F44: =12/14 -> 0.8571428571 | G44: x | H44: 0 | I44: = | J44: =B44*D44*F44*H44*Lookups!$K$16 -> 0 | K44: = | L44: 0
A45: PS | C45: x | D45: 0 | E45: x | F45: =96/104 -> 0.9230769231 | G45: x | H45: 0 | I45: = | J45: =B45*D45*F45*H45*Lookups!$K$16 -> 0 | K45: = | L45: 0
A46: Other | C46: x | D46: 0 | E46: x | F46: 0.6582861265 | G46: x | H46: 0 | I46: = | J46: =B46*D46*F46*H46*Lookups!$K$16 -> 0 | K46: = | L46: 0
A48: CO2 from Plastics Combustion | F48: =F37+1 -> 1994
B49: Proportion of Discards | D49: State MSW Combusted (short tons) | F49: Carbon Content | H49: Fraction Oxidized | J49: Emissions (MTCE) | L49: Emissions (MTCO2E)
A50: Plastics | C50: x | D50: ='State MSW Combusted'!$D$7 -> 0 | E50: x | F50: =SUMPRODUCT(F51:F57,'MSW Discarded'!$G$9:$G$15)/SUM('MSW Discarded'!$G$9:$G$15) -> 0.7870377704 | G50: x | H50: =PlasticsFraction -> 0 | I50: = | J50: =B50*D50*F50*H50*Lookups!$K$16 -> 0 | K50: = | L50: =J50/CO2_C -> 0
A51: PET | C51: x | D51: =D50 -> 0 | E51: x | F51: =120/192 -> 0.625 | G51: x | H51: =PlasticsFraction -> 0 | I51: = | J51: =B51*D51*F51*H51*Lookups!$K$16 -> 0 | K51: = | L51: 0
A52: HDPE | C52: x | D52: =D51 -> 0 | E52: x | F52: =12/14 -> 0.8571428571 | G52: x | H52: 0 | I52: = | J52: =B52*D52*F52*H52*Lookups!$K$16 -> 0 | K52: = | L52: 0
A53: PVC | C53: x | D53: 0 | E53: x | F53: =24/62.5 -> 0.384 | G53: x | H53: 0 | I53: = | J53: =B53*D53*F53*H53*Lookups!$K$16 -> 0 | K53: = | L53: 0
A54: LDPE/LLDPE | C54: x | D54: 0 | E54: x | F54: =12/14 -> 0.8571428571 | G54: x | H54: 0 | I54: = | J54: =B54*D54*F54*H54*Lookups!$K$16 -> 0 | K54: = | L54: 0
A55: PP | C55: x | D55: 0 | E55: x | F55: =12/14 -> 0.8571428571 | G55: x | H55: 0 | I55: = | J55: =B55*D55*F55*H55*Lookups!$K$16 -> 0 | K55: = | L55: 0
A56: PS | C56: x | D56: 0 | E56: x | F56: =96/104 -> 0.9230769231 | G56: x | H56: 0 | I56: = | J56: =B56*D56*F56*H56*Lookups!$K$16 -> 0 | K56: = | L56: 0
A57: Other | C57: x | D57: 0 | E57: x | F57: 0.6582861265 | G57: x | H57: 0 | I57: = | J57: =B57*D57*F57*H57*Lookups!$K$16 -> 0 | K57: = | L57: 0
A59: CO2 from Plastics Combustion | F59: =F48+1 -> 1995
B60: Proportion of Discards | D60: State MSW Combusted (short tons) | F60: Carbon Content | H60: Fraction Oxidized | J60: Emissions (MTCE) | L60: Emissions (MTCO2E)
A61: Plastics | C61: x | D61: ='State MSW Combusted'!$D$8 -> 0 | E61: x | F61: =SUMPRODUCT(F62:F68,'MSW Discarded'!$H$9:$H$15)/SUM('MSW Discarded'!$H$9:$H$15) -> 0.7870377704 | G61: x | H61: =PlasticsFraction -> 0 | I61: = | J61: =B61*D61*F61*H61*Lookups!$K$16 -> 0 | K61: = | L61: =J61/CO2_C -> 0
A62: PET | C62: x | D62: =D61 -> 0 | E62: x | F62: =120/192 -> 0.625 | G62: x | H62: =PlasticsFraction -> 0 | I62: = | J62: =B62*D62*F62*H62*Lookups!$K$16 -> 0 | K62: = | L62: 0
A63: HDPE | C63: x | D63: =D62 -> 0 | E63: x | F63: =12/14 -> 0.8571428571 | G63: x | H63: 0 | I63: = | J63: =B63*D63*F63*H63*Lookups!$K$16 -> 0 | K63: = | L63: 0
A64: PVC | C64: x | D64: 0 | E64: x | F64: =24/62.5 -> 0.384 | G64: x | H64: 0 | I64: = | J64: =B64*D64*F64*H64*Lookups!$K$16 -> 0 | K64: = | L64: 0
A65: LDPE/LLDPE | C65: x | D65: 0 | E65: x | F65: =12/14 -> 0.8571428571 | G65: x | H65: 0 | I65: = | J65: =B65*D65*F65*H65*Lookups!$K$16 -> 0 | K65: = | L65: 0
A66: PP | C66: x | D66: 0 | E66: x | F66: =12/14 -> 0.8571428571 | G66: x | H66: 0 | I66: = | J66: =B66*D66*F66*H66*Lookups!$K$16 -> 0 | K66: = | L66: 0
A67: PS | C67: x | D67: 0 | E67: x | F67: =96/104 -> 0.9230769231 | G67: x | H67: 0 | I67: = | J67: =B67*D67*F67*H67*Lookups!$K$16 -> 0 | K67: = | L67: 0
A68: Other | C68: x | D68: 0 | E68: x | F68: 0.6582861265 | G68: x | H68: 0 | I68: = | J68: =B68*D68*F68*H68*Lookups!$K$16 -> 0 | K68: = | L68: 0
A70: CO2 from Plastics Combustion | F70: =F59+1 -> 1996
B71: Proportion of Discards | D71: State MSW Combusted (short tons) | F71: Carbon Content | H71: Fraction Oxidized | J71: Emissions (MTCE) | L71: Emissions (MTCO2E)
A72: Plastics | C72: x | D72: ='State MSW Combusted'!$D$9 -> 0 | E72: x | F72: =SUMPRODUCT(F73:F79,'MSW Discarded'!$I$9:$I$15)/SUM('MSW Discarded'!$I$9:$I$15) -> 0.7832079017 | G72: x | H72: =PlasticsFraction -> 0 | I72: = | J72: =B72*D72*F72*H72*Lookups!$K$16 -> 0 | K72: = | L72: =J72/CO2_C -> 0
A73: PET | C73: x | D73: =D72 -> 0 | E73: x | F73: =120/192 -> 0.625 | G73: x | H73: =PlasticsFraction -> 0 | I73: = | J73: =B73*D73*F73*H73*Lookups!$K$16 -> 0 | K73: = | L73: 0
A74: HDPE | C74: x | D74: =D73 -> 0 | E74: x | F74: =12/14 -> 0.8571428571 | G74: x | H74: 0 | I74: = | J74: =B74*D74*F74*H74*Lookups!$K$16 -> 0 | K74: = | L74: 0
A75: PVC | C75: x | D75: 0 | E75: x | F75: =24/62.5 -> 0.384 | G75: x | H75: 0 | I75: = | J75: =B75*D75*F75*H75*Lookups!$K$16 -> 0 | K75: = | L75: 0
A76: LDPE/LLDPE | C76: x | D76: 0 | E76: x | F76: =12/14 -> 0.8571428571 | G76: x | H76: 0 | I76: = | J76: =B76*D76*F76*H76*Lookups!$K$16 -> 0 | K76: = | L76: 0
A77: PP | C77: x | D77: 0 | E77: x | F77: =12/14 -> 0.8571428571 | G77: x | H77: 0 | I77: = | J77: =B77*D77*F77*H77*Lookups!$K$16 -> 0 | K77: = | L77: 0
A78: PS | C78: x | D78: 0 | E78: x | F78: =96/104 -> 0.9230769231 | G78: x | H78: 0 | I78: = | J78: =B78*D78*F78*H78*Lookups!$K$16 -> 0 | K78: = | L78: 0
A79: Other | C79: x | D79: 0 | E79: x | F79: 0.6582861265 | G79: x | H79: 0 | I79: = | J79: =B79*D79*F79*H79*Lookups!$K$16 -> 0 | K79: = | L79: 0
A81: CO2 from Plastics Combustion | F81: =F70+1 -> 1997
B82: Proportion of Discards | D82: State MSW Combusted (short tons) | F82: Carbon Content | H82: Fraction Oxidized | J82: Emissions (MTCE) | L82: Emissions (MTCO2E)
A83: Plastics | C83: x | D83: ='State MSW Combusted'!$D$10 -> 0 | E83: x | F83: =SUMPRODUCT(F84:F90,'MSW Discarded'!$J$9:$J$15)/SUM('MSW Discarded'!$J$9:$J$15) -> 0.7839958212 | G83: x | H83: =PlasticsFraction -> 0 | I83: = | J83: =B83*D83*F83*H83*Lookups!$K$16 -> 0 | K83: = | L83: =J83/CO2_C -> 0
A84: PET | C84: x | D84: =D83 -> 0 | E84: x | F84: =120/192 -> 0.625 | G84: x | H84: =PlasticsFraction -> 0 | I84: = | J84: =B84*D84*F84*H84*Lookups!$K$16 -> 0 | K84: = | L84: 0
A85: HDPE | C85: x | D85: =D84 -> 0 | E85: x | F85: =12/14 -> 0.8571428571 | G85: x | H85: 0 | I85: = | J85: =B85*D85*F85*H85*Lookups!$K$16 -> 0 | K85: = | L85: 0
A86: PVC | C86: x | D86: 0 | E86: x | F86: =24/62.5 -> 0.384 | G86: x | H86: 0 | I86: = | J86: =B86*D86*F86*H86*Lookups!$K$16 -> 0 | K86: = | L86: 0
A87: LDPE/LLDPE | C87: x | D87: 0 | E87: x | F87: =12/14 -> 0.8571428571 | G87: x | H87: 0 | I87: = | J87: =B87*D87*F87*H87*Lookups!$K$16 -> 0 | K87: = | L87: 0
A88: PP | C88: x | D88: 0 | E88: x | F88: =12/14 -> 0.8571428571 | G88: x | H88: 0 | I88: = | J88: =B88*D88*F88*H88*Lookups!$K$16 -> 0 | K88: = | L88: 0
A89: PS | C89: x | D89: 0 | E89: x | F89: =96/104 -> 0.9230769231 | G89: x | H89: 0 | I89: = | J89: =B89*D89*F89*H89*Lookups!$K$16 -> 0 | K89: = | L89: 0
A90: Other | C90: x | D90: 0 | E90: x | F90: 0.6582861265 | G90: x | H90: 0 | I90: = | J90: =B90*D90*F90*H90*Lookups!$K$16 -> 0 | K90: = | L90: 0
A92: CO2 from Plastics Combustion | F92: =F81+1 -> 1998
B93: Proportion of Discards | D93: State MSW Combusted (short tons) | F93: Carbon Content | H93: Fraction Oxidized | J93: Emissions (MTCE) | L93: Emissions (MTCO2E)
A94: Plastics | C94: x | D94: ='State MSW Combusted'!$D$11 -> 0 | E94: x | F94: =SUMPRODUCT(F95:F101,'MSW Discarded'!$K$9:$K$15)/SUM('MSW Discarded'!$K$9:$K$15) -> 0.7809759488 | G94: x | H94: =PlasticsFraction -> 0 | I94: = | J94: =B94*D94*F94*H94*Lookups!$K$16 -> 0 | K94: = | L94: =J94/CO2_C -> 0
A95: PET | C95: x | D95: =D94 -> 0 | E95: x | F95: =120/192 -> 0.625 | G95: x | H95: =PlasticsFraction -> 0 | I95: = | J95: =B95*D95*F95*H95*Lookups!$K$16 -> 0 | K95: = | L95: 0
A96: HDPE | C96: x | D96: =D95 -> 0 | E96: x | F96: =12/14 -> 0.8571428571 | G96: x | H96: 0 | I96: = | J96: =B96*D96*F96*H96*Lookups!$K$16 -> 0 | K96: = | L96: 0
A97: PVC | C97: x | D97: 0 | E97: x | F97: =24/62.5 -> 0.384 | G97: x | H97: 0 | I97: = | J97: =B97*D97*F97*H97*Lookups!$K$16 -> 0 | K97: = | L97: 0
A98: LDPE/LLDPE | C98: x | D98: 0 | E98: x | F98: =12/14 -> 0.8571428571 | G98: x | H98: 0 | I98: = | J98: =B98*D98*F98*H98*Lookups!$K$16 -> 0 | K98: = | L98: 0
A99: PP | C99: x | D99: 0 | E99: x | F99: =12/14 -> 0.8571428571 | G99: x | H99: 0 | I99: = | J99: =B99*D99*F99*H99*Lookups!$K$16 -> 0 | K99: = | L99: 0
A100: PS | C100: x | D100: 0 | E100: x | F100: =96/104 -> 0.9230769231 | G100: x | H100: 0 | I100: = | J100: =B100*D100*F100*H100*Lookups!$K$16 -> 0 | K100: = | L100: 0
A101: Other | C101: x | D101: 0 | E101: x | F101: 0.6582861265 | G101: x | H101: 0 | I101: = | J101: =B101*D101*F101*H101*Lookups!$K$16 -> 0 | K101: = | L101: 0
A103: CO2 from Plastics Combustion | F103: =F92+1 -> 1999
B104: Proportion of Discards | D104: State MSW Combusted (short tons) | F104: Carbon Content | H104: Fraction Oxidized | J104: Emissions (MTCE) | L104: Emissions (MTCO2E)
A105: Plastics | C105: x | D105: ='State MSW Combusted'!$D$12 -> 0 | E105: x | F105: =SUMPRODUCT(F106:F112,'MSW Discarded'!$L$9:$L$15)/SUM('MSW Discarded'!$L$9:$L$15) -> 0.7835481551 | G105: x | H105: =PlasticsFraction -> 0 | I105: = | J105: =B105*D105*F105*H105*Lookups!$K$16 -> 0 | K105: = | L105: =J105/CO2_C -> 0
A106: PET | C106: x | D106: =D105 -> 0 | E106: x | F106: =120/192 -> 0.625 | G106: x | H106: =PlasticsFraction -> 0 | I106: = | J106: =B106*D106*F106*H106*Lookups!$K$16 -> 0 | K106: = | L106: 0
A107: HDPE | C107: x | D107: =D106 -> 0 | E107: x | F107: =12/14 -> 0.8571428571 | G107: x | H107: 0 | I107: = | J107: =B107*D107*F107*H107*Lookups!$K$16 -> 0 | K107: = | L107: 0
A108: PVC | C108: x | D108: 0 | E108: x | F108: =24/62.5 -> 0.384 | G108: x | H108: 0 | I108: = | J108: =B108*D108*F108*H108*Lookups!$K$16 -> 0 | K108: = | L108: 0
A109: LDPE/LLDPE | C109: x | D109: 0 | E109: x | F109: =12/14 -> 0.8571428571 | G109: x | H109: 0 | I109: = | J109: =B109*D109*F109*H109*Lookups!$K$16 -> 0 | K109: = | L109: 0
A110: PP | C110: x | D110: 0 | E110: x | F110: =12/14 -> 0.8571428571 | G110: x | H110: 0 | I110: = | J110: =B110*D110*F110*H110*Lookups!$K$16 -> 0 | K110: = | L110: 0
A111: PS | C111: x | D111: 0 | E111: x | F111: =96/104 -> 0.9230769231 | G111: x | H111: 0 | I111: = | J111: =B111*D111*F111*H111*Lookups!$K$16 -> 0 | K111: = | L111: 0
A112: Other | C112: x | D112: 0 | E112: x | F112: 0.6582861265 | G112: x | H112: 0 | I112: = | J112: =B112*D112*F112*H112*Lookups!$K$16 -> 0 | K112: = | L112: 0
A114: CO2 from Plastics Combustion | F114: =F103+1 -> 2000
B115: Proportion of Discards | D115: State MSW Combusted (short tons) | F115: Carbon Content | H115: Fraction Oxidized | J115: Emissions (MTCE) | L115: Emissions (MTCO2E)
A116: Plastics | C116: x | D116: ='State MSW Combusted'!$D$13 -> 0 | E116: x | F116: =SUMPRODUCT(F117:F123,'MSW Discarded'!$M$9:$M$15)/SUM('MSW Discarded'!$M$9:$M$15) -> 0.7783821756 | G116: x | H116: =PlasticsFraction -> 0 | I116: = | J116: =B116*D116*F116*H116*Lookups!$K$16 -> 0 | K116: = | L116: =J116/CO2_C -> 0
A117: PET | C117: x | D117: =D116 -> 0 | E117: x | F117: =120/192 -> 0.625 | G117: x | H117: =PlasticsFraction -> 0 | I117: = | J117: =B117*D117*F117*H117*Lookups!$K$16 -> 0 | K117: = | L117: 0
A118: HDPE | C118: x | D118: =D117 -> 0 | E118: x | F118: =12/14 -> 0.8571428571 | G118: x | H118: 0 | I118: = | J118: =B118*D118*F118*H118*Lookups!$K$16 -> 0 | K118: = | L118: 0
A119: PVC | C119: x | D119: 0 | E119: x | F119: =24/62.5 -> 0.384 | G119: x | H119: 0 | I119: = | J119: =B119*D119*F119*H119*Lookups!$K$16 -> 0 | K119: = | L119: 0
A120: LDPE/LLDPE | C120: x | D120: 0 | E120: x | F120: =12/14 -> 0.8571428571 | G120: x | H120: 0 | I120: = | J120: =B120*D120*F120*H120*Lookups!$K$16 -> 0 | K120: = | L120: 0
A121: PP | C121: x | D121: 0 | E121: x | F121: =12/14 -> 0.8571428571 | G121: x | H121: 0 | I121: = | J121: =B121*D121*F121*H121*Lookups!$K$16 -> 0 | K121: = | L121: 0
A122: PS | C122: x | D122: 0 | E122: x | F122: =96/104 -> 0.9230769231 | G122: x | H122: 0 | I122: = | J122: =B122*D122*F122*H122*Lookups!$K$16 -> 0 | K122: = | L122: 0
A123: Other | C123: x | D123: 0 | E123: x | F123: 0.6582861265 | G123: x | H123: 0 | I123: = | J123: =B123*D123*F123*H123*Lookups!$K$16 -> 0 | K123: = | L123: 0
A125: CO2 from Plastics Combustion | F125: =F114+1 -> 2001
B126: Proportion of Discards | D126: State MSW Combusted (short tons) | F126: Carbon Content | H126: Fraction Oxidized | J126: Emissions (MTCE) | L126: Emissions (MTCO2E)
A127: Plastics | C127: x | D127: ='State MSW Combusted'!$D$14 -> 0 | E127: x | F127: =SUMPRODUCT(F128:F134,'MSW Discarded'!$N$9:$N$15)/SUM('MSW Discarded'!$N$9:$N$15) -> 0.7777118208 | G127: x | H127: =PlasticsFraction -> 0 | I127: = | J127: =B127*D127*F127*H127*Lookups!$K$16 -> 0 | K127: = | L127: =J127/CO2_C -> 0
A128: PET | C128: x | D128: =D127 -> 0 | E128: x | F128: =120/192 -> 0.625 | G128: x | H128: =PlasticsFraction -> 0 | I128: = | J128: =B128*D128*F128*H128*Lookups!$K$16 -> 0 | K128: = | L128: 0
A129: HDPE | C129: x | D129: =D128 -> 0 | E129: x | F129: =12/14 -> 0.8571428571 | G129: x | H129: 0 | I129: = | J129: =B129*D129*F129*H129*Lookups!$K$16 -> 0 | K129: = | L129: 0
A130: PVC | C130: x | D130: 0 | E130: x | F130: =24/62.5 -> 0.384 | G130: x | H130: 0 | I130: = | J130: =B130*D130*F130*H130*Lookups!$K$16 -> 0 | K130: = | L130: 0
A131: LDPE/LLDPE | C131: x | D131: 0 | E131: x | F131: =12/14 -> 0.8571428571 | G131: x | H131: 0 | I131: = | J131: =B131*D131*F131*H131*Lookups!$K$16 -> 0 | K131: = | L131: 0
A132: PP | C132: x | D132: 0 | E132: x | F132: =12/14 -> 0.8571428571 | G132: x | H132: 0 | I132: = | J132: =B132*D132*F132*H132*Lookups!$K$16 -> 0 | K132: = | L132: 0
A133: PS | C133: x | D133: 0 | E133: x | F133: =96/104 -> 0.9230769231 | G133: x | H133: 0 | I133: = | J133: =B133*D133*F133*H133*Lookups!$K$16 -> 0 | K133: = | L133: 0
A134: Other | C134: x | D134: 0 | E134: x | F134: 0.6582861265 | G134: x | H134: 0 | I134: = | J134: =B134*D134*F134*H134*Lookups!$K$16 -> 0 | K134: = | L134: 0
A136: CO2 from Plastics Combustion | F136: =F125+1 -> 2002
B137: Proportion of Discards | D137: State MSW Combusted (short tons) | F137: Carbon Content | H137: Fraction Oxidized | J137: Emissions (MTCE) | L137: Emissions (MTCO2E)
A138: Plastics | C138: x | D138: ='State MSW Combusted'!$D$15 -> 0 | E138: x | F138: =SUMPRODUCT(F139:F145,'MSW Discarded'!$O$9:$O$15)/SUM('MSW Discarded'!$O$9:$O$15) -> 0.7766745526 | G138: x | H138: =PlasticsFraction -> 0 | I138: = | J138: =B138*D138*F138*H138*Lookups!$K$16 -> 0 | K138: = | L138: =J138/CO2_C -> 0
A139: PET | C139: x | D139: =D138 -> 0 | E139: x | F139: =120/192 -> 0.625 | G139: x | H139: =PlasticsFraction -> 0 | I139: = | J139: =B139*D139*F139*H139*Lookups!$K$16 -> 0 | K139: = | L139: 0
A140: HDPE | C140: x | D140: =D139 -> 0 | E140: x | F140: =12/14 -> 0.8571428571 | G140: x | H140: 0 | I140: = | J140: =B140*D140*F140*H140*Lookups!$K$16 -> 0 | K140: = | L140: 0
A141: PVC | C141: x | D141: 0 | E141: x | F141: =24/62.5 -> 0.384 | G141: x | H141: 0 | I141: = | J141: =B141*D141*F141*H141*Lookups!$K$16 -> 0 | K141: = | L141: 0
A142: LDPE/LLDPE | C142: x | D142: 0 | E142: x | F142: =12/14 -> 0.8571428571 | G142: x | H142: 0 | I142: = | J142: =B142*D142*F142*H142*Lookups!$K$16 -> 0 | K142: = | L142: 0
A143: PP | C143: x | D143: 0 | E143: x | F143: =12/14 -> 0.8571428571 | G143: x | H143: 0 | I143: = | J143: =B143*D143*F143*H143*Lookups!$K$16 -> 0 | K143: = | L143: 0
A144: PS | C144: x | D144: 0 | E144: x | F144: =96/104 -> 0.9230769231 | G144: x | H144: 0 | I144: = | J144: =B144*D144*F144*H144*Lookups!$K$16 -> 0 | K144: = | L144: 0
A145: Other | C145: x | D145: 0 | E145: x | F145: 0.6582861265 | G145: x | H145: 0 | I145: = | J145: =B145*D145*F145*H145*Lookups!$K$16 -> 0 | K145: = | L145: 0
A147: CO2 from Plastics Combustion | F147: =F136+1 -> 2003
B148: Proportion of Discards | D148: State MSW Combusted (short tons) | F148: Carbon Content | H148: Fraction Oxidized | J148: Emissions (MTCE) | L148: Emissions (MTCO2E)
A149: Plastics | C149: x | D149: ='State MSW Combusted'!$D$16 -> 0 | E149: x | F149: =SUMPRODUCT(F150:F156,'MSW Discarded'!$P$9:$P$15)/SUM('MSW Discarded'!$P$9:$P$15) -> 0.7756894353 | G149: x | H149: =PlasticsFraction -> 0 | I149: = | J149: =B149*D149*F149*H149*Lookups!$K$16 -> 0 | K149: = | L149: =J149/CO2_C -> 0
A150: PET | C150: x | D150: =D149 -> 0 | E150: x | F150: =120/192 -> 0.625 | G150: x | H150: =PlasticsFraction -> 0 | I150: = | J150: =B150*D150*F150*H150*Lookups!$K$16 -> 0 | K150: = | L150: 0
A151: HDPE | C151: x | D151: =D150 -> 0 | E151: x | F151: =12/14 -> 0.8571428571 | G151: x | H151: 0 | I151: = | J151: =B151*D151*F151*H151*Lookups!$K$16 -> 0 | K151: = | L151: 0
A152: PVC | C152: x | D152: 0 | E152: x | F152: =24/62.5 -> 0.384 | G152: x | H152: 0 | I152: = | J152: =B152*D152*F152*H152*Lookups!$K$16 -> 0 | K152: = | L152: 0
A153: LDPE/LLDPE | C153: x | D153: 0 | E153: x | F153: =12/14 -> 0.8571428571 | G153: x | H153: 0 | I153: = | J153: =B153*D153*F153*H153*Lookups!$K$16 -> 0 | K153: = | L153: 0
A154: PP | C154: x | D154: 0 | E154: x | F154: =12/14 -> 0.8571428571 | G154: x | H154: 0 | I154: = | J154: =B154*D154*F154*H154*Lookups!$K$16 -> 0 | K154: = | L154: 0
A155: PS | C155: x | D155: 0 | E155: x | F155: =96/104 -> 0.9230769231 | G155: x | H155: 0 | I155: = | J155: =B155*D155*F155*H155*Lookups!$K$16 -> 0 | K155: = | L155: 0
A156: Other | C156: x | D156: 0 | E156: x | F156: 0.6582861265 | G156: x | H156: 0 | I156: = | J156: =B156*D156*F156*H156*Lookups!$K$16 -> 0 | K156: = | L156: 0
A158: CO2 from Plastics Combustion | F158: =F147+1 -> 2004
B159: Proportion of Discards | D159: State MSW Combusted (short tons) | F159: Carbon Content | H159: Fraction Oxidized | J159: Emissions (MTCE) | L159: Emissions (MTCO2E)
A160: Plastics | C160: x | D160: ='State MSW Combusted'!$D$17 -> 0 | E160: x | F160: =SUMPRODUCT(F161:F167,'MSW Discarded'!$Q$9:$Q$15)/SUM('MSW Discarded'!$Q$9:$Q$15) -> 0.7756150383 | G160: x | H160: =PlasticsFraction -> 0 | I160: = | J160: =B160*D160*F160*H160*Lookups!$K$16 -> 0 | K160: = | L160: =J160/CO2_C -> 0
A161: PET | C161: x | D161: =D160 -> 0 | E161: x | F161: =120/192 -> 0.625 | G161: x | H161: =PlasticsFraction -> 0 | I161: = | J161: =B161*D161*F161*H161*Lookups!$K$16 -> 0 | K161: = | L161: 0
A162: HDPE | C162: x | D162: =D161 -> 0 | E162: x | F162: =12/14 -> 0.8571428571 | G162: x | H162: 0 | I162: = | J162: =B162*D162*F162*H162*Lookups!$K$16 -> 0 | K162: = | L162: 0
A163: PVC | C163: x | D163: 0 | E163: x | F163: =24/62.5 -> 0.384 | G163: x | H163: 0 | I163: = | J163: =B163*D163*F163*H163*Lookups!$K$16 -> 0 | K163: = | L163: 0
A164: LDPE/LLDPE | C164: x | D164: 0 | E164: x | F164: =12/14 -> 0.8571428571 | G164: x | H164: 0 | I164: = | J164: =B164*D164*F164*H164*Lookups!$K$16 -> 0 | K164: = | L164: 0
A165: PP | C165: x | D165: 0 | E165: x | F165: =12/14 -> 0.8571428571 | G165: x | H165: 0 | I165: = | J165: =B165*D165*F165*H165*Lookups!$K$16 -> 0 | K165: = | L165: 0
A166: PS | C166: x | D166: 0 | E166: x | F166: =96/104 -> 0.9230769231 | G166: x | H166: 0 | I166: = | J166: =B166*D166*F166*H166*Lookups!$K$16 -> 0 | K166: = | L166: 0
A167: Other | C167: x | D167: 0 | E167: x | F167: 0.6582861265 | G167: x | H167: 0 | I167: = | J167: =B167*D167*F167*H167*Lookups!$K$16 -> 0 | K167: = | L167: 0
A169: CO2 from Plastics Combustion | F169: =F158+1 -> 2005
B170: Proportion of Discards | D170: State MSW Combusted (short tons) | F170: Carbon Content | H170: Fraction Oxidized | J170: Emissions (MTCE) | L170: Emissions (MTCO2E)
A171: Plastics | C171: x | D171: ='State MSW Combusted'!$D$18 -> 0 | E171: x | F171: =SUMPRODUCT(F172:F178,'MSW Discarded'!$R$9:$R$15)/SUM('MSW Discarded'!$R$9:R$15) -> 0.7755500342 | G171: x | H171: =PlasticsFraction -> 0 | I171: = | J171: =B171*D171*F171*H171*Lookups!$K$16 -> 0 | K171: = | L171: =J171/CO2_C -> 0
A172: PET | C172: x | D172: =D171 -> 0 | E172: x | F172: =120/192 -> 0.625 | G172: x | H172: =PlasticsFraction -> 0 | I172: = | J172: =B172*D172*F172*H172*Lookups!$K$16 -> 0 | K172: = | L172: 0
A173: HDPE | C173: x | D173: =D172 -> 0 | E173: x | F173: =12/14 -> 0.8571428571 | G173: x | H173: 0 | I173: = | J173: =B173*D173*F173*H173*Lookups!$K$16 -> 0 | K173: = | L173: 0
A174: PVC | C174: x | D174: 0 | E174: x | F174: =24/62.5 -> 0.384 | G174: x | H174: 0 | I174: = | J174: =B174*D174*F174*H174*Lookups!$K$16 -> 0 | K174: = | L174: 0
A175: LDPE/LLDPE | C175: x | D175: 0 | E175: x | F175: =12/14 -> 0.8571428571 | G175: x | H175: 0 | I175: = | J175: =B175*D175*F175*H175*Lookups!$K$16 -> 0 | K175: = | L175: 0
A176: PP | C176: x | D176: 0 | E176: x | F176: =12/14 -> 0.8571428571 | G176: x | H176: 0 | I176: = | J176: =B176*D176*F176*H176*Lookups!$K$16 -> 0 | K176: = | L176: 0
A177: PS | C177: x | D177: 0 | E177: x | F177: =96/104 -> 0.9230769231 | G177: x | H177: 0 | I177: = | J177: =B177*D177*F177*H177*Lookups!$K$16 -> 0 | K177: = | L177: 0
A178: Other | C178: x | D178: 0 | E178: x | F178: 0.6582861265 | G178: x | H178: 0 | I178: = | J178: =B178*D178*F178*H178*Lookups!$K$16 -> 0 | K178: = | L178: 0
A180: CO2 from Plastics Combustion | F180: =F169+1 -> 2006
B181: Proportion of Discards | D181: State MSW Combusted (short tons) | F181: Carbon Content | H181: Fraction Oxidized | J181: Emissions (MTCE) | L181: Emissions (MTCO2E)
A182: Plastics | C182: x | D182: ='State MSW Combusted'!$D$19 -> 0 | E182: x | F182: =SUMPRODUCT(F183:F189,'MSW Discarded'!$R$9:$R$15)/SUM('MSW Discarded'!$S$9:S$15) -> 0.7602967613 | G182: x | H182: =PlasticsFraction -> 0 | I182: = | J182: =B182*D182*F182*H182*Lookups!$K$16 -> 0 | K182: = | L182: =J182/CO2_C -> 0
A183: PET | C183: x | D183: =D182 -> 0 | E183: x | F183: =120/192 -> 0.625 | G183: x | H183: =PlasticsFraction -> 0 | I183: = | J183: =B183*D183*F183*H183*Lookups!$K$16 -> 0 | K183: = | L183: 0
A184: HDPE | C184: x | D184: =D183 -> 0 | E184: x | F184: =12/14 -> 0.8571428571 | G184: x | H184: 0 | I184: = | J184: =B184*D184*F184*H184*Lookups!$K$16 -> 0 | K184: = | L184: 0
A185: PVC | C185: x | D185: =D184 -> 0 | E185: x | F185: =24/62.5 -> 0.384 | G185: x | H185: 0 | I185: = | J185: =B185*D185*F185*H185*Lookups!$K$16 -> 0 | K185: = | L185: 0
A186: LDPE/LLDPE | C186: x | D186: 0 | E186: x | F186: =12/14 -> 0.8571428571 | G186: x | H186: 0 | I186: = | J186: =B186*D186*F186*H186*Lookups!$K$16 -> 0 | K186: = | L186: 0
A187: PP | C187: x | D187: 0 | E187: x | F187: =12/14 -> 0.8571428571 | G187: x | H187: 0 | I187: = | J187: =B187*D187*F187*H187*Lookups!$K$16 -> 0 | K187: = | L187: 0
A188: PS | C188: x | D188: 0 | E188: x | F188: =96/104 -> 0.9230769231 | G188: x | H188: 0 | I188: = | J188: =B188*D188*F188*H188*Lookups!$K$16 -> 0 | K188: = | L188: 0
A189: Other | C189: x | D189: 0 | E189: x | F189: 0.6582861265 | G189: x | H189: 0 | I189: = | J189: =B189*D189*F189*H189*Lookups!$K$16 -> 0 | K189: = | L189: 0
A191: CO2 from Plastics Combustion | F191: =F180+1 -> 2007
B192: Proportion of Discards | D192: State MSW Combusted (short tons) | F192: Carbon Content | H192: Fraction Oxidized | J192: Emissions (MTCE) | L192: Emissions (MTCO2E)
A193: Plastics | C193: x | D193: ='State MSW Combusted'!$D$20 -> 0 | E193: x | F193: =SUMPRODUCT(F194:F200,'MSW Discarded'!$R$9:$R$15)/SUM('MSW Discarded'!$S$9:S$15) -> 0.7602967613 | G193: x | H193: =PlasticsFraction -> 0 | I193: = | J193: =B193*D193*F193*H193*Lookups!$K$16 -> 0 | K193: = | L193: =J193/CO2_C -> 0
A194: PET | C194: x | D194: =D193 -> 0 | E194: x | F194: =120/192 -> 0.625 | G194: x | H194: =PlasticsFraction -> 0 | I194: = | J194: =B194*D194*F194*H194*Lookups!$K$16 -> 0 | K194: = | L194: 0
A195: HDPE | C195: x | D195: =D194 -> 0 | E195: x | F195: =12/14 -> 0.8571428571 | G195: x | H195: 0 | I195: = | J195: =B195*D195*F195*H195*Lookups!$K$16 -> 0 | K195: = | L195: 0
A196: PVC | C196: x | D196: 0 | E196: x | F196: =24/62.5 -> 0.384 | G196: x | H196: 0 | I196: = | J196: =B196*D196*F196*H196*Lookups!$K$16 -> 0 | K196: = | L196: 0
A197: LDPE/LLDPE | C197: x | D197: 0 | E197: x | F197: =12/14 -> 0.8571428571 | G197: x | H197: 0 | I197: = | J197: =B197*D197*F197*H197*Lookups!$K$16 -> 0 | K197: = | L197: 0
A198: PP | C198: x | D198: 0 | E198: x | F198: =12/14 -> 0.8571428571 | G198: x | H198: 0 | I198: = | J198: =B198*D198*F198*H198*Lookups!$K$16 -> 0 | K198: = | L198: 0
A199: PS | C199: x | D199: 0 | E199: x | F199: =96/104 -> 0.9230769231 | G199: x | H199: 0 | I199: = | J199: =B199*D199*F199*H199*Lookups!$K$16 -> 0 | K199: = | L199: 0
A200: Other | C200: x | D200: 0 | E200: x | F200: 0.6582861265 | G200: x | H200: 0 | I200: = | J200: =B200*D200*F200*H200*Lookups!$K$16 -> 0 | K200: = | L200: 0
A202: CO2 from Plastics Combustion | F202: =F191+1 -> 2008
B203: Proportion of Discards | D203: State MSW Combusted (short tons) | F203: Carbon Content | H203: Fraction Oxidized | J203: Emissions (MTCE) | L203: Emissions (MTCO2E)
A204: Plastics | C204: x | D204: ='State MSW Combusted'!$D$21 -> 0 | E204: x | F204: =SUMPRODUCT(F205:F211,'MSW Discarded'!$R$9:$R$15)/SUM('MSW Discarded'!$S$9:S$15) -> 0.7602967613 | G204: x | H204: =PlasticsFraction -> 0 | I204: = | J204: =B204*D204*F204*H204*Lookups!$K$16 -> 0 | K204: = | L204: =J204/CO2_C -> 0
A205: PET | C205: x | D205: =D204 -> 0 | E205: x | F205: =120/192 -> 0.625 | G205: x | H205: =PlasticsFraction -> 0 | I205: = | J205: =B205*D205*F205*H205*Lookups!$K$16 -> 0 | K205: = | L205: 0
A206: HDPE | C206: x | D206: =D205 -> 0 | E206: x | F206: =12/14 -> 0.8571428571 | G206: x | H206: 0 | I206: = | J206: =B206*D206*F206*H206*Lookups!$K$16 -> 0 | K206: = | L206: 0
A207: PVC | C207: x | D207: 0 | E207: x | F207: =24/62.5 -> 0.384 | G207: x | H207: 0 | I207: = | J207: =B207*D207*F207*H207*Lookups!$K$16 -> 0 | K207: = | L207: 0
A208: LDPE/LLDPE | C208: x | D208: 0 | E208: x | F208: =12/14 -> 0.8571428571 | G208: x | H208: 0 | I208: = | J208: =B208*D208*F208*H208*Lookups!$K$16 -> 0 | K208: = | L208: 0
A209: PP | C209: x | D209: 0 | E209: x | F209: =12/14 -> 0.8571428571 | G209: x | H209: 0 | I209: = | J209: =B209*D209*F209*H209*Lookups!$K$16 -> 0 | K209: = | L209: 0
A210: PS | C210: x | D210: 0 | E210: x | F210: =96/104 -> 0.9230769231 | G210: x | H210: 0 | I210: = | J210: =B210*D210*F210*H210*Lookups!$K$16 -> 0 | K210: = | L210: 0
A211: Other | C211: x | D211: 0 | E211: x | F211: 0.6582861265 | G211: x | H211: 0 | I211: = | J211: =B211*D211*F211*H211*Lookups!$K$16 -> 0 | K211: = | L211: 0
A213: CO2 from Plastics Combustion | F213: =F202+1 -> 2009
B214: Proportion of Discards | D214: State MSW Combusted (short tons) | F214: Carbon Content | H214: Fraction Oxidized | J214: Emissions (MTCE) | L214: Emissions (MTCO2E)
A215: Plastics | C215: x | D215: ='State MSW Combusted'!$D$22 -> 0 | E215: x | F215: =SUMPRODUCT(F216:F222,'MSW Discarded'!$R$9:$R$15)/SUM('MSW Discarded'!$S$9:S$15) -> 0.7602967613 | G215: x | H215: =PlasticsFraction -> 0 | I215: = | J215: =B215*D215*F215*H215*Lookups!$K$16 -> 0 | K215: = | L215: =J215/CO2_C -> 0
A216: PET | C216: x | D216: =D215 -> 0 | E216: x | F216: =120/192 -> 0.625 | G216: x | H216: =PlasticsFraction -> 0 | I216: = | J216: =B216*D216*F216*H216*Lookups!$K$16 -> 0 | K216: = | L216: 0
A217: HDPE | C217: x | D217: =D216 -> 0 | E217: x | F217: =12/14 -> 0.8571428571 | G217: x | H217: 0 | I217: = | J217: =B217*D217*F217*H217*Lookups!$K$16 -> 0 | K217: = | L217: 0
A218: PVC | C218: x | D218: 0 | E218: x | F218: =24/62.5 -> 0.384 | G218: x | H218: 0 | I218: = | J218: =B218*D218*F218*H218*Lookups!$K$16 -> 0 | K218: = | L218: 0
A219: LDPE/LLDPE | C219: x | D219: 0 | E219: x | F219: =12/14 -> 0.8571428571 | G219: x | H219: 0 | I219: = | J219: =B219*D219*F219*H219*Lookups!$K$16 -> 0 | K219: = | L219: 0
A220: PP | C220: x | D220: 0 | E220: x | F220: =12/14 -> 0.8571428571 | G220: x | H220: 0 | I220: = | J220: =B220*D220*F220*H220*Lookups!$K$16 -> 0 | K220: = | L220: 0
A221: PS | C221: x | D221: 0 | E221: x | F221: =96/104 -> 0.9230769231 | G221: x | H221: 0 | I221: = | J221: =B221*D221*F221*H221*Lookups!$K$16 -> 0 | K221: = | L221: 0
... 111 more rows

Sheet CO2_Syn. Rubber
A1: ="11. CO2 from Synthetic Rubber Combustion in "&VLOOKUP(SelectedState,Lookups!A3:B52,2,FALSE) -> 
A4: CO2 from Combustion of Synthetic Rubber in MSW | H4: 1990
B5: Proportion of Discards | D5: State MSW Combusted (short tons) | F5: Carbon Content | H5: Fraction Oxidized | J5: Emissions (MTCE) | L5: Emissions (MTCO2E)
A6: Synthetic Rubber in MSW | C6: x | D6: ='State MSW Combusted'!$D$3 -> 0 | E6: x | F6: =SUMPRODUCT(F7:F11,'MSW Discarded'!$C$17:$C$21)/SUM('MSW Discarded'!$C$17:$C$21) -> 0.85 | G6: x | H6: =SynRubberFraction -> 0 | I6: = | J6: =B6*D6*F6*H6*Lookups!$K$16 -> 0 | K6: = | L6: =J6/CO2_C -> 0
A7: Durables | C7: x | D7: =D6 -> 0 | E7: x | F7: 0.85 | G7: x | H7: =SynRubberFraction -> 0 | I7: = | J7: =B7*D7*F7*H7*Lookups!$K$16 -> 0 | K7: = | L7: =J7/CO2_C -> 0
A8: Non-Durables | F8: 0.85
A9: Clothing and Footwear | C9: x | D9: =D6 -> 0 | E9: x | F9: 0.85 | G9: x | H9: =SynRubberFraction -> 0 | I9: = | J9: =B9*D9*F9*H9*Lookups!$K$16 -> 0 | K9: = | L9: =J9/CO2_C -> 0
A10: Other Non-Durables | C10: x | D10: =D6 -> 0 | E10: x | F10: 0.85 | G10: x | H10: =SynRubberFraction -> 0 | I10: = | J10: =B10*D10*F10*H10*Lookups!$K$16 -> 0 | K10: = | L10: =J10/CO2_C -> 0
A11: Containers and Packaging | C11: x | D11: =D6 -> 0 | E11: x | F11: 0.85 | G11: x | H11: =SynRubberFraction -> 0 | I11: = | J11: =B11*D11*F11*H11*Lookups!$K$16 -> 0 | K11: = | L11: =J11/CO2_C -> 0
A13: CO2 from Combustion of Synthetic Rubber in MSW | H13: =H4+1 -> 1991
B14: Proportion of Discards | D14: State MSW Combusted (short tons) | F14: Carbon Content | H14: Fraction Oxidized | J14: Emissions (MTCE) | L14: Emissions (MTCO2E)
A15: Synthetic Rubber in MSW | C15: x | D15: ='State MSW Combusted'!$D$4 -> 0 | E15: x | F15: =SUMPRODUCT(F16:F20,'MSW Discarded'!$D$17:$D$21)/SUM('MSW Discarded'!$D$17:$D$21) -> 0.85 | G15: x | H15: =SynRubberFraction -> 0 | I15: = | J15: =B15*D15*F15*H15*Lookups!$K$16 -> 0 | K15: = | L15: =J15/CO2_C -> 0
A16: Durables | C16: x | D16: =D15 -> 0 | E16: x | F16: 0.85 | G16: x | H16: =SynRubberFraction -> 0 | I16: = | J16: =B16*D16*F16*H16*Lookups!$K$16 -> 0 | K16: = | L16: =J16/CO2_C -> 0
A17: Non-Durables | F17: 0.85
A18: Clothing and Footwear | C18: x | D18: =D15 -> 0 | E18: x | F18: 0.85 | G18: x | H18: =SynRubberFraction -> 0 | I18: = | J18: =B18*D18*F18*H18*Lookups!$K$16 -> 0 | K18: = | L18: =J18/CO2_C -> 0
A19: Other Non-Durables | C19: x | D19: =D15 -> 0 | E19: x | F19: 0.85 | G19: x | H19: =SynRubberFraction -> 0 | I19: = | J19: =B19*D19*F19*H19*Lookups!$K$16 -> 0 | K19: = | L19: =J19/CO2_C -> 0
A20: Containers and Packaging | C20: x | D20: =D15 -> 0 | E20: x | F20: 0.85 | G20: x | H20: =SynRubberFraction -> 0 | I20: = | J20: =B20*D20*F20*H20*Lookups!$K$16 -> 0 | K20: = | L20: =J20/CO2_C -> 0
A22: CO2 from Combustion of Synthetic Rubber in MSW | H22: =H13+1 -> 1992
B23: Proportion of Discards | D23: State MSW Combusted (short tons) | F23: Carbon Content | H23: Fraction Oxidized | J23: Emissions (MTCE) | L23: Emissions (MTCO2E)
A24: Synthetic Rubber in MSW | C24: x | D24: ='State MSW Combusted'!$D$5 -> 0 | E24: x | F24: =SUMPRODUCT(F25:F29,'MSW Discarded'!$E$17:$E$21)/SUM('MSW Discarded'!$E$17:$E$21) -> 0.85 | G24: x | H24: =SynRubberFraction -> 0 | I24: = | J24: =B24*D24*F24*H24*Lookups!$K$16 -> 0 | K24: = | L24: =J24/CO2_C -> 0
A25: Durables | C25: x | D25: =D24 -> 0 | E25: x | F25: 0.85 | G25: x | H25: =SynRubberFraction -> 0 | I25: = | J25: =B25*D25*F25*H25*Lookups!$K$16 -> 0 | K25: = | L25: =J25/CO2_C -> 0
A26: Non-Durables | F26: 0.85
A27: Clothing and Footwear | C27: x | D27: =D24 -> 0 | E27: x | F27: 0.85 | G27: x | H27: =SynRubberFraction -> 0 | I27: = | J27: =B27*D27*F27*H27*Lookups!$K$16 -> 0 | K27: = | L27: =J27/CO2_C -> 0
A28: Other Non-Durables | C28: x | D28: =D24 -> 0 | E28: x | F28: 0.85 | G28: x | H28: =SynRubberFraction -> 0 | I28: = | J28: =B28*D28*F28*H28*Lookups!$K$16 -> 0 | K28: = | L28: =J28/CO2_C -> 0
A29: Containers and Packaging | C29: x | D29: =D24 -> 0 | E29: x | F29: 0.85 | G29: x | H29: =SynRubberFraction -> 0 | I29: = | J29: =B29*D29*F29*H29*Lookups!$K$16 -> 0 | K29: = | L29: =J29/CO2_C -> 0
A31: CO2 from Combustion of Synthetic Rubber in MSW | H31: =H22+1 -> 1993
B32: Proportion of Discards | D32: State MSW Combusted (short tons) | F32: Carbon Content | H32: Fraction Oxidized | J32: Emissions (MTCE) | L32: Emissions (MTCO2E)
A33: Synthetic Rubber in MSW | C33: x | D33: ='State MSW Combusted'!$D$6 -> 0 | E33: x | F33: =SUMPRODUCT(F34:F38,'MSW Discarded'!$F$17:$F$21)/SUM('MSW Discarded'!$F$17:$F$21) -> 0.85 | G33: x | H33: =SynRubberFraction -> 0 | I33: = | J33: =B33*D33*F33*H33*Lookups!$K$16 -> 0 | K33: = | L33: =J33/CO2_C -> 0
A34: Durables | C34: x | D34: =D33 -> 0 | E34: x | F34: 0.85 | G34: x | H34: =SynRubberFraction -> 0 | I34: = | J34: =B34*D34*F34*H34*Lookups!$K$16 -> 0 | K34: = | L34: =J34/CO2_C -> 0
A35: Non-Durables | F35: 0.85
A36: Clothing and Footwear | C36: x | D36: =D33 -> 0 | E36: x | F36: 0.85 | G36: x | H36: =SynRubberFraction -> 0 | I36: = | J36: =B36*D36*F36*H36*Lookups!$K$16 -> 0 | K36: = | L36: =J36/CO2_C -> 0
A37: Other Non-Durables | C37: x | D37: =D33 -> 0 | E37: x | F37: 0.85 | G37: x | H37: =SynRubberFraction -> 0 | I37: = | J37: =B37*D37*F37*H37*Lookups!$K$16 -> 0 | K37: = | L37: =J37/CO2_C -> 0
A38: Containers and Packaging | C38: x | D38: =D33 -> 0 | E38: x | F38: 0.85 | G38: x | H38: =SynRubberFraction -> 0 | I38: = | J38: =B38*D38*F38*H38*Lookups!$K$16 -> 0 | K38: = | L38: =J38/CO2_C -> 0
A40: CO2 from Combustion of Synthetic Rubber in MSW | H40: =H31+1 -> 1994
B41: Proportion of Discards | D41: State MSW Combusted (short tons) | F41: Carbon Content | H41: Fraction Oxidized | J41: Emissions (MTCE) | L41: Emissions (MTCO2E)
A42: Synthetic Rubber in MSW | C42: x | D42: ='State MSW Combusted'!$D$7 -> 0 | E42: x | F42: =SUMPRODUCT(F43:F47,'MSW Discarded'!$G$17:$G$21)/SUM('MSW Discarded'!$G$17:$G$21) -> 0.85 | G42: x | H42: =SynRubberFraction -> 0 | I42: = | J42: =B42*D42*F42*H42*Lookups!$K$16 -> 0 | K42: = | L42: =J42/CO2_C -> 0
A43: Durables | C43: x | D43: =D42 -> 0 | E43: x | F43: 0.85 | G43: x | H43: =SynRubberFraction -> 0 | I43: = | J43: =B43*D43*F43*H43*Lookups!$K$16 -> 0 | K43: = | L43: =J43/CO2_C -> 0
A44: Non-Durables | F44: 0.85
A45: Clothing and Footwear | C45: x | D45: =D42 -> 0 | E45: x | F45: 0.85 | G45: x | H45: =SynRubberFraction -> 0 | I45: = | J45: =B45*D45*F45*H45*Lookups!$K$16 -> 0 | K45: = | L45: =J45/CO2_C -> 0
A46: Other Non-Durables | C46: x | D46: =D42 -> 0 | E46: x | F46: 0.85 | G46: x | H46: =SynRubberFraction -> 0 | I46: = | J46: =B46*D46*F46*H46*Lookups!$K$16 -> 0 | K46: = | L46: =J46/CO2_C -> 0
A47: Containers and Packaging | C47: x | D47: =D42 -> 0 | E47: x | F47: 0.85 | G47: x | H47: =SynRubberFraction -> 0 | I47: = | J47: =B47*D47*F47*H47*Lookups!$K$16 -> 0 | K47: = | L47: =J47/CO2_C -> 0
A49: CO2 from Combustion of Synthetic Rubber in MSW | H49: =H40+1 -> 1995
B50: Proportion of Discards | D50: State MSW Combusted (short tons) | F50: Carbon Content | H50: Fraction Oxidized | J50: Emissions (MTCE) | L50: Emissions (MTCO2E)
A51: Synthetic Rubber in MSW | C51: x | D51: ='State MSW Combusted'!$D$8 -> 0 | E51: x | F51: =SUMPRODUCT(F52:F56,'MSW Discarded'!$H$17:$H$21)/SUM('MSW Discarded'!$H$17:$H$21) -> 0.85 | G51: x | H51: =SynRubberFraction -> 0 | I51: = | J51: =B51*D51*F51*H51*Lookups!$K$16 -> 0 | K51: = | L51: =J51/CO2_C -> 0
A52: Durables | C52: x | D52: =D51 -> 0 | E52: x | F52: 0.85 | G52: x | H52: =SynRubberFraction -> 0 | I52: = | J52: =B52*D52*F52*H52*Lookups!$K$16 -> 0 | K52: = | L52: =J52/CO2_C -> 0
A53: Non-Durables | F53: 0.85
A54: Clothing and Footwear | C54: x | D54: =D51 -> 0 | E54: x | F54: 0.85 | G54: x | H54: =SynRubberFraction -> 0 | I54: = | J54: =B54*D54*F54*H54*Lookups!$K$16 -> 0 | K54: = | L54: =J54/CO2_C -> 0
A55: Other Non-Durables | C55: x | D55: =D51 -> 0 | E55: x | F55: 0.85 | G55: x | H55: =SynRubberFraction -> 0 | I55: = | J55: =B55*D55*F55*H55*Lookups!$K$16 -> 0 | K55: = | L55: =J55/CO2_C -> 0
A56: Containers and Packaging | C56: x | D56: =D51 -> 0 | E56: x | F56: 0.85 | G56: x | H56: =SynRubberFraction -> 0 | I56: = | J56: =B56*D56*F56*H56*Lookups!$K$16 -> 0 | K56: = | L56: =J56/CO2_C -> 0
A58: CO2 from Combustion of Synthetic Rubber in MSW | H58: =H49+1 -> 1996
B59: Proportion of Discards | D59: State MSW Combusted (short tons) | F59: Carbon Content | H59: Fraction Oxidized | J59: Emissions (MTCE) | L59: Emissions (MTCO2E)
A60: Synthetic Rubber in MSW | C60: x | D60: ='State MSW Combusted'!$D$9 -> 0 | E60: x | F60: =SUMPRODUCT(F61:F65,'MSW Discarded'!$I$17:$I$21)/SUM('MSW Discarded'!$I$17:$I$21) -> 0.85 | G60: x | H60: =SynRubberFraction -> 0 | I60: = | J60: =B60*D60*F60*H60*Lookups!$K$16 -> 0 | K60: = | L60: =J60/CO2_C -> 0
A61: Durables | C61: x | D61: =D60 -> 0 | E61: x | F61: 0.85 | G61: x | H61: =SynRubberFraction -> 0 | I61: = | J61: =B61*D61*F61*H61*Lookups!$K$16 -> 0 | K61: = | L61: =J61/CO2_C -> 0
A62: Non-Durables | F62: 0.85
A63: Clothing and Footwear | C63: x | D63: =D60 -> 0 | E63: x | F63: 0.85 | G63: x | H63: =SynRubberFraction -> 0 | I63: = | J63: =B63*D63*F63*H63*Lookups!$K$16 -> 0 | K63: = | L63: =J63/CO2_C -> 0
A64: Other Non-Durables | C64: x | D64: =D60 -> 0 | E64: x | F64: 0.85 | G64: x | H64: =SynRubberFraction -> 0 | I64: = | J64: =B64*D64*F64*H64*Lookups!$K$16 -> 0 | K64: = | L64: =J64/CO2_C -> 0
A65: Containers and Packaging | C65: x | D65: =D60 -> 0 | E65: x | F65: 0.85 | G65: x | H65: =SynRubberFraction -> 0 | I65: = | J65: =B65*D65*F65*H65*Lookups!$K$16 -> 0 | K65: = | L65: =J65/CO2_C -> 0
A67: CO2 from Combustion of Synthetic Rubber in MSW | H67: =H58+1 -> 1997
B68: Proportion of Discards | D68: State MSW Combusted (short tons) | F68: Carbon Content | H68: Fraction Oxidized | J68: Emissions (MTCE) | L68: Emissions (MTCO2E)
A69: Synthetic Rubber in MSW | C69: x | D69: ='State MSW Combusted'!$D$10 -> 0 | E69: x | F69: =SUMPRODUCT(F70:F74,'MSW Discarded'!$J$17:$J$21)/SUM('MSW Discarded'!$J$17:$J$21) -> 0.85 | G69: x | H69: =SynRubberFraction -> 0 | I69: = | J69: =B69*D69*F69*H69*Lookups!$K$16 -> 0 | K69: = | L69: =J69/CO2_C -> 0
A70: Durables | C70: x | D70: =D69 -> 0 | E70: x | F70: 0.85 | G70: x | H70: =SynRubberFraction -> 0 | I70: = | J70: =B70*D70*F70*H70*Lookups!$K$16 -> 0 | K70: = | L70: =J70/CO2_C -> 0
A71: Non-Durables | F71: 0.85
A72: Clothing and Footwear | C72: x | D72: =D69 -> 0 | E72: x | F72: 0.85 | G72: x | H72: =SynRubberFraction -> 0 | I72: = | J72: =B72*D72*F72*H72*Lookups!$K$16 -> 0 | K72: = | L72: =J72/CO2_C -> 0
A73: Other Non-Durables | C73: x | D73: =D69 -> 0 | E73: x | F73: 0.85 | G73: x | H73: =SynRubberFraction -> 0 | I73: = | J73: =B73*D73*F73*H73*Lookups!$K$16 -> 0 | K73: = | L73: =J73/CO2_C -> 0
A74: Containers and Packaging | C74: x | D74: =D69 -> 0 | E74: x | F74: 0.85 | G74: x | H74: =SynRubberFraction -> 0 | I74: = | J74: =B74*D74*F74*H74*Lookups!$K$16 -> 0 | K74: = | L74: =J74/CO2_C -> 0
A76: CO2 from Combustion of Synthetic Rubber in MSW | H76: =H67+1 -> 1998
B77: Proportion of Discards | D77: State MSW Combusted (short tons) | F77: Carbon Content | H77: Fraction Oxidized | J77: Emissions (MTCE) | L77: Emissions (MTCO2E)
A78: Synthetic Rubber in MSW | C78: x | D78: ='State MSW Combusted'!$D$11 -> 0 | E78: x | F78: =SUMPRODUCT(F79:F83,'MSW Discarded'!$K$17:$K$21)/SUM('MSW Discarded'!$K$17:$K$21) -> 0.85 | G78: x | H78: =SynRubberFraction -> 0 | I78: = | J78: =B78*D78*F78*H78*Lookups!$K$16 -> 0 | K78: = | L78: =J78/CO2_C -> 0
A79: Durables | C79: x | D79: =D78 -> 0 | E79: x | F79: 0.85 | G79: x | H79: =SynRubberFraction -> 0 | I79: = | J79: =B79*D79*F79*H79*Lookups!$K$16 -> 0 | K79: = | L79: =J79/CO2_C -> 0
A80: Non-Durables | F80: 0.85
A81: Clothing and Footwear | C81: x | D81: =D78 -> 0 | E81: x | F81: 0.85 | G81: x | H81: =SynRubberFraction -> 0 | I81: = | J81: =B81*D81*F81*H81*Lookups!$K$16 -> 0 | K81: = | L81: =J81/CO2_C -> 0
A82: Other Non-Durables | C82: x | D82: =D78 -> 0 | E82: x | F82: 0.85 | G82: x | H82: =SynRubberFraction -> 0 | I82: = | J82: =B82*D82*F82*H82*Lookups!$K$16 -> 0 | K82: = | L82: =J82/CO2_C -> 0
A83: Containers and Packaging | C83: x | D83: =D78 -> 0 | E83: x | F83: 0.85 | G83: x | H83: =SynRubberFraction -> 0 | I83: = | J83: =B83*D83*F83*H83*Lookups!$K$16 -> 0 | K83: = | L83: =J83/CO2_C -> 0
A85: CO2 from Combustion of Synthetic Rubber in MSW | H85: =H76+1 -> 1999
B86: Proportion of Discards | D86: State MSW Combusted (short tons) | F86: Carbon Content | H86: Fraction Oxidized | J86: Emissions (MTCE) | L86: Emissions (MTCO2E)
A87: Synthetic Rubber in MSW | C87: x | D87: ='State MSW Combusted'!$D$12 -> 0 | E87: x | F87: =SUMPRODUCT(F88:F92,'MSW Discarded'!$L$17:$L$21)/SUM('MSW Discarded'!$L$17:$L$21) -> 0.85 | G87: x | H87: =SynRubberFraction -> 0 | I87: = | J87: =B87*D87*F87*H87*Lookups!$K$16 -> 0 | K87: = | L87: =J87/CO2_C -> 0
A88: Durables | C88: x | D88: =D87 -> 0 | E88: x | F88: 0.85 | G88: x | H88: =SynRubberFraction -> 0 | I88: = | J88: =B88*D88*F88*H88*Lookups!$K$16 -> 0 | K88: = | L88: =J88/CO2_C -> 0
A89: Non-Durables | F89: 0.85
A90: Clothing and Footwear | C90: x | D90: =D87 -> 0 | E90: x | F90: 0.85 | G90: x | H90: =SynRubberFraction -> 0 | I90: = | J90: =B90*D90*F90*H90*Lookups!$K$16 -> 0 | K90: = | L90: =J90/CO2_C -> 0
A91: Other Non-Durables | C91: x | D91: =D87 -> 0 | E91: x | F91: 0.85 | G91: x | H91: =SynRubberFraction -> 0 | I91: = | J91: =B91*D91*F91*H91*Lookups!$K$16 -> 0 | K91: = | L91: =J91/CO2_C -> 0
A92: Containers and Packaging | C92: x | D92: =D87 -> 0 | E92: x | F92: 0.85 | G92: x | H92: =SynRubberFraction -> 0 | I92: = | J92: =B92*D92*F92*H92*Lookups!$K$16 -> 0 | K92: = | L92: =J92/CO2_C -> 0
A94: CO2 from Combustion of Synthetic Rubber in MSW | H94: =H85+1 -> 2000
B95: Proportion of Discards | D95: State MSW Combusted (short tons) | F95: Carbon Content | H95: Fraction Oxidized | J95: Emissions (MTCE) | L95: Emissions (MTCO2E)
A96: Synthetic Rubber in MSW | C96: x | D96: ='State MSW Combusted'!$D$13 -> 0 | E96: x | F96: =SUMPRODUCT(F97:F101,'MSW Discarded'!$M$17:$M$21)/SUM('MSW Discarded'!$M$17:$M$21) -> 0.85 | G96: x | H96: =SynRubberFraction -> 0 | I96: = | J96: =B96*D96*F96*H96*Lookups!$K$16 -> 0 | K96: = | L96: =J96/CO2_C -> 0
A97: Durables | C97: x | D97: =D96 -> 0 | E97: x | F97: 0.85 | G97: x | H97: =SynRubberFraction -> 0 | I97: = | J97: =B97*D97*F97*H97*Lookups!$K$16 -> 0 | K97: = | L97: =J97/CO2_C -> 0
A98: Non-Durables | F98: 0.85
A99: Clothing and Footwear | C99: x | D99: =D96 -> 0 | E99: x | F99: 0.85 | G99: x | H99: =SynRubberFraction -> 0 | I99: = | J99: =B99*D99*F99*H99*Lookups!$K$16 -> 0 | K99: = | L99: =J99/CO2_C -> 0
A100: Other Non-Durables | C100: x | D100: =D96 -> 0 | E100: x | F100: 0.85 | G100: x | H100: =SynRubberFraction -> 0 | I100: = | J100: =B100*D100*F100*H100*Lookups!$K$16 -> 0 | K100: = | L100: =J100/CO2_C -> 0
A101: Containers and Packaging | C101: x | D101: =D96 -> 0 | E101: x | F101: 0.85 | G101: x | H101: =SynRubberFraction -> 0 | I101: = | J101: =B101*D101*F101*H101*Lookups!$K$16 -> 0 | K101: = | L101: =J101/CO2_C -> 0
A103: CO2 from Combustion of Synthetic Rubber in MSW | H103: =H94+1 -> 2001
B104: Proportion of Discards | D104: State MSW Combusted (short tons) | F104: Carbon Content | H104: Fraction Oxidized | J104: Emissions (MTCE) | L104: Emissions (MTCO2E)
A105: Synthetic Rubber in MSW | C105: x | D105: ='State MSW Combusted'!$D$14 -> 0 | E105: x | F105: =SUMPRODUCT(F106:F110,'MSW Discarded'!$N$17:$N$21)/SUM('MSW Discarded'!$N$17:$N$21) -> 0.85 | G105: x | H105: =SynRubberFraction -> 0 | I105: = | J105: =B105*D105*F105*H105*Lookups!$K$16 -> 0 | K105: = | L105: =J105/CO2_C -> 0
A106: Durables | C106: x | D106: =D105 -> 0 | E106: x | F106: 0.85 | G106: x | H106: =SynRubberFraction -> 0 | I106: = | J106: =B106*D106*F106*H106*Lookups!$K$16 -> 0 | K106: = | L106: =J106/CO2_C -> 0
A107: Non-Durables | F107: 0.85
A108: Clothing and Footwear | C108: x | D108: =D105 -> 0 | E108: x | F108: 0.85 | G108: x | H108: =SynRubberFraction -> 0 | I108: = | J108: =B108*D108*F108*H108*Lookups!$K$16 -> 0 | K108: = | L108: =J108/CO2_C -> 0
A109: Other Non-Durables | C109: x | D109: =D105 -> 0 | E109: x | F109: 0.85 | G109: x | H109: =SynRubberFraction -> 0 | I109: = | J109: =B109*D109*F109*H109*Lookups!$K$16 -> 0 | K109: = | L109: =J109/CO2_C -> 0
A110: Containers and Packaging | C110: x | D110: =D105 -> 0 | E110: x | F110: 0.85 | G110: x | H110: =SynRubberFraction -> 0 | I110: = | J110: =B110*D110*F110*H110*Lookups!$K$16 -> 0 | K110: = | L110: =J110/CO2_C -> 0
A112: CO2 from Combustion of Synthetic Rubber in MSW | H112: =H103+1 -> 2002
B113: Proportion of Discards | D113: State MSW Combusted (short tons) | F113: Carbon Content | H113: Fraction Oxidized | J113: Emissions (MTCE) | L113: Emissions (MTCO2E)
A114: Synthetic Rubber in MSW | C114: x | D114: ='State MSW Combusted'!$D$15 -> 0 | E114: x | F114: =SUMPRODUCT(F115:F119,'MSW Discarded'!$O$17:$O$21)/SUM('MSW Discarded'!$O$17:$O$21) -> 0.85 | G114: x | H114: =SynRubberFraction -> 0 | I114: = | J114: =B114*D114*F114*H114*Lookups!$K$16 -> 0 | K114: = | L114: =J114/CO2_C -> 0
A115: Durables | C115: x | D115: =D114 -> 0 | E115: x | F115: 0.85 | G115: x | H115: =SynRubberFraction -> 0 | I115: = | J115: =B115*D115*F115*H115*Lookups!$K$16 -> 0 | K115: = | L115: =J115/CO2_C -> 0
A116: Non-Durables | F116: 0.85
A117: Clothing and Footwear | C117: x | D117: =D114 -> 0 | E117: x | F117: 0.85 | G117: x | H117: =SynRubberFraction -> 0 | I117: = | J117: =B117*D117*F117*H117*Lookups!$K$16 -> 0 | K117: = | L117: =J117/CO2_C -> 0
A118: Other Non-Durables | C118: x | D118: =D114 -> 0 | E118: x | F118: 0.85 | G118: x | H118: =SynRubberFraction -> 0 | I118: = | J118: =B118*D118*F118*H118*Lookups!$K$16 -> 0 | K118: = | L118: =J118/CO2_C -> 0
A119: Containers and Packaging | C119: x | D119: =D114 -> 0 | E119: x | F119: 0.85 | G119: x | H119: =SynRubberFraction -> 0 | I119: = | J119: =B119*D119*F119*H119*Lookups!$K$16 -> 0 | K119: = | L119: =J119/CO2_C -> 0
A121: CO2 from Combustion of Synthetic Rubber in MSW | H121: =H112+1 -> 2003
B122: Proportion of Discards | D122: State MSW Combusted (short tons) | F122: Carbon Content | H122: Fraction Oxidized | J122: Emissions (MTCE) | L122: Emissions (MTCO2E)
A123: Synthetic Rubber in MSW | C123: x | D123: ='State MSW Combusted'!$D$16 -> 0 | E123: x | F123: =SUMPRODUCT(F124:F128,'MSW Discarded'!$P$17:$P$21)/SUM('MSW Discarded'!$P$17:$P$21) -> 0.85 | G123: x | H123: =SynRubberFraction -> 0 | I123: = | J123: =B123*D123*F123*H123*Lookups!$K$16 -> 0 | K123: = | L123: =J123/CO2_C -> 0
A124: Durables | C124: x | D124: =D123 -> 0 | E124: x | F124: 0.85 | G124: x | H124: =SynRubberFraction -> 0 | I124: = | J124: =B124*D124*F124*H124*Lookups!$K$16 -> 0 | K124: = | L124: =J124/CO2_C -> 0
A125: Non-Durables | F125: 0.85
A126: Clothing and Footwear | C126: x | D126: =D123 -> 0 | E126: x | F126: 0.85 | G126: x | H126: =SynRubberFraction -> 0 | I126: = | J126: =B126*D126*F126*H126*Lookups!$K$16 -> 0 | K126: = | L126: =J126/CO2_C -> 0
A127: Other Non-Durables | C127: x | D127: =D123 -> 0 | E127: x | F127: 0.85 | G127: x | H127: =SynRubberFraction -> 0 | I127: = | J127: =B127*D127*F127*H127*Lookups!$K$16 -> 0 | K127: = | L127: =J127/CO2_C -> 0
A128: Containers and Packaging | C128: x | D128: =D123 -> 0 | E128: x | F128: 0.85 | G128: x | H128: =SynRubberFraction -> 0 | I128: = | J128: =B128*D128*F128*H128*Lookups!$K$16 -> 0 | K128: = | L128: =J128/CO2_C -> 0
A130: CO2 from Combustion of Synthetic Rubber in MSW | H130: =H121+1 -> 2004
B131: Proportion of Discards | D131: State MSW Combusted (short tons) | F131: Carbon Content | H131: Fraction Oxidized | J131: Emissions (MTCE) | L131: Emissions (MTCO2E)
A132: Synthetic Rubber in MSW | C132: x | D132: ='State MSW Combusted'!$D$17 -> 0 | E132: x | F132: =SUMPRODUCT(F133:F137,'MSW Discarded'!$Q$17:$Q$21)/SUM('MSW Discarded'!$Q$17:$Q$21) -> 0.85 | G132: x | H132: =SynRubberFraction -> 0 | I132: = | J132: =B132*D132*F132*H132*Lookups!$K$16 -> 0 | K132: = | L132: =J132/CO2_C -> 0
A133: Durables | C133: x | D133: =D132 -> 0 | E133: x | F133: 0.85 | G133: x | H133: =SynRubberFraction -> 0 | I133: = | J133: =B133*D133*F133*H133*Lookups!$K$16 -> 0 | K133: = | L133: =J133/CO2_C -> 0
A134: Non-Durables | F134: 0.85
A135: Clothing and Footwear | C135: x | D135: =D132 -> 0 | E135: x | F135: 0.85 | G135: x | H135: =SynRubberFraction -> 0 | I135: = | J135: =B135*D135*F135*H135*Lookups!$K$16 -> 0 | K135: = | L135: =J135/CO2_C -> 0
A136: Other Non-Durables | C136: x | D136: =D132 -> 0 | E136: x | F136: 0.85 | G136: x | H136: =SynRubberFraction -> 0 | I136: = | J136: =B136*D136*F136*H136*Lookups!$K$16 -> 0 | K136: = | L136: =J136/CO2_C -> 0
A137: Containers and Packaging | C137: x | D137: =D132 -> 0 | E137: x | F137: 0.85 | G137: x | H137: =SynRubberFraction -> 0 | I137: = | J137: =B137*D137*F137*H137*Lookups!$K$16 -> 0 | K137: = | L137: =J137/CO2_C -> 0
A139: CO2 from Combustion of Synthetic Rubber in MSW | H139: =H130+1 -> 2005
B140: Proportion of Discards | D140: State MSW Combusted (short tons) | F140: Carbon Content | H140: Fraction Oxidized | J140: Emissions (MTCE) | L140: Emissions (MTCO2E)
A141: Synthetic Rubber in MSW | C141: x | D141: ='State MSW Combusted'!$D$18 -> 0 | E141: x | F141: =SUMPRODUCT(F142:F146,'MSW Discarded'!$R$17:$R$21)/SUM('MSW Discarded'!$R$17:$R$21) -> 0.85 | G141: x | H141: =SynRubberFraction -> 0 | I141: = | J141: =B141*D141*F141*H141*Lookups!$K$16 -> 0 | K141: = | L141: =J141/CO2_C -> 0
A142: Durables | C142: x | D142: =D141 -> 0 | E142: x | F142: 0.85 | G142: x | H142: =SynRubberFraction -> 0 | I142: = | J142: =B142*D142*F142*H142*Lookups!$K$16 -> 0 | K142: = | L142: =J142/CO2_C -> 0
A143: Non-Durables | F143: 0.85
A144: Clothing and Footwear | C144: x | D144: =D141 -> 0 | E144: x | F144: 0.85 | G144: x | H144: =SynRubberFraction -> 0 | I144: = | J144: =B144*D144*F144*H144*Lookups!$K$16 -> 0 | K144: = | L144: =J144/CO2_C -> 0
A145: Other Non-Durables | C145: x | D145: =D141 -> 0 | E145: x | F145: 0.85 | G145: x | H145: =SynRubberFraction -> 0 | I145: = | J145: =B145*D145*F145*H145*Lookups!$K$16 -> 0 | K145: = | L145: =J145/CO2_C -> 0
A146: Containers and Packaging | C146: x | D146: =D141 -> 0 | E146: x | F146: 0.85 | G146: x | H146: =SynRubberFraction -> 0 | I146: = | J146: =B146*D146*F146*H146*Lookups!$K$16 -> 0 | K146: = | L146: =J146/CO2_C -> 0
A148: CO2 from Combustion of Synthetic Rubber in MSW | H148: =H139+1 -> 2006
B149: Proportion of Discards | D149: State MSW Combusted (short tons) | F149: Carbon Content | H149: Fraction Oxidized | J149: Emissions (MTCE) | L149: Emissions (MTCO2E)
A150: Synthetic Rubber in MSW | C150: x | D150: ='State MSW Combusted'!$D$19 -> 0 | E150: x | F150: =SUMPRODUCT(F151:F155,'MSW Discarded'!$R$17:$R$21)/SUM('MSW Discarded'!$S$17:$S$21) -> 0.8200587084 | G150: x | H150: =SynRubberFraction -> 0 | I150: = | J150: =B150*D150*F150*H150*Lookups!$K$16 -> 0 | K150: = | L150: =J150/CO2_C -> 0
A151: Durables | C151: x | D151: =D150 -> 0 | E151: x | F151: 0.85 | G151: x | H151: =SynRubberFraction -> 0 | I151: = | J151: =B151*D151*F151*H151*Lookups!$K$16 -> 0 | K151: = | L151: =J151/CO2_C -> 0
A152: Non-Durables | F152: 0.85
A153: Clothing and Footwear | C153: x | D153: =D150 -> 0 | E153: x | F153: 0.85 | G153: x | H153: =SynRubberFraction -> 0 | I153: = | J153: =B153*D153*F153*H153*Lookups!$K$16 -> 0 | K153: = | L153: =J153/CO2_C -> 0
A154: Other Non-Durables | C154: x | D154: =D150 -> 0 | E154: x | F154: 0.85 | G154: x | H154: =SynRubberFraction -> 0 | I154: = | J154: =B154*D154*F154*H154*Lookups!$K$16 -> 0 | K154: = | L154: =J154/CO2_C -> 0
A155: Containers and Packaging | C155: x | D155: =D150 -> 0 | E155: x | F155: 0.85 | G155: x | H155: =SynRubberFraction -> 0 | I155: = | J155: =B155*D155*F155*H155*Lookups!$K$16 -> 0 | K155: = | L155: =J155/CO2_C -> 0
A157: CO2 from Combustion of Synthetic Rubber in MSW | H157: =H148+1 -> 2007
B158: Proportion of Discards | D158: State MSW Combusted (short tons) | F158: Carbon Content | H158: Fraction Oxidized | J158: Emissions (MTCE) | L158: Emissions (MTCO2E)
A159: Synthetic Rubber in MSW | C159: x | D159: ='State MSW Combusted'!$D$20 -> 0 | E159: x | F159: =SUMPRODUCT(F160:F164,'MSW Discarded'!$R$17:$R$21)/SUM('MSW Discarded'!$S$17:$S$21) -> 0.8200587084 | G159: x | H159: =SynRubberFraction -> 0 | I159: = | J159: =B159*D159*F159*H159*Lookups!$K$16 -> 0 | K159: = | L159: =J159/CO2_C -> 0
A160: Durables | C160: x | D160: =D159 -> 0 | E160: x | F160: 0.85 | G160: x | H160: =SynRubberFraction -> 0 | I160: = | J160: =B160*D160*F160*H160*Lookups!$K$16 -> 0 | K160: = | L160: =J160/CO2_C -> 0
A161: Non-Durables | F161: 0.85
A162: Clothing and Footwear | C162: x | D162: =D159 -> 0 | E162: x | F162: 0.85 | G162: x | H162: =SynRubberFraction -> 0 | I162: = | J162: =B162*D162*F162*H162*Lookups!$K$16 -> 0 | K162: = | L162: =J162/CO2_C -> 0
A163: Other Non-Durables | C163: x | D163: =D159 -> 0 | E163: x | F163: 0.85 | G163: x | H163: =SynRubberFraction -> 0 | I163: = | J163: =B163*D163*F163*H163*Lookups!$K$16 -> 0 | K163: = | L163: =J163/CO2_C -> 0
A164: Containers and Packaging | C164: x | D164: =D159 -> 0 | E164: x | F164: 0.85 | G164: x | H164: =SynRubberFraction -> 0 | I164: = | J164: =B164*D164*F164*H164*Lookups!$K$16 -> 0 | K164: = | L164: =J164/CO2_C -> 0
A166: CO2 from Combustion of Synthetic Rubber in MSW | H166: =H157+1 -> 2008
B167: Proportion of Discards | D167: State MSW Combusted (short tons) | F167: Carbon Content | H167: Fraction Oxidized | J167: Emissions (MTCE) | L167: Emissions (MTCO2E)
A168: Synthetic Rubber in MSW | C168: x | D168: ='State MSW Combusted'!$D$21 -> 0 | E168: x | F168: =SUMPRODUCT(F169:F173,'MSW Discarded'!$R$17:$R$21)/SUM('MSW Discarded'!$S$17:$S$21) -> 0.8200587084 | G168: x | H168: =SynRubberFraction -> 0 | I168: = | J168: =B168*D168*F168*H168*Lookups!$K$16 -> 0 | K168: = | L168: =J168/CO2_C -> 0
A169: Durables | C169: x | D169: =D168 -> 0 | E169: x | F169: 0.85 | G169: x | H169: =SynRubberFraction -> 0 | I169: = | J169: =B169*D169*F169*H169*Lookups!$K$16 -> 0 | K169: = | L169: =J169/CO2_C -> 0
A170: Non-Durables | F170: 0.85
A171: Clothing and Footwear | C171: x | D171: =D168 -> 0 | E171: x | F171: 0.85 | G171: x | H171: =SynRubberFraction -> 0 | I171: = | J171: =B171*D171*F171*H171*Lookups!$K$16 -> 0 | K171: = | L171: =J171/CO2_C -> 0
A172: Other Non-Durables | C172: x | D172: =D168 -> 0 | E172: x | F172: 0.85 | G172: x | H172: =SynRubberFraction -> 0 | I172: = | J172: =B172*D172*F172*H172*Lookups!$K$16 -> 0 | K172: = | L172: =J172/CO2_C -> 0
A173: Containers and Packaging | C173: x | D173: =D168 -> 0 | E173: x | F173: 0.85 | G173: x | H173: =SynRubberFraction -> 0 | I173: = | J173: =B173*D173*F173*H173*Lookups!$K$16 -> 0 | K173: = | L173: =J173/CO2_C -> 0
A175: CO2 from Combustion of Synthetic Rubber in MSW | H175: =H166+1 -> 2009
B176: Proportion of Discards | D176: State MSW Combusted (short tons) | F176: Carbon Content | H176: Fraction Oxidized | J176: Emissions (MTCE) | L176: Emissions (MTCO2E)
A177: Synthetic Rubber in MSW | C177: x | D177: ='State MSW Combusted'!$D$22 -> 0 | E177: x | F177: =SUMPRODUCT(F178:F182,'MSW Discarded'!$R$17:$R$21)/SUM('MSW Discarded'!$S$17:$S$21) -> 0.8200587084 | G177: x | H177: =SynRubberFraction -> 0 | I177: = | J177: =B177*D177*F177*H177*Lookups!$K$16 -> 0 | K177: = | L177: =J177/CO2_C -> 0
A178: Durables | C178: x | D178: =D177 -> 0 | E178: x | F178: 0.85 | G178: x | H178: =SynRubberFraction -> 0 | I178: = | J178: =B178*D178*F178*H178*Lookups!$K$16 -> 0 | K178: = | L178: =J178/CO2_C -> 0
A179: Non-Durables | F179: 0.85
A180: Clothing and Footwear | C180: x | D180: =D177 -> 0 | E180: x | F180: 0.85 | G180: x | H180: =SynRubberFraction -> 0 | I180: = | J180: =B180*D180*F180*H180*Lookups!$K$16 -> 0 | K180: = | L180: =J180/CO2_C -> 0
A181: Other Non-Durables | C181: x | D181: =D177 -> 0 | E181: x | F181: 0.85 | G181: x | H181: =SynRubberFraction -> 0 | I181: = | J181: =B181*D181*F181*H181*Lookups!$K$16 -> 0 | K181: = | L181: =J181/CO2_C -> 0
A182: Containers and Packaging | C182: x | D182: =D177 -> 0 | E182: x | F182: 0.85 | G182: x | H182: =SynRubberFraction -> 0 | I182: = | J182: =B182*D182*F182*H182*Lookups!$K$16 -> 0 | K182: = | L182: =J182/CO2_C -> 0
A184: CO2 from Combustion of Synthetic Rubber in MSW | H184: =H175+1 -> 2010
B185: Proportion of Discards | D185: State MSW Combusted (short tons) | F185: Carbon Content | H185: Fraction Oxidized | J185: Emissions (MTCE) | L185: Emissions (MTCO2E)
A186: Synthetic Rubber in MSW | C186: x | D186: ='State MSW Combusted'!$D$23 -> 0 | E186: x | F186: =SUMPRODUCT(F187:F191,'MSW Discarded'!$R$17:$R$21)/SUM('MSW Discarded'!$S$17:$S$21) -> 0.8200587084 | G186: x | H186: =SynRubberFraction -> 0 | I186: = | J186: =B186*D186*F186*H186*Lookups!$K$16 -> 0 | K186: = | L186: =J186/CO2_C -> 0
A187: Durables | C187: x | D187: =D186 -> 0 | E187: x | F187: 0.85 | G187: x | H187: =SynRubberFraction -> 0 | I187: = | J187: =B187*D187*F187*H187*Lookups!$K$16 -> 0 | K187: = | L187: =J187/CO2_C -> 0
A188: Non-Durables | F188: 0.85
A189: Clothing and Footwear | C189: x | D189: =D186 -> 0 | E189: x | F189: 0.85 | G189: x | H189: =SynRubberFraction -> 0 | I189: = | J189: =B189*D189*F189*H189*Lookups!$K$16 -> 0 | K189: = | L189: =J189/CO2_C -> 0
A190: Other Non-Durables | C190: x | D190: =D186 -> 0 | E190: x | F190: 0.85 | G190: x | H190: =SynRubberFraction -> 0 | I190: = | J190: =B190*D190*F190*H190*Lookups!$K$16 -> 0 | K190: = | L190: =J190/CO2_C -> 0
A191: Containers and Packaging | C191: x | D191: =D186 -> 0 | E191: x | F191: 0.85 | G191: x | H191: =SynRubberFraction -> 0 | I191: = | J191: =B191*D191*F191*H191*Lookups!$K$16 -> 0 | K191: = | L191: =J191/CO2_C -> 0
A193: CO2 from Combustion of Synthetic Rubber in MSW | H193: =H184+1 -> 2011
B194: Proportion of Discards | D194: State MSW Combusted (short tons) | F194: Carbon Content | H194: Fraction Oxidized | J194: Emissions (MTCE) | L194: Emissions (MTCO2E)
A195: Synthetic Rubber in MSW | C195: x | D195: ='State MSW Combusted'!$D$24 -> 0 | E195: x | F195: =SUMPRODUCT(F196:F200,'MSW Discarded'!$R$17:$R$21)/SUM('MSW Discarded'!$S$17:$S$21) -> 0.8200587084 | G195: x | H195: =SynRubberFraction -> 0 | I195: = | J195: =B195*D195*F195*H195*Lookups!$K$16 -> 0 | K195: = | L195: =J195/CO2_C -> 0
A196: Durables | C196: x | D196: =D195 -> 0 | E196: x | F196: 0.85 | G196: x | H196: =SynRubberFraction -> 0 | I196: = | J196: =B196*D196*F196*H196*Lookups!$K$16 -> 0 | K196: = | L196: =J196/CO2_C -> 0
A197: Non-Durables | F197: 0.85
A198: Clothing and Footwear | C198: x | D198: =D195 -> 0 | E198: x | F198: 0.85 | G198: x | H198: =SynRubberFraction -> 0 | I198: = | J198: =B198*D198*F198*H198*Lookups!$K$16 -> 0 | K198: = | L198: =J198/CO2_C -> 0
A199: Other Non-Durables | C199: x | D199: =D195 -> 0 | E199: x | F199: 0.85 | G199: x | H199: =SynRubberFraction -> 0 | I199: = | J199: =B199*D199*F199*H199*Lookups!$K$16 -> 0 | K199: = | L199: =J199/CO2_C -> 0
A200: Containers and Packaging | C200: x | D200: =D195 -> 0 | E200: x | F200: 0.85 | G200: x | H200: =SynRubberFraction -> 0 | I200: = | J200: =B200*D200*F200*H200*Lookups!$K$16 -> 0 | K200: = | L200: =J200/CO2_C -> 0
A202: CO2 from Combustion of Synthetic Rubber in MSW | H202: =H193+1 -> 2012
B203: Proportion of Discards | D203: State MSW Combusted (short tons) | F203: Carbon Content | H203: Fraction Oxidized | J203: Emissions (MTCE) | L203: Emissions (MTCO2E)
A204: Synthetic Rubber in MSW | C204: x | D204: ='State MSW Combusted'!$D$25 -> 0 | E204: x | F204: =SUMPRODUCT(F205:F209,'MSW Discarded'!$R$17:$R$21)/SUM('MSW Discarded'!$S$17:$S$21) -> 0.8200587084 | G204: x | H204: =SynRubberFraction -> 0 | I204: = | J204: =B204*D204*F204*H204*Lookups!$K$16 -> 0 | K204: = | L204: =J204/CO2_C -> 0
A205: Durables | C205: x | D205: =D204 -> 0 | E205: x | F205: 0.85 | G205: x | H205: =SynRubberFraction -> 0 | I205: = | J205: =B205*D205*F205*H205*Lookups!$K$16 -> 0 | K205: = | L205: =J205/CO2_C -> 0
A206: Non-Durables | F206: 0.85
A207: Clothing and Footwear | C207: x | D207: =D204 -> 0 | E207: x | F207: 0.85 | G207: x | H207: =SynRubberFraction -> 0 | I207: = | J207: =B207*D207*F207*H207*Lookups!$K$16 -> 0 | K207: = | L207: =J207/CO2_C -> 0
A208: Other Non-Durables | C208: x | D208: =D204 -> 0 | E208: x | F208: 0.85 | G208: x | H208: =SynRubberFraction -> 0 | I208: = | J208: =B208*D208*F208*H208*Lookups!$K$16 -> 0 | K208: = | L208: =J208/CO2_C -> 0
A209: Containers and Packaging | C209: x | D209: =D204 -> 0 | E209: x | F209: 0.85 | G209: x | H209: =SynRubberFraction -> 0 | I209: = | J209: =B209*D209*F209*H209*Lookups!$K$16 -> 0 | K209: = | L209: =J209/CO2_C -> 0
A211: CO2 from Combustion of Synthetic Rubber in MSW | H211: =H202+1 -> 2013
B212: Proportion of Discards | D212: State MSW Combusted (short tons) | F212: Carbon Content | H212: Fraction Oxidized | J212: Emissions (MTCE) | L212: Emissions (MTCO2E)
A213: Synthetic Rubber in MSW | C213: x | D213: ='State MSW Combusted'!$D$26 -> 0 | E213: x | F213: =SUMPRODUCT(F214:F218,'MSW Discarded'!$R$17:$R$21)/SUM('MSW Discarded'!$S$17:$S$21) -> 0.8200587084 | G213: x | H213: =SynRubberFraction -> 0 | I213: = | J213: =B213*D213*F213*H213*Lookups!$K$16 -> 0 | K213: = | L213: =J213/CO2_C -> 0
A214: Durables | C214: x | D214: =D213 -> 0 | E214: x | F214: 0.85 | G214: x | H214: =SynRubberFraction -> 0 | I214: = | J214: =B214*D214*F214*H214*Lookups!$K$16 -> 0 | K214: = | L214: =J214/CO2_C -> 0
A215: Non-Durables | F215: 0.85
A216: Clothing and Footwear | C216: x | D216: =D213 -> 0 | E216: x | F216: 0.85 | G216: x | H216: =SynRubberFraction -> 0 | I216: = | J216: =B216*D216*F216*H216*Lookups!$K$16 -> 0 | K216: = | L216: =J216/CO2_C -> 0
A217: Other Non-Durables | C217: x | D217: =D213 -> 0 | E217: x | F217: 0.85 | G217: x | H217: =SynRubberFraction -> 0 | I217: = | J217: =B217*D217*F217*H217*Lookups!$K$16 -> 0 | K217: = | L217: =J217/CO2_C -> 0
A218: Containers and Packaging | C218: x | D218: =D213 -> 0 | E218: x | F218: 0.85 | G218: x | H218: =SynRubberFraction -> 0 | I218: = | J218: =B218*D218*F218*H218*Lookups!$K$16 -> 0 | K218: = | L218: =J218/CO2_C -> 0
A220: CO2 from Combustion of Synthetic Rubber in MSW | H220: =H211+1 -> 2014
B221: Proportion of Discards | D221: State MSW Combusted (short tons) | F221: Carbon Content | H221: Fraction Oxidized | J221: Emissions (MTCE) | L221: Emissions (MTCO2E)
A222: Synthetic Rubber in MSW | C222: x | D222: ='State MSW Combusted'!$D$27 -> 0 | E222: x | F222: =SUMPRODUCT(F223:F227,'MSW Discarded'!$R$17:$R$21)/SUM('MSW Discarded'!$S$17:$S$21) -> 0.8200587084 | G222: x | H222: =SynRubberFraction -> 0 | I222: = | J222: =B222*D222*F222*H222*Lookups!$K$16 -> 0 | K222: = | L222: =J222/CO2_C -> 0
A223: Durables | C223: x | D223: =D222 -> 0 | E223: x | F223: 0.85 | G223: x | H223: =SynRubberFraction -> 0 | I223: = | J223: =B223*D223*F223*H223*Lookups!$K$16 -> 0 | K223: = | L223: =J223/CO2_C -> 0
A224: Non-Durables | F224: 0.85
A225: Clothing and Footwear | C225: x | D225: =D222 -> 0 | E225: x | F225: 0.85 | G225: x | H225: =SynRubberFraction -> 0 | I225: = | J225: =B225*D225*F225*H225*Lookups!$K$16 -> 0 | K225: = | L225: =J225/CO2_C -> 0
A226: Other Non-Durables | C226: x | D226: =D222 -> 0 | E226: x | F226: 0.85 | G226: x | H226: =SynRubberFraction -> 0 | I226: = | J226: =B226*D226*F226*H226*Lookups!$K$16 -> 0 | K226: = | L226: =J226/CO2_C -> 0
... 49 more rows

Sheet CO2_Syn. Fibers
A1: ="12. CO2 from Synthetic Fiber Combustion in "&VLOOKUP(SelectedState,Lookups!A3:B52,2,FALSE) -> 
A4: CO2 from Combustion of Synthetic Fibers
A5: Year | B5: Proportion of Discards | D5: State MSW Combusted (short tons) | F5: Carbon Content | H5: Fraction Oxidized | J5: Emissions (MTCE) | L5: Emissions (MTCO2E) | M5: Use the Default? (Check for Yes)
A6: 1990 | C6: x | D6: ='State MSW Combusted'!D3 -> 0 | E6: x | F6: 0.7 | G6: x | H6: =SynFiberFraction -> 0 | I6: = | J6: =B6*D6*F6*H6*Lookups!$K$16 -> 0 | K6: = | L6: =J6/CO2_C -> 0
A7: =A6+1 -> 1991 | C7: x | D7: ='State MSW Combusted'!D4 -> 0 | E7: x | F7: 0.7 | G7: x | H7: 0 | I7: = | J7: =B7*D7*F7*H7*Lookups!$K$16 -> 0 | K7: = | L7: 0
A8: 1992 | C8: x | D8: ='State MSW Combusted'!D5 -> 0 | E8: x | F8: 0.7 | G8: x | H8: 0 | I8: = | J8: =B8*D8*F8*H8*Lookups!$K$16 -> 0 | K8: = | L8: 0
A9: 1993 | C9: x | D9: ='State MSW Combusted'!D6 -> 0 | E9: x | F9: 0.7 | G9: x | H9: 0 | I9: = | J9: =B9*D9*F9*H9*Lookups!$K$16 -> 0 | K9: = | L9: 0
A10: 1994 | C10: x | D10: ='State MSW Combusted'!D7 -> 0 | E10: x | F10: 0.7 | G10: x | H10: 0 | I10: = | J10: =B10*D10*F10*H10*Lookups!$K$16 -> 0 | K10: = | L10: 0
A11: 1995 | C11: x | D11: ='State MSW Combusted'!D8 -> 0 | E11: x | F11: 0.7 | G11: x | H11: 0 | I11: = | J11: =B11*D11*F11*H11*Lookups!$K$16 -> 0 | K11: = | L11: 0
A12: 1996 | C12: x | D12: ='State MSW Combusted'!D9 -> 0 | E12: x | F12: 0.7 | G12: x | H12: 0 | I12: = | J12: =B12*D12*F12*H12*Lookups!$K$16 -> 0 | K12: = | L12: 0
A13: 1997 | C13: x | D13: ='State MSW Combusted'!D10 -> 0 | E13: x | F13: 0.7 | G13: x | H13: 0 | I13: = | J13: =B13*D13*F13*H13*Lookups!$K$16 -> 0 | K13: = | L13: 0
A14: 1998 | C14: x | D14: ='State MSW Combusted'!D11 -> 0 | E14: x | F14: 0.7 | G14: x | H14: 0 | I14: = | J14: =B14*D14*F14*H14*Lookups!$K$16 -> 0 | K14: = | L14: 0
A15: 1999 | C15: x | D15: ='State MSW Combusted'!D12 -> 0 | E15: x | F15: 0.7 | G15: x | H15: 0 | I15: = | J15: =B15*D15*F15*H15*Lookups!$K$16 -> 0 | K15: = | L15: 0
A16: =A15+1 -> 2000 | C16: x | D16: ='State MSW Combusted'!D13 -> 0 | E16: x | F16: 0.7 | G16: x | H16: 0 | I16: = | J16: =B16*D16*F16*H16*Lookups!$K$16 -> 0 | K16: = | L16: 0
A17: 2001 | C17: x | D17: ='State MSW Combusted'!D14 -> 0 | E17: x | F17: 0.7 | G17: x | H17: 0 | I17: = | J17: =B17*D17*F17*H17*Lookups!$K$16 -> 0 | K17: = | L17: 0
A18: 2002 | C18: x | D18: ='State MSW Combusted'!D15 -> 0 | E18: x | F18: 0.7 | G18: x | H18: 0 | I18: = | J18: =B18*D18*F18*H18*Lookups!$K$16 -> 0 | K18: = | L18: 0
A19: 2003 | C19: x | D19: ='State MSW Combusted'!D16 -> 0 | E19: x | F19: 0.7 | G19: x | H19: 0 | I19: = | J19: =B19*D19*F19*H19*Lookups!$K$16 -> 0 | K19: = | L19: 0
A20: 2004 | C20: x | D20: ='State MSW Combusted'!D17 -> 0 | E20: x | F20: 0.7 | G20: x | H20: 0 | I20: = | J20: =B20*D20*F20*H20*Lookups!$K$16 -> 0 | K20: = | L20: 0
A21: 2005 | C21: x | D21: ='State MSW Combusted'!D18 -> 0 | E21: x | F21: 0.7 | G21: x | H21: 0 | I21: = | J21: =B21*D21*F21*H21*Lookups!$K$16 -> 0 | K21: = | L21: 0
A22: =A21+1 -> 2006 | C22: x | D22: ='State MSW Combusted'!D19 -> 0 | E22: x | F22: 0.7 | G22: x | H22: 0 | I22: = | J22: =B22*D22*F22*H22*Lookups!$K$16 -> 0 | K22: = | L22: =J22/CO2_C -> 0
A23: 2007 | C23: x | D23: ='State MSW Combusted'!D20 -> 0 | E23: x | F23: 0.7 | G23: x | H23: 0 | I23: = | J23: =B23*D23*F23*H23*Lookups!$K$16 -> 0 | K23: = | L23: 0
A24: 2008 | C24: x | D24: ='State MSW Combusted'!D21 -> 0 | E24: x | F24: 0.7 | G24: x | H24: 0 | I24: = | J24: =B24*D24*F24*H24*Lookups!$K$16 -> 0 | K24: = | L24: 0
A25: 2009 | C25: x | D25: ='State MSW Combusted'!D22 -> 0 | E25: x | F25: 0.7 | G25: x | H25: 0 | I25: = | J25: =B25*D25*F25*H25*Lookups!$K$16 -> 0 | K25: = | L25: 0
A26: 2010 | C26: x | D26: ='State MSW Combusted'!D23 -> 0 | E26: x | F26: 0.7 | G26: x | H26: 0 | I26: = | J26: =B26*D26*F26*H26*Lookups!$K$16 -> 0 | K26: = | L26: 0
A27: 2011 | C27: x | D27: ='State MSW Combusted'!D24 -> 0 | E27: x | F27: 0.7 | G27: x | H27: 0 | I27: = | J27: =B27*D27*F27*H27*Lookups!$K$16 -> 0 | K27: = | L27: 0
A28: 2012 | C28: x | D28: ='State MSW Combusted'!D25 -> 0 | E28: x | F28: 0.7 | G28: x | H28: 0 | I28: = | J28: =B28*D28*F28*H28*Lookups!$K$16 -> 0 | K28: = | L28: 0
A29: 2013 | C29: x | D29: ='State MSW Combusted'!D26 -> 0 | E29: x | F29: 0.7 | G29: x | H29: 0 | I29: = | J29: =B29*D29*F29*H29*Lookups!$K$16 -> 0 | K29: = | L29: 0
A30: 2014 | C30: x | D30: ='State MSW Combusted'!D27 -> 0 | E30: x | F30: 0.7 | G30: x | H30: 0 | I30: = | J30: =B30*D30*F30*H30*Lookups!$K$16 -> 0 | K30: = | L30: 0
A31: 2015 | C31: x | D31: ='State MSW Combusted'!D28 -> 0 | E31: x | F31: 0.7 | G31: x | H31: 0 | I31: = | J31: =IF(ISERROR(B31*D31*F31*H31*Lookups!$K$16),0,B31*D31*F31*H31*Lookups!$K$16) -> 0 | K31: = | L31: 0
A32: 2016 | C32: x | D32: ='State MSW Combusted'!D29 -> 0 | E32: x | F32: 0.7 | G32: x | H32: 0 | I32: = | J32: =IF(ISERROR(B32*D32*F32*H32*Lookups!$K$16),0,B32*D32*F32*H32*Lookups!$K$16) -> 0 | K32: = | L32: 0
A33: 2017 | C33: x | D33: ='State MSW Combusted'!D30 -> 0 | E33: x | F33: 0.7 | G33: x | H33: 0 | I33: = | J33: =IF(ISERROR(B33*D33*F33*H33*Lookups!$K$16),0,B33*D33*F33*H33*Lookups!$K$16) -> 0 | K33: = | L33: 0
A34: 2018 | C34: x | D34: ='State MSW Combusted'!D31 -> 0 | E34: x | F34: 0.7 | G34: x | H34: 0 | I34: = | J34: =IF(ISERROR(B34*D34*F34*H34*Lookups!$K$16),0,B34*D34*F34*H34*Lookups!$K$16) -> 0 | K34: = | L34: 0
A35: 2019 | C35: x | D35: ='State MSW Combusted'!D32 -> 0 | E35: x | F35: 0.7 | G35: x | H35: 0 | I35: = | J35: =IF(ISERROR(B35*D35*F35*H35*Lookups!$K$16),0,B35*D35*F35*H35*Lookups!$K$16) -> 0 | K35: = | L35: 0
A36: 2020 | C36: x | D36: ='State MSW Combusted'!D33 -> 0 | E36: x | F36: 0.7 | G36: x | H36: 0 | I36: = | J36: =IF(ISERROR(B36*D36*F36*H36*Lookups!$K$16),0,B36*D36*F36*H36*Lookups!$K$16) -> 0 | K36: = | L36: 0

Sheet N2O_MSW
A1: ="13. N2O from MSW Combustion in "&VLOOKUP(SelectedState,Lookups!A3:B52,2,FALSE) -> 
A4: N2O from MSW Combustion
B5: Year | D5: State MSW Combusted (short tons) | F5: Emission Factor (tons N2O/ton MSW) | H5: N2O GWP | J5: Metric Tons / Short Ton | L5: C/CO2 | N5: Emissions (MTCE) | P5: Emissions (MTCO2E)
B7: 1990 | D7: ='State MSW Combusted'!D3 -> 0 | E7: x | F7: 5e-05 | G7: x | H7: =Lookups!$K$19 -> 298 | I7: x | J7: =Lookups!$K$16 -> 0.90718474 | K7: x | L7: =12/44 -> 0.2727272727 | M7: = | N7: =D7*F7*H7*J7*L7 -> 0 | O7: = | P7: =N7/CO2_C -> 0
B8: =B7+1 -> 1991 | D8: ='State MSW Combusted'!D4 -> 0 | E8: x | F8: 5e-05 | G8: x | H8: =Lookups!$K$19 -> 298 | I8: x | J8: =Lookups!$K$16 -> 0.90718474 | K8: x | L8: =12/44 -> 0.2727272727 | M8: = | N8: =D8*F8*H8*J8*L8 -> 0 | O8: = | P8: 0
B9: 1992 | D9: ='State MSW Combusted'!D5 -> 0 | E9: x | F9: 5e-05 | G9: x | H9: =Lookups!$K$19 -> 298 | I9: x | J9: =Lookups!$K$16 -> 0.90718474 | K9: x | L9: 0.2727272727 | M9: = | N9: 0 | O9: = | P9: 0
B10: 1993 | D10: ='State MSW Combusted'!D6 -> 0 | E10: x | F10: 5e-05 | G10: x | H10: =Lookups!$K$19 -> 298 | I10: x | J10: =Lookups!$K$16 -> 0.90718474 | K10: x | L10: 0.2727272727 | M10: = | N10: 0 | O10: = | P10: 0
B11: 1994 | D11: ='State MSW Combusted'!D7 -> 0 | E11: x | F11: 5e-05 | G11: x | H11: =Lookups!$K$19 -> 298 | I11: x | J11: =Lookups!$K$16 -> 0.90718474 | K11: x | L11: 0.2727272727 | M11: = | N11: 0 | O11: = | P11: 0
B12: 1995 | D12: ='State MSW Combusted'!D8 -> 0 | E12: x | F12: 5e-05 | G12: x | H12: =Lookups!$K$19 -> 298 | I12: x | J12: =Lookups!$K$16 -> 0.90718474 | K12: x | L12: 0.2727272727 | M12: = | N12: 0 | O12: = | P12: 0
B13: 1996 | D13: ='State MSW Combusted'!D9 -> 0 | E13: x | F13: 5e-05 | G13: x | H13: =Lookups!$K$19 -> 298 | I13: x | J13: =Lookups!$K$16 -> 0.90718474 | K13: x | L13: 0.2727272727 | M13: = | N13: 0 | O13: = | P13: 0
B14: 1997 | D14: ='State MSW Combusted'!D10 -> 0 | E14: x | F14: 5e-05 | G14: x | H14: =Lookups!$K$19 -> 298 | I14: x | J14: =Lookups!$K$16 -> 0.90718474 | K14: x | L14: 0.2727272727 | M14: = | N14: 0 | O14: = | P14: 0
B15: 1998 | D15: ='State MSW Combusted'!D11 -> 0 | E15: x | F15: 5e-05 | G15: x | H15: =Lookups!$K$19 -> 298 | I15: x | J15: =Lookups!$K$16 -> 0.90718474 | K15: x | L15: 0.2727272727 | M15: = | N15: 0 | O15: = | P15: 0
B16: 1999 | D16: ='State MSW Combusted'!D12 -> 0 | E16: x | F16: 5e-05 | G16: x | H16: =Lookups!$K$19 -> 298 | I16: x | J16: =Lookups!$K$16 -> 0.90718474 | K16: x | L16: 0.2727272727 | M16: = | N16: 0 | O16: = | P16: 0
B17: =B16+1 -> 2000 | D17: ='State MSW Combusted'!D13 -> 0 | E17: x | F17: 5e-05 | G17: x | H17: =Lookups!$K$19 -> 298 | I17: x | J17: =Lookups!$K$16 -> 0.90718474 | K17: x | L17: 0.2727272727 | M17: = | N17: =D17*F17*H17*J17*L17 -> 0 | O17: = | P17: 0
B18: 2001 | D18: ='State MSW Combusted'!D14 -> 0 | E18: x | F18: 5e-05 | G18: x | H18: =Lookups!$K$19 -> 298 | I18: x | J18: =Lookups!$K$16 -> 0.90718474 | K18: x | L18: 0.2727272727 | M18: = | N18: 0 | O18: = | P18: 0
B19: 2002 | D19: ='State MSW Combusted'!D15 -> 0 | E19: x | F19: 5e-05 | G19: x | H19: =Lookups!$K$19 -> 298 | I19: x | J19: =Lookups!$K$16 -> 0.90718474 | K19: x | L19: 0.2727272727 | M19: = | N19: 0 | O19: = | P19: 0
B20: 2003 | D20: ='State MSW Combusted'!D16 -> 0 | E20: x | F20: 5e-05 | G20: x | H20: =Lookups!$K$19 -> 298 | I20: x | J20: =Lookups!$K$16 -> 0.90718474 | K20: x | L20: 0.2727272727 | M20: = | N20: 0 | O20: = | P20: 0
B21: 2004 | D21: ='State MSW Combusted'!D17 -> 0 | E21: x | F21: 5e-05 | G21: x | H21: =Lookups!$K$19 -> 298 | I21: x | J21: =Lookups!$K$16 -> 0.90718474 | K21: x | L21: 0.2727272727 | M21: = | N21: 0 | O21: = | P21: 0
B22: 2005 | D22: ='State MSW Combusted'!D18 -> 0 | E22: x | F22: 5e-05 | G22: x | H22: =Lookups!$K$19 -> 298 | I22: x | J22: =Lookups!$K$16 -> 0.90718474 | K22: x | L22: 0.2727272727 | M22: = | N22: 0 | O22: = | P22: 0
B23: =B22+1 -> 2006 | D23: ='State MSW Combusted'!D19 -> 0 | E23: x | F23: 5e-05 | G23: x | H23: =Lookups!$K$19 -> 298 | I23: x | J23: =Lookups!$K$16 -> 0.90718474 | K23: x | L23: 0.2727272727 | M23: = | N23: =D23*F23*H23*J23*L23 -> 0 | O23: = | P23: =N23/CO2_C -> 0
B24: 2007 | D24: ='State MSW Combusted'!D20 -> 0 | E24: x | F24: 5e-05 | G24: x | H24: =Lookups!$K$19 -> 298 | I24: x | J24: =Lookups!$K$16 -> 0.90718474 | K24: x | L24: 0.2727272727 | M24: = | N24: 0 | O24: = | P24: 0
B25: 2008 | D25: ='State MSW Combusted'!D21 -> 0 | E25: x | F25: 5e-05 | G25: x | H25: =Lookups!$K$19 -> 298 | I25: x | J25: =Lookups!$K$16 -> 0.90718474 | K25: x | L25: 0.2727272727 | M25: = | N25: 0 | O25: = | P25: 0
B26: 2009 | D26: ='State MSW Combusted'!D22 -> 0 | E26: x | F26: 5e-05 | G26: x | H26: =Lookups!$K$19 -> 298 | I26: x | J26: =Lookups!$K$16 -> 0.90718474 | K26: x | L26: 0.2727272727 | M26: = | N26: 0 | O26: = | P26: 0
B27: 2010 | D27: ='State MSW Combusted'!D23 -> 0 | E27: x | F27: 5e-05 | G27: x | H27: =Lookups!$K$19 -> 298 | I27: x | J27: =Lookups!$K$16 -> 0.90718474 | K27: x | L27: 0.2727272727 | M27: = | N27: 0 | O27: = | P27: 0
B28: 2011 | D28: ='State MSW Combusted'!D24 -> 0 | E28: x | F28: 5e-05 | G28: x | H28: =Lookups!$K$19 -> 298 | I28: x | J28: =Lookups!$K$16 -> 0.90718474 | K28: x | L28: 0.2727272727 | M28: = | N28: 0 | O28: = | P28: 0
B29: 2012 | D29: ='State MSW Combusted'!D25 -> 0 | E29: x | F29: 5e-05 | G29: x | H29: =Lookups!$K$19 -> 298 | I29: x | J29: =Lookups!$K$16 -> 0.90718474 | K29: x | L29: 0.2727272727 | M29: = | N29: 0 | O29: = | P29: 0
B30: 2013 | D30: ='State MSW Combusted'!D26 -> 0 | E30: x | F30: 5e-05 | G30: x | H30: =Lookups!$K$19 -> 298 | I30: x | J30: =Lookups!$K$16 -> 0.90718474 | K30: x | L30: 0.2727272727 | M30: = | N30: 0 | O30: = | P30: 0
B31: 2014 | D31: ='State MSW Combusted'!D27 -> 0 | E31: x | F31: 5e-05 | G31: x | H31: =Lookups!$K$19 -> 298 | I31: x | J31: =Lookups!$K$16 -> 0.90718474 | K31: x | L31: 0.2727272727 | M31: = | N31: 0 | O31: = | P31: 0
B32: 2015 | D32: ='State MSW Combusted'!D28 -> 0 | E32: x | F32: 5e-05 | G32: x | H32: =Lookups!$K$19 -> 298 | I32: x | J32: =Lookups!$K$16 -> 0.90718474 | K32: x | L32: 0.2727272727 | M32: = | N32: 0 | O32: = | P32: 0
B33: 2016 | D33: ='State MSW Combusted'!D29 -> 0 | E33: x | F33: 5e-05 | G33: x | H33: =Lookups!$K$19 -> 298 | I33: x | J33: =Lookups!$K$16 -> 0.90718474 | K33: x | L33: 0.2727272727 | M33: = | N33: 0 | O33: = | P33: 0
B34: 2017 | D34: ='State MSW Combusted'!D30 -> 0 | E34: x | F34: 5e-05 | G34: x | H34: =Lookups!$K$19 -> 298 | I34: x | J34: =Lookups!$K$16 -> 0.90718474 | K34: x | L34: 0.2727272727 | M34: = | N34: 0 | O34: = | P34: 0
B35: 2018 | D35: ='State MSW Combusted'!D31 -> 0 | E35: x | F35: 5e-05 | G35: x | H35: =Lookups!$K$19 -> 298 | I35: x | J35: =Lookups!$K$16 -> 0.90718474 | K35: x | L35: 0.2727272727 | M35: = | N35: 0 | O35: = | P35: 0
B36: 2019 | D36: ='State MSW Combusted'!D32 -> 0 | E36: x | F36: 5e-05 | G36: x | H36: =Lookups!$K$19 -> 298 | I36: x | J36: =Lookups!$K$16 -> 0.90718474 | K36: x | L36: 0.2727272727 | M36: = | N36: 0 | O36: = | P36: 0
B37: 2020 | D37: ='State MSW Combusted'!D33 -> 0 | E37: x | F37: 5e-05 | G37: x | H37: =Lookups!$K$19 -> 298 | I37: x | J37: =Lookups!$K$16 -> 0.90718474 | K37: x | L37: 0.2727272727 | M37: = | N37: 0 | O37: = | P37: 0

Sheet CH4_MSW
A1: ="14. CH4 from MSW Combustion in "&VLOOKUP(SelectedState,Lookups!A3:B52,2,FALSE) -> 
A4: CH4 from MSW Combustion
B5: Year | D5: State MSW Combusted (short tons) | F5: Emission Factor (tons CH4/ton MSW) | H5: CH4 GWP | J5: Metric Tons / Short Ton | L5: C/CO2 | N5: Emissions (MTCE) | P5: Emissions (MTCO2E)
B7: 1990 | D7: ='State MSW Combusted'!D3 -> 0 | E7: x | F7: 2e-05 | G7: x | H7: =GWP -> 25 | I7: x | J7: =Lookups!$K$16 -> 0.90718474 | K7: x | L7: =12/44 -> 0.2727272727 | M7: = | N7: =D7*F7*H7*J7*L7 -> 0 | O7: = | P7: =N7/CO2_C -> 0
B8: =B7+1 -> 1991 | D8: ='State MSW Combusted'!D4 -> 0 | E8: x | F8: 2e-05 | G8: x | H8: 25 | I8: x | J8: =Lookups!$K$16 -> 0.90718474 | K8: x | L8: 0.2727272727 | M8: = | N8: 0 | O8: = | P8: 0
B9: 1992 | D9: ='State MSW Combusted'!D5 -> 0 | E9: x | F9: 2e-05 | G9: x | H9: 25 | I9: x | J9: =Lookups!$K$16 -> 0.90718474 | K9: x | L9: 0.2727272727 | M9: = | N9: 0 | O9: = | P9: 0
B10: 1993 | D10: ='State MSW Combusted'!D6 -> 0 | E10: x | F10: 2e-05 | G10: x | H10: 25 | I10: x | J10: =Lookups!$K$16 -> 0.90718474 | K10: x | L10: 0.2727272727 | M10: = | N10: 0 | O10: = | P10: 0
B11: 1994 | D11: ='State MSW Combusted'!D7 -> 0 | E11: x | F11: 2e-05 | G11: x | H11: 25 | I11: x | J11: =Lookups!$K$16 -> 0.90718474 | K11: x | L11: 0.2727272727 | M11: = | N11: 0 | O11: = | P11: 0
B12: 1995 | D12: ='State MSW Combusted'!D8 -> 0 | E12: x | F12: 2e-05 | G12: x | H12: 25 | I12: x | J12: =Lookups!$K$16 -> 0.90718474 | K12: x | L12: 0.2727272727 | M12: = | N12: 0 | O12: = | P12: 0
B13: 1996 | D13: ='State MSW Combusted'!D9 -> 0 | E13: x | F13: 2e-05 | G13: x | H13: 25 | I13: x | J13: =Lookups!$K$16 -> 0.90718474 | K13: x | L13: 0.2727272727 | M13: = | N13: 0 | O13: = | P13: 0
B14: 1997 | D14: ='State MSW Combusted'!D10 -> 0 | E14: x | F14: 2e-05 | G14: x | H14: 25 | I14: x | J14: =Lookups!$K$16 -> 0.90718474 | K14: x | L14: 0.2727272727 | M14: = | N14: 0 | O14: = | P14: 0
B15: 1998 | D15: ='State MSW Combusted'!D11 -> 0 | E15: x | F15: 2e-05 | G15: x | H15: 25 | I15: x | J15: =Lookups!$K$16 -> 0.90718474 | K15: x | L15: 0.2727272727 | M15: = | N15: 0 | O15: = | P15: 0
B16: 1999 | D16: ='State MSW Combusted'!D12 -> 0 | E16: x | F16: 2e-05 | G16: x | H16: 25 | I16: x | J16: =Lookups!$K$16 -> 0.90718474 | K16: x | L16: 0.2727272727 | M16: = | N16: 0 | O16: = | P16: 0
B17: 2000 | D17: ='State MSW Combusted'!D13 -> 0 | E17: x | F17: 2e-05 | G17: x | H17: 25 | I17: x | J17: =Lookups!$K$16 -> 0.90718474 | K17: x | L17: 0.2727272727 | M17: = | N17: 0 | O17: = | P17: 0
B18: 2001 | D18: ='State MSW Combusted'!D14 -> 0 | E18: x | F18: 2e-05 | G18: x | H18: 25 | I18: x | J18: =Lookups!$K$16 -> 0.90718474 | K18: x | L18: 0.2727272727 | M18: = | N18: 0 | O18: = | P18: 0
B19: 2002 | D19: ='State MSW Combusted'!D15 -> 0 | E19: x | F19: 2e-05 | G19: x | H19: 25 | I19: x | J19: =Lookups!$K$16 -> 0.90718474 | K19: x | L19: 0.2727272727 | M19: = | N19: 0 | O19: = | P19: 0
B20: 2003 | D20: ='State MSW Combusted'!D16 -> 0 | E20: x | F20: 2e-05 | G20: x | H20: 25 | I20: x | J20: =Lookups!$K$16 -> 0.90718474 | K20: x | L20: 0.2727272727 | M20: = | N20: 0 | O20: = | P20: 0
B21: 2004 | D21: ='State MSW Combusted'!D17 -> 0 | E21: x | F21: 2e-05 | G21: x | H21: 25 | I21: x | J21: =Lookups!$K$16 -> 0.90718474 | K21: x | L21: 0.2727272727 | M21: = | N21: 0 | O21: = | P21: 0
B22: 2005 | D22: ='State MSW Combusted'!D18 -> 0 | E22: x | F22: 2e-05 | G22: x | H22: 25 | I22: x | J22: =Lookups!$K$16 -> 0.90718474 | K22: x | L22: 0.2727272727 | M22: = | N22: 0 | O22: = | P22: 0
B23: 2006 | D23: ='State MSW Combusted'!D19 -> 0 | E23: x | F23: 2e-05 | G23: x | H23: 25 | I23: x | J23: =Lookups!$K$16 -> 0.90718474 | K23: x | L23: 0.2727272727 | M23: = | N23: 0 | O23: = | P23: 0
B24: 2007 | D24: ='State MSW Combusted'!D20 -> 0 | E24: x | F24: 2e-05 | G24: x | H24: 25 | I24: x | J24: =Lookups!$K$16 -> 0.90718474 | K24: x | L24: 0.2727272727 | M24: = | N24: 0 | O24: = | P24: 0
B25: 2008 | D25: ='State MSW Combusted'!D21 -> 0 | E25: x | F25: 2e-05 | G25: x | H25: 25 | I25: x | J25: =Lookups!$K$16 -> 0.90718474 | K25: x | L25: 0.2727272727 | M25: = | N25: 0 | O25: = | P25: 0
B26: 2009 | D26: ='State MSW Combusted'!D22 -> 0 | E26: x | F26: 2e-05 | G26: x | H26: 25 | I26: x | J26: =Lookups!$K$16 -> 0.90718474 | K26: x | L26: 0.2727272727 | M26: = | N26: 0 | O26: = | P26: 0
B27: 2010 | D27: ='State MSW Combusted'!D23 -> 0 | E27: x | F27: 2e-05 | G27: x | H27: 25 | I27: x | J27: =Lookups!$K$16 -> 0.90718474 | K27: x | L27: 0.2727272727 | M27: = | N27: 0 | O27: = | P27: 0
B28: 2011 | D28: ='State MSW Combusted'!D24 -> 0 | E28: x | F28: 2e-05 | G28: x | H28: 25 | I28: x | J28: =Lookups!$K$16 -> 0.90718474 | K28: x | L28: 0.2727272727 | M28: = | N28: 0 | O28: = | P28: 0
B29: 2012 | D29: ='State MSW Combusted'!D25 -> 0 | E29: x | F29: 2e-05 | G29: x | H29: 25 | I29: x | J29: =Lookups!$K$16 -> 0.90718474 | K29: x | L29: 0.2727272727 | M29: = | N29: 0 | O29: = | P29: 0
B30: 2013 | D30: ='State MSW Combusted'!D26 -> 0 | E30: x | F30: 2e-05 | G30: x | H30: 25 | I30: x | J30: =Lookups!$K$16 -> 0.90718474 | K30: x | L30: 0.2727272727 | M30: = | N30: 0 | O30: = | P30: 0
B31: 2014 | D31: ='State MSW Combusted'!D27 -> 0 | E31: x | F31: 2e-05 | G31: x | H31: 25 | I31: x | J31: =Lookups!$K$16 -> 0.90718474 | K31: x | L31: 0.2727272727 | M31: = | N31: 0 | O31: = | P31: 0
B32: 2015 | D32: ='State MSW Combusted'!D28 -> 0 | E32: x | F32: 2e-05 | G32: x | H32: 25 | I32: x | J32: =Lookups!$K$16 -> 0.90718474 | K32: x | L32: 0.2727272727 | M32: = | N32: 0 | O32: = | P32: 0
B33: 2016 | D33: ='State MSW Combusted'!D29 -> 0 | E33: x | F33: 2e-05 | G33: x | H33: 25 | I33: x | J33: =Lookups!$K$16 -> 0.90718474 | K33: x | L33: 0.2727272727 | M33: = | N33: 0 | O33: = | P33: 0
B34: 2017 | D34: ='State MSW Combusted'!D30 -> 0 | E34: x | F34: 2e-05 | G34: x | H34: 25 | I34: x | J34: =Lookups!$K$16 -> 0.90718474 | K34: x | L34: 0.2727272727 | M34: = | N34: 0 | O34: = | P34: 0
B35: 2018 | D35: ='State MSW Combusted'!D31 -> 0 | E35: x | F35: 2e-05 | G35: x | H35: 25 | I35: x | J35: =Lookups!$K$16 -> 0.90718474 | K35: x | L35: 0.2727272727 | M35: = | N35: 0 | O35: = | P35: 0
B36: 2019 | D36: ='State MSW Combusted'!D32 -> 0 | E36: x | F36: 2e-05 | G36: x | H36: 25 | I36: x | J36: =Lookups!$K$16 -> 0.90718474 | K36: x | L36: 0.2727272727 | M36: = | N36: 0 | O36: = | P36: 0
B37: 2020 | D37: ='State MSW Combusted'!D33 -> 0 | E37: x | F37: 2e-05 | G37: x | H37: 25 | I37: x | J37: =Lookups!$K$16 -> 0.90718474 | K37: x | L37: 0.2727272727 | M37: = | N37: 0 | O37: = | P37: 0

Sheet State WIP
A1: ="Calculations of "&VLOOKUP(SelectedState,States,2,FALSE)&" WIP" -> Calculations of Select a State. . . WIP
A2: Year | B2: State Population | C2: U.S. National Population | D2: National MSW Landfilled (tons) | E2: National Per Capita Landfilled (tons) | F2: Rate of Change | G2: State Per Capita MSW Landfilled (tons) | H2: State Waste Disposal (tons) | I2: WIP (tons)
A3: 1960 | B3: ='State Population'!D4 ->  | C3: =TRANSPOSE(Population!$B$54:$BJ$54) -> 179322000 | D3: 55510000 | E3: =D3/C3 -> 0.3095548789 | F3: =(E3/E13)^(1/10)-1 -> -0.0329046593 | G3: =G4+(G4*$F$3) ->  | H3: ='State Disposal'!C5 -> 0
A4: 1961 | B4: ='State Population'!D5 ->  | C4: 182976000 | H4: ='State Disposal'!C6 -> 0
A5: 1962 | B5: ='State Population'!D6 ->  | C5: 185739000 | H5: ='State Disposal'!C8 -> 0 | I5: =B5*G5 -> 
A6: 1963 | B6: ='State Population'!D7 ->  | C6: 188434000 | H6: ='State Disposal'!C9 -> 0 | I6: =B6*G6 -> 
A7: 1964 | B7: ='State Population'!D8 ->  | C7: 191085000 | H7: ='State Disposal'!C10 -> 0
A8: 1965 | B8: ='State Population'!D9 ->  | C8: 193460000 | H8: ='State Disposal'!C11 -> 0
A9: 1966 | B9: ='State Population'!D10 ->  | C9: 195499000 | H9: ='State Disposal'!C12 -> 0
A10: 1967 | B10: ='State Population'!D11 ->  | C10: 197375000 | H10: ='State Disposal'!C13 -> 0
A11: 1968 | B11: ='State Population'!D12 ->  | C11: 199312000 | H11: ='State Disposal'!C14 -> 0
A12: 1969 | B12: ='State Population'!D13 ->  | C12: 201305000 | H12: ='State Disposal'!C15 -> 0
A13: 1970 | B13: ='State Population'!D14 ->  | C13: 203302031 | D13: 87940000 | E13: =D13/C13 -> 0.4325583939 | F13: =(E13/E23)^(1/10)-1 -> -0.02280435536 | G13: =G14+(G14*$F$13) ->  | H13: ='State Disposal'!C16 -> 0
A14: 1971 | B14: ='State Population'!D15 ->  | C14: 206827025 | H14: ='State Disposal'!C17 -> 0
A15: 1972 | B15: ='State Population'!D16 ->  | C15: 209283907 | H15: ='State Disposal'!C18 -> 0
A16: 1973 | B16: ='State Population'!D17 ->  | C16: 211357478 | H16: ='State Disposal'!C19 -> 0
A17: 1974 | B17: ='State Population'!D18 ->  | C17: 213341554 | H17: ='State Disposal'!C20 -> 0
A18: 1975 | B18: ='State Population'!D19 ->  | C18: 215465250 | H18: ='State Disposal'!C21 -> 0
A19: 1976 | B19: ='State Population'!D20 ->  | C19: 217562732 | H19: ='State Disposal'!C22 -> 0
A20: 1977 | B20: ='State Population'!D21 ->  | C20: 219759868 | H20: ='State Disposal'!C23 -> 0
A21: 1978 | B21: ='State Population'!D22 ->  | C21: 222095080 | H21: ='State Disposal'!C24 -> 0
A22: 1979 | B22: ='State Population'!D23 ->  | C22: 224567241 | H22: ='State Disposal'!C25 -> 0
A23: 1980 | B23: ='State Population'!D24 ->  | C23: 226545805 | D23: 123420000 | E23: =D23/C23 -> 0.5447904895 | F23: =(E23/E33)^(1/10)-1 -> -0.003013457914 | G23: =G24+(G24*$F$23) ->  | H23: ='State Disposal'!C26 -> 0
A24: 1981 | B24: ='State Population'!D25 ->  | C24: 229465717 | G24: =G25+(G25*$F$23) ->  | H24: ='State Disposal'!C27 -> 0
A25: 1982 | B25: ='State Population'!D26 ->  | C25: 231664452 | H25: ='State Disposal'!C28 -> 0
A26: 1983 | B26: ='State Population'!D27 ->  | C26: 233791992 | H26: ='State Disposal'!C29 -> 0
A27: 1984 | B27: ='State Population'!D28 ->  | C27: 235824901 | H27: ='State Disposal'!C30 -> 0
A28: 1985 | B28: ='State Population'!D29 ->  | C28: 237923796 | H28: ='State Disposal'!C31 -> 0
A29: 1986 | B29: ='State Population'!D30 ->  | C29: 240132883 | H29: ='State Disposal'!C32 -> 0
A30: 1987 | B30: ='State Population'!D31 ->  | C30: 242288918 | H30: ='State Disposal'!C33 -> 0
A31: 1988 | B31: ='State Population'!D32 ->  | C31: 244498983 | H31: ='State Disposal'!C34 -> 0
A32: 1989 | B32: ='State Population'!D33 ->  | C32: 246819230 | H32: ='State Disposal'!C35 -> 0 | I32: =SUM(H3:H32) -> 0
A33: 1990 | B33: ='State Population'!D34 ->  | C33: 249464396 | D33: 140070000 | E33: =D33/C33 -> 0.56148293 | G33: =H33/B33 ->  | H33: ='State Disposal'!C36 -> 0 | I33: 0
A34: 1991 | B34: ='State Population'!D35 ->  | C34: 252153092 | H34: ='State Disposal'!C37 -> 0 | I34: 0
A35: 1992 | B35: ='State Population'!D36 ->  | C35: 255029699 | H35: ='State Disposal'!C38 -> 0 | I35: 0
A36: 1993 | B36: ='State Population'!D37 ->  | C36: 257782608 | H36: ='State Disposal'!C39 -> 0 | I36: 0
A37: 1994 | B37: ='State Population'!D38 ->  | C37: 260327021 | H37: ='State Disposal'!C40 -> 0 | I37: 0
A38: 1995 | B38: ='State Population'!D39 ->  | C38: 262803276 | H38: ='State Disposal'!C41 -> 0 | I38: 0
A39: 1996 | B39: ='State Population'!D40 ->  | C39: 265228572 | H39: ='State Disposal'!C42 -> 0 | I39: 0
A40: 1997 | B40: ='State Population'!D41 ->  | C40: 267783607 | H40: ='State Disposal'!C43 -> 0 | I40: 0
A41: 1998 | B41: ='State Population'!D42 ->  | C41: 270248003 | H41: ='State Disposal'!C44 -> 0 | I41: 0
A42: 1999 | B42: ='State Population'!D43 ->  | C42: 272690813 | H42: ='State Disposal'!C45 -> 0 | I42: 0
A43: 2000 | B43: ='State Population'!D44 ->  | C43: 282171936 | H43: ='State Disposal'!C46 -> 0 | I43: 0
A44: 2001 | B44: ='State Population'!D45 ->  | C44: 285039803 | G44: =H44/B44 ->  | H44: ='State Disposal'!C47 -> 0 | I44: 0
A45: 2002 | B45: ='State Population'!D46 ->  | C45: 287726647 | H45: ='State Disposal'!C48 -> 0 | I45: 0
A46: 2003 | B46: ='State Population'!D47 ->  | C46: 290210914 | H46: ='State Disposal'!C49 -> 0 | I46: 0
A47: 2004 | B47: ='State Population'!D48 ->  | C47: 292892127 | H47: ='State Disposal'!C50 -> 0 | I47: =SUM(H18:H47) -> 0
A48: 2005 | B48: ='State Population'!D49 ->  | C48: 295560549 | H48: ='State Disposal'!C51 -> 0 | I48: =SUM(H19:H48) -> 0
A49: 2006 | B49: ='State Population'!D50 ->  | C49: 298593212 | H49: ='State Disposal'!C52 -> 0 | I49: =SUM(H20:H49) -> 0
A50: 2007 | B50: ='State Population'!D51 ->  | C50: 301579895 | H50: ='State Disposal'!C53 -> 0 | I50: 0
A51: 2008 | B51: ='State Population'!D52 ->  | C51: 304374846 | H51: ='State Disposal'!C54 -> 0 | I51: 0
A52: 2009 | B52: ='State Population'!D53 ->  | C52: 307006550 | H52: ='State Disposal'!C55 -> 0 | I52: 0
A53: 2010 | B53: ='State Population'!D54 ->  | C53: 309321666 | H53: ='State Disposal'!C56 -> 0 | I53: 0
A54: 2011 | B54: ='State Population'!D55 ->  | C54: 311556874 | H54: ='State Disposal'!C57 -> 0 | I54: 0
A55: 2012 | B55: ='State Population'!D56 ->  | C55: 313830990 | H55: ='State Disposal'!C58 -> 0 | I55: 0
A56: 2013 | B56: ='State Population'!D57 ->  | C56: 315993715 | H56: ='State Disposal'!C59 -> 0 | I56: 0
A57: 2014 | B57: ='State Population'!D58 ->  | C57: 318301008 | H57: ='State Disposal'!C60 -> 0 | I57: 0
A58: 2015 | B58: ='State Population'!D59 ->  | C58: 320635163 | H58: ='State Disposal'!C61 -> 0 | I58: 0
A59: 2016 | B59: ='State Population'!D60 ->  | C59: 322941311 | H59: ='State Disposal'!C62 -> 0 | I59: 0
A60: 2017 | B60: ='State Population'!D61 ->  | C60: 324985539 | H60: ='State Disposal'!C63 -> 0 | I60: 0
A61: 2018 | B61: ='State Population'!D62 ->  | C61: 326687501 | H61: ='State Disposal'!C64 -> 0 | I61: =SUM(H32:H61) -> 0
A62: 2019 | B62: ='State Population'!D63 ->  | C62: 328239523 | H62: ='State Disposal'!C65 -> 0 | I62: 0
A63: 2020 | B63: ='State Population'!D64 ->  | C63: 0 | H63: ='State Disposal'!C66 -> 0 | I63: 0
H64: ='State Disposal'!C67 -> 0 | I64: 0
A66: Sources:
A67: 1959-1989 population: CA DOF (2001a) California Historical Population Estimates, with Components of Change and Crude Rates, July 1, 1941-1990, California Department of Finance, Demographic Research Unit, May 2001.
A68: 1990-1999 population: CA DOF (2001b) Historical Adjusted City, County and State Population Estimates, 1991-2000, with Adjusted 1990 Census Counts, California Department of Finance, Sacramento, California, September 2001.
A69: EPA (1999a) Characterization of Municipal Solid Waste in the United States: 1998 Update, Environmental Protection Agency, Municipal and Solid Waste Division, Office of Solid Waste, Washington, D.C., EPA 530-, July 1999.
A70: U.S. Census Bureau (2000) Historical National Population Estimates: July 1, 1900 to July 1, 1999, Population Estimates Program, Population Division, U.S. Census Bureau, revised date: June 28, 2000. <http://www.census.gov/population/estimates/nation/popclockest.txt>.
A71: U.S. Census Bureau (2010-2019). American FactFinder. https://factfinder.census.gov/

Sheet MSW Landfilled
A1: Landfilled, By State (tons) | AI1: Percent Landfilled of MSW Generated
B2: 1990 | C2: 1991 | D2: 1992 | E2: 1993 | F2: 1994 | G2: 1995 | H2: 1996 | I2: 1997 | J2: 1998 | K2: 1999 | L2: 2000 | M2: 2001 | N2: 2002 | O2: 2003 | P2: 2004 | Q2: 2005 | R2: 2006 | S2: 2007 | T2: 2008 | U2: 2009 | V2: 2010 | W2: 2011 | X2: 2012 | Y2: 2013 | Z2: 2014 | AA2: 2015 | AB2: 2016 | AC2: 2017 | AD2: 2018 | AE2: 2019 | AF2: 2020 | AJ2: 1990 | AK2: 1991 | AL2: 1992 | AM2: 1993 | AN2: 1994 | AO2: 1995 | AP2: 1996 | AQ2: 1997 | AR2: 1998 | AS2: 1999 | AT2: 2000 | AU2: 2001 | AV2: 2002 | AW2: 2003 | AX2: 2004 | AY2: 2005 | AZ2: 2006 | BA2: 2007 | BB2: 2008 | BC2: 2009 | BD2: 2010 | BE2: 2011 | BF2: 2012 | BG2: 2013 | BH2: 2014 | BI2: 2015 | BJ2: 2016 | BK2: 2017 | BL2: 2018 | BM2: 2019 | BN2: 2020
B3: 2 | C3: 3 | D3: 4 | E3: 5 | F3: 6 | G3: 7 | H3: 8 | I3: 9 | J3: 10 | K3: 11 | L3: 12 | M3: 13 | N3: 14 | O3: 15 | P3: 16 | Q3: 17 | R3: 18 | S3: 19 | T3: 20 | U3: 21 | V3: 22 | W3: 23 | X3: 24 | Y3: 25 | Z3: 26 | AA3: 27 | AB3: 28 | AC3: 29 | AD3: 30 | AE3: 31 | AF3: 32 | AI3: BioCycle
A4: AL | B4: =AJ4*'MSW Generated'!B4 -> 4092000 | C4: =AK4*'MSW Generated'!C4 -> 4005000 | D4: =AL4*'MSW Generated'!D4 -> 4160000 | E4: =AM4*'MSW Generated'!E4 -> 4184000 | F4: =AN4*'MSW Generated'!F4 -> 4248000 | G4: =AO4*'MSW Generated'!G4 -> 4313600 | H4: =AP4*'MSW Generated'!H4 -> 4103250 | I4: =AQ4*'MSW Generated'!I4 -> 3995280 | J4: =AR4*'MSW Generated'!J4 -> 4053600 | K4: =AS4*'MSW Generated'!K4 -> 4111200 | L4: =AT4*'MSW Generated'!L4 -> 3195000 | M4: =AU4*'MSW Generated'!M4 -> 3490400.588 | N4: =AV4*'MSW Generated'!N4 -> 3785801.177 | O4: =AW4*'MSW Generated'!O4 -> 4592789.029 | P4: =AX4*'MSW Generated'!P4 -> 5473835.056 | Q4: =AY4*'MSW Generated'!Q4 -> 5843293.82 | R4: 6210696 | S4: =BA4*'MSW Generated'!S4 -> 5452145.411 | T4: =BB4*'MSW Generated'!T4 -> 4693594.823 | U4: =BC4*'MSW Generated'!U4 -> 2943619.138 | V4: =BD4*'MSW Generated'!V4 -> 3025322.735 | W4: =BE4*'MSW Generated'!W4 -> 3036409.359 | X4: =BF4*'MSW Generated'!X4 -> 3040265.576 | Y4: =BG4*'MSW Generated'!Y4 -> 3073766.461 | Z4: =BH4*'MSW Generated'!Z4 -> 3113895.219 | AA4: =BI4*'MSW Generated'!AA4 -> 3158603.235 | AB4: =BJ4*'MSW Generated'!AB4 -> 3215361.929 | AC4: =BK4*'MSW Generated'!AC4 -> 3227051.087 | AD4: =BL4*'MSW Generated'!AD4 -> 3227051.087 | AE4: =BM4*'MSW Generated'!AE4 -> 0 | AF4: =BN4*'MSW Generated'!AF4 -> 0 | AI4: AL | AJ4: 0.93 | AK4: 0.89 | AL4: 0.8 | AM4: 0.8 | AN4: 0.8 | AO4: 0.8 | AP4: 0.75 | AQ4: 0.72 | AR4: 0.72 | AS4: 0.72 | AT4: 0.71 | AU4: =AT4 -> 0.71 | AV4: =AU4 -> 0.71 | AW4: =AVERAGE(AV4,AX4) -> 0.799 | AX4: 0.888 | AY4: =AX4 -> 0.888 | AZ4: =R4/'MSW Generated'!R4 -> 0.8877060487 | BA4: =AZ4 -> 0.8877060487 | BB4: 0.8877060487 | BC4: 0.8877060487 | BD4: 0.8877060487 | BE4: 0.8877060487 | BF4: 0.8877060487 | BG4: =BF4 -> 0.8877060487 | BH4: 0.8877060487 | BI4: 0.8877060487 | BJ4: 0.8877060487 | BK4: 0.8877060487 | BL4: 0.8877060487
A5: AK | B5: =AJ5*'MSW Generated'!B5 -> 434350 | C5: =AK5*'MSW Generated'!C5 -> 395000 | D5: =AL5*'MSW Generated'!D5 -> 395000 | E5: =AM5*'MSW Generated'!E5 -> 395000 | F5: =AN5*'MSW Generated'!F5 -> 395000 | G5: =AO5*'MSW Generated'!G5 -> 395000 | H5: =AP5*'MSW Generated'!H5 -> 390000 | I5: =AQ5*'MSW Generated'!I5 -> 436800 | J5: =AR5*'MSW Generated'!J5 -> 526500 | K5: =AS5*'MSW Generated'!K5 -> 553500 | L5: =AT5*'MSW Generated'!L5 -> 562520 | M5: =AU5*'MSW Generated'!M5 -> 573365.0467 | N5: =AV5*'MSW Generated'!N5 -> 584210.0933 | O5: =AW5*'MSW Generated'!O5 -> 622630.866 | P5: =AX5*'MSW Generated'!P5 -> 662056.7893 | Q5: =AY5*'MSW Generated'!Q5 -> 673906.9867 | R5: 733708 | S5: =BA5*'MSW Generated'!S5 -> 675181.8275 | T5: =BB5*'MSW Generated'!T5 -> 616655.6549 | U5: =BC5*'MSW Generated'!U5 -> 386739.6859 | V5: =BD5*'MSW Generated'!V5 -> 397474.0989 | W5: =BE5*'MSW Generated'!W5 -> 398930.6859 | X5: =BF5*'MSW Generated'!X5 -> 399437.3249 | Y5: =BG5*'MSW Generated'!Y5 -> 403838.7509 | Z5: =BH5*'MSW Generated'!Z5 -> 409110.9626 | AA5: =BI5*'MSW Generated'!AA5 -> 414984.8081 | AB5: =BJ5*'MSW Generated'!AB5 -> 422441.9003 | AC5: =BK5*'MSW Generated'!AC5 -> 423977.6497 | AD5: =BL5*'MSW Generated'!AD5 -> 423977.6497 | AE5: =BM5*'MSW Generated'!AE5 -> 0 | AF5: =BN5*'MSW Generated'!AF5 -> 0 | AI5: AK | AJ5: 0.85 | AK5: 0.79 | AL5: 0.79 | AM5: 0.79 | AN5: 0.79 | AO5: 0.79 | AP5: 0.78 | AQ5: 0.78 | AR5: 0.78 | AS5: 0.82 | AT5: 0.82 | AU5: =AT5 -> 0.82 | AV5: =AU5 -> 0.82 | AW5: =AVERAGE(AV5,AX5) -> 0.858 | AX5: 0.896 | AY5: =AX5 -> 0.896 | AZ5: =R5/'MSW Generated'!R5 -> 0.9586518134 | BA5: =AZ5 -> 0.9586518134 | BB5: 0.9586518134 | BC5: =BB5 -> 0.9586518134 | BD5: =BC5 -> 0.9586518134 | BE5: 0.9586518134 | BF5: 0.9586518134 | BG5: 0.9586518134 | BH5: 0.9586518134 | BI5: =BH5 -> 0.9586518134 | BJ5: 0.9586518134 | BK5: 0.9586518134 | BL5: 0.9586518134
A6: AZ | B6: =AJ6*'MSW Generated'!B6 -> 2945000 | C6: =AK6*'MSW Generated'!C6 -> 2755000 | D6: =AL6*'MSW Generated'!D6 -> 3856710 | E6: =AM6*'MSW Generated'!E6 -> 3240000 | F6: =AN6*'MSW Generated'!F6 -> 3990000 | G6: =AO6*'MSW Generated'!G6 -> 4050000 | H6: =AP6*'MSW Generated'!H6 -> 4201960 | I6: =AQ6*'MSW Generated'!I6 -> 4674000 | J6: =AR6*'MSW Generated'!J6 -> 4267860 | K6: =AS6*'MSW Generated'!K6 -> 3838380 | L6: =AT6*'MSW Generated'!L6 -> 4772500 | M6: =AU6*'MSW Generated'!M6 -> 4432090 | N6: =AV6*'MSW Generated'!N6 -> 4093650 | O6: =AW6*'MSW Generated'!O6 -> 4697510.769 | P6: =AX6*'MSW Generated'!P6 -> 5283575.787 | Q6: =AY6*'MSW Generated'!Q6 -> 5933120.68 | R6: 7172000 | S6: =BA6*'MSW Generated'!S6 -> 6553864.89 | T6: =BB6*'MSW Generated'!T6 -> 5935729.78 | U6: =BC6*'MSW Generated'!U6 -> 3722632.319 | V6: =BD6*'MSW Generated'!V6 -> 3825958.339 | W6: =BE6*'MSW Generated'!W6 -> 3839978.979 | X6: =BF6*'MSW Generated'!X6 -> 3844855.724 | Y6: =BG6*'MSW Generated'!Y6 -> 3887222.44 | Z6: =BH6*'MSW Generated'!Z6 -> 3937971.061 | AA6: =BI6*'MSW Generated'!AA6 -> 3994510.816 | AB6: =BJ6*'MSW Generated'!AB6 -> 4066290.397 | AC6: =BK6*'MSW Generated'!AC6 -> 4081073.028 | AD6: =BL6*'MSW Generated'!AD6 -> 4081073.028 | AE6: =BM6*'MSW Generated'!AE6 -> 0 | AF6: =BN6*'MSW Generated'!AF6 -> 0 | AI6: AZ | AJ6: 0.95 | AK6: 0.95 | AL6: 0.93 | AM6: 0.9 | AN6: 0.95 | AO6: 0.9 | AP6: 0.86 | AQ6: 0.82 | AR6: 0.83 | AS6: 0.74 | AT6: 0.83 | AU6: =AVERAGE(AT6,AV6) -> 0.8275 | AV6: 0.825 | AW6: 0.814 | AX6: 0.803 | AY6: 0.803 | AZ6: =R6/'MSW Generated'!R6 -> 0.8748911723 | BA6: 0.8748911723 | BB6: 0.8748911723 | BC6: 0.8748911723 | BD6: 0.8748911723 | BE6: 0.8748911723 | BF6: 0.8748911723 | BG6: 0.8748911723 | BH6: 0.8748911723 | BI6: 0.8748911723 | BJ6: 0.8748911723 | BK6: 0.8748911723 | BL6: 0.8748911723
A7: AR | B7: =AJ7*'MSW Generated'!B7 -> 1840000 | C7: =AK7*'MSW Generated'!C7 -> 1760000 | D7: =AL7*'MSW Generated'!D7 -> 1830900 | E7: =AM7*'MSW Generated'!E7 -> 1787820 | F7: =AN7*'MSW Generated'!F7 -> 1507800 | G7: =AO7*'MSW Generated'!G7 -> 1593960 | H7: =AP7*'MSW Generated'!H7 -> 1357020 | I7: =AQ7*'MSW Generated'!I7 -> 2700810 | J7: =AR7*'MSW Generated'!J7 -> 2221720 | K7: =AS7*'MSW Generated'!K7 -> 2194020 | L7: =AT7*'MSW Generated'!L7 -> 1110240 | M7: =AU7*'MSW Generated'!M7 -> 1778554.966 | N7: =AV7*'MSW Generated'!N7 -> 2530082.744 | O7: =AW7*'MSW Generated'!O7 -> 2764574.417 | P7: =AX7*'MSW Generated'!P7 -> 2974338.15 | Q7: =AY7*'MSW Generated'!Q7 -> 2857361.665 | R7: 2900689 | S7: =BA7*'MSW Generated'!S7 -> 3413827.449 | T7: =BB7*'MSW Generated'!T7 -> 3926965.897 | U7: =BC7*'MSW Generated'!U7 -> 2462822.72 | V7: =BD7*'MSW Generated'!V7 -> 2531181.25 | W7: =BE7*'MSW Generated'!W7 -> 2540457.039 | X7: =BF7*'MSW Generated'!X7 -> 2543683.4 | Y7: =BG7*'MSW Generated'!Y7 -> 2571712.413 | Z7: =BH7*'MSW Generated'!Z7 -> 2605286.736 | AA7: =BI7*'MSW Generated'!AA7 -> 2642692.362 | AB7: =BJ7*'MSW Generated'!AB7 -> 2690180.367 | AC7: =BK7*'MSW Generated'!AC7 -> 2699960.274 | AD7: =BL7*'MSW Generated'!AD7 -> 2699960.274 | AE7: =BM7*'MSW Generated'!AE7 -> 0 | AF7: =BN7*'MSW Generated'!AF7 -> 0 | AI7: AR | AJ7: 0.92 | AK7: 0.88 | AL7: 0.85 | AM7: 0.83 | AN7: 0.7 | AO7: 0.74 | AP7: 0.63 | AQ7: 0.63 | AR7: 0.67 | AS7: 0.54 | AT7: 0.54 | AU7: =AVERAGE(AT7,AV7) -> 0.5815 | AV7: 0.623 | AW7: 0.7065 | AX7: 0.79 | AY7: 0.79 | AZ7: =R7/'MSW Generated'!R7 -> 0.8362124882 | BA7: 0.8362124882 | BB7: 0.8362124882 | BC7: 0.8362124882 | BD7: 0.8362124882 | BE7: 0.8362124882 | BF7: 0.8362124882 | BG7: 0.8362124882 | BH7: 0.8362124882 | BI7: 0.8362124882 | BJ7: 0.8362124882 | BK7: 0.8362124882 | BL7: 0.8362124882
A8: CA | B8: =AJ8*'MSW Generated'!B8 -> 43500000 | C8: =AK8*'MSW Generated'!C8 -> 36450000 | D8: =AL8*'MSW Generated'!D8 -> 38745450 | E8: =AM8*'MSW Generated'!E8 -> 38726310 | F8: =AN8*'MSW Generated'!F8 -> 32850000 | G8: =AO8*'MSW Generated'!G8 -> 32120000 | H8: =AP8*'MSW Generated'!H8 -> 31680000 | I8: =AQ8*'MSW Generated'!I8 -> 31500000 | J8: =AR8*'MSW Generated'!J8 -> 37520000 | K8: =AS8*'MSW Generated'!K8 -> 37800000 | L8: =AT8*'MSW Generated'!L8 -> 37677000 | M8: =AU8*'MSW Generated'!M8 -> 39738275 | N8: =AV8*'MSW Generated'!N8 -> 41832000 | O8: =AW8*'MSW Generated'!O8 -> 43845750 | P8: =AX8*'MSW Generated'!P8 -> 45883100 | Q8: =AY8*'MSW Generated'!Q8 -> 37644757 | R8: 29926000 | S8: =BA8*'MSW Generated'!S8 -> 33308028.21 | T8: =BB8*'MSW Generated'!T8 -> 36690056.43 | U8: =BC8*'MSW Generated'!U8 -> 23010412.35 | V8: =BD8*'MSW Generated'!V8 -> 23649093.3 | W8: =BE8*'MSW Generated'!W8 -> 23735757.97 | X8: =BF8*'MSW Generated'!X8 -> 23765902.21 | Y8: =BG8*'MSW Generated'!Y8 -> 24027780.24 | Z8: =BH8*'MSW Generated'!Z8 -> 24341468.67 | AA8: =BI8*'MSW Generated'!AA8 -> 24690953.38 | AB8: =BJ8*'MSW Generated'!AB8 -> 25134638.81 | AC8: =BK8*'MSW Generated'!AC8 -> 25226013.52 | AD8: =BL8*'MSW Generated'!AD8 -> 25226013.52 | AE8: =BM8*'MSW Generated'!AE8 -> 0 | AF8: =BN8*'MSW Generated'!AF8 -> 0 | AI8: CA | AJ8: 0.87 | AK8: 0.81 | AL8: 0.87 | AM8: 0.87 | AN8: 0.73 | AO8: 0.73 | AP8: 0.72 | AQ8: 0.7 | AR8: 0.67 | AS8: 0.63 | AT8: 0.57 | AU8: 0.5755 | AV8: 0.581 | AW8: 0.585 | AX8: 0.589 | AY8: 0.589 | AZ8: =R8/'MSW Generated'!R8 -> 0.5994071225 | BA8: 0.5994071225 | BB8: 0.5994071225 | BC8: 0.5994071225 | BD8: 0.5994071225 | BE8: 0.5994071225 | BF8: 0.5994071225 | BG8: 0.5994071225 | BH8: 0.5994071225 | BI8: 0.5994071225 | BJ8: 0.5994071225 | BK8: 0.5994071225 | BL8: 0.5994071225
A9: CO | B9: =AJ9*'MSW Generated'!B9 -> 1600000 | C9: =AK9*'MSW Generated'!C9 -> 2016000 | D9: =AL9*'MSW Generated'!D9 -> 2555000 | E9: =AM9*'MSW Generated'!E9 -> 3520000 | F9: =AN9*'MSW Generated'!F9 -> 2268000 | G9: =AO9*'MSW Generated'!G9 -> 2460000 | H9: =AP9*'MSW Generated'!H9 -> 2333130 | I9: =AQ9*'MSW Generated'!I9 -> 2528880 | J9: =AR9*'MSW Generated'!J9 -> 4169700 | K9: =AS9*'MSW Generated'!K9 -> 5293100 | L9: =AT9*'MSW Generated'!L9 -> 5881500 | M9: =AU9*'MSW Generated'!M9 -> 6649708.104 | N9: =AV9*'MSW Generated'!N9 -> 7458912.216 | O9: =AW9*'MSW Generated'!O9 -> 7045979.402 | P9: =AX9*'MSW Generated'!P9 -> 6636966.342 | Q9: =AY9*'MSW Generated'!Q9 -> 7116015.356 | R9: 8208407 | S9: =BA9*'MSW Generated'!S9 -> 7634959.421 | T9: =BB9*'MSW Generated'!T9 -> 7061511.842 | U9: =BC9*'MSW Generated'!U9 -> 4428674.01 | V9: =BD9*'MSW Generated'!V9 -> 4551597.045 | W9: =BE9*'MSW Generated'!W9 -> 4568276.866 | X9: =BF9*'MSW Generated'!X9 -> 4574078.544 | Y9: =BG9*'MSW Generated'!Y9 -> 4624480.614 | Z9: =BH9*'MSW Generated'!Z9 -> 4684854.317 | AA9: =BI9*'MSW Generated'!AA9 -> 4752117.512 | AB9: =BJ9*'MSW Generated'!AB9 -> 4837510.948 | AC9: =BK9*'MSW Generated'!AC9 -> 4855097.282 | AD9: =BL9*'MSW Generated'!AD9 -> 4855097.282 | AE9: =BM9*'MSW Generated'!AE9 -> 0 | AF9: =BN9*'MSW Generated'!AF9 -> 0 | AI9: CO | AJ9: 0.8 | AK9: 0.84 | AL9: 0.73 | AM9: 0.8 | AN9: 0.81 | AO9: 0.82 | AP9: 0.83 | AQ9: 0.82 | AR9: 0.82 | AS9: =AR9 -> 0.82 | AT9: 0.9 | AU9: 0.936 | AV9: 0.972 | AW9: 0.923 | AX9: 0.874 | AY9: 0.874 | AZ9: =R9/'MSW Generated'!R9 -> 0.944580239 | BA9: 0.944580239 | BB9: 0.944580239 | BC9: 0.944580239 | BD9: 0.944580239 | BE9: 0.944580239 | BF9: 0.944580239 | BG9: 0.944580239 | BH9: 0.944580239 | BI9: 0.944580239 | BJ9: 0.944580239 | BK9: 0.944580239 | BL9: 0.944580239
A10: CT | B10: =AJ10*'MSW Generated'!B10 -> 1189000 | C10: =AK10*'MSW Generated'!C10 -> 580000 | D10: =AL10*'MSW Generated'!D10 -> 696000 | E10: =AM10*'MSW Generated'!E10 -> 506220 | F10: =AN10*'MSW Generated'!F10 -> 406700 | G10: =AO10*'MSW Generated'!G10 -> 516970 | H10: =AP10*'MSW Generated'!H10 -> 501670 | I10: =AQ10*'MSW Generated'!I10 -> 501500 | J10: =AR10*'MSW Generated'!J10 -> 365640 | K10: =AS10*'MSW Generated'!K10 -> 348480 | L10: =AT10*'MSW Generated'!L10 -> 388080 | M10: =AU10*'MSW Generated'!M10 -> 808432.2105 | N10: =AV10*'MSW Generated'!N10 -> 1257943.122 | O10: =AW10*'MSW Generated'!O10 -> 813017.3565 | P10: =AX10*'MSW Generated'!P10 -> 373829.125 | Q10: =AY10*'MSW Generated'!Q10 -> 370085.411 | R10: 372377 | S10: =BA10*'MSW Generated'!S10 -> 379473.5214 | T10: =BB10*'MSW Generated'!T10 -> 386570.0428 | U10: =BC10*'MSW Generated'!U10 -> 242439.9675 | V10: =BD10*'MSW Generated'!V10 -> 249169.1728 | W10: =BE10*'MSW Generated'!W10 -> 250082.2803 | X10: =BF10*'MSW Generated'!X10 -> 250399.8829 | Y10: =BG10*'MSW Generated'!Y10 -> 253159.0556 | Z10: =BH10*'MSW Generated'!Z10 -> 256464.1078 | AA10: =BI10*'MSW Generated'!AA10 -> 260146.313 | AB10: =BJ10*'MSW Generated'!AB10 -> 264821.0264 | AC10: =BK10*'MSW Generated'!AC10 -> 265783.7594 | AD10: =BL10*'MSW Generated'!AD10 -> 265783.7594 | AE10: =BM10*'MSW Generated'!AE10 -> 0 | AF10: =BN10*'MSW Generated'!AF10 -> 0 | AI10: CT | AJ10: 0.41 | AK10: 0.2 | AL10: 0.24 | AM10: 0.22 | AN10: 0.14 | AO10: 0.17 | AP10: 0.17 | AQ10: 0.17 | AR10: 0.12 | AS10: 0.11 | AT10: 0.12 | AU10: 0.241 | AV10: 0.362 | AW10: 0.2355 | AX10: 0.109 | AY10: 0.109 | AZ10: =R10/'MSW Generated'!R10 -> 0.1107957225 | BA10: 0.1107957225 | BB10: 0.1107957225 | BC10: 0.1107957225 | BD10: 0.1107957225 | BE10: 0.1107957225 | BF10: 0.1107957225 | BG10: 0.1107957225 | BH10: 0.1107957225 | BI10: 0.1107957225 | BJ10: 0.1107957225 | BK10: 0.1107957225 | BL10: 0.1107957225
A11: DE | B11: =AJ11*'MSW Generated'!B11 -> 323750 | C11: =AK11*'MSW Generated'!C11 -> 540000 | D11: =AL11*'MSW Generated'!D11 -> 513500 | E11: =AM11*'MSW Generated'!E11 -> 609000 | F11: =AN11*'MSW Generated'!F11 -> 660000 | G11: =AO11*'MSW Generated'!G11 -> 588000 | H11: =AP11*'MSW Generated'!H11 -> 552720 | I11: =AQ11*'MSW Generated'!I11 -> 582610 | J11: =AR11*'MSW Generated'!J11 -> 396000 | K11: =AS11*'MSW Generated'!K11 -> 680000 | L11: =AT11*'MSW Generated'!L11 -> 846650 | M11: =AU11*'MSW Generated'!M11 -> 1450879.807 | N11: =AV11*'MSW Generated'!N11 -> 2186775.18 | O11: =AW11*'MSW Generated'!O11 -> 1769918.715 | P11: =AX11*'MSW Generated'!P11 -> 1287552 | Q11: =AY11*'MSW Generated'!Q11 -> 1086593.984 | R11: 885283 | S11: =BA11*'MSW Generated'!S11 -> 904883.2493 | T11: =BB11*'MSW Generated'!T11 -> 924483.4985 | U11: =BC11*'MSW Generated'!U11 -> 579795.9606 | V11: =BD11*'MSW Generated'!V11 -> 595888.8767 | W11: =BE11*'MSW Generated'!W11 -> 598072.5762 | X11: =BF11*'MSW Generated'!X11 -> 598832.1239 | Y11: =BG11*'MSW Generated'!Y11 -> 605430.6942 | Z11: =BH11*'MSW Generated'!Z11 -> 613334.7371 | AA11: =BI11*'MSW Generated'!AA11 -> 622140.7428 | AB11: =BJ11*'MSW Generated'!AB11 -> 633320.3349 | AC11: =BK11*'MSW Generated'!AC11 -> 635622.7138 | AD11: =BL11*'MSW Generated'!AD11 -> 635622.7138 | AE11: =BM11*'MSW Generated'!AE11 -> 0 | AF11: =BN11*'MSW Generated'!AF11 -> 0 | AI11: DE | AJ11: 0.37 | AK11: 0.72 | AL11: 0.65 | AM11: 0.58 | AN11: 0.6 | AO11: 0.49 | AP11: 0.56 | AQ11: 0.49 | AR11: 0.48 | AS11: 0.34 | AT11: 0.41 | AU11: 0.603 | AV11: 0.796 | AW11: 0.846 | AX11: 0.896 | AY11: 0.896 | AZ11: =R11/'MSW Generated'!R11 -> 0.8956429014 | BA11: 0.8956429014 | BB11: 0.8956429014 | BC11: 0.8956429014 | BD11: 0.8956429014 | BE11: 0.8956429014 | BF11: 0.8956429014 | BG11: 0.8956429014 | BH11: 0.8956429014 | BI11: 0.8956429014 | BJ11: 0.8956429014 | BK11: 0.8956429014 | BL11: 0.8956429014
A12: DC | B12: =AJ12*'MSW Generated'!B12 -> 475650 | C12: =AK12*'MSW Generated'!C12 -> 676450 | D12: =AL12*'MSW Generated'!D12 -> 101090 | E12: =AM12*'MSW Generated'!E12 -> 101090 | F12: =AN12*'MSW Generated'!F12 -> 225000 | G12: =AO12*'MSW Generated'!G12 -> 38400 | H12: =AP12*'MSW Generated'!H12 -> 0 | I12: =AQ12*'MSW Generated'!I12 -> 0 | J12: =AR12*'MSW Generated'!J12 -> 0 | K12: =AS12*'MSW Generated'!K12 -> 33000 | L12: =AT12*'MSW Generated'!L12 -> 25000 | M12: =AU12*'MSW Generated'!M12 -> 29425.69167 | N12: =AV12*'MSW Generated'!N12 -> 33851.38333 | O12: =AW12*'MSW Generated'!O12 -> 38277.075 | P12: =AX12*'MSW Generated'!P12 -> 42702.76667 | Q12: =AY12*'MSW Generated'!Q12 -> 47128.45833 | R12: 997150 | S12: =BA12*'MSW Generated'!S12 -> 997150 | T12: =BB12*'MSW Generated'!T12 -> 997150 | U12: =BC12*'MSW Generated'!U12 -> 625369.2392 | V12: =BD12*'MSW Generated'!V12 -> 642727.095 | W12: =BE12*'MSW Generated'!W12 -> 645082.4383 | X12: =BF12*'MSW Generated'!X12 -> 645901.6881 | Y12: =BG12*'MSW Generated'!Y12 -> 653018.921 | Z12: =BH12*'MSW Generated'!Z12 -> 661544.2396 | AA12: =BI12*'MSW Generated'!AA12 -> 671042.4174 | AB12: =BJ12*'MSW Generated'!AB12 -> 683100.7508 | AC12: =BK12*'MSW Generated'!AC12 -> 685584.1019 | AD12: =BL12*'MSW Generated'!AD12 -> 685584.1019 | AE12: =BM12*'MSW Generated'!AE12 -> 0 | AF12: =BN12*'MSW Generated'!AF12 -> 0 | AI12: DC | AJ12: 0.63 | AK12: 0.83 | AL12: 0.11 | AM12: 0.11 | AN12: 0.25 | AO12: 0.15 | AP12: 0 | AQ12: 0 | AR12: 0 | AS12: 0.15 | AT12: 0.05 | AU12: =AT12 -> 0.05 | AV12: =AU12 -> 0.05 | AW12: 0.05 | AX12: =AV12 -> 0.05 | AY12: 0.05 | AZ12: =R12/'MSW Generated'!R12 -> 0.9670899433 | BA12: 0.9670899433 | BB12: 0.9670899433 | BC12: 0.9670899433 | BD12: 0.9670899433 | BE12: 0.9670899433 | BF12: 0.9670899433 | BG12: 0.9670899433 | BH12: 0.9670899433 | BI12: 0.9670899433 | BJ12: 0.9670899433 | BK12: 0.9670899433 | BL12: 0.9670899433
A13: FL | B13: =AJ13*'MSW Generated'!B13 -> 11712000 | C13: =AK13*'MSW Generated'!C13 -> 11594000 | D13: =AL13*'MSW Generated'!D13 -> 9506000 | E13: =AM13*'MSW Generated'!E13 -> 9118000 | F13: =AN13*'MSW Generated'!F13 -> 9660010 | G13: =AO13*'MSW Generated'!G13 -> 9238560 | H13: =AP13*'MSW Generated'!H13 -> 9238560 | I13: =AQ13*'MSW Generated'!I13 -> 10155310 | J13: =AR13*'MSW Generated'!J13 -> 10696500 | K13: =AS13*'MSW Generated'!K13 -> 13920480 | L13: =AT13*'MSW Generated'!L13 -> 13888000 | M13: =AU13*'MSW Generated'!M13 -> 13111542.41 | N13: =AV13*'MSW Generated'!N13 -> 12297111.65 | O13: =AW13*'MSW Generated'!O13 -> 13512751.46 | P13: =AX13*'MSW Generated'!P13 -> 14777076.75 | Q13: =AY13*'MSW Generated'!Q13 -> 13367420.97 | R13: 11060279 | S13: =BA13*'MSW Generated'!S13 -> 10990792.19 | T13: =BB13*'MSW Generated'!T13 -> 10921305.38 | U13: =BC13*'MSW Generated'!U13 -> 6849369.141 | V13: =BD13*'MSW Generated'!V13 -> 7039481.405 | W13: =BE13*'MSW Generated'!W13 -> 7065278.35 | X13: =BF13*'MSW Generated'!X13 -> 7074251.2 | Y13: =BG13*'MSW Generated'!Y13 -> 7152202.836 | Z13: =BH13*'MSW Generated'!Z13 -> 7245576.559 | AA13: =BI13*'MSW Generated'!AA13 -> 7349605.541 | AB13: =BJ13*'MSW Generated'!AB13 -> 7481674.681 | AC13: =BK13*'MSW Generated'!AC13 -> 7508873.633 | AD13: =BL13*'MSW Generated'!AD13 -> 7508873.633 | AE13: =BM13*'MSW Generated'!AE13 -> 0 | AF13: =BN13*'MSW Generated'!AF13 -> 0 | AI13: FL | AJ13: 0.64 | AK13: 0.62 | AL13: 0.49 | AM13: 0.47 | AN13: 0.41 | AO13: 0.38 | AP13: 0.38 | AQ13: 0.43 | AR13: 0.45 | AS13: 0.56 | AT13: 0.56 | AU13: 0.519 | AV13: 0.478 | AW13: 0.492 | AX13: 0.506 | AY13: 0.506 | AZ13: =R13/'MSW Generated'!R13 -> 0.4680223343 | BA13: 0.4680223343 | BB13: 0.4680223343 | BC13: 0.4680223343 | BD13: 0.4680223343 | BE13: 0.4680223343 | BF13: 0.4680223343 | BG13: 0.4680223343 | BH13: 0.4680223343 | BI13: 0.4680223343 | BJ13: 0.4680223343 | BK13: 0.4680223343 | BL13: 0.4680223343
A14: GA | B14: =AJ14*'MSW Generated'!B14 -> 3850000 | C14: =AK14*'MSW Generated'!C14 -> 4004000 | D14: =AL14*'MSW Generated'!D14 -> 5100000 | E14: =AM14*'MSW Generated'!E14 -> 6715000 | F14: =AN14*'MSW Generated'!F14 -> 7225000 | G14: =AO14*'MSW Generated'!G14 -> 7225000 | H14: =AP14*'MSW Generated'!H14 -> 6515520 | I14: =AQ14*'MSW Generated'!I14 -> 9665700 | J14: =AR14*'MSW Generated'!J14 -> 7091700 | K14: =AS14*'MSW Generated'!K14 -> 7537200 | L14: =AT14*'MSW Generated'!L14 -> 6755760 | M14: =AU14*'MSW Generated'!M14 -> 8863278.496 | N14: =AV14*'MSW Generated'!N14 -> 11232213.54 | O14: =AW14*'MSW Generated'!O14 -> 11018022.02 | P14: =AX14*'MSW Generated'!P14 -> 10805147.62 | Q14: =AY14*'MSW Generated'!Q14 -> 10634673.53 | R14: 7195075 | S14: =BA14*'MSW Generated'!S14 -> 7188600.305 | T14: =BB14*'MSW Generated'!T14 -> 7182125.609 | U14: =BC14*'MSW Generated'!U14 -> 4504317.734 | V14: =BD14*'MSW Generated'!V14 -> 4629340.349 | W14: =BE14*'MSW Generated'!W14 -> 4646305.07 | X14: =BF14*'MSW Generated'!X14 -> 4652205.842 | Y14: =BG14*'MSW Generated'!Y14 -> 4703468.802 | Z14: =BH14*'MSW Generated'!Z14 -> 4764873.715 | AA14: =BI14*'MSW Generated'!AA14 -> 4833285.795 | AB14: =BJ14*'MSW Generated'!AB14 -> 4920137.789 | AC14: =BK14*'MSW Generated'!AC14 -> 4938024.505 | AD14: =BL14*'MSW Generated'!AD14 -> 4938024.505 | AE14: =BM14*'MSW Generated'!AE14 -> 0 | AF14: =BN14*'MSW Generated'!AF14 -> 0 | AI14: GA | AJ14: 0.875 | AK14: 0.91 | AL14: 0.85 | AM14: 0.85 | AN14: 0.85 | AO14: =AN14 -> 0.85 | AP14: 0.66 | AQ14: 0.66 | AR14: 0.66 | AS14: =AR14 -> 0.66 | AT14: =AS14 -> 0.66 | AU14: 0.7865 | AV14: 0.913 | AW14: 0.9095 | AX14: 0.906 | AY14: 0.906 | AZ14: =R14/'MSW Generated'!R14 -> 0.6229562033 | BA14: 0.6229562033 | BB14: 0.6229562033 | BC14: 0.6229562033 | BD14: 0.6229562033 | BE14: 0.6229562033 | BF14: 0.6229562033 | BG14: 0.6229562033 | BH14: 0.6229562033 | BI14: 0.6229562033 | BJ14: 0.6229562033 | BK14: 0.6229562033 | BL14: 0.6229562033
A15: HI | B15: =AJ15*'MSW Generated'!B15 -> 996000 | C15: =AK15*'MSW Generated'!C15 -> 702000 | D15: =AL15*'MSW Generated'!D15 -> 702000 | E15: =AM15*'MSW Generated'!E15 -> 980000 | F15: =AN15*'MSW Generated'!F15 -> 1040000 | G15: =AO15*'MSW Generated'!G15 -> 1000000 | H15: =AP15*'MSW Generated'!H15 -> 1043700 | I15: =AQ15*'MSW Generated'!I15 -> 1020000 | J15: =AR15*'MSW Generated'!J15 -> 897000 | K15: =AS15*'MSW Generated'!K15 -> 697080 | L15: =AT15*'MSW Generated'!L15 -> 828960 | M15: =AU15*'MSW Generated'!M15 -> 745739.468 | N15: =AV15*'MSW Generated'!N15 -> 643060.152 | O15: =AW15*'MSW Generated'!O15 -> 680484.8207 | P15: =AX15*'MSW Generated'!P15 -> 716603.685 | Q15: =AY15*'MSW Generated'!Q15 -> 762306.8425 | R15: 483000 | S15: =BA15*'MSW Generated'!S15 -> 786010.299 | T15: =BB15*'MSW Generated'!T15 -> 1089020.598 | U15: =BC15*'MSW Generated'!U15 -> 682986.4943 | V15: =BD15*'MSW Generated'!V15 -> 701943.5846 | W15: =BE15*'MSW Generated'!W15 -> 704515.9331 | X15: =BF15*'MSW Generated'!X15 -> 705410.663 | Y15: =BG15*'MSW Generated'!Y15 -> 713183.6292 | Z15: =BH15*'MSW Generated'!Z15 -> 722494.4125 | AA15: =BI15*'MSW Generated'!AA15 -> 732867.6875 | AB15: =BJ15*'MSW Generated'!AB15 -> 746036.9936 | AC15: =BK15*'MSW Generated'!AC15 -> 748749.1436 | AD15: =BL15*'MSW Generated'!AD15 -> 748749.1436 | AE15: =BM15*'MSW Generated'!AE15 -> 0 | AF15: =BN15*'MSW Generated'!AF15 -> 0 | AI15: HI | AJ15: 0.83 | AK15: 0.54 | AL15: 0.54 | AM15: 0.49 | AN15: 0.52 | AO15: 0.5 | AP15: 0.49 | AQ15: 0.48 | AR15: 0.46 | AS15: 0.37 | AT15: 0.44 | AU15: 0.472 | AV15: 0.504 | AW15: 0.497 | AX15: 0.49 | AY15: 0.49 | AZ15: =R15/'MSW Generated'!R15 -> 0.2929047908 | BA15: 0.2929047908 | BB15: 0.2929047908 | BC15: 0.2929047908 | BD15: 0.2929047908 | BE15: 0.2929047908 | BF15: 0.2929047908 | BG15: 0.2929047908 | BH15: 0.2929047908 | BI15: 0.2929047908 | BJ15: 0.2929047908 | BK15: 0.2929047908 | BL15: 0.2929047908
A16: ID | B16: =AJ16*'MSW Generated'!B16 -> 807500 | C16: =AK16*'MSW Generated'!C16 -> 765000 | D16: =AL16*'MSW Generated'!D16 -> 765000 | E16: =AM16*'MSW Generated'!E16 -> 797400 | F16: =AN16*'MSW Generated'!F16 -> 797400 | G16: =AO16*'MSW Generated'!G16 -> 797400 | H16: =AP16*'MSW Generated'!H16 -> 797400 | I16: =AQ16*'MSW Generated'!I16 -> 797400 | J16: =AR16*'MSW Generated'!J16 -> 888300 | K16: =AS16*'MSW Generated'!K16 -> 714600 | L16: =AT16*'MSW Generated'!L16 -> 977400 | M16: =AU16*'MSW Generated'!M16 -> 987904 | N16: =AV16*'MSW Generated'!N16 -> 998440 | O16: =AW16*'MSW Generated'!O16 -> 996608 | P16: =AX16*'MSW Generated'!P16 -> 994776 | Q16: =AY16*'MSW Generated'!Q16 -> 1064572.452 | R16: 1138804 | S16: =BA16*'MSW Generated'!S16 -> 1336598.587 | T16: =BB16*'MSW Generated'!T16 -> 1534393.174 | U16: =BC16*'MSW Generated'!U16 -> 962304.8609 | V16: =BD16*'MSW Generated'!V16 -> 989014.7596 | W16: =BE16*'MSW Generated'!W16 -> 992639.1117 | X16: =BF16*'MSW Generated'!X16 -> 993899.7558 | Y16: =BG16*'MSW Generated'!Y16 -> 1004851.602 | Z16: =BH16*'MSW Generated'!Z16 -> 1017970.181 | AA16: =BI16*'MSW Generated'!AA16 -> 1032585.774 | AB16: =BJ16*'MSW Generated'!AB16 -> 1051140.881 | AC16: =BK16*'MSW Generated'!AC16 -> 1054962.209 | AD16: =BL16*'MSW Generated'!AD16 -> 1054962.209 | AE16: =BM16*'MSW Generated'!AE16 -> 0 | AF16: =BN16*'MSW Generated'!AF16 -> 0 | AI16: ID | AJ16: 0.95 | AK16: 0.9 | AL16: 0.9 | AM16: 0.9 | AN16: 0.9 | AO16: =AN16 -> 0.9 | AP16: 0.9 | AQ16: 0.9 | AR16: 0.9 | AS16: 0.9 | AT16: 0.9 | AU16: 0.908 | AV16: 0.916 | AW16: 0.916 | AX16: 0.916 | AY16: 0.916 | AZ16: =R16/'MSW Generated'!R16 -> 0.9195813287 | BA16: 0.9195813287 | BB16: 0.9195813287 | BC16: 0.9195813287 | BD16: 0.9195813287 | BE16: 0.9195813287 | BF16: 0.9195813287 | BG16: 0.9195813287 | BH16: 0.9195813287 | BI16: 0.9195813287 | BJ16: 0.9195813287 | BK16: 0.9195813287 | BL16: 0.9195813287
A17: IL | B17: =AJ17*'MSW Generated'!B17 -> 12052000 | C17: =AK17*'MSW Generated'!C17 -> 12556000 | D17: =AL17*'MSW Generated'!D17 -> 12301800 | E17: =AM17*'MSW Generated'!E17 -> 11478480 | F17: =AN17*'MSW Generated'!F17 -> 11850000 | G17: =AO17*'MSW Generated'!G17 -> 10237680 | H17: =AP17*'MSW Generated'!H17 -> 10184000 | I17: =AQ17*'MSW Generated'!I17 -> 9637920 | J17: =AR17*'MSW Generated'!J17 -> 9443000 | K17: =AS17*'MSW Generated'!K17 -> 10136250 | L17: =AT17*'MSW Generated'!L17 -> 10722420 | M17: =AU17*'MSW Generated'!M17 -> 10571182.51 | N17: =AV17*'MSW Generated'!N17 -> 10414231.43 | O17: =AW17*'MSW Generated'!O17 -> 18104580.91 | P17: =AX17*'MSW Generated'!P17 -> 25146613.76 | Q17: =AY17*'MSW Generated'!Q17 -> 20803250.27 | R17: 16647170 | S17: =BA17*'MSW Generated'!S17 -> 13569328.04 | T17: =BB17*'MSW Generated'!T17 -> 10491486.09 | U17: =BC17*'MSW Generated'!U17 -> 6579805.118 | V17: =BD17*'MSW Generated'!V17 -> 6762435.317 | W17: =BE17*'MSW Generated'!W17 -> 6787216.996 | X17: =BF17*'MSW Generated'!X17 -> 6795836.71 | Y17: =BG17*'MSW Generated'!Y17 -> 6870720.479 | Z17: =BH17*'MSW Generated'!Z17 -> 6960419.382 | AA17: =BI17*'MSW Generated'!AA17 -> 7060354.196 | AB17: =BJ17*'MSW Generated'!AB17 -> 7187225.617 | AC17: =BK17*'MSW Generated'!AC17 -> 7213354.127 | AD17: =BL17*'MSW Generated'!AD17 -> 7213354.127 | AE17: =BM17*'MSW Generated'!AE17 -> 0 | AF17: =BN17*'MSW Generated'!AF17 -> 0 | AI17: IL | AJ17: 0.92 | AK17: 0.86 | AL17: 0.87 | AM17: 0.78 | AN17: 0.79 | AO17: 0.72 | AP17: 0.76 | AQ17: 0.72 | AR17: 0.71 | AS17: 0.75 | AT17: 0.71 | AU17: 0.6925 | AV17: 0.675 | AW17: 0.649 | AX17: 0.623 | AY17: 0.623 | AZ17: =R17/'MSW Generated'!R17 -> 0.6300885938 | BA17: 0.6300885938 | BB17: 0.6300885938 | BC17: 0.6300885938 | BD17: 0.6300885938 | BE17: 0.6300885938 | BF17: 0.6300885938 | BG17: 0.6300885938 | BH17: 0.6300885938 | BI17: 0.6300885938 | BJ17: 0.6300885938 | BK17: 0.6300885938 | BL17: 0.6300885938
A18: IN | B18: =AJ18*'MSW Generated'!B18 -> 4125000 | C18: =AK18*'MSW Generated'!C18 -> 4275000 | D18: =AL18*'MSW Generated'!D18 -> 6300000 | E18: =AM18*'MSW Generated'!E18 -> 3300000 | F18: =AN18*'MSW Generated'!F18 -> 3864000 | G18: =AO18*'MSW Generated'!G18 -> 4060000 | H18: =AP18*'MSW Generated'!H18 -> 4002000 | I18: =AQ18*'MSW Generated'!I18 -> 4804570 | J18: =AR18*'MSW Generated'!J18 -> 3936920 | K18: =AS18*'MSW Generated'!K18 -> 4282740 | L18: =AT18*'MSW Generated'!L18 -> 8278310 | M18: =AU18*'MSW Generated'!M18 -> 8865447.64 | N18: =AV18*'MSW Generated'!N18 -> 9412717.92 | O18: =AW18*'MSW Generated'!O18 -> 9182863.692 | P18: =AX18*'MSW Generated'!P18 -> 8939716.5 | Q18: =AY18*'MSW Generated'!Q18 -> 8540927.55 | R18: 8469912 | S18: =BA18*'MSW Generated'!S18 -> 7185643.352 | T18: =BB18*'MSW Generated'!T18 -> 5901374.705 | U18: =BC18*'MSW Generated'!U18 -> 3701086.305 | V18: =BD18*'MSW Generated'!V18 -> 3803814.291 | W18: =BE18*'MSW Generated'!W18 -> 3817753.782 | X18: =BF18*'MSW Generated'!X18 -> 3822602.301 | Y18: =BG18*'MSW Generated'!Y18 -> 3864723.805 | Z18: =BH18*'MSW Generated'!Z18 -> 3915178.701 | AA18: =BI18*'MSW Generated'!AA18 -> 3971391.213 | AB18: =BJ18*'MSW Generated'!AB18 -> 4042755.344 | AC18: =BK18*'MSW Generated'!AC18 -> 4057452.416 | AD18: =BL18*'MSW Generated'!AD18 -> 4057452.416 | AE18: =BM18*'MSW Generated'!AE18 -> 0 | AF18: =BN18*'MSW Generated'!AF18 -> 0 | AI18: IN | AJ18: 0.75 | AK18: 0.75 | AL18: 0.75 | AM18: 0.75 | AN18: 0.69 | AO18: 0.7 | AP18: 0.69 | AQ18: 0.67 | AR18: 0.67 | AS18: 0.63 | AT18: 0.61 | AU18: 0.595 | AV18: 0.58 | AW18: 0.59 | AX18: 0.6 | AY18: 0.6 | AZ18: =R18/'MSW Generated'!R18 -> 0.6241538556 | BA18: 0.6241538556 | BB18: 0.6241538556 | BC18: 0.6241538556 | BD18: 0.6241538556 | BE18: 0.6241538556 | BF18: 0.6241538556 | BG18: 0.6241538556 | BH18: 0.6241538556 | BI18: 0.6241538556 | BJ18: 0.6241538556 | BK18: 0.6241538556 | BL18: 0.6241538556
A19: IA | B19: =AJ19*'MSW Generated'!B19 -> 2058500 | C19: =AK19*'MSW Generated'!C19 -> 2024000 | D19: =AL19*'MSW Generated'!D19 -> 1566000 | E19: =AM19*'MSW Generated'!E19 -> 1915200 | F19: =AN19*'MSW Generated'!F19 -> 2304960 | G19: =AO19*'MSW Generated'!G19 -> 2245730 | H19: =AP19*'MSW Generated'!H19 -> 2265900 | I19: =AQ19*'MSW Generated'!I19 -> 2319540 | J19: =AR19*'MSW Generated'!J19 -> 1661880 | K19: =AS19*'MSW Generated'!K19 -> 2394000 | L19: =AT19*'MSW Generated'!L19 -> 1862900 | M19: =AU19*'MSW Generated'!M19 -> 2046937.546 | N19: =AV19*'MSW Generated'!N19 -> 2193906.984 | O19: =AW19*'MSW Generated'!O19 -> 2214324.924 | P19: =AX19*'MSW Generated'!P19 -> 2234308.596 | Q19: =AY19*'MSW Generated'!Q19 -> 2400053.955 | R19: 2822563 | S19: =BA19*'MSW Generated'!S19 -> 2677215.881 | T19: =BB19*'MSW Generated'!T19 -> 2531868.763 | U19: =BC19*'MSW Generated'!U19 -> 1587878.295 | V19: =BD19*'MSW Generated'!V19 -> 1631951.717 | W19: =BE19*'MSW Generated'!W19 -> 1637932.182 | X19: =BF19*'MSW Generated'!X19 -> 1640012.343 | Y19: =BG19*'MSW Generated'!Y19 -> 1658083.746 | Z19: =BH19*'MSW Generated'!Z19 -> 1679730.427 | AA19: =BI19*'MSW Generated'!AA19 -> 1703847.3 | AB19: =BJ19*'MSW Generated'!AB19 -> 1734464.677 | AC19: =BK19*'MSW Generated'!AC19 -> 1740770.167 | AD19: =BL19*'MSW Generated'!AD19 -> 1740770.167 | AE19: =BM19*'MSW Generated'!AE19 -> 0 | AF19: =BN19*'MSW Generated'!AF19 -> 0 | AI19: IA | AJ19: 0.895 | AK19: 0.88 | AL19: 0.75 | AM19: 0.84 | AN19: 0.84 | AO19: 0.71 | AP19: 0.7 | AQ19: 0.67 | AR19: 0.66 | AS19: 0.63 | AT19: 0.65 | AU19: 0.6115 | AV19: 0.573 | AW19: 0.582 | AX19: 0.591 | AY19: 0.591 | AZ19: =R19/'MSW Generated'!R19 -> 0.6501423256 | BA19: 0.6501423256 | BB19: 0.6501423256 | BC19: 0.6501423256 | BD19: 0.6501423256 | BE19: 0.6501423256 | BF19: 0.6501423256 | BG19: 0.6501423256 | BH19: 0.6501423256 | BI19: 0.6501423256 | BJ19: 0.6501423256 | BK19: 0.6501423256 | BL19: 0.6501423256
A20: KS | B20: =AJ20*'MSW Generated'!B20 -> 1520000 | C20: =AK20*'MSW Generated'!C20 -> 2280000 | D20: =AL20*'MSW Generated'!D20 -> 2280000 | E20: =AM20*'MSW Generated'!E20 -> 2582180 | F20: =AN20*'MSW Generated'!F20 -> 3220000 | G20: =AO20*'MSW Generated'!G20 -> 3220000 | H20: =AP20*'MSW Generated'!H20 -> 3782500 | I20: =AQ20*'MSW Generated'!I20 -> 3782500 | J20: =AR20*'MSW Generated'!J20 -> 2070600 | K20: =AS20*'MSW Generated'!K20 -> 2640000 | L20: =AT20*'MSW Generated'!L20 -> 2730000 | M20: =AU20*'MSW Generated'!M20 -> 4867178.4 | N20: =AV20*'MSW Generated'!N20 -> 6943780.8 | O20: =AW20*'MSW Generated'!O20 -> 4694570.342 | P20: =AX20*'MSW Generated'!P20 -> 2620425.428 | Q20: =AY20*'MSW Generated'!Q20 -> 2964452.274 | R20: 3271773 | S20: =BA20*'MSW Generated'!S20 -> 3025259.05 | T20: =BB20*'MSW Generated'!T20 -> 2778745.101 | U20: =BC20*'MSW Generated'!U20 -> 1742708.429 | V20: =BD20*'MSW Generated'!V20 -> 1791079.343 | W20: =BE20*'MSW Generated'!W20 -> 1797642.947 | X20: =BF20*'MSW Generated'!X20 -> 1799925.94 | Y20: =BG20*'MSW Generated'!Y20 -> 1819759.442 | Z20: =BH20*'MSW Generated'!Z20 -> 1843516.838 | AA20: =BI20*'MSW Generated'!AA20 -> 1869985.288 | AB20: =BJ20*'MSW Generated'!AB20 -> 1903588.091 | AC20: =BK20*'MSW Generated'!AC20 -> 1910508.413 | AD20: =BL20*'MSW Generated'!AD20 -> 1910508.413 | AE20: =BM20*'MSW Generated'!AE20 -> 0 | AF20: =BN20*'MSW Generated'!AF20 -> 0 | AI20: KS | AJ20: 0.95 | AK20: 0.95 | AL20: 0.95 | AM20: 0.94 | AN20: 0.92 | AO20: 0.92 | AP20: 0.89 | AQ20: 0.89 | AR20: 0.87 | AS20: 0.88 | AT20: 0.91 | AU20: 0.8975 | AV20: 0.885 | AW20: 0.847 | AX20: 0.809 | AY20: 0.809 | AZ20: =R20/'MSW Generated'!R20 -> 0.8000245012 | BA20: 0.8000245012 | BB20: 0.8000245012 | BC20: 0.8000245012 | BD20: 0.8000245012 | BE20: 0.8000245012 | BF20: 0.8000245012 | BG20: 0.8000245012 | BH20: 0.8000245012 | BI20: 0.8000245012 | BJ20: 0.8000245012 | BK20: 0.8000245012 | BL20: 0.8000245012
A21: KY | B21: =AJ21*'MSW Generated'!B21 -> 4163000 | C21: =AK21*'MSW Generated'!C21 -> 3150000 | D21: =AL21*'MSW Generated'!D21 -> 3952500 | E21: =AM21*'MSW Generated'!E21 -> 2737850 | F21: =AN21*'MSW Generated'!F21 -> 3187500 | G21: =AO21*'MSW Generated'!G21 -> 3112700 | H21: =AP21*'MSW Generated'!H21 -> 2935600 | I21: =AQ21*'MSW Generated'!I21 -> 3180960 | J21: =AR21*'MSW Generated'!J21 -> 4297600 | K21: =AS21*'MSW Generated'!K21 -> 2731590 | L21: =AT21*'MSW Generated'!L21 -> 3063200 | M21: =AU21*'MSW Generated'!M21 -> 4321441.478 | N21: =AV21*'MSW Generated'!N21 -> 5778913.71 | O21: =AW21*'MSW Generated'!O21 -> 5288185.64 | P21: =AX21*'MSW Generated'!P21 -> 4814896.75 | Q21: =AY21*'MSW Generated'!Q21 -> 5463950.725 | R21: 4827483 | S21: =BA21*'MSW Generated'!S21 -> 4352469.936 | T21: =BB21*'MSW Generated'!T21 -> 3877456.872 | U21: =BC21*'MSW Generated'!U21 -> 2431772.807 | V21: =BD21*'MSW Generated'!V21 -> 2499269.51 | W21: =BE21*'MSW Generated'!W21 -> 2508428.354 | X21: =BF21*'MSW Generated'!X21 -> 2511614.039 | Y21: =BG21*'MSW Generated'!Y21 -> 2539289.679 | Z21: =BH21*'MSW Generated'!Z21 -> 2572440.714 | AA21: =BI21*'MSW Generated'!AA21 -> 2609374.751 | AB21: =BJ21*'MSW Generated'!AB21 -> 2656264.053 | AC21: =BK21*'MSW Generated'!AC21 -> 2665920.661 | AD21: =BL21*'MSW Generated'!AD21 -> 2665920.661 | AE21: =BM21*'MSW Generated'!AE21 -> 0 | AF21: =BN21*'MSW Generated'!AF21 -> 0 | AI21: KY | AJ21: 0.905 | AK21: 0.9 | AL21: 0.85 | AM21: 0.85 | AN21: 0.85 | AO21: 0.85 | AP21: 0.82 | AQ21: 0.72 | AR21: 0.68 | AS21: 0.67 | AT21: 0.7 | AU21: 0.7925 | AV21: 0.885 | AW21: 0.83 | AX21: 0.775 | AY21: 0.775 | AZ21: =R21/'MSW Generated'!R21 -> 0.6120229754 | BA21: 0.6120229754 | BB21: 0.6120229754 | BC21: 0.6120229754 | BD21: 0.6120229754 | BE21: 0.6120229754 | BF21: 0.6120229754 | BG21: 0.6120229754 | BH21: 0.6120229754 | BI21: 0.6120229754 | BJ21: 0.6120229754 | BK21: 0.6120229754 | BL21: 0.6120229754
A22: LA | B22: =AJ22*'MSW Generated'!B22 -> 3395000 | C22: =AK22*'MSW Generated'!C22 -> 3150000 | D22: =AL22*'MSW Generated'!D22 -> 3135600 | E22: =AM22*'MSW Generated'!E22 -> 2334280 | F22: =AN22*'MSW Generated'!F22 -> 3057160 | G22: =AO22*'MSW Generated'!G22 -> 4582500 | H22: =AP22*'MSW Generated'!H22 -> 3995000 | I22: =AQ22*'MSW Generated'!I22 -> 3348840 | J22: =AR22*'MSW Generated'!J22 -> 3321000 | K22: =AS22*'MSW Generated'!K22 -> 3984000 | L22: =AT22*'MSW Generated'!L22 -> 2789630 | M22: =AU22*'MSW Generated'!M22 -> 2900423.98 | N22: =AV22*'MSW Generated'!N22 -> 3007272.189 | O22: =AW22*'MSW Generated'!O22 -> 3461240.437 | P22: =AX22*'MSW Generated'!P22 -> 3850600.957 | Q22: =AY22*'MSW Generated'!Q22 -> 4424428.732 | R22: 5551158 | S22: =BA22*'MSW Generated'!S22 -> 5452227.774 | T22: =BB22*'MSW Generated'!T22 -> 5353297.548 | U22: =BC22*'MSW Generated'!U22 -> 3357356.079 | V22: =BD22*'MSW Generated'!V22 -> 3450543.43 | W22: =BE22*'MSW Generated'!W22 -> 3463188.322 | X22: =BF22*'MSW Generated'!X22 -> 3467586.545 | Y22: =BG22*'MSW Generated'!Y22 -> 3505796.107 | Z22: =BH22*'MSW Generated'!Z22 -> 3551565.116 | AA22: =BI22*'MSW Generated'!AA22 -> 3602557.015 | AB22: =BJ22*'MSW Generated'!AB22 -> 3667293.36 | AC22: =BK22*'MSW Generated'!AC22 -> 3680625.474 | AD22: =BL22*'MSW Generated'!AD22 -> 3680625.474 | AE22: =BM22*'MSW Generated'!AE22 -> 0 | AF22: =BN22*'MSW Generated'!AF22 -> 0 | AI22: LA | AJ22: 0.97 | AK22: 0.9 | AL22: 0.9 | AM22: 0.67 | AN22: 0.92 | AO22: 0.94 | AP22: 0.85 | AQ22: 0.86 | AR22: 0.81 | AS22: 0.83 | AT22: 0.83 | AU22: 0.8745 | AV22: 0.919 | AW22: 0.8725 | AX22: 0.826 | AY22: 0.826 | AZ22: =R22/'MSW Generated'!R22 -> 0.9173711875 | BA22: 0.9173711875 | BB22: 0.9173711875 | BC22: 0.9173711875 | BD22: 0.9173711875 | BE22: 0.9173711875 | BF22: 0.9173711875 | BG22: 0.9173711875 | BH22: 0.9173711875 | BI22: 0.9173711875 | BJ22: 0.9173711875 | BK22: 0.9173711875 | BL22: 0.9173711875
A23: ME | B23: =AJ23*'MSW Generated'!B23 -> 350360 | C23: =AK23*'MSW Generated'!C23 -> 361000 | D23: =AL23*'MSW Generated'!D23 -> 411180 | E23: =AM23*'MSW Generated'!E23 -> 411180 | F23: =AN23*'MSW Generated'!F23 -> 362040 | G23: =AO23*'MSW Generated'!G23 -> 362040 | H23: =AP23*'MSW Generated'!H23 -> 362040 | I23: =AQ23*'MSW Generated'!I23 -> 254410 | J23: =AR23*'MSW Generated'!J23 -> 294300 | K23: =AS23*'MSW Generated'!K23 -> 294300 | L23: =AT23*'MSW Generated'!L23 -> 356160 | M23: =AU23*'MSW Generated'!M23 -> 352215.269 | N23: =AV23*'MSW Generated'!N23 -> 317178.148 | O23: =AW23*'MSW Generated'!O23 -> 614385.063 | P23: =AX23*'MSW Generated'!P23 -> 937279.072 | Q23: =AY23*'MSW Generated'!Q23 -> 974014.184 | R23: 780948 | S23: =BA23*'MSW Generated'!S23 -> 603221.2486 | T23: =BB23*'MSW Generated'!T23 -> 425494.4972 | U23: =BC23*'MSW Generated'!U23 -> 266851.6974 | V23: =BD23*'MSW Generated'!V23 -> 274258.4788 | W23: =BE23*'MSW Generated'!W23 -> 275263.5288 | X23: =BF23*'MSW Generated'!X23 -> 275613.1114 | Y23: =BG23*'MSW Generated'!Y23 -> 278650.1103 | Z23: =BH23*'MSW Generated'!Z23 -> 282287.9543 | AA23: =BI23*'MSW Generated'!AA23 -> 286340.9276 | AB23: =BJ23*'MSW Generated'!AB23 -> 291486.3466 | AC23: =BK23*'MSW Generated'!AC23 -> 292546.0189 | AD23: =BL23*'MSW Generated'!AD23 -> 292546.0189 | AE23: =BM23*'MSW Generated'!AE23 -> 0 | AF23: =BN23*'MSW Generated'!AF23 -> 0 | AI23: ME | AJ23: 0.38 | AK23: 0.38 | AL23: 0.33 | AM23: 0.33 | AN23: 0.28 | AO23: 0.28 | AP23: 0.28 | AQ23: 0.19 | AR23: 0.18 | AS23: 0.18 | AT23: 0.21 | AU23: 0.191 | AV23: 0.172 | AW23: 0.318 | AX23: 0.464 | AY23: 0.464 | AZ23: =R23/'MSW Generated'!R23 -> 0.3585061829 | BA23: 0.3585061829 | BB23: 0.3585061829 | BC23: 0.3585061829 | BD23: 0.3585061829 | BE23: 0.3585061829 | BF23: 0.3585061829 | BG23: 0.3585061829 | BH23: 0.3585061829 | BI23: 0.3585061829 | BJ23: 0.3585061829 | BK23: 0.3585061829 | BL23: 0.3585061829
A24: MD | B24: =AJ24*'MSW Generated'!B24 -> 5256000 | C24: =AK24*'MSW Generated'!C24 -> 3723000 | D24: =AL24*'MSW Generated'!D24 -> 3400000 | E24: =AM24*'MSW Generated'!E24 -> 2700000 | F24: =AN24*'MSW Generated'!F24 -> 2652000 | G24: =AO24*'MSW Generated'!G24 -> 2856600 | H24: =AP24*'MSW Generated'!H24 -> 2766960 | I24: =AQ24*'MSW Generated'!I24 -> 2557920 | J24: =AR24*'MSW Generated'!J24 -> 2679000 | K24: =AS24*'MSW Generated'!K24 -> 2460000 | L24: =AT24*'MSW Generated'!L24 -> 2632560 | M24: =AU24*'MSW Generated'!M24 -> 4220693.444 | N24: =AV24*'MSW Generated'!N24 -> 6122739.336 | O24: =AW24*'MSW Generated'!O24 -> 5004972.867 | P24: =AX24*'MSW Generated'!P24 -> 3975910.96 | Q24: =AY24*'MSW Generated'!Q24 -> 3705382.205 | R24: 3101302 | S24: =BA24*'MSW Generated'!S24 -> 2999982.949 | T24: =BB24*'MSW Generated'!T24 -> 2898663.897 | U24: =BC24*'MSW Generated'!U24 -> 1817916.298 | V24: =BD24*'MSW Generated'!V24 -> 1868374.694 | W24: =BE24*'MSW Generated'!W24 -> 1875221.556 | X24: =BF24*'MSW Generated'!X24 -> 1877603.073 | Y24: =BG24*'MSW Generated'!Y24 -> 1898292.504 | Z24: =BH24*'MSW Generated'!Z24 -> 1923075.168 | AA24: =BI24*'MSW Generated'!AA24 -> 1950685.884 | AB24: =BJ24*'MSW Generated'!AB24 -> 1985738.84 | AC24: =BK24*'MSW Generated'!AC24 -> 1992957.815 | AD24: =BL24*'MSW Generated'!AD24 -> 1992957.815 | AE24: =BM24*'MSW Generated'!AE24 -> 0 | AF24: =BN24*'MSW Generated'!AF24 -> 0 | AI24: MD | AJ24: 0.73 | AK24: 0.73 | AL24: 0.68 | AM24: 0.54 | AN24: 0.51 | AO24: 0.54 | AP24: 0.54 | AQ24: 0.48 | AR24: 0.47 | AS24: 0.41 | AT24: 0.42 | AU24: 0.484 | AV24: 0.548 | AW24: 0.519 | AX24: 0.49 | AY24: 0.49 | AZ24: =R24/'MSW Generated'!R24 -> 0.4424171226 | BA24: 0.4424171226 | BB24: 0.4424171226 | BC24: 0.4424171226 | BD24: 0.4424171226 | BE24: 0.4424171226 | BF24: 0.4424171226 | BG24: 0.4424171226 | BH24: 0.4424171226 | BI24: 0.4424171226 | BJ24: 0.4424171226 | BK24: 0.4424171226 | BL24: 0.4424171226
A25: MA | B25: =AJ25*'MSW Generated'!B25 -> 3700000 | C25: =AK25*'MSW Generated'!C25 -> 1632000 | D25: =AL25*'MSW Generated'!D25 -> 1518000 | E25: =AM25*'MSW Generated'!E25 -> 1687500 | F25: =AN25*'MSW Generated'!F25 -> 1350000 | G25: =AO25*'MSW Generated'!G25 -> 1551000 | H25: =AP25*'MSW Generated'!H25 -> 1575200 | I25: =AQ25*'MSW Generated'!I25 -> 1575200 | J25: =AR25*'MSW Generated'!J25 -> 1545600 | K25: =AS25*'MSW Generated'!K25 -> 1546980 | L25: =AT25*'MSW Generated'!L25 -> 2116660 | M25: =AU25*'MSW Generated'!M25 -> 2355329.751 | N25: =AV25*'MSW Generated'!N25 -> 2598241.953 | O25: =AW25*'MSW Generated'!O25 -> 2535294.472 | P25: =AX25*'MSW Generated'!P25 -> 2470666.02 | Q25: =AY25*'MSW Generated'!Q25 -> 2572693.01 | R25: 2650000 | S25: =BA25*'MSW Generated'!S25 -> 2532832.969 | T25: =BB25*'MSW Generated'!T25 -> 2415665.939 | U25: =BC25*'MSW Generated'!U25 -> 1515000.923 | V25: =BD25*'MSW Generated'!V25 -> 1557051.548 | W25: =BE25*'MSW Generated'!W25 -> 1562757.533 | X25: =BF25*'MSW Generated'!X25 -> 1564742.223 | Y25: =BG25*'MSW Generated'!Y25 -> 1581984.22 | Z25: =BH25*'MSW Generated'!Z25 -> 1602637.403 | AA25: =BI25*'MSW Generated'!AA25 -> 1625647.406 | AB25: =BJ25*'MSW Generated'!AB25 -> 1654859.566 | AC25: =BK25*'MSW Generated'!AC25 -> 1660875.659 | AD25: =BL25*'MSW Generated'!AD25 -> 1660875.659 | AE25: =BM25*'MSW Generated'!AE25 -> 0 | AF25: =BN25*'MSW Generated'!AF25 -> 0 | AI25: MA | AJ25: 0.37 | AK25: 0.24 | AL25: 0.23 | AM25: 0.25 | AN25: 0.2 | AO25: 0.22 | AP25: 0.22 | AQ25: 0.22 | AR25: 0.21 | AS25: 0.19 | AT25: 0.26 | AU25: 0.2865 | AV25: 0.313 | AW25: 0.3025 | AX25: 0.292 | AY25: 0.292 | AZ25: =R25/'MSW Generated'!R25 -> 0.28930131 | BA25: 0.28930131 | BB25: 0.28930131 | BC25: 0.28930131 | BD25: 0.28930131 | BE25: 0.28930131 | BF25: 0.28930131 | BG25: 0.28930131 | BH25: 0.28930131 | BI25: 0.28930131 | BJ25: 0.28930131 | BK25: 0.28930131 | BL25: 0.28930131
A26: MI | B26: =AJ26*'MSW Generated'!B26 -> 11232000 | C26: =AK26*'MSW Generated'!C26 -> 6552000 | D26: =AL26*'MSW Generated'!D26 -> 7410000 | E26: =AM26*'MSW Generated'!E26 -> 7830000 | F26: =AN26*'MSW Generated'!F26 -> 9590000 | G26: =AO26*'MSW Generated'!G26 -> 8775000 | H26: =AP26*'MSW Generated'!H26 -> 8775000 | I26: =AQ26*'MSW Generated'!I26 -> 8775000 | J26: =AR26*'MSW Generated'!J26 -> 13650000 | K26: =AS26*'MSW Generated'!K26 -> 13650000 | L26: =AT26*'MSW Generated'!L26 -> 13663410 | M26: =AU26*'MSW Generated'!M26 -> 14244497.87 | N26: =AV26*'MSW Generated'!N26 -> 14833542.72 | O26: =AW26*'MSW Generated'!O26 -> 13428272.16 | P26: =AX26*'MSW Generated'!P26 -> 12055938.46 | Q26: =AY26*'MSW Generated'!Q26 -> 10867074.96 | R26: 9133760 | S26: =BA26*'MSW Generated'!S26 -> 9578444.679 | T26: =BB26*'MSW Generated'!T26 -> 10023129.36 | U26: =BC26*'MSW Generated'!U26 -> 6286072.087 | V26: =BD26*'MSW Generated'!V26 -> 6460549.381 | W26: =BE26*'MSW Generated'!W26 -> 6484224.766 | X26: =BF26*'MSW Generated'!X26 -> 6492459.683 | Y26: =BG26*'MSW Generated'!Y26 -> 6564000.521 | Z26: =BH26*'MSW Generated'!Z26 -> 6649695.121 | AA26: =BI26*'MSW Generated'!AA26 -> 6745168.685 | AB26: =BJ26*'MSW Generated'!AB26 -> 6866376.363 | AC26: =BK26*'MSW Generated'!AC26 -> 6891338.454 | AD26: =BL26*'MSW Generated'!AD26 -> 6891338.454 | AE26: =BM26*'MSW Generated'!AE26 -> 0 | AF26: =BN26*'MSW Generated'!AF26 -> 0 | AI26: MI | AJ26: 0.96 | AK26: 0.56 | AL26: 0.57 | AM26: 0.58 | AN26: 0.7 | AO26: 0.65 | AP26: 0.65 | AQ26: 0.65 | AR26: 0.7 | AS26: =AR26 -> 0.7 | AT26: 0.73 | AU26: 0.7545 | AV26: 0.779 | AW26: 0.7685 | AX26: 0.758 | AY26: 0.758 | AZ26: =R26/'MSW Generated'!R26 -> 0.7153584221 | BA26: 0.7153584221 | BB26: 0.7153584221 | BC26: 0.7153584221 | BD26: 0.7153584221 | BE26: 0.7153584221 | BF26: 0.7153584221 | BG26: 0.7153584221 | BH26: 0.7153584221 | BI26: 0.7153584221 | BJ26: 0.7153584221 | BK26: 0.7153584221 | BL26: 0.7153584221
A27: MN | B27: =AJ27*'MSW Generated'!B27 -> 2226000 | C27: =AK27*'MSW Generated'!C27 -> 1716000 | D27: =AL27*'MSW Generated'!D27 -> 1152900 | E27: =AM27*'MSW Generated'!E27 -> 1320000 | F27: =AN27*'MSW Generated'!F27 -> 1518000 | G27: =AO27*'MSW Generated'!G27 -> 1248000 | H27: =AP27*'MSW Generated'!H27 -> 1150000 | I27: =AQ27*'MSW Generated'!I27 -> 1338400 | J27: =AR27*'MSW Generated'!J27 -> 1352700 | K27: =AS27*'MSW Generated'!K27 -> 1851300 | L27: =AT27*'MSW Generated'!L27 -> 1971900 | M27: =AU27*'MSW Generated'!M27 -> 1851123.537 | N27: =AV27*'MSW Generated'!N27 -> 1723292.099 | O27: =AW27*'MSW Generated'!O27 -> 1939231.48 | P27: =AX27*'MSW Generated'!P27 -> 2158491.2 | Q27: =AY27*'MSW Generated'!Q27 -> 2143281.007 | R27: 2200457 | S27: =BA27*'MSW Generated'!S27 -> 3027492.766 | T27: =BB27*'MSW Generated'!T27 -> 3854528.531 | U27: =BC27*'MSW Generated'!U27 -> 2417393.145 | V27: =BD27*'MSW Generated'!V27 -> 2484490.724 | W27: =BE27*'MSW Generated'!W27 -> 2493595.41 | X27: =BF27*'MSW Generated'!X27 -> 2496762.258 | Y27: =BG27*'MSW Generated'!Y27 -> 2524274.244 | Z27: =BH27*'MSW Generated'!Z27 -> 2557229.25 | AA27: =BI27*'MSW Generated'!AA27 -> 2593944.886 | AB27: =BJ27*'MSW Generated'!AB27 -> 2640556.921 | AC27: =BK27*'MSW Generated'!AC27 -> 2650156.427 | AD27: =BL27*'MSW Generated'!AD27 -> 2650156.427 | AE27: =BM27*'MSW Generated'!AE27 -> 0 | AF27: =BN27*'MSW Generated'!AF27 -> 0 | AI27: MN | AJ27: 0.53 | AK27: 0.39 | AL27: 0.27 | AM27: 0.3 | AN27: 0.33 | AO27: 0.26 | AP27: 0.25 | AQ27: 0.28 | AR27: 0.27 | AS27: 0.34 | AT27: 0.35 | AU27: 0.3215 | AV27: 0.293 | AW27: 0.327 | AX27: 0.361 | AY27: 0.361 | AZ27: =R27/'MSW Generated'!R27 -> 0.373279391 | BA27: 0.373279391 | BB27: 0.373279391 | BC27: 0.373279391 | BD27: 0.373279391 | BE27: 0.373279391 | BF27: 0.373279391 | BG27: 0.373279391 | BH27: 0.373279391 | BI27: 0.373279391 | BJ27: 0.373279391 | BK27: 0.373279391 | BL27: 0.373279391
A28: MS | B28: =AJ28*'MSW Generated'!B28 -> 1728000 | C28: =AK28*'MSW Generated'!C28 -> 1246000 | D28: =AL28*'MSW Generated'!D28 -> 1246000 | E28: =AM28*'MSW Generated'!E28 -> 1566000 | F28: =AN28*'MSW Generated'!F28 -> 1892000 | G28: =AO28*'MSW Generated'!G28 -> 2040000 | H28: =AP28*'MSW Generated'!H28 -> 2040000 | I28: =AQ28*'MSW Generated'!I28 -> 1958800 | J28: =AR28*'MSW Generated'!J28 -> 2486700 | K28: =AS28*'MSW Generated'!K28 -> 1901760 | L28: =AT28*'MSW Generated'!L28 -> 3696000 | M28: =AU28*'MSW Generated'!M28 -> 3816141.549 | N28: =AV28*'MSW Generated'!N28 -> 3897779.476 | O28: =AW28*'MSW Generated'!O28 -> 3695281.131 | P28: =AX28*'MSW Generated'!P28 -> 3495106.992 | Q28: =AY28*'MSW Generated'!Q28 -> 3319182.552 | R28: 3049368 | S28: =BA28*'MSW Generated'!S28 -> 2812563.263 | T28: =BB28*'MSW Generated'!T28 -> 2575758.527 | U28: =BC28*'MSW Generated'!U28 -> 1615404.052 | V28: =BD28*'MSW Generated'!V28 -> 1660241.484 | W28: =BE28*'MSW Generated'!W28 -> 1666325.619 | X28: =BF28*'MSW Generated'!X28 -> 1668441.84 | Y28: =BG28*'MSW Generated'!Y28 -> 1686826.51 | Z28: =BH28*'MSW Generated'!Z28 -> 1708848.434 | AA28: =BI28*'MSW Generated'!AA28 -> 1733383.371 | AB28: =BJ28*'MSW Generated'!AB28 -> 1764531.498 | AC28: =BK28*'MSW Generated'!AC28 -> 1770946.293 | AD28: =BL28*'MSW Generated'!AD28 -> 1770946.293 | AE28: =BM28*'MSW Generated'!AE28 -> 0 | AF28: =BN28*'MSW Generated'!AF28 -> 0 | AI28: MS | AJ28: 0.96 | AK28: 0.89 | AL28: 0.89 | AM28: 0.87 | AN28: 0.86 | AO28: 0.85 | AP28: 0.85 | AQ28: 0.83 | AR28: 0.81 | AS28: 0.84 | AT28: 0.84 | AU28: 0.9185 | AV28: 0.997 | AW28: 0.9905 | AX28: 0.984 | AY28: 0.984 | AZ28: =R28/'MSW Generated'!R28 -> 0.9546076094 | BA28: 0.9546076094 | BB28: 0.9546076094 | BC28: 0.9546076094 | BD28: 0.9546076094 | BE28: 0.9546076094 | BF28: 0.9546076094 | BG28: 0.9546076094 | BH28: 0.9546076094 | BI28: 0.9546076094 | BJ28: 0.9546076094 | BK28: 0.9546076094 | BL28: 0.9546076094
A29: MO | B29: =AJ29*'MSW Generated'!B29 -> 5400000 | C29: =AK29*'MSW Generated'!C29 -> 6750000 | D29: =AL29*'MSW Generated'!D29 -> 6525000 | E29: =AM29*'MSW Generated'!E29 -> 6150000 | F29: =AN29*'MSW Generated'!F29 -> 4648000 | G29: =AO29*'MSW Generated'!G29 -> 6150000 | H29: =AP29*'MSW Generated'!H29 -> 5669140 | I29: =AQ29*'MSW Generated'!I29 -> 5290320 | J29: =AR29*'MSW Generated'!J29 -> 5565000 | K29: =AS29*'MSW Generated'!K29 -> 6118400 | L29: =AT29*'MSW Generated'!L29 -> 6378560 | M29: =AU29*'MSW Generated'!M29 -> 6515764.623 | N29: =AV29*'MSW Generated'!N29 -> 6649081.312 | O29: =AW29*'MSW Generated'!O29 -> 6871071.254 | P29: =AX29*'MSW Generated'!P29 -> 7092293.73 | Q29: =AY29*'MSW Generated'!Q29 -> 6557666.289 | R29: 6731844 | S29: =BA29*'MSW Generated'!S29 -> 5009028.741 | T29: =BB29*'MSW Generated'!T29 -> 3286213.482 | U29: =BC29*'MSW Generated'!U29 -> 2060970.591 | V29: =BD29*'MSW Generated'!V29 -> 2118175.244 | W29: =BE29*'MSW Generated'!W29 -> 2125937.528 | X29: =BF29*'MSW Generated'!X29 -> 2128637.452 | Y29: =BG29*'MSW Generated'!Y29 -> 2152093.048 | Z29: =BH29*'MSW Generated'!Z29 -> 2180189.138 | AA29: =BI29*'MSW Generated'!AA29 -> 2211491.389 | AB29: =BJ29*'MSW Generated'!AB29 -> 2251230.905 | AC29: =BK29*'MSW Generated'!AC29 -> 2259415.052 | AD29: =BL29*'MSW Generated'!AD29 -> 2259415.052 | AE29: =BM29*'MSW Generated'!AE29 -> 0 | AF29: =BN29*'MSW Generated'!AF29 -> 0 | AI29: MO | AJ29: 0.9 | AK29: 0.9 | AL29: 0.87 | AM29: 0.82 | AN29: 0.83 | AO29: 0.82 | AP29: 0.74 | AQ29: 0.67 | AR29: 0.7 | AS29: 0.64 | AT29: 0.62 | AU29: 0.614 | AV29: 0.608 | AW29: 0.607 | AX29: 0.606 | AY29: 0.606 | AZ29: =R29/'MSW Generated'!R29 -> 0.6773154826 | BA29: 0.6773154826 | BB29: 0.6773154826 | BC29: 0.6773154826 | BD29: 0.6773154826 | BE29: 0.6773154826 | BF29: 0.6773154826 | BG29: 0.6773154826 | BH29: 0.6773154826 | BI29: 0.6773154826 | BJ29: 0.6773154826 | BK29: 0.6773154826 | BL29: 0.6773154826
A30: MT | B30: =AJ30*'MSW Generated'!B30 -> 540000 | C30: =AK30*'MSW Generated'!C30 -> 558000 | D30: =AL30*'MSW Generated'!D30 -> 691920 | E30: =AM30*'MSW Generated'!E30 -> 691920 | F30: =AN30*'MSW Generated'!F30 -> 726800 | G30: =AO30*'MSW Generated'!G30 -> 678040 | H30: =AP30*'MSW Generated'!H30 -> 837000 | I30: =AQ30*'MSW Generated'!I30 -> 966270 | J30: =AR30*'MSW Generated'!J30 -> 930930 | K30: =AS30*'MSW Generated'!K30 -> 962980 | L30: =AT30*'MSW Generated'!L30 -> 673730 | M30: =AU30*'MSW Generated'!M30 -> 830589.83 | N30: =AV30*'MSW Generated'!N30 -> 987449.66 | O30: =AW30*'MSW Generated'!O30 -> 1113451.706 | P30: =AX30*'MSW Generated'!P30 -> 1230993.896 | Q30: =AY30*'MSW Generated'!Q30 -> 1217547.577 | R30: 1189539 | S30: =BA30*'MSW Generated'!S30 -> 1192880.825 | T30: =BB30*'MSW Generated'!T30 -> 1196222.649 | U30: =BC30*'MSW Generated'!U30 -> 750218.9721 | V30: =BD30*'MSW Generated'!V30 -> 771042.1785 | W30: =BE30*'MSW Generated'!W30 -> 773867.7464 | X30: =BF30*'MSW Generated'!X30 -> 774850.5526 | Y30: =BG30*'MSW Generated'!Y30 -> 783388.6815 | Z30: =BH30*'MSW Generated'!Z30 -> 793616.0085 | AA30: =BI30*'MSW Generated'!AA30 -> 805010.4179 | AB30: =BJ30*'MSW Generated'!AB30 -> 819476.0967 | AC30: =BK30*'MSW Generated'!AC30 -> 822455.228 | AD30: =BL30*'MSW Generated'!AD30 -> 822455.228 | AE30: =BM30*'MSW Generated'!AE30 -> 0 | AF30: =BN30*'MSW Generated'!AF30 -> 0 | AI30: MT | AJ30: 0.9 | AK30: 0.93 | AL30: 0.93 | AM30: 0.93 | AN30: 0.92 | AO30: 0.92 | AP30: 0.93 | AQ30: 0.93 | AR30: 0.93 | AS30: 0.89 | AT30: =AS30 -> 0.89 | AU30: =AT30 -> 0.89 | AV30: =AU30 -> 0.89 | AW30: 0.866 | AX30: 0.842 | AY30: 0.842 | AZ30: =R30/'MSW Generated'!R30 -> 0.8318169517 | BA30: 0.8318169517 | BB30: 0.8318169517 | BC30: 0.8318169517 | BD30: 0.8318169517 | BE30: 0.8318169517 | BF30: 0.8318169517 | BG30: 0.8318169517 | BH30: 0.8318169517 | BI30: 0.8318169517 | BJ30: 0.8318169517 | BK30: 0.8318169517 | BL30: 0.8318169517
A31: NE | B31: =AJ31*'MSW Generated'!B31 -> 979000 | C31: =AK31*'MSW Generated'!C31 -> 1170000 | D31: =AL31*'MSW Generated'!D31 -> 1260000 | E31: =AM31*'MSW Generated'!E31 -> 1222000 | F31: =AN31*'MSW Generated'!F31 -> 1336500 | G31: =AO31*'MSW Generated'!G31 -> 1377000 | H31: =AP31*'MSW Generated'!H31 -> 1480000 | I31: =AQ31*'MSW Generated'!I31 -> 1460000 | J31: =AR31*'MSW Generated'!J31 -> 1420000 | K31: =AS31*'MSW Generated'!K31 -> 1292200 | L31: =AT31*'MSW Generated'!L31 -> 1422960 | M31: =AU31*'MSW Generated'!M31 -> 1935241.608 | N31: =AV31*'MSW Generated'!N31 -> 2026255.446 | O31: =AW31*'MSW Generated'!O31 -> 2019013.686 | P31: =AX31*'MSW Generated'!P31 -> 2011771.926 | Q31: =AY31*'MSW Generated'!Q31 -> 2004530.166 | R31: 2100347 | S31: =BA31*'MSW Generated'!S31 -> 2191322.023 | T31: =BB31*'MSW Generated'!T31 -> 2282297.046 | U31: =BC31*'MSW Generated'!U31 -> 1431357.737 | V31: =BD31*'MSW Generated'!V31 -> 1471086.748 | W31: =BE31*'MSW Generated'!W31 -> 1476477.705 | X31: =BF31*'MSW Generated'!X31 -> 1478352.82 | Y31: =BG31*'MSW Generated'!Y31 -> 1494642.887 | Z31: =BH31*'MSW Generated'!Z31 -> 1514155.808 | AA31: =BI31*'MSW Generated'!AA31 -> 1535895.429 | AB31: =BJ31*'MSW Generated'!AB31 -> 1563494.786 | AC31: =BK31*'MSW Generated'!AC31 -> 1569178.73 | AD31: =BL31*'MSW Generated'!AD31 -> 1569178.73 | AE31: =BM31*'MSW Generated'!AE31 -> 0 | AF31: =BN31*'MSW Generated'!AF31 -> 0 | AI31: NE | AJ31: 0.89 | AK31: 0.9 | AL31: 0.9 | AM31: 0.94 | AN31: 0.81 | AO31: 0.81 | AP31: 0.74 | AQ31: 0.73 | AR31: 0.71 | AS31: 0.71 | AT31: 0.77 | AU31: 0.808 | AV31: 0.846 | AW31: 0.846 | AX31: 0.846 | AY31: 0.846 | AZ31: =R31/'MSW Generated'!R31 -> 0.8896529698 | BA31: 0.8896529698 | BB31: 0.8896529698 | BC31: 0.8896529698 | BD31: 0.8896529698 | BE31: 0.8896529698 | BF31: 0.8896529698 | BG31: 0.8896529698 | BH31: 0.8896529698 | BI31: 0.8896529698 | BJ31: 0.8896529698 | BK31: 0.8896529698 | BL31: 0.8896529698
A32: NV | B32: =AJ32*'MSW Generated'!B32 -> 950000 | C32: =AK32*'MSW Generated'!C32 -> 900000 | D32: =AL32*'MSW Generated'!D32 -> 2070000 | E32: =AM32*'MSW Generated'!E32 -> 1955000 | F32: =AN32*'MSW Generated'!F32 -> 2008600 | G32: =AO32*'MSW Generated'!G32 -> 2258080 | H32: =AP32*'MSW Generated'!H32 -> 2874960 | I32: =AQ32*'MSW Generated'!I32 -> 3361750 | J32: =AR32*'MSW Generated'!J32 -> 2408000 | K32: =AS32*'MSW Generated'!K32 -> 2806170 | L32: =AT32*'MSW Generated'!L32 -> 2886160 | M32: =AU32*'MSW Generated'!M32 -> 3688745.876 | N32: =AV32*'MSW Generated'!N32 -> 4473716.926 | O32: =AW32*'MSW Generated'!O32 -> 5131216.386 | P32: =AX32*'MSW Generated'!P32 -> 5756857.971 | Q32: =AY32*'MSW Generated'!Q32 -> 4091753.486 | R32: 2388000 | S32: =BA32*'MSW Generated'!S32 -> 2629294.019 | T32: =BB32*'MSW Generated'!T32 -> 2870588.037 | U32: =BC32*'MSW Generated'!U32 -> 1800308.336 | V32: =BD32*'MSW Generated'!V32 -> 1850278.003 | W32: =BE32*'MSW Generated'!W32 -> 1857058.547 | X32: =BF32*'MSW Generated'!X32 -> 1859416.998 | Y32: =BG32*'MSW Generated'!Y32 -> 1879906.035 | Z32: =BH32*'MSW Generated'!Z32 -> 1904448.659 | AA32: =BI32*'MSW Generated'!AA32 -> 1931791.943 | AB32: =BJ32*'MSW Generated'!AB32 -> 1966505.384 | AC32: =BK32*'MSW Generated'!AC32 -> 1973654.437 | AD32: =BL32*'MSW Generated'!AD32 -> 1973654.437 | AE32: =BM32*'MSW Generated'!AE32 -> 0 | AF32: =BN32*'MSW Generated'!AF32 -> 0 | AI32: NV | AJ32: 0.95 | AK32: 0.9 | AL32: 0.9 | AM32: 0.85 | AN32: 0.83 | AO32: 0.88 | AP32: 0.88 | AQ32: 0.85 | AR32: 0.86 | AS32: 0.89 | AT32: 0.86 | AU32: 0.851 | AV32: 0.842 | AW32: 0.8245 | AX32: 0.807 | AY32: 0.807 | AZ32: =R32/'MSW Generated'!R32 -> 0.7941469904 | BA32: 0.7941469904 | BB32: 0.7941469904 | BC32: 0.7941469904 | BD32: 0.7941469904 | BE32: 0.7941469904 | BF32: 0.7941469904 | BG32: 0.7941469904 | BH32: 0.7941469904 | BI32: 0.7941469904 | BJ32: 0.7941469904 | BK32: 0.7941469904 | BL32: 0.7941469904
A33: NH | B33: =AJ33*'MSW Generated'!B33 -> 680000 | C33: =AK33*'MSW Generated'!C33 -> 792000 | D33: =AL33*'MSW Generated'!D33 -> 728320 | E33: =AM33*'MSW Generated'!E33 -> 720850 | F33: =AN33*'MSW Generated'!F33 -> 598560 | G33: =AO33*'MSW Generated'!G33 -> 703500 | H33: =AP33*'MSW Generated'!H33 -> 622500 | I33: =AQ33*'MSW Generated'!I33 -> 732000 | J33: =AR33*'MSW Generated'!J33 -> 475200 | K33: =AS33*'MSW Generated'!K33 -> 693360 | L33: =AT33*'MSW Generated'!L33 -> 662160 | M33: =AU33*'MSW Generated'!M33 -> 727063.993 | N33: =AV33*'MSW Generated'!N33 -> 788593.212 | O33: =AW33*'MSW Generated'!O33 -> 1020610.311 | P33: =AX33*'MSW Generated'!P33 -> 1250231.472 | Q33: =AY33*'MSW Generated'!Q33 -> 998429.292 | R33: 656208 | S33: =BA33*'MSW Generated'!S33 -> 649642.4265 | T33: =BB33*'MSW Generated'!T33 -> 643076.853 | U33: =BC33*'MSW Generated'!U33 -> 403309.9156 | V33: =BD33*'MSW Generated'!V33 -> 414504.2547 | W33: =BE33*'MSW Generated'!W33 -> 416023.2506 | X33: =BF33*'MSW Generated'!X33 -> 416551.597 | Y33: =BG33*'MSW Generated'!Y33 -> 421141.6063 | Z33: =BH33*'MSW Generated'!Z33 -> 426639.7109 | AA33: =BI33*'MSW Generated'!AA33 -> 432765.2269 | AB33: =BJ33*'MSW Generated'!AB33 -> 440541.8253 | AC33: =BK33*'MSW Generated'!AC33 -> 442143.3753 | AD33: =BL33*'MSW Generated'!AD33 -> 442143.3753 | AE33: =BM33*'MSW Generated'!AE33 -> 0 | AF33: =BN33*'MSW Generated'!AF33 -> 0 | AI33: NH | AJ33: 0.68 | AK33: 0.72 | AL33: 0.64 | AM33: 0.65 | AN33: 0.58 | AO33: 0.67 | AP33: 0.5 | AQ33: 0.61 | AR33: 0.54 | AS33: 0.54 | AT33: 0.62 | AU33: 0.607 | AV33: 0.594 | AW33: 0.591 | AX33: 0.588 | AY33: 0.588 | AZ33: =R33/'MSW Generated'!R33 -> 0.516791177 | BA33: 0.516791177 | BB33: 0.516791177 | BC33: 0.516791177 | BD33: 0.516791177 | BE33: 0.516791177 | BF33: 0.516791177 | BG33: 0.516791177 | BH33: 0.516791177 | BI33: 0.516791177 | BJ33: 0.516791177 | BK33: 0.516791177 | BL33: 0.516791177
A34: NJ | B34: =AJ34*'MSW Generated'!B34 -> 7280000 | C34: =AK34*'MSW Generated'!C34 -> 3763000 | D34: =AL34*'MSW Generated'!D34 -> 3380850 | E34: =AM34*'MSW Generated'!E34 -> 2774000 | F34: =AN34*'MSW Generated'!F34 -> 2664000 | G34: =AO34*'MSW Generated'!G34 -> 2975000 | H34: =AP34*'MSW Generated'!H34 -> 3168800 | I34: =AQ34*'MSW Generated'!I34 -> 3034000 | J34: =AR34*'MSW Generated'!J34 -> 2886000 | K34: =AS34*'MSW Generated'!K34 -> 3042000 | L34: =AT34*'MSW Generated'!L34 -> 4140000 | M34: =AU34*'MSW Generated'!M34 -> 4430666.717 | N34: =AV34*'MSW Generated'!N34 -> 4707803.166 | O34: =AW34*'MSW Generated'!O34 -> 4440777.729 | P34: =AX34*'MSW Generated'!P34 -> 4925123.28 | Q34: =AY34*'MSW Generated'!Q34 -> 5587795.85 | R34: 6958964 | S34: =BA34*'MSW Generated'!S34 -> 7071609.399 | T34: =BB34*'MSW Generated'!T34 -> 7184254.798 | U34: =BC34*'MSW Generated'!U34 -> 4505653.069 | V34: =BD34*'MSW Generated'!V34 -> 4630712.748 | W34: =BE34*'MSW Generated'!W34 -> 4647682.498 | X34: =BF34*'MSW Generated'!X34 -> 4653585.019 | Y34: =BG34*'MSW Generated'!Y34 -> 4704863.177 | Z34: =BH34*'MSW Generated'!Z34 -> 4766286.293 | AA34: =BI34*'MSW Generated'!AA34 -> 4834718.655 | AB34: =BJ34*'MSW Generated'!AB34 -> 4921596.396 | AC34: =BK34*'MSW Generated'!AC34 -> 4939488.415 | AD34: =BL34*'MSW Generated'!AD34 -> 4939488.415 | AE34: =BM34*'MSW Generated'!AE34 -> 0 | AF34: =BN34*'MSW Generated'!AF34 -> 0 | AI34: NJ | AJ34: 0.52 | AK34: 0.53 | AL34: 0.45 | AM34: 0.38 | AN34: 0.36 | AO34: 0.35 | AP34: 0.34 | AQ34: 0.37 | AR34: 0.37 | AS34: 0.39 | AT34: 0.45 | AU34: 0.4905 | AV34: 0.531 | AW34: 0.5105 | AX34: 0.49 | AY34: 0.49 | AZ34: =R34/'MSW Generated'!R34 -> 0.5455418908 | BA34: 0.5455418908 | BB34: 0.5455418908 | BC34: 0.5455418908 | BD34: 0.5455418908 | BE34: 0.5455418908 | BF34: 0.5455418908 | BG34: 0.5455418908 | BH34: 0.5455418908 | BI34: 0.5455418908 | BJ34: 0.5455418908 | BK34: 0.5455418908 | BL34: 0.5455418908
A35: NM | B35: =AJ35*'MSW Generated'!B35 -> 1188000 | C35: =AK35*'MSW Generated'!C35 -> 1425000 | D35: =AL35*'MSW Generated'!D35 -> 1397780 | E35: =AM35*'MSW Generated'!E35 -> 1418640 | F35: =AN35*'MSW Generated'!F35 -> 1710800 | G35: =AO35*'MSW Generated'!G35 -> 1730080 | H35: =AP35*'MSW Generated'!H35 -> 1228480 | I35: =AQ35*'MSW Generated'!I35 -> 1232000 | J35: =AR35*'MSW Generated'!J35 -> 2376000 | K35: =AS35*'MSW Generated'!K35 -> 2669400 | L35: =AT35*'MSW Generated'!L35 -> 3110380 | M35: =AU35*'MSW Generated'!M35 -> 2945878.751 | N35: =AV35*'MSW Generated'!N35 -> 2775761.615 | O35: =AW35*'MSW Generated'!O35 -> 2947636.913 | P35: =AX35*'MSW Generated'!P35 -> 3115154.1 | Q35: =AY35*'MSW Generated'!Q35 -> 2529788.34 | R35: 1933451 | S35: =BA35*'MSW Generated'!S35 -> 1891070.336 | T35: =BB35*'MSW Generated'!T35 -> 1848689.672 | U35: =BC35*'MSW Generated'!U35 -> 1159417.995 | V35: =BD35*'MSW Generated'!V35 -> 1191599 | W35: =BE35*'MSW Generated'!W35 -> 1195965.744 | X35: =BF35*'MSW Generated'!X35 -> 1197484.611 | Y35: =BG35*'MSW Generated'!Y35 -> 1210679.773 | Z35: =BH35*'MSW Generated'!Z35 -> 1226485.487 | AA35: =BI35*'MSW Generated'!AA35 -> 1244094.857 | AB35: =BJ35*'MSW Generated'!AB35 -> 1266450.688 | AC35: =BK35*'MSW Generated'!AC35 -> 1271054.755 | AD35: =BL35*'MSW Generated'!AD35 -> 1271054.755 | AE35: =BM35*'MSW Generated'!AE35 -> 0 | AF35: =BN35*'MSW Generated'!AF35 -> 0 | AI35: NM | AJ35: 0.99 | AK35: 0.95 | AL35: 0.94 | AM35: 0.92 | AN35: 0.91 | AO35: 0.88 | AP35: 0.88 | AQ35: 0.88 | AR35: 0.9 | AS35: 0.9 | AT35: 0.91 | AU35: 0.9225 | AV35: 0.935 | AW35: 0.925 | AX35: 0.915 | AY35: 0.915 | AZ35: =R35/'MSW Generated'!R35 -> 0.9098370299 | BA35: 0.9098370299 | BB35: 0.9098370299 | BC35: 0.9098370299 | BD35: 0.9098370299 | BE35: 0.9098370299 | BF35: 0.9098370299 | BG35: 0.9098370299 | BH35: 0.9098370299 | BI35: 0.9098370299 | BJ35: 0.9098370299 | BK35: 0.9098370299 | BL35: 0.9098370299
A36: NY | B36: =AJ36*'MSW Generated'!B36 -> 15400000 | C36: =AK36*'MSW Generated'!C36 -> 16060000 | D36: =AL36*'MSW Generated'!D36 -> 14136000 | E36: =AM36*'MSW Generated'!E36 -> 14868000 | F36: =AN36*'MSW Generated'!F36 -> 13462000 | G36: =AO36*'MSW Generated'!G36 -> 13005000 | H36: =AP36*'MSW Generated'!H36 -> 13936000 | I36: =AQ36*'MSW Generated'!I36 -> 14112000 | J36: =AR36*'MSW Generated'!J36 -> 13892000 | K36: =AS36*'MSW Generated'!K36 -> 13639000 | L36: =AT36*'MSW Generated'!L36 -> 14306000 | M36: =AU36*'MSW Generated'!M36 -> 13845261 | N36: =AV36*'MSW Generated'!N36 -> 13160304 | O36: =AW36*'MSW Generated'!O36 -> 13880826 | P36: =AX36*'MSW Generated'!P36 -> 13687500 | Q36: =AY36*'MSW Generated'!Q36 -> 10909970.44 | R36: 10500649 | S36: =BA36*'MSW Generated'!S36 -> 9348098.118 | T36: =BB36*'MSW Generated'!T36 -> 8195547.236 | U36: =BC36*'MSW Generated'!U36 -> 5139891.832 | V36: =BD36*'MSW Generated'!V36 -> 5282555.551 | W36: =BE36*'MSW Generated'!W36 -> 5301914.049 | X36: =BF36*'MSW Generated'!X36 -> 5308647.44 | Y36: =BG36*'MSW Generated'!Y36 -> 5367143.773 | Z36: =BH36*'MSW Generated'!Z36 -> 5437213.122 | AA36: =BI36*'MSW Generated'!AA36 -> 5515278.372 | AB36: =BJ36*'MSW Generated'!AB36 -> 5614385.469 | AC36: =BK36*'MSW Generated'!AC36 -> 5634796.06 | AD36: =BL36*'MSW Generated'!AD36 -> 5634796.06 | AE36: =BM36*'MSW Generated'!AE36 -> 0 | AF36: =BN36*'MSW Generated'!AF36 -> 0 | AI36: NY | AJ36: 0.7 | AK36: 0.73 | AL36: 0.62 | AM36: 0.59 | AN36: 0.53 | AO36: 0.51 | AP36: 0.52 | AQ36: 0.49 | AR36: 0.46 | AS36: 0.46 | AT36: 0.46 | AU36: 0.4955 | AV36: 0.531 | AW36: 0.453 | AX36: 0.375 | AY36: 0.375 | AZ36: =R36/'MSW Generated'!R36 -> 0.4842019064 | BA36: 0.4842019064 | BB36: 0.4842019064 | BC36: 0.4842019064 | BD36: 0.4842019064 | BE36: 0.4842019064 | BF36: 0.4842019064 | BG36: 0.4842019064 | BH36: 0.4842019064 | BI36: 0.4842019064 | BJ36: 0.4842019064 | BK36: 0.4842019064 | BL36: 0.4842019064
A37: NC | B37: =AJ37*'MSW Generated'!B37 -> 5640000 | C37: =AK37*'MSW Generated'!C37 -> 4740000 | D37: =AL37*'MSW Generated'!D37 -> 7398600 | E37: =AM37*'MSW Generated'!E37 -> 6339720 | F37: =AN37*'MSW Generated'!F37 -> 7056140 | G37: =AO37*'MSW Generated'!G37 -> 6800000 | H37: =AP37*'MSW Generated'!H37 -> 7546040 | I37: =AQ37*'MSW Generated'!I37 -> 7185390 | J37: =AR37*'MSW Generated'!J37 -> 8425250 | K37: =AS37*'MSW Generated'!K37 -> 12600000 | L37: =AT37*'MSW Generated'!L37 -> 9855000 | M37: =AU37*'MSW Generated'!M37 -> 10840500 | N37: =AV37*'MSW Generated'!N37 -> 11826000 | O37: =AW37*'MSW Generated'!O37 -> 9084983.88 | P37: =AX37*'MSW Generated'!P37 -> 6537254.856 | Q37: =AY37*'MSW Generated'!Q37 -> 6567228.378 | R37: 6220361 | S37: =BA37*'MSW Generated'!S37 -> 6381294.522 | T37: =BB37*'MSW Generated'!T37 -> 6542228.043 | U37: =BC37*'MSW Generated'!U37 -> 4103001.729 | V37: =BD37*'MSW Generated'!V37 -> 4216885.348 | W37: =BE37*'MSW Generated'!W37 -> 4232338.583 | X37: =BF37*'MSW Generated'!X37 -> 4237713.621 | Y37: =BG37*'MSW Generated'!Y37 -> 4284409.264 | Z37: =BH37*'MSW Generated'!Z37 -> 4340343.254 | AA37: =BI37*'MSW Generated'!AA37 -> 4402660.102 | AB37: =BJ37*'MSW Generated'!AB37 -> 4481773.944 | AC37: =BK37*'MSW Generated'!AC37 -> 4498067.028 | AD37: =BL37*'MSW Generated'!AD37 -> 4498067.028 | AE37: =BM37*'MSW Generated'!AE37 -> 0 | AF37: =BN37*'MSW Generated'!AF37 -> 0 | AI37: NC | AJ37: 0.94 | AK37: 0.79 | AL37: 0.95 | AM37: 0.92 | AN37: 0.91 | AO37: 0.68 | AP37: 0.76 | AQ37: 0.73 | AR37: 0.67 | AS37: 0.7 | AT37: 0.73 | AU37: 0.803 | AV37: 0.876 | AW37: 0.84 | AX37: 0.804 | AY37: 0.804 | AZ37: =R37/'MSW Generated'!R37 -> 0.7580744564 | BA37: 0.7580744564 | BB37: 0.7580744564 | BC37: =BB37 -> 0.7580744564 | BD37: 0.7580744564 | BE37: 0.7580744564 | BF37: 0.7580744564 | BG37: 0.7580744564 | BH37: 0.7580744564 | BI37: 0.7580744564 | BJ37: 0.7580744564 | BK37: 0.7580744564 | BL37: 0.7580744564
A38: ND | B38: =AJ38*'MSW Generated'!B38 -> 434250 | C38: =AK38*'MSW Generated'!C38 -> 360000 | D38: =AL38*'MSW Generated'!D38 -> 386780 | E38: =AM38*'MSW Generated'!E38 -> 415000 | F38: =AN38*'MSW Generated'!F38 -> 410000 | G38: =AO38*'MSW Generated'!G38 -> 390000 | H38: =AP38*'MSW Generated'!H38 -> 366460 | I38: =AQ38*'MSW Generated'!I38 -> 402900 | J38: =AR38*'MSW Generated'!J38 -> 370740 | K38: =AS38*'MSW Generated'!K38 -> 398400 | L38: =AT38*'MSW Generated'!L38 -> 509970 | M38: =AU38*'MSW Generated'!M38 -> 544099.996 | N38: =AV38*'MSW Generated'!N38 -> 578756.424 | O38: =AW38*'MSW Generated'!O38 -> 584536.653 | P38: =AX38*'MSW Generated'!P38 -> 587003.56 | Q38: =AY38*'MSW Generated'!Q38 -> 564328.1 | R38: 577148 | S38: =BA38*'MSW Generated'!S38 -> 610489.7622 | T38: =BB38*'MSW Generated'!T38 -> 643831.5243 | U38: =BC38*'MSW Generated'!U38 -> 403783.2127 | V38: =BD38*'MSW Generated'!V38 -> 414990.6888 | W38: =BE38*'MSW Generated'!W38 -> 416511.4672 | X38: =BF38*'MSW Generated'!X38 -> 417040.4337 | Y38: =BG38*'MSW Generated'!Y38 -> 421635.8295 | Z38: =BH38*'MSW Generated'!Z38 -> 427140.3863 | AA38: =BI38*'MSW Generated'!AA38 -> 433273.0908 | AB38: =BJ38*'MSW Generated'!AB38 -> 441058.8153 | AC38: =BK38*'MSW Generated'!AC38 -> 442662.2448 | AD38: =BL38*'MSW Generated'!AD38 -> 442662.2448 | AE38: =BM38*'MSW Generated'!AE38 -> 0 | AF38: =BN38*'MSW Generated'!AF38 -> 0 | AI38: ND | AJ38: 0.965 | AK38: 0.9 | AL38: 0.83 | AM38: 0.83 | AN38: 0.82 | AO38: 0.78 | AP38: 0.73 | AQ38: 0.79 | AR38: 0.74 | AS38: 0.8 | AT38: 0.89 | AU38: 0.898 | AV38: 0.906 | AW38: 0.863 | AX38: 0.82 | AY38: 0.82 | AZ38: =R38/'MSW Generated'!R38 -> 0.8737359057 | BA38: 0.8737359057 | BB38: 0.8737359057 | BC38: 0.8737359057 | BD38: 0.8737359057 | BE38: 0.8737359057 | BF38: 0.8737359057 | BG38: 0.8737359057 | BH38: 0.8737359057 | BI38: 0.8737359057 | BJ38: 0.8737359057 | BK38: 0.8737359057 | BL38: 0.8737359057
A39: OH | B39: =AJ39*'MSW Generated'!B39 -> 11340000 | C39: =AK39*'MSW Generated'!C39 -> 13973000 | D39: =AL39*'MSW Generated'!D39 -> 12300000 | E39: =AM39*'MSW Generated'!E39 -> 12928540 | F39: =AN39*'MSW Generated'!F39 -> 14427520 | G39: =AO39*'MSW Generated'!G39 -> 15797600 | H39: =AP39*'MSW Generated'!H39 -> 9502670 | I39: =AQ39*'MSW Generated'!I39 -> 9871200 | J39: =AR39*'MSW Generated'!J39 -> 10238050 | K39: =AS39*'MSW Generated'!K39 -> 9612000 | L39: =AT39*'MSW Generated'!L39 -> 11324650 | M39: =AU39*'MSW Generated'!M39 -> 10689844.39 | N39: =AV39*'MSW Generated'!N39 -> 10517981.94 | O39: =AW39*'MSW Generated'!O39 -> 11080285.19 | P39: =AX39*'MSW Generated'!P39 -> 11613157.06 | Q39: =AY39*'MSW Generated'!Q39 -> 12020507.66 | R39: 13355349 | S39: =BA39*'MSW Generated'!S39 -> 11918447.78 | T39: =BB39*'MSW Generated'!T39 -> 10481546.57 | U39: =BC39*'MSW Generated'!U39 -> 6573571.48 | V39: =BD39*'MSW Generated'!V39 -> 6756028.657 | W39: =BE39*'MSW Generated'!W39 -> 6780786.858 | X39: =BF39*'MSW Generated'!X39 -> 6789398.406 | Y39: =BG39*'MSW Generated'!Y39 -> 6864211.231 | Z39: =BH39*'MSW Generated'!Z39 -> 6953825.155 | AA39: =BI39*'MSW Generated'!AA39 -> 7053665.291 | AB39: =BJ39*'MSW Generated'!AB39 -> 7180416.516 | AC39: =BK39*'MSW Generated'!AC39 -> 7206520.271 | AD39: =BL39*'MSW Generated'!AD39 -> 7206520.271 | AE39: =BM39*'MSW Generated'!AE39 -> 0 | AF39: =BN39*'MSW Generated'!AF39 -> 0 | AI39: OH | AJ39: 0.81 | AK39: 0.89 | AL39: 0.75 | AM39: 0.74 | AN39: 0.64 | AO39: 0.65 | AP39: 0.83 | AQ39: 0.8 | AR39: 0.83 | AS39: 0.8 | AT39: 0.79 | AU39: 0.7775 | AV39: 0.765 | AW39: 0.7505 | AX39: 0.736 | AY39: 0.736 | AZ39: =R39/'MSW Generated'!R39 -> 0.7909276602 | BA39: 0.7909276602 | BB39: 0.7909276602 | BC39: 0.7909276602 | BD39: 0.7909276602 | BE39: 0.7909276602 | BF39: 0.7909276602 | BG39: 0.7909276602 | BH39: 0.7909276602 | BI39: 0.7909276602 | BJ39: 0.7909276602 | BK39: 0.7909276602 | BL39: 0.7909276602
A40: OK | B40: =AJ40*'MSW Generated'!B40 -> 3060000 | C40: =AK40*'MSW Generated'!C40 -> 2400000 | D40: =AL40*'MSW Generated'!D40 -> 2460000 | E40: =AM40*'MSW Generated'!E40 -> 2320000 | F40: =AN40*'MSW Generated'!F40 -> 1950000 | G40: =AO40*'MSW Generated'!G40 -> 1950000 | H40: =AP40*'MSW Generated'!H40 -> 1950000 | I40: =AQ40*'MSW Generated'!I40 -> 1950000 | J40: =AR40*'MSW Generated'!J40 -> 2765100 | K40: =AS40*'MSW Generated'!K40 -> 2765100 | L40: =AT40*'MSW Generated'!L40 -> 3370430 | M40: =AU40*'MSW Generated'!M40 -> 3889733.16 | N40: =AV40*'MSW Generated'!N40 -> 4444137.72 | O40: =AW40*'MSW Generated'!O40 -> 4579925.22 | P40: =AX40*'MSW Generated'!P40 -> 4672074.834 | Q40: =AY40*'MSW Generated'!Q40 -> 4273964.73 | R40: 4224393 | S40: =BA40*'MSW Generated'!S40 -> 4224393 | T40: =BB40*'MSW Generated'!T40 -> 4224393 | U40: =BC40*'MSW Generated'!U40 -> 2649356.101 | V40: =BD40*'MSW Generated'!V40 -> 2722892.084 | W40: =BE40*'MSW Generated'!W40 -> 2732870.417 | X40: =BF40*'MSW Generated'!X40 -> 2736341.142 | Y40: =BG40*'MSW Generated'!Y40 -> 2766493.064 | Z40: =BH40*'MSW Generated'!Z40 -> 2802610.294 | AA40: =BI40*'MSW Generated'!AA40 -> 2842849.01 | AB40: =BJ40*'MSW Generated'!AB40 -> 2893933.741 | AC40: =BK40*'MSW Generated'!AC40 -> 2904454.376 | AD40: =BL40*'MSW Generated'!AD40 -> 2904454.376 | AE40: =BM40*'MSW Generated'!AE40 -> 0 | AF40: =BN40*'MSW Generated'!AF40 -> 0 | AI40: OK | AJ40: 0.85 | AK40: 0.8 | AL40: 0.82 | AM40: 0.8 | AN40: 0.78 | AO40: 0.78 | AP40: 0.78 | AQ40: 0.78 | AR40: 0.78 | AS40: =AR40 -> 0.78 | AT40: 0.89 | AU40: 0.94 | AV40: 0.99 | AW40: 0.936 | AX40: 0.882 | AY40: 0.882 | AZ40: =R40/'MSW Generated'!R40 -> 0.9613143385 | BA40: 0.9613143385 | BB40: 0.9613143385 | BC40: 0.9613143385 | BD40: 0.9613143385 | BE40: 0.9613143385 | BF40: 0.9613143385 | BG40: 0.9613143385 | BH40: 0.9613143385 | BI40: 0.9613143385 | BJ40: 0.9613143385 | BK40: 0.9613143385 | BL40: 0.9613143385
A41: OR | B41: =AJ41*'MSW Generated'!B41 -> 1485000 | C41: =AK41*'MSW Generated'!C41 -> 2409000 | D41: =AL41*'MSW Generated'!D41 -> 2378500 | E41: =AM41*'MSW Generated'!E41 -> 2079010 | F41: =AN41*'MSW Generated'!F41 -> 2083200 | G41: =AO41*'MSW Generated'!G41 -> 2096570 | H41: =AP41*'MSW Generated'!H41 -> 2174400 | I41: =AQ41*'MSW Generated'!I41 -> 2493400 | J41: =AR41*'MSW Generated'!J41 -> 2419000 | K41: =AS41*'MSW Generated'!K41 -> 2604850 | L41: =AT41*'MSW Generated'!L41 -> 2544640 | M41: =AU41*'MSW Generated'!M41 -> 2382704.082 | N41: =AV41*'MSW Generated'!N41 -> 2209684.168 | O41: =AW41*'MSW Generated'!O41 -> 2452771.075 | P41: =AX41*'MSW Generated'!P41 -> 2708325.532 | Q41: =AY41*'MSW Generated'!Q41 -> 2474049.809 | R41: 2403265 | S41: =BA41*'MSW Generated'!S41 -> 2459209.581 | T41: =BB41*'MSW Generated'!T41 -> 2515154.163 | U41: =BC41*'MSW Generated'!U41 -> 1577395.623 | V41: =BD41*'MSW Generated'!V41 -> 1621178.086 | W41: =BE41*'MSW Generated'!W41 -> 1627119.069 | X41: =BF41*'MSW Generated'!X41 -> 1629185.498 | Y41: =BG41*'MSW Generated'!Y41 -> 1647137.6 | Z41: =BH41*'MSW Generated'!Z41 -> 1668641.376 | AA41: =BI41*'MSW Generated'!AA41 -> 1692599.037 | AB41: =BJ41*'MSW Generated'!AB41 -> 1723014.288 | AC41: =BK41*'MSW Generated'!AC41 -> 1729278.15 | AD41: =BL41*'MSW Generated'!AD41 -> 1729278.15 | AE41: =BM41*'MSW Generated'!AE41 -> 0 | AF41: =BN41*'MSW Generated'!AF41 -> 0 | AI41: OR | AJ41: 0.675 | AK41: 0.73 | AL41: 0.71 | AM41: 0.67 | AN41: 0.64 | AO41: 0.61 | AP41: 0.6 | AQ41: 0.65 | AR41: 0.59 | AS41: 0.59 | AT41: 0.56 | AU41: 0.5115 | AV41: 0.463 | AW41: 0.4845 | AX41: 0.506 | AY41: 0.506 | AZ41: =R41/'MSW Generated'!R41 -> 0.5429351548 | BA41: 0.5429351548 | BB41: 0.5429351548 | BC41: 0.5429351548 | BD41: 0.5429351548 | BE41: 0.5429351548 | BF41: 0.5429351548 | BG41: 0.5429351548 | BH41: 0.5429351548 | BI41: 0.5429351548 | BJ41: 0.5429351548 | BK41: 0.5429351548 | BL41: 0.5429351548
A42: PA | B42: =AJ42*'MSW Generated'!B42 -> 8188000 | C42: =AK42*'MSW Generated'!C42 -> 6175000 | D42: =AL42*'MSW Generated'!D42 -> 5300560 | E42: =AM42*'MSW Generated'!E42 -> 6460000 | F42: =AN42*'MSW Generated'!F42 -> 5795000 | G42: =AO42*'MSW Generated'!G42 -> 5940000 | H42: =AP42*'MSW Generated'!H42 -> 6319500 | I42: =AQ42*'MSW Generated'!I42 -> 5003200 | J42: =AR42*'MSW Generated'!J42 -> 4784000 | K42: =AS42*'MSW Generated'!K42 -> 4900000 | L42: =AT42*'MSW Generated'!L42 -> 5810000 | M42: =AU42*'MSW Generated'!M42 -> 6002354.617 | N42: =AV42*'MSW Generated'!N42 -> 6169979.466 | O42: =AW42*'MSW Generated'!O42 -> 6218947.557 | P42: =AX42*'MSW Generated'!P42 -> 6267915.648 | Q42: =AY42*'MSW Generated'!Q42 -> 7881998.976 | R42: 9666692 | S42: =BA42*'MSW Generated'!S42 -> 9830192.669 | T42: =BB42*'MSW Generated'!T42 -> 9993693.339 | U42: =BC42*'MSW Generated'!U42 -> 6267611.092 | V42: =BD42*'MSW Generated'!V42 -> 6441575.98 | W42: =BE42*'MSW Generated'!W42 -> 6465181.835 | X42: =BF42*'MSW Generated'!X42 -> 6473392.567 | Y42: =BG42*'MSW Generated'!Y42 -> 6544723.303 | Z42: =BH42*'MSW Generated'!Z42 -> 6630166.234 | AA42: =BI42*'MSW Generated'!AA42 -> 6725359.411 | AB42: =BJ42*'MSW Generated'!AB42 -> 6846211.125 | AC42: =BK42*'MSW Generated'!AC42 -> 6871099.907 | AD42: =BL42*'MSW Generated'!AD42 -> 6871099.907 | AE42: =BM42*'MSW Generated'!AE42 -> 0 | AF42: =BN42*'MSW Generated'!AF42 -> 0 | AI42: PA | AJ42: 0.89 | AK42: 0.65 | AL42: 0.59 | AM42: 0.68 | AN42: 0.61 | AO42: 0.66 | AP42: 0.66 | AQ42: 0.53 | AR42: 0.52 | AS42: 0.5 | AT42: 0.5 | AU42: 0.5335 | AV42: 0.567 | AW42: 0.5715 | AX42: 0.576 | AY42: 0.576 | AZ42: =R42/'MSW Generated'!R42 -> 0.5863486029 | BA42: 0.5863486029 | BB42: 0.5863486029 | BC42: 0.5863486029 | BD42: 0.5863486029 | BE42: 0.5863486029 | BF42: 0.5863486029 | BG42: 0.5863486029 | BH42: 0.5863486029 | BI42: 0.5863486029 | BJ42: 0.5863486029 | BK42: 0.5863486029 | BL42: 0.5863486029
A43: RI | B43: =AJ43*'MSW Generated'!B43 -> 820000 | C43: =AK43*'MSW Generated'!C43 -> 1020000 | D43: =AL43*'MSW Generated'!D43 -> 1020000 | E43: =AM43*'MSW Generated'!E43 -> 948000 | F43: =AN43*'MSW Generated'!F43 -> 807120 | G43: =AO43*'MSW Generated'!G43 -> 836000 | H43: =AP43*'MSW Generated'!H43 -> 372680 | I43: =AQ43*'MSW Generated'!I43 -> 367290 | J43: =AR43*'MSW Generated'!J43 -> 306600 | K43: =AS43*'MSW Generated'!K43 -> 303120 | L43: =AT43*'MSW Generated'!L43 -> 1186360 | M43: =AU43*'MSW Generated'!M43 -> 1247761.92 | N43: =AV43*'MSW Generated'!N43 -> 1305593.28 | O43: =AW43*'MSW Generated'!O43 -> 1358222.13 | P43: =AX43*'MSW Generated'!P43 -> 1410968.12 | Q43: =AY43*'MSW Generated'!Q43 -> 1296069.458 | R43: 1182497 | S43: =BA43*'MSW Generated'!S43 -> 1035234.145 | T43: =BB43*'MSW Generated'!T43 -> 887971.289 | U43: =BC43*'MSW Generated'!U43 -> 556897.0862 | V43: =BD43*'MSW Generated'!V43 -> 572354.4172 | W43: =BE43*'MSW Generated'!W43 -> 574451.8721 | X43: =BF43*'MSW Generated'!X43 -> 575181.4217 | Y43: =BG43*'MSW Generated'!Y43 -> 581519.3833 | Z43: =BH43*'MSW Generated'!Z43 -> 589111.2583 | AA43: =BI43*'MSW Generated'!AA43 -> 597569.4733 | AB43: =BJ43*'MSW Generated'!AB43 -> 608307.5307 | AC43: =BK43*'MSW Generated'!AC43 -> 610518.9778 | AD43: =BL43*'MSW Generated'!AD43 -> 610518.9778 | AE43: =BM43*'MSW Generated'!AE43 -> 0 | AF43: =BN43*'MSW Generated'!AF43 -> 0 | AI43: RI | AJ43: 0.82 | AK43: 0.85 | AL43: 0.85 | AM43: 0.79 | AN43: 0.76 | AO43: 0.76 | AP43: 0.77 | AQ43: 0.77 | AR43: 0.73 | AS43: 0.72 | AT43: 0.76 | AU43: 0.816 | AV43: 0.872 | AW43: 0.873 | AX43: 0.874 | AY43: 0.874 | AZ43: =R43/'MSW Generated'!R43 -> 0.8749813164 | BA43: 0.8749813164 | BB43: 0.8749813164 | BC43: 0.8749813164 | BD43: 0.8749813164 | BE43: 0.8749813164 | BF43: 0.8749813164 | BG43: 0.8749813164 | BH43: 0.8749813164 | BI43: 0.8749813164 | BJ43: 0.8749813164 | BK43: 0.8749813164 | BL43: 0.8749813164
A44: SC | B44: =AJ44*'MSW Generated'!B44 -> 2150000 | C44: =AK44*'MSW Generated'!C44 -> 3520000 | D44: =AL44*'MSW Generated'!D44 -> 4250000 | E44: =AM44*'MSW Generated'!E44 -> 3705000 | F44: =AN44*'MSW Generated'!F44 -> 4386000 | G44: =AO44*'MSW Generated'!G44 -> 5640030 | H44: =AP44*'MSW Generated'!H44 -> 5606870 | I44: =AQ44*'MSW Generated'!I44 -> 5267430 | J44: =AR44*'MSW Generated'!J44 -> 5605600 | K44: =AS44*'MSW Generated'!K44 -> 6304030 | L44: =AT44*'MSW Generated'!L44 -> 2824290 | M44: =AU44*'MSW Generated'!M44 -> 5210860.982 | N44: =AV44*'MSW Generated'!N44 -> 7761498.319 | O44: =AW44*'MSW Generated'!O44 -> 5511577.254 | P44: =AX44*'MSW Generated'!P44 -> 3104153.745 | Q44: =AY44*'MSW Generated'!Q44 -> 3345448.652 | R44: 3239764 | S44: =BA44*'MSW Generated'!S44 -> 3068568.383 | T44: =BB44*'MSW Generated'!T44 -> 2897372.765 | U44: =BC44*'MSW Generated'!U44 -> 1817106.556 | V44: =BD44*'MSW Generated'!V44 -> 1867542.477 | W44: =BE44*'MSW Generated'!W44 -> 1874386.289 | X44: =BF44*'MSW Generated'!X44 -> 1876766.746 | Y44: =BG44*'MSW Generated'!Y44 -> 1897446.961 | Z44: =BH44*'MSW Generated'!Z44 -> 1922218.586 | AA44: =BI44*'MSW Generated'!AA44 -> 1949817.003 | AB44: =BJ44*'MSW Generated'!AB44 -> 1984854.346 | AC44: =BK44*'MSW Generated'!AC44 -> 1992070.105 | AD44: =BL44*'MSW Generated'!AD44 -> 1992070.105 | AE44: =BM44*'MSW Generated'!AE44 -> 0 | AF44: =BN44*'MSW Generated'!AF44 -> 0 | AI44: SC | AJ44: 0.86 | AK44: 0.88 | AL44: 0.85 | AM44: 0.65 | AN44: 0.86 | AO44: 0.81 | AP44: 0.71 | AQ44: 0.63 | AR44: 0.56 | AS44: 0.67 | AT44: 0.63 | AU44: 0.6535 | AV44: 0.677 | AW44: 0.699 | AX44: 0.721 | AY44: 0.721 | AZ44: =R44/'MSW Generated'!R44 -> 0.6512508646 | BA44: 0.6512508646 | BB44: 0.6512508646 | BC44: 0.6512508646 | BD44: 0.6512508646 | BE44: 0.6512508646 | BF44: 0.6512508646 | BG44: 0.6512508646 | BH44: 0.6512508646 | BI44: 0.6512508646 | BJ44: 0.6512508646 | BK44: 0.6512508646 | BL44: 0.6512508646
A45: SD | B45: =AJ45*'MSW Generated'!B45 -> 495000 | C45: =AK45*'MSW Generated'!C45 -> 720000 | D45: =AL45*'MSW Generated'!D45 -> 720000 | E45: =AM45*'MSW Generated'!E45 -> 732540 | F45: =AN45*'MSW Generated'!F45 -> 672000 | G45: =AO45*'MSW Generated'!G45 -> 672000 | H45: =AP45*'MSW Generated'!H45 -> 522040 | I45: =AQ45*'MSW Generated'!I45 -> 295800 | J45: =AR45*'MSW Generated'!J45 -> 295800 | K45: =AS45*'MSW Generated'!K45 -> 298120 | L45: =AT45*'MSW Generated'!L45 -> 298120 | M45: =AU45*'MSW Generated'!M45 -> 465775 | N45: =AV45*'MSW Generated'!N45 -> 667360 | O45: =AW45*'MSW Generated'!O45 -> 648930 | P45: =AX45*'MSW Generated'!P45 -> 630500 | Q45: =AY45*'MSW Generated'!Q45 -> 733114.36 | R45: 778100 | S45: =BA45*'MSW Generated'!S45 -> 704705.407 | T45: =BB45*'MSW Generated'!T45 -> 631310.814 | U45: =BC45*'MSW Generated'!U45 -> 395930.7662 | V45: =BD45*'MSW Generated'!V45 -> 406920.2884 | W45: =BE45*'MSW Generated'!W45 -> 408411.492 | X45: =BF45*'MSW Generated'!X45 -> 408930.1715 | Y45: =BG45*'MSW Generated'!Y45 -> 413436.1998 | Z45: =BH45*'MSW Generated'!Z45 -> 418833.7085 | AA45: =BI45*'MSW Generated'!AA45 -> 424847.1491 | AB45: =BJ45*'MSW Generated'!AB45 -> 432481.4632 | AC45: =BK45*'MSW Generated'!AC45 -> 434053.7105 | AD45: =BL45*'MSW Generated'!AD45 -> 434053.7105 | AE45: =BM45*'MSW Generated'!AE45 -> 0 | AF45: =BN45*'MSW Generated'!AF45 -> 0 | AI45: SD | AJ45: 0.99 | AK45: 0.9 | AL45: 0.9 | AM45: 0.87 | AN45: 0.8 | AO45: 0.8 | AP45: 0.62 | AQ45: 0.58 | AR45: 0.58 | AS45: 0.58 | AT45: =AS45 -> 0.58 | AU45: 0.775 | AV45: 0.97 | AW45: 0.97 | AX45: 0.97 | AY45: 0.97 | AZ45: =R45/'MSW Generated'!R45 -> 0.9031124358 | BA45: 0.9031124358 | BB45: 0.9031124358 | BC45: 0.9031124358 | BD45: 0.9031124358 | BE45: 0.9031124358 | BF45: 0.9031124358 | BG45: 0.9031124358 | BH45: 0.9031124358 | BI45: 0.9031124358 | BJ45: 0.9031124358 | BK45: 0.9031124358 | BL45: 0.9031124358
A46: TN | B46: =AJ46*'MSW Generated'!B46 -> 5076000 | C46: =AK46*'MSW Generated'!C46 -> 4450000 | D46: =AL46*'MSW Generated'!D46 -> 4756000 | E46: =AM46*'MSW Generated'!E46 -> 4620000 | F46: =AN46*'MSW Generated'!F46 -> 4680000 | G46: =AO46*'MSW Generated'!G46 -> 4680000 | H46: =AP46*'MSW Generated'!H46 -> 5379030 | I46: =AQ46*'MSW Generated'!I46 -> 5317760 | J46: =AR46*'MSW Generated'!J46 -> 5232150 | K46: =AS46*'MSW Generated'!K46 -> 5067150 | L46: =AT46*'MSW Generated'!L46 -> 2860000 | M46: =AU46*'MSW Generated'!M46 -> 4764019.401 | N46: =AV46*'MSW Generated'!N46 -> 7054170.904 | O46: =AW46*'MSW Generated'!O46 -> 7369715.936 | P46: =AX46*'MSW Generated'!P46 -> 7472961.422 | Q46: =AY46*'MSW Generated'!Q46 -> 7265657.965 | R46: 7413284 | S46: =BA46*'MSW Generated'!S46 -> 5350201.795 | T46: =BB46*'MSW Generated'!T46 -> 3287119.591 | U46: =BC46*'MSW Generated'!U46 -> 2061538.863 | V46: =BD46*'MSW Generated'!V46 -> 2118759.289 | W46: =BE46*'MSW Generated'!W46 -> 2126523.713 | X46: =BF46*'MSW Generated'!X46 -> 2129224.382 | Y46: =BG46*'MSW Generated'!Y46 -> 2152686.445 | Z46: =BH46*'MSW Generated'!Z46 -> 2180790.282 | AA46: =BI46*'MSW Generated'!AA46 -> 2212101.165 | AB46: =BJ46*'MSW Generated'!AB46 -> 2251851.638 | AC46: =BK46*'MSW Generated'!AC46 -> 2260038.041 | AD46: =BL46*'MSW Generated'!AD46 -> 2260038.041 | AE46: =BM46*'MSW Generated'!AE46 -> 0 | AF46: =BN46*'MSW Generated'!AF46 -> 0 | AI46: TN | AJ46: 0.94 | AK46: 0.89 | AL46: 0.82 | AM46: 0.84 | AN46: 0.78 | AO46: =AN46 -> 0.78 | AP46: 0.59 | AQ46: 0.56 | AR46: 0.55 | AS46: =AR46 -> 0.55 | AT46: 0.55 | AU46: 0.633 | AV46: 0.716 | AW46: 0.647 | AX46: 0.578 | AY46: 0.578 | AZ46: =R46/'MSW Generated'!R46 -> 0.6070647411 | BA46: 0.6070647411 | BB46: 0.6070647411 | BC46: 0.6070647411 | BD46: 0.6070647411 | BE46: 0.6070647411 | BF46: 0.6070647411 | BG46: 0.6070647411 | BH46: 0.6070647411 | BI46: 0.6070647411 | BJ46: 0.6070647411 | BK46: 0.6070647411 | BL46: 0.6070647411
A47: TX | B47: =AJ47*'MSW Generated'!B47 -> 16380000 | C47: =AK47*'MSW Generated'!C47 -> 16020000 | D47: =AL47*'MSW Generated'!D47 -> 12732720 | E47: =AM47*'MSW Generated'!E47 -> 21318480 | F47: =AN47*'MSW Generated'!F47 -> 21272100 | G47: =AO47*'MSW Generated'!G47 -> 18732300 | H47: =AP47*'MSW Generated'!H47 -> 18580150 | I47: =AQ47*'MSW Generated'!I47 -> 18477300 | J47: =AR47*'MSW Generated'!J47 -> 21937500 | K47: =AS47*'MSW Generated'!K47 -> 22114950 | L47: =AT47*'MSW Generated'!L47 -> 29114150 | M47: =AU47*'MSW Generated'!M47 -> 31554372.75 | N47: =AV47*'MSW Generated'!N47 -> 34020300 | O47: =AW47*'MSW Generated'!O47 -> 35270976.17 | P47: =AX47*'MSW Generated'!P47 -> 36535116.05 | Q47: =AY47*'MSW Generated'!Q47 -> 30690302.97 | R47: 25312927 | S47: =BA47*'MSW Generated'!S47 -> 24482510.13 | T47: =BB47*'MSW Generated'!T47 -> 23652093.26 | U47: =BC47*'MSW Generated'!U47 -> 14833567.23 | V47: =BD47*'MSW Generated'!V47 -> 15245290.27 | W47: =BE47*'MSW Generated'!W47 -> 15301158.29 | X47: =BF47*'MSW Generated'!X47 -> 15320590.65 | Y47: =BG47*'MSW Generated'!Y47 -> 15489409.24 | Z47: =BH47*'MSW Generated'!Z47 -> 15691627.19 | AA47: =BI47*'MSW Generated'!AA47 -> 15916921.06 | AB47: =BJ47*'MSW Generated'!AB47 -> 16202941.05 | AC47: =BK47*'MSW Generated'!AC47 -> 16261845.37 | AD47: =BL47*'MSW Generated'!AD47 -> 16261845.37 | AE47: =BM47*'MSW Generated'!AE47 -> 0 | AF47: =BN47*'MSW Generated'!AF47 -> 0 | AI47: TX | AJ47: 0.91 | AK47: 0.89 | AL47: 0.88 | AM47: 0.87 | AN47: 0.85 | AO47: =AN47 -> 0.85 | AP47: =AO47 -> 0.85 | AQ47: =AP47 -> 0.85 | AR47: 0.65 | AS47: 0.65 | AT47: 0.65 | AU47: 0.7005 | AV47: 0.751 | AW47: 0.7735 | AX47: 0.796 | AY47: 0.796 | AZ47: =R47/'MSW Generated'!R47 -> 0.8109757537 | BA47: 0.8109757537 | BB47: 0.8109757537 | BC47: 0.8109757537 | BD47: 0.8109757537 | BE47: 0.8109757537 | BF47: 0.8109757537 | BG47: 0.8109757537 | BH47: 0.8109757537 | BI47: 0.8109757537 | BJ47: 0.8109757537 | BK47: 0.8109757537 | BL47: 0.8109757537
A48: UT | B48: =AJ48*'MSW Generated'!B48 -> 858000 | C48: =AK48*'MSW Generated'!C48 -> 960000 | D48: =AL48*'MSW Generated'!D48 -> 1200000 | E48: =AM48*'MSW Generated'!E48 -> 1557600 | F48: =AN48*'MSW Generated'!F48 -> 1600000 | G48: =AO48*'MSW Generated'!G48 -> 2340800 | H48: =AP48*'MSW Generated'!H48 -> 2187080 | I48: =AQ48*'MSW Generated'!I48 -> 2744800 | J48: =AR48*'MSW Generated'!J48 -> 2617500 | K48: =AS48*'MSW Generated'!K48 -> 1795120 | L48: =AT48*'MSW Generated'!L48 -> 2189700 | M48: =AU48*'MSW Generated'!M48 -> 2211886.204 | N48: =AV48*'MSW Generated'!N48 -> 2234149.216 | O48: =AW48*'MSW Generated'!O48 -> 2233123.402 | P48: =AX48*'MSW Generated'!P48 -> 2220552.928 | Q48: =AY48*'MSW Generated'!Q48 -> 2276124.708 | R48: 2301707 | S48: =BA48*'MSW Generated'!S48 -> 2187761.137 | T48: =BB48*'MSW Generated'!T48 -> 2073815.274 | U48: =BC48*'MSW Generated'!U48 -> 1300607.01 | V48: =BD48*'MSW Generated'!V48 -> 1336706.881 | W48: =BE48*'MSW Generated'!W48 -> 1341605.389 | X48: =BF48*'MSW Generated'!X48 -> 1343309.217 | Y48: =BG48*'MSW Generated'!Y48 -> 1358111.229 | Z48: =BH48*'MSW Generated'!Z48 -> 1375841.697 | AA48: =BI48*'MSW Generated'!AA48 -> 1395595.461 | AB48: =BJ48*'MSW Generated'!AB48 -> 1420673.69 | AC48: =BK48*'MSW Generated'!AC48 -> 1425838.421 | AD48: =BL48*'MSW Generated'!AD48 -> 1425838.421 | AE48: =BM48*'MSW Generated'!AE48 -> 0 | AF48: =BN48*'MSW Generated'!AF48 -> 0 | AI48: UT | AJ48: 0.78 | AK48: 0.8 | AL48: 0.8 | AM48: 0.8 | AN48: 0.8 | AO48: 0.8 | AP48: 0.73 | AQ48: 0.73 | AR48: 0.75 | AS48: 0.76 | AT48: 0.9 | AU48: 0.902 | AV48: 0.904 | AW48: 0.859 | AX48: 0.814 | AY48: 0.814 | AZ48: =R48/'MSW Generated'!R48 -> 0.8035306086 | BA48: 0.8035306086 | BB48: 0.8035306086 | BC48: 0.8035306086 | BD48: 0.8035306086 | BE48: 0.8035306086 | BF48: 0.8035306086 | BG48: 0.8035306086 | BH48: 0.8035306086 | BI48: 0.8035306086 | BJ48: 0.8035306086 | BK48: 0.8035306086 | BL48: 0.8035306086
A49: VT | B49: =AJ49*'MSW Generated'!B49 -> 239750 | C49: =AK49*'MSW Generated'!C49 -> 280800 | D49: =AL49*'MSW Generated'!D49 -> 396000 | E49: =AM49*'MSW Generated'!E49 -> 476000 | F49: =AN49*'MSW Generated'!F49 -> 476000 | G49: =AO49*'MSW Generated'!G49 -> 366000 | H49: =AP49*'MSW Generated'!H49 -> 240000 | I49: =AQ49*'MSW Generated'!I49 -> 330000 | J49: =AR49*'MSW Generated'!J49 -> 346500 | K49: =AS49*'MSW Generated'!K49 -> 216530 | L49: =AT49*'MSW Generated'!L49 -> 329460 | M49: =AU49*'MSW Generated'!M49 -> 376690.5 | N49: =AV49*'MSW Generated'!N49 -> 426300 | O49: =AW49*'MSW Generated'!O49 -> 412708.389 | P49: =AX49*'MSW Generated'!P49 -> 398838.413 | Q49: =AY49*'MSW Generated'!Q49 -> 398807.1535 | R49: 366987 | S49: =BA49*'MSW Generated'!S49 -> 349965.9731 | T49: =BB49*'MSW Generated'!T49 -> 332944.9462 | U49: =BC49*'MSW Generated'!U49 -> 208808.6323 | V49: =BD49*'MSW Generated'!V49 -> 214604.3605 | W49: =BE49*'MSW Generated'!W49 -> 215390.8015 | X49: =BF49*'MSW Generated'!X49 -> 215664.3462 | Y49: =BG49*'MSW Generated'!Y49 -> 218040.7657 | Z49: =BH49*'MSW Generated'!Z49 -> 220887.3402 | AA49: =BI49*'MSW Generated'!AA49 -> 224058.749 | AB49: =BJ49*'MSW Generated'!AB49 -> 228084.985 | AC49: =BK49*'MSW Generated'!AC49 -> 228914.1673 | AD49: =BL49*'MSW Generated'!AD49 -> 228914.1673 | AE49: =BM49*'MSW Generated'!AE49 -> 0 | AF49: =BN49*'MSW Generated'!AF49 -> 0 | AI49: VT | AJ49: 0.685 | AK49: 0.72 | AL49: 0.72 | AM49: 0.68 | AN49: 0.68 | AO49: 0.61 | AP49: 0.4 | AQ49: 0.55 | AR49: 0.63 | AS49: 0.59 | AT49: 0.57 | AU49: 0.5895 | AV49: 0.609 | AW49: 0.614 | AX49: 0.619 | AY49: 0.619 | AZ49: =R49/'MSW Generated'!R49 -> 0.5696556798 | BA49: 0.5696556798 | BB49: 0.5696556798 | BC49: 0.5696556798 | BD49: 0.5696556798 | BE49: 0.5696556798 | BF49: 0.5696556798 | BG49: 0.5696556798 | BH49: 0.5696556798 | BI49: 0.5696556798 | BJ49: 0.5696556798 | BK49: 0.5696556798 | BL49: 0.5696556798
A50: VA | B50: =AJ50*'MSW Generated'!B50 -> 7200000 | C50: =AK50*'MSW Generated'!C50 -> 7200000 | D50: =AL50*'MSW Generated'!D50 -> 4408000 | E50: =AM50*'MSW Generated'!E50 -> 4408000 | F50: =AN50*'MSW Generated'!F50 -> 4320000 | G50: =AO50*'MSW Generated'!G50 -> 4237520 | H50: =AP50*'MSW Generated'!H50 -> 4065030 | I50: =AQ50*'MSW Generated'!I50 -> 4230000 | J50: =AR50*'MSW Generated'!J50 -> 4200000 | K50: =AS50*'MSW Generated'!K50 -> 4556160 | L50: =AT50*'MSW Generated'!L50 -> 6609820 | M50: =AU50*'MSW Generated'!M50 -> 6095458.609 | N50: =AV50*'MSW Generated'!N50 -> 5569394.176 | O50: =AW50*'MSW Generated'!O50 -> 6282886.288 | P50: =AX50*'MSW Generated'!P50 -> 7038085.975 | Q50: =AY50*'MSW Generated'!Q50 -> 7102968.846 | R50: 5935127 | S50: =BA50*'MSW Generated'!S50 -> 6578633.084 | T50: =BB50*'MSW Generated'!T50 -> 7222139.168 | U50: =BC50*'MSW Generated'!U50 -> 4529412.503 | V50: =BD50*'MSW Generated'!V50 -> 4655131.653 | W50: =BE50*'MSW Generated'!W50 -> 4672190.888 | X50: =BF50*'MSW Generated'!X50 -> 4678124.536 | Y50: =BG50*'MSW Generated'!Y50 -> 4729673.096 | Z50: =BH50*'MSW Generated'!Z50 -> 4791420.112 | AA50: =BI50*'MSW Generated'!AA50 -> 4860213.334 | AB50: =BJ50*'MSW Generated'!AB50 -> 4947549.204 | AC50: =BK50*'MSW Generated'!AC50 -> 4965535.572 | AD50: =BL50*'MSW Generated'!AD50 -> 4965535.572 | AE50: =BM50*'MSW Generated'!AE50 -> 0 | AF50: =BN50*'MSW Generated'!AF50 -> 0 | AI50: VA | AJ50: 0.8 | AK50: 0.8 | AL50: 0.58 | AM50: 0.58 | AN50: 0.54 | AO50: 0.49 | AP50: 0.47 | AQ50: 0.47 | AR50: 0.42 | AS50: 0.56 | AT50: 0.62 | AU50: 0.566 | AV50: 0.512 | AW50: 0.5495 | AX50: 0.587 | AY50: 0.587 | AZ50: =R50/'MSW Generated'!R50 -> 0.4860479383 | BA50: 0.4860479383 | BB50: 0.4860479383 | BC50: 0.4860479383 | BD50: 0.4860479383 | BE50: 0.4860479383 | BF50: 0.4860479383 | BG50: 0.4860479383 | BH50: 0.4860479383 | BI50: 0.4860479383 | BJ50: 0.4860479383 | BK50: 0.4860479383 | BL50: 0.4860479383
A51: WA | B51: =AJ51*'MSW Generated'!B51 -> 3584000 | C51: =AK51*'MSW Generated'!C51 -> 3009000 | D51: =AL51*'MSW Generated'!D51 -> 3710200 | E51: =AM51*'MSW Generated'!E51 -> 3474720 | F51: =AN51*'MSW Generated'!F51 -> 3647280 | G51: =AO51*'MSW Generated'!G51 -> 3963680 | H51: =AP51*'MSW Generated'!H51 -> 3653650 | I51: =AQ51*'MSW Generated'!I51 -> 3132960 | J51: =AR51*'MSW Generated'!J51 -> 3858600 | K51: =AS51*'MSW Generated'!K51 -> 4447460 | L51: =AT51*'MSW Generated'!L51 -> 4243200 | M51: =AU51*'MSW Generated'!M51 -> 6292953.805 | N51: =AV51*'MSW Generated'!N51 -> 6303424.61 | O51: =AW51*'MSW Generated'!O51 -> 5313291.976 | P51: =AX51*'MSW Generated'!P51 -> 4377836.43 | Q51: =AY51*'MSW Generated'!Q51 -> 4520810.085 | R51: 5262632 | S51: =BA51*'MSW Generated'!S51 -> 4980051.361 | T51: =BB51*'MSW Generated'!T51 -> 4697470.722 | U51: =BC51*'MSW Generated'!U51 -> 2946049.934 | V51: =BD51*'MSW Generated'!V51 -> 3027821.001 | W51: =BE51*'MSW Generated'!W51 -> 3038916.78 | X51: =BF51*'MSW Generated'!X51 -> 3042776.181 | Y51: =BG51*'MSW Generated'!Y51 -> 3076304.731 | Z51: =BH51*'MSW Generated'!Z51 -> 3116466.627 | AA51: =BI51*'MSW Generated'!AA51 -> 3161211.562 | AB51: =BJ51*'MSW Generated'!AB51 -> 3218017.126 | AC51: =BK51*'MSW Generated'!AC51 -> 3229715.936 | AD51: =BL51*'MSW Generated'!AD51 -> 3229715.936 | AE51: =BM51*'MSW Generated'!AE51 -> 0 | AF51: =BN51*'MSW Generated'!AF51 -> 0 | AI51: WA | AJ51: 0.64 | AK51: 0.59 | AL51: 0.65 | AM51: 0.57 | AN51: 0.56 | AO51: 0.56 | AP51: 0.55 | AQ51: 0.48 | AR51: 0.59 | AS51: 0.67 | AT51: 0.6 | AU51: 0.601 | AV51: 0.602 | AW51: 0.5815 | AX51: 0.561 | AY51: 0.561 | AZ51: =R51/'MSW Generated'!R51 -> 0.6330346167 | BA51: 0.6330346167 | BB51: 0.6330346167 | BC51: 0.6330346167 | BD51: 0.6330346167 | BE51: 0.6330346167 | BF51: 0.6330346167 | BG51: 0.6330346167 | BH51: 0.6330346167 | BI51: 0.6330346167 | BJ51: 0.6330346167 | BK51: 0.6330346167 | BL51: 0.6330346167
A52: WV | B52: =AJ52*'MSW Generated'!B52 -> 1572500 | C52: =AK52*'MSW Generated'!C52 -> 1530000 | D52: =AL52*'MSW Generated'!D52 -> 1530000 | E52: =AM52*'MSW Generated'!E52 -> 1496000 | F52: =AN52*'MSW Generated'!F52 -> 1760000 | G52: =AO52*'MSW Generated'!G52 -> 1740000 | H52: =AP52*'MSW Generated'!H52 -> 1740000 | I52: =AQ52*'MSW Generated'!I52 -> 1600000 | J52: =AR52*'MSW Generated'!J52 -> 1600000 | K52: =AS52*'MSW Generated'!K52 -> 975000 | L52: =AT52*'MSW Generated'!L52 -> 1125000 | M52: =AU52*'MSW Generated'!M52 -> 1455658.168 | N52: =AV52*'MSW Generated'!N52 -> 1828289.421 | O52: =AW52*'MSW Generated'!O52 -> 1762529.633 | P52: =AX52*'MSW Generated'!P52 -> 1696769.844 | Q52: =AY52*'MSW Generated'!Q52 -> 1830767.278 | R52: 1772720 | S52: =BA52*'MSW Generated'!S52 -> 1772720 | T52: =BB52*'MSW Generated'!T52 -> 1772720 | U52: =BC52*'MSW Generated'!U52 -> 1111773.111 | V52: =BD52*'MSW Generated'!V52 -> 1142631.676 | W52: =BE52*'MSW Generated'!W52 -> 1146818.974 | X52: =BF52*'MSW Generated'!X52 -> 1148275.426 | Y52: =BG52*'MSW Generated'!Y52 -> 1160928.348 | Z52: =BH52*'MSW Generated'!Z52 -> 1176084.545 | AA52: =BI52*'MSW Generated'!AA52 -> 1192970.279 | AB52: =BJ52*'MSW Generated'!AB52 -> 1214407.424 | AC52: =BK52*'MSW Generated'!AC52 -> 1218822.293 | AD52: =BL52*'MSW Generated'!AD52 -> 1218822.293 | AE52: =BM52*'MSW Generated'!AE52 -> 0 | AF52: =BN52*'MSW Generated'!AF52 -> 0 | AI52: WV | AJ52: 0.925 | AK52: 0.9 | AL52: 0.9 | AM52: 0.88 | AN52: 0.88 | AO52: 0.87 | AP52: 0.87 | AQ52: 0.8 | AR52: 0.8 | AS52: 0.75 | AT52: 0.75 | AU52: 0.8405 | AV52: 0.931 | AW52: 0.931 | AX52: 0.931 | AY52: 0.931 | AZ52: =R52/'MSW Generated'!R52 -> 0.839999981 | BA52: 0.839999981 | BB52: 0.839999981 | BC52: 0.839999981 | BD52: 0.839999981 | BE52: 0.839999981 | BF52: 0.839999981 | BG52: 0.839999981 | BH52: 0.839999981 | BI52: 0.839999981 | BJ52: 0.839999981 | BK52: 0.839999981 | BL52: 0.839999981
A53: WI | B53: =AJ53*'MSW Generated'!B53 -> 6720000 | C53: =AK53*'MSW Generated'!C53 -> 2720000 | D53: =AL53*'MSW Generated'!D53 -> 2413440 | E53: =AM53*'MSW Generated'!E53 -> 3700000 | F53: =AN53*'MSW Generated'!F53 -> 3749460 | G53: =AO53*'MSW Generated'!G53 -> 3749460 | H53: =AP53*'MSW Generated'!H53 -> 3043040 | I53: =AQ53*'MSW Generated'!I53 -> 2209420 | J53: =AR53*'MSW Generated'!J53 -> 3416000 | K53: =AS53*'MSW Generated'!K53 -> 2440000 | L53: =AT53*'MSW Generated'!L53 -> 2226000 | M53: =AU53*'MSW Generated'!M53 -> 3069944.46 | N53: =AV53*'MSW Generated'!N53 -> 4026860.64 | O53: =AW53*'MSW Generated'!O53 -> 3745649.185 | P53: =AX53*'MSW Generated'!P53 -> 3473171 | Q53: =AY53*'MSW Generated'!Q53 -> 3647917.975 | R53: 3540157 | S53: =BA53*'MSW Generated'!S53 -> 3320299.121 | T53: =BB53*'MSW Generated'!T53 -> 3100441.242 | U53: =BC53*'MSW Generated'!U53 -> 1944462.299 | V53: =BD53*'MSW Generated'!V53 -> 1998433.127 | W53: =BE53*'MSW Generated'!W53 -> 2005756.603 | X53: =BF53*'MSW Generated'!X53 -> 2008303.899 | Y53: =BG53*'MSW Generated'!Y53 -> 2030433.53 | Z53: =BH53*'MSW Generated'!Z53 -> 2056941.327 | AA53: =BI53*'MSW Generated'!AA53 -> 2086474.037 | AB53: =BJ53*'MSW Generated'!AB53 -> 2123967.047 | AC53: =BK53*'MSW Generated'!AC53 -> 2131688.537 | AD53: =BL53*'MSW Generated'!AD53 -> 2131688.537 | AE53: =BM53*'MSW Generated'!AE53 -> 0 | AF53: =BN53*'MSW Generated'!AF53 -> 0 | AI53: WI | AJ53: 0.96 | AK53: 0.8 | AL53: 0.72 | AM53: 0.74 | AN53: 0.69 | AO53: 0.69 | AP53: 0.56 | AQ53: 0.61 | AR53: 0.61 | AS53: =AR53 -> 0.61 | AT53: 0.6 | AU53: 0.66 | AV53: 0.72 | AW53: 0.685 | AX53: 0.65 | AY53: 0.65 | AZ53: =R53/'MSW Generated'!R53 -> 0.6019627878 | BA53: 0.6019627878 | BB53: 0.6019627878 | BC53: 0.6019627878 | BD53: 0.6019627878 | BE53: 0.6019627878 | BF53: 0.6019627878 | BG53: 0.6019627878 | BH53: 0.6019627878 | BI53: 0.6019627878 | BJ53: 0.6019627878 | BK53: 0.6019627878 | BL53: 0.6019627878
A54: WY | B54: =AJ54*'MSW Generated'!B54 -> 291000 | C54: =AK54*'MSW Generated'!C54 -> 310400 | D54: =AL54*'MSW Generated'!D54 -> 307200 | E54: =AM54*'MSW Generated'!E54 -> 307200 | F54: =AN54*'MSW Generated'!F54 -> 478800 | G54: =AO54*'MSW Generated'!G54 -> 507840 | H54: =AP54*'MSW Generated'!H54 -> 508800 | I54: =AQ54*'MSW Generated'!I54 -> 503500 | J54: =AR54*'MSW Generated'!J54 -> 503500 | K54: =AS54*'MSW Generated'!K54 -> 503500 | L54: =AT54*'MSW Generated'!L54 -> 505520 | M54: =AU54*'MSW Generated'!M54 -> 585312.5 | N54: =AV54*'MSW Generated'!N54 -> 670406 | O54: =AW54*'MSW Generated'!O54 -> 662676 | P54: =AX54*'MSW Generated'!P54 -> 654810 | Q54: =AY54*'MSW Generated'!Q54 -> 652290.405 | R54: 611490 | S54: =BA54*'MSW Generated'!S54 -> 680423.1751 | T54: =BB54*'MSW Generated'!T54 -> 749356.3502 | U54: =BC54*'MSW Generated'!U54 -> 469963.8075 | V54: =BD54*'MSW Generated'!V54 -> 483008.2035 | W54: =BE54*'MSW Generated'!W54 -> 484778.2395 | X54: =BF54*'MSW Generated'!X54 -> 485393.9042 | Y54: =BG54*'MSW Generated'!Y54 -> 490742.4914 | Z54: =BH54*'MSW Generated'!Z54 -> 497149.2522 | AA54: =BI54*'MSW Generated'!AA54 -> 504287.115 | AB54: =BJ54*'MSW Generated'!AB54 -> 513348.9299 | AC54: =BK54*'MSW Generated'!AC54 -> 515215.1635 | AD54: =BL54*'MSW Generated'!AD54 -> 515215.1635 | AE54: =BM54*'MSW Generated'!AE54 -> 0 | AF54: =BN54*'MSW Generated'!AF54 -> 0 | AI54: WY | AJ54: 0.97 | AK54: 0.97 | AL54: 0.96 | AM54: 0.96 | AN54: 0.95 | AO54: 0.96 | AP54: 0.96 | AQ54: 0.95 | AR54: 0.95 | AS54: =AR54 -> 0.95 | AT54: 0.89 | AU54: 0.9365 | AV54: 0.983 | AW54: 0.966 | AX54: 0.949 | AY54: 0.949 | AZ54: =R54/'MSW Generated'!R54 -> 0.8930903036 | BA54: 0.8930903036 | BB54: 0.8930903036 | BC54: 0.8930903036 | BD54: 0.8930903036 | BE54: 0.8930903036 | BF54: 0.8930903036 | BG54: 0.8930903036 | BH54: 0.8930903036 | BI54: 0.8930903036 | BJ54: 0.8930903036 | BK54: 0.8930903036 | BL54: 0.8930903036
A55: US | B55: =AJ55*'MSW Generated'!B55 -> 222309880 | C55: =AK55*'MSW Generated'!C55 -> 213313000 | D55: =AL55*'MSW Generated'!D55 -> 210054240 | E55: =AM55*'MSW Generated'!E55 -> 217874860 | F55: =AN55*'MSW Generated'!F55 -> 216328930 | G55: =AO55*'MSW Generated'!G55 -> 209606670 | H55: =AP55*'MSW Generated'!H55 -> 203025200 | I55: =AQ55*'MSW Generated'!I55 -> 207684260 | J55: =AR55*'MSW Generated'!J55 -> 228524910 | K55: =AS55*'MSW Generated'!K55 -> 229556400 | L55: =AT55*'MSW Generated'!L55 -> 249507690 | M55: =AU55*'MSW Generated'!M55 -> 282254694.6 | N55: =AV55*'MSW Generated'!N55 -> 316697764.8 | O55: =AW55*'MSW Generated'!O55 -> 321632167.3 | P55: =AX55*'MSW Generated'!P55 -> 326368685.8 | Q55: =AY55*'MSW Generated'!Q55 -> 295555564.5 | R55: 266412964 | S55: =BA55*'MSW Generated'!S55 -> 258825075.5 | T55: =BB55*'MSW Generated'!T55 -> 251237187 | U55: =BC55*'MSW Generated'!U55 -> 157565068.9 | V55: =BD55*'MSW Generated'!V55 -> 161938472 | W55: =BE55*'MSW Generated'!W55 -> 162531913.1 | X55: =BF55*'MSW Generated'!X55 -> 162738327.4 | Y55: =BG55*'MSW Generated'!Y55 -> 164531551.7 | Z55: =BH55*'MSW Generated'!Z55 -> 166679550.5 | AA55: =BI55*'MSW Generated'!AA55 -> 169072666.4 | AB55: =BJ55*'MSW Generated'!AB55 -> 172110826.9 | AC55: =BK55*'MSW Generated'!AC55 -> 172736520.3 | AD55: =BL55*'MSW Generated'!AD55 -> 172736520.3 | AE55: =BM55*'MSW Generated'!AE55 -> 0 | AF55: =BN55*'MSW Generated'!AF55 -> 0 | AI55: US | AJ55: =AK55 -> 0.76 | AK55: 0.76 | AL55: 0.72 | AM55: 0.71 | AN55: 0.67 | AO55: 0.63 | AP55: 0.62 | AQ55: 0.61 | AR55: 0.61 | AS55: 0.6 | AT55: 0.61 | AU55: 0.633 | AV55: 0.656 | AW55: 0.6485 | AX55: 0.641 | AY55: 0.641 | AZ55: =R55/'MSW Generated'!R55 -> 0.6450447002 | BA55: 0.6450447002 | BB55: 0.6450447002 | BC55: 0.6450447002 | BD55: 0.6450447002 | BE55: 0.6450447002 | BF55: 0.6450447002 | BG55: 0.6450447002 | BH55: 0.6450447002 | BI55: 0.6450447002 | BJ55: 0.6450447002 | BK55: 0.6450447002 | BL55: 0.6450447002
AI56: Note: red text indicates that data were not available from BioCycle and previous year's value for % landfilled was assumed.
A57: SELECTED
A58: =SelectedState -> XX | B58: =_xlfn.IFNA(VLOOKUP($A$58,$A$4:$AF$54,B3,FALSE),0) -> 0 | C58: =_xlfn.IFNA(VLOOKUP($A$58,$A$4:$AF$54,C3,FALSE),0) -> 0 | D58: 0 | E58: 0 | F58: 0 | G58: 0 | H58: 0 | I58: 0 | J58: 0 | K58: 0 | L58: 0 | M58: 0 | N58: 0 | O58: 0 | P58: 0 | Q58: 0 | R58: 0 | S58: 0 | T58: 0 | U58: 0 | V58: 0 | W58: 0 | X58: 0 | Y58: 0 | Z58: 0 | AA58: 0 | AB58: 0 | AC58: 0 | AD58: 0 | AE58: 0 | AF58: 0
M115: =M4-M62 -> 3490400.588 | N115: 3785801.177 | O115: 4592789.029 | P115: 5473835.056 | Q115: 5843293.82
M116: 573365.0467 | N116: 584210.0933 | O116: 622630.866 | P116: 662056.7893 | Q116: 673906.9867
M117: 4432090 | N117: 4093650 | O117: 4697510.769 | P117: 5283575.787 | Q117: 5933120.68
M118: 1778554.966 | N118: 2530082.744 | O118: 2764574.417 | P118: 2974338.15 | Q118: 2857361.665
M119: 39738275 | N119: 41832000 | O119: 43845750 | P119: 45883100 | Q119: 37644757
M120: 6649708.104 | N120: 7458912.216 | O120: 7045979.402 | P120: 6636966.342 | Q120: 7116015.356
M121: 808432.2105 | N121: 1257943.122 | O121: 813017.3565 | P121: 373829.125 | Q121: 370085.411
M122: 1450879.807 | N122: 2186775.18 | O122: 1769918.715 | P122: 1287552 | Q122: 1086593.984
M123: =M13-M70 -> 13111542.41 | N123: 12297111.65 | O123: 13512751.46 | P123: 14777076.75 | Q123: 13367420.97
M124: 8863278.496 | N124: 11232213.54 | O124: 11018022.02 | P124: 10805147.62 | Q124: 10634673.53
M125: 745739.468 | N125: 643060.152 | O125: 680484.8207 | P125: 716603.685 | Q125: 762306.8425
M126: 987904 | N126: 998440 | O126: 996608 | P126: 994776 | Q126: 1064572.452
M127: 10571182.51 | N127: 10414231.43 | O127: 18104580.91 | P127: 25146613.76 | Q127: 20803250.27
M128: 8865447.64 | N128: 9412717.92 | O128: 9182863.692 | P128: 8939716.5 | Q128: 8540927.55
M129: 2046937.546 | N129: 2193906.984 | O129: 2214324.924 | P129: 2234308.596 | Q129: 2400053.955
M130: 4867178.4 | N130: 6943780.8 | O130: 4694570.342 | P130: 2620425.428 | Q130: 2964452.274
M131: 4321441.478 | N131: 5778913.71 | O131: 5288185.64 | P131: 4814896.75 | Q131: 5463950.725
M132: 2900423.98 | N132: 3007272.189 | O132: 3461240.437 | P132: 3850600.957 | Q132: 4424428.732
M133: =M23-M80 -> 352215.269 | N133: 317178.148 | O133: 614385.063 | P133: 937279.072 | Q133: 974014.184
M134: 4220693.444 | N134: 6122739.336 | O134: 5004972.867 | P134: 3975910.96 | Q134: 3705382.205
M135: 2355329.751 | N135: 2598241.953 | O135: 2535294.472 | P135: 2470666.02 | Q135: 2572693.01
M136: 14244497.87 | N136: 14833542.72 | O136: 13428272.16 | P136: 12055938.46 | Q136: 10867074.96
M137: 1851123.537 | N137: 1723292.099 | O137: 1939231.48 | P137: 2158491.2 | Q137: 2143281.007
M138: 3816141.549 | N138: 3897779.476 | O138: 3695281.131 | P138: 3495106.992 | Q138: 3319182.552
M139: 6515764.623 | N139: 6649081.312 | O139: 6871071.254 | P139: 7092293.73 | Q139: 6557666.289
M140: 830589.83 | N140: 987449.66 | O140: 1113451.706 | P140: 1230993.896 | Q140: 1217547.577
M141: 1935241.608 | N141: 2026255.446 | O141: 2019013.686 | P141: 2011771.926 | Q141: 2004530.166
M142: 3688745.876 | N142: 4473716.926 | O142: 5131216.386 | P142: 5756857.971 | Q142: 4091753.486
M143: =M33-M90 -> 727063.993 | N143: 788593.212 | O143: 1020610.311 | P143: 1250231.472 | Q143: 998429.292
M144: 4430666.717 | N144: 4707803.166 | O144: 4440777.729 | P144: 4925123.28 | Q144: 5587795.85
M145: 2945878.751 | N145: 2775761.615 | O145: 2947636.913 | P145: 3115154.1 | Q145: 2529788.34
M146: 13845261 | N146: 13160304 | O146: 13880826 | P146: 13687500 | Q146: 10909970.44
M147: 10840500 | N147: 11826000 | O147: 9084983.88 | P147: 6537254.856 | Q147: 6567228.378
M148: 544099.996 | N148: 578756.424 | O148: 584536.653 | P148: 587003.56 | Q148: 564328.1
M149: 10689844.39 | N149: 10517981.94 | O149: 11080285.19 | P149: 11613157.06 | Q149: 12020507.66
M150: 3889733.16 | N150: 4444137.72 | O150: 4579925.22 | P150: 4672074.834 | Q150: 4273964.73
M151: 2382704.082 | N151: 2209684.168 | O151: 2452771.075 | P151: 2708325.532 | Q151: 2474049.809
M152: 6002354.617 | N152: 6169979.466 | O152: 6218947.557 | P152: 6267915.648 | Q152: 7881998.976
M153: =M43-M100 -> 1247761.92 | N153: 1305593.28 | O153: 1358222.13 | P153: 1410968.12 | Q153: 1296069.458
M154: 5210860.982 | N154: 7761498.319 | O154: 5511577.254 | P154: 3104153.745 | Q154: 3345448.652
M155: 465775 | N155: 667360 | O155: 648930 | P155: 630500 | Q155: 733114.36
M156: 4764019.401 | N156: 7054170.904 | O156: 7369715.936 | P156: 7472961.422 | Q156: 7265657.965
M157: 31554372.75 | N157: 34020300 | O157: 35270976.17 | P157: 36535116.05 | Q157: 30690302.97
M158: 2211886.204 | N158: 2234149.216 | O158: 2233123.402 | P158: 2220552.928 | Q158: 2276124.708
M159: 376690.5 | N159: 426300 | O159: 412708.389 | P159: 398838.413 | Q159: 398807.1535
M160: 6095458.609 | N160: 5569394.176 | O160: 6282886.288 | P160: 7038085.975 | Q160: 7102968.846
M161: 6292953.805 | N161: 6303424.61 | O161: 5313291.976 | P161: 4377836.43 | Q161: 4520810.085
M162: 1455658.168 | N162: 1828289.421 | O162: 1762529.633 | P162: 1696769.844 | Q162: 1830767.278
M163: =M53-M110 -> 3069944.46 | N163: 4026860.64 | O163: 3745649.185 | P163: 3473171 | Q163: 3647917.975
M164: 585312.5 | N164: 670406 | O164: 662676 | P164: 654810 | Q164: 652290.405

Sheet MSW Discarded
A1: U.S. MSW Discarded by Material (short tons)
B2: Sources: U.S. EPA. 2019. Advancing Sustainable Materials Management: 2016 and 2017 Tables and Figures. U.S. EPA, Washington, DC, November 2019. https://www.epa.gov/facts-and-figures-about-materials-waste-and-recycling/advancing-sustainable-materials-management; U.S. EPA. 2018. Advancing Sustainable Materials Management: 2015 Tables and Figures. U.S. EPA, Washington, DC, July 2018. https://www.epa.gov/facts-and-figures-about-materials-waste-and-recycling/advancing-sustainable-materials-management
B3: U.S. EPA. 2003. Municipal Solid Waste in the United States: 2001 Facts and Figures. Office of Solid Waste and Emergency Response, U.S. EPA, Washington, DC, October 2003. EPA530-R-03-011.
B4: U.S. EPA. 2002a. Municipal Solid Waste in the United States: 2000 Facts and Figures. Office of Solid Waste and Emergency Response, U.S. EPA, Washington, DC, June 2002. EPA530-R-02-001.
B5: U.S. EPA. 2000. Characterization of Municipal Solid Waste in the United States: 1999 Facts and Figures. Office of Solid Waste and Emergency Response, U.S. EPA, Washington, DC,
B6: U.S. MSW Discarded after Recovery (short tons)
B7: Material | C7: 1990 | D7: 1991 | E7: 1992 | F7: 1993 | G7: 1994 | H7: 1995 | I7: 1996 | J7: 1997 | K7: 1998 | L7: 1999 | M7: 2000 | N7: 2001 | O7: 2002 | P7: 2003 | Q7: 2004 | R7: 2005 | S7: 2006 | T7: 2007 | U7: 2008 | V7: 2009 | W7: 2010 | X7: 2011 | Y7: 2012 | Z7: 2013 | AA7: 2014 | AB7: 2015 | AC7: 2016 | AD7: 2017 | AE7: 2018 | AF7: 2019 | AG7: 2020
B8: Plasticsa | C8: 17130000 | D8: 17260000 | E8: 17810000 | F8: 18300000 | G8: 18320000 | H8: =SUM(H9:H15) -> 17990000 | I8: 18700000 | J8: =SUM(J9:J15) -> 20350000 | K8: =SUM(K9:K15) -> 21160000 | L8: =SUM(L9:L15) -> 22820000 | M8: 25550000 | N8: 23990000 | O8: 24950000 | P8: 25260000 | Q8: =AVERAGE(P8,R8) -> 27320000 | R8: 29380000 | S8: 29410000 | T8: 28640000 | U8: 30260000 | V8: 27710000 | W8: 31290000 | X8: 31840000 | Y8: 31750000 | Z8: 32520000 | AA8: 33250000 | AB8: 34500000 | AC8: 34870000 | AD8: 35370000 | AE8: =AD8 -> 35370000
B9: PET | C9: =($H9/$H$8)*$C$8 -> 1266420.233 | D9: =($H9/$H$8)*$D$8 -> 1276031.128 | E9: =($H9/$H$8)*$E$8 -> 1316692.607 | F9: =($H9/$H$8)*$F$8 -> 1352918.288 | G9: =(H9/$H$8)*$G$8 -> 1354396.887 | H9: 1330000 | I9: 1350000 | J9: 1540000 | K9: 1840000 | L9: 1960000 | M9: 2060000 | N9: 2110000 | O9: =SUM(N9,P9)/SUM($N$8,$P$8)*$O$8 -> 2315157.36 | P9: 2460000 | Q9: =AVERAGE(P9,R9) -> 2660000 | R9: 2860000 | S9: 3060000 | T9: 3080000 | U9: 3010000 | V9: 2800000 | W9: 3200000 | X9: 4280000 | Y9: 4520000 | Z9: 4680000 | AA9: 5070000 | AB9: 5100000 | AC9: 5020000 | AD9: 5010000 | AE9: =AD9 -> 5010000
B10: HDPE | C10: 2999416.342 | D10: =($H10/$H$8)*$D$8 -> 3022178.988 | E10: =($H10/$H$8)*$E$8 -> 3118482.49 | F10: =($H10/$H$8)*$F$8 -> 3204280.156 | G10: =(H10/$H$8)*$G$8 -> 3207782.101 | H10: 3150000 | I10: 3710000 | J10: 4210000 | K10: 4520000 | L10: 4850000 | M10: 4410000 | N10: 4490000 | O10: 4640446.701 | P10: 4670000 | Q10: =AVERAGE(P10,R10) -> 5280000 | R10: 5890000 | S10: 6040000 | T10: 5080000 | U10: 4780000 | V10: 4620000 | W10: 4880000 | X10: 5590000 | Y10: 5530000 | Z10: 5580000 | AA10: 5830000 | AB10: 6040000 | AC10: 6010000 | AD10: 6150000 | AE10: 6150000
B11: PVC | C11: 1428293.496 | D11: 1439132.852 | E11: 1484991.662 | F11: 1525847.693 | G11: 1527515.286 | H11: 1500000 | I11: 1230000 | J11: 1320000 | K11: 1370000 | L11: 1450000 | M11: 1390000 | N11: 1420000 | O11: 1464071.066 | P11: 1470000 | Q11: 1555000 | R11: 1640000 | S11: 1670000 | T11: 1660000 | U11: 1660000 | V11: 1120000 | W11: 910000 | X11: 900000 | Y11: 870000 | Z11: 900000 | AA11: 840000 | AB11: 890000 | AC11: 930000 | AD11: 960000 | AE11: 960000
B12: LDPE/LLDPE | C12: 4799066.148 | D12: 4835486.381 | E12: 4989571.984 | F12: 5126848.249 | G12: 5132451.362 | H12: 5040000 | I12: 4900000 | J12: 5280000 | K12: 5200000 | L12: 5890000 | M12: 5590000 | N12: 5730000 | O12: 5972802.03 | P12: 6060000 | Q12: 6255000 | R12: 6450000 | S12: 6560000 | T12: 6090000 | U12: 5550000 | V12: 5980000 | W12: 7010000 | X12: 7520000 | Y12: 7350000 | Z12: 7460000 | AA12: 7710000 | AB12: 7930000 | AC12: 7930000 | AD12: 8080000 | AE12: 8080000
B13: PP | C13: 2647103.947 | D13: 2667192.885 | E13: 2752184.547 | F13: 2827904.391 | G13: 2830994.997 | H13: 2780000 | I13: 2450000 | J13: 2670000 | K13: 2670000 | L13: 2940000 | M13: 3340000 | N13: 3450000 | O13: 3571522.843 | P13: 3600000 | Q13: 3800000 | R13: 4000000 | S13: 4050000 | T13: 4560000 | U13: 4120000 | V13: 5480000 | W13: 7490000 | X13: 7180000 | Y13: 7190000 | Z13: 7400000 | AA13: 7110000 | AB13: 7730000 | AC13: 7800000 | AD13: 8000000 | AE13: 8000000
B14: PS | C14: 2123396.331 | D14: 2139510.839 | E14: 2207687.604 | F14: 2268426.904 | G14: 2270906.059 | H14: 2230000 | I14: 1960000 | J14: 2090000 | K14: 2150000 | L14: 2270000 | M14: 2280000 | N14: 2290000 | O14: 2310091.371 | P14: 2270000 | Q14: 2430000 | R14: 2590000 | S14: 2550000 | T14: 2600000 | U14: 2600000 | V14: 2450000 | W14: 2040000 | X14: 2170000 | Y14: 2240000 | Z14: 2270000 | AA14: 2330000 | AB14: 2370000 | AC14: 2350000 | AD14: 2350000 | AE14: 2350000
B15: Other | C15: 1866303.502 | D15: 1880466.926 | E15: 1940389.105 | F15: 1993774.319 | G15: 1995953.307 | H15: 1960000 | I15: 3100000 | J15: 3240000 | K15: 3410000 | L15: 3460000 | M15: 4300000 | N15: 4500000 | O15: 4675908.629 | P15: 4730000 | Q15: 5105000 | R15: 5480000 | S15: 5560000 | T15: 5570000 | U15: 6210000 | V15: 5260000 | W15: 2960000 | X15: 4150000 | Y15: 4000000 | Z15: 4180000 | AA15: 4300000 | AB15: 4380000 | AC15: 4740000 | AD15: 4730000 | AE15: 4730000
B16: Synthetic Rubber in MSW | C16: =C17+C18+C21 -> 3380000 | D16: 3380000 | E16: 3380000 | F16: 3380000 | G16: =G17+G18+G21 -> 3380000 | H16: 2970000 | I16: 3030000 | J16: 3140000 | K16: 3200000 | L16: 3240000 | M16: =M17+M18+M21 -> 3380000 | N16: =N17+N18+N21 -> 3560000 | O16: =O17+O18+O21 -> 3650000 | P16: =P17+P18+P21 -> 3740000 | Q16: =AVERAGE(P16,R16) -> 3840000 | R16: =R17+R18+R21 -> 3940000 | S16: 4050000 | T16: 4320000 | U16: 4410000 | V16: 4450000 | W16: 4480000 | X16: =X17+X18+X21 -> 4550000 | Y16: 4510000 | Z16: 4660000 | AA16: 4660000 | AB16: =AB17+AB18+AB21 -> 4730000 | AC16: 4830000 | AD16: =AD17+AD18+AD21 -> 4920000 | AE16: 4920000
B17: Other Durables | C17: =D17 -> 2080000 | D17: =E17 -> 2080000 | E17: =F17 -> 2080000 | F17: =G17 -> 2080000 | G17: 2080000 | H17: 2190000 | I17: 2220000 | J17: 2320000 | K17: 2360000 | L17: 2430000 | M17: 2540000 | N17: 2670000 | O17: =(N17+P17)/2 -> 2750000 | P17: 2830000 | Q17: 2875000 | R17: 2920000 | S17: 2950000 | T17: 3320000 | U17: 3340000 | V17: 3390000 | W17: 3440000 | X17: 3500000 | Y17: 3500000 | Z17: 3600000 | AA17: 3570000 | AB17: 3600000 | AC17: 3680000 | AD17: 3750000 | AE17: =AD17 -> 3750000
B18: Non-Durables | C18: =SUM(C19:C20) -> 1280000 | D18: 1280000 | E18: 1280000 | F18: 1280000 | G18: 1280000 | H18: 760000 | I18: 790000 | J18: 800000 | K18: 820000 | L18: 790000 | M18: =SUM(M19:M20) -> 810000 | N18: =SUM(N19:N20) -> 870000 | O18: =SUM(O19:O20) -> 875000 | P18: =SUM(P19:P20) -> 880000 | Q18: 935000 | R18: 990000 | S18: 1060000 | T18: 970000 | U18: 1040000 | V18: 1060000 | W18: 1040000 | X18: 1050000 | Y18: =Y19+Y20 -> 1010000 | Z18: 1060000 | AA18: 1090000 | AB18: 1130000 | AC18: 1150000 | AD18: 1170000 | AE18: =AE19+AE20 -> 1170000
B19: Clothing and Footwear | C19: =D19 -> 1050000 | D19: 1050000 | E19: 1050000 | F19: 1050000 | G19: 1050000 | H19: 540000 | I19: 560000 | J19: 570000 | K19: 580000 | L19: 540000 | M19: 540000 | N19: 580000 | O19: =(N19+P19)/2 -> 580000 | P19: 580000 | Q19: 640000 | R19: 700000 | S19: 780000 | T19: 690000 | U19: 760000 | V19: 790000 | W19: 790000 | X19: 800000 | Y19: 770000 | Z19: 810000 | AA19: 830000 | AB19: 860000 | AC19: 880000 | AD19: 890000 | AE19: =AD19 -> 890000
B20: Other Non-Durables | C20: 230000 | D20: 230000 | E20: 230000 | F20: 230000 | G20: 230000 | H20: 220000 | I20: 230000 | J20: 230000 | K20: 240000 | L20: 250000 | M20: 270000 | N20: 290000 | O20: =(N20+P20)/2 -> 295000 | P20: 300000 | Q20: 295000 | R20: 290000 | S20: 280000 | T20: 280000 | U20: 280000 | V20: 270000 | W20: 250000 | X20: 250000 | Y20: 240000 | Z20: 250000 | AA20: 260000 | AB20: 270000 | AC20: 270000 | AD20: 280000 | AE20: 280000
B21: Containers and Packaging | C21: 20000 | D21: 20000 | E21: 20000 | F21: 20000 | G21: 20000 | H21: 20000 | I21: 20000 | J21: 20000 | K21: 20000 | L21: 20000 | M21: 30000 | N21: 20000 | O21: =(N21+P21)/2 -> 25000 | P21: 30000 | Q21: 30000 | R21: 30000 | S21: 40000 | T21: 30000 | U21: 30000 | V21: 0 | W21: 0 | X21: 0 | Y21: 0 | Z21: 0 | AA21: 0 | AB21: =AA21 -> 0 | AC21: 0 | AD21: 0 | AE21: 0
B22: Synthetic Fibers | C22: 5150000 | D22: 5360000 | E22: 5840000 | F22: 6020000 | G22: 6390000 | H22: 6500000 | I22: 6770000 | J22: 7180000 | K22: 7480000 | L22: 7830000 | M22: 8160000 | N22: 8370000 | O22: 8770000 | P22: 9110000 | Q22: 9200000 | R22: 9670000 | S22: 9990000 | T22: 10250000 | U22: 10800000 | V22: 11110000 | W22: 11150000 | X22: 11090000 | Y22: 12080000 | Z22: 12830000 | AA22: 13600000 | AB22: =3060000+10540000 -> 13600000 | AC22: =3240000+11130000 -> 14370000 | AD22: =3170000+11150000 -> 14320000 | AE22: =AD22 -> 14320000
B23: U.S. Total MSW | C23: 175030000 | D23: 159190000 | E23: 168380000 | F23: 160560000 | G23: 163550000 | H23: 157950000 | I23: 151890000 | J23: 159770000 | K23: 162270000 | L23: 165880000 | M23: 173080000 | N23: 161920000 | O23: 165020000 | P23: 167490000 | Q23: 171790000 | R23: 172810000 | S23: 172020000 | T23: 170570000 | U23: 167540000 | V23: 161370000 | W23: 164720000 | X23: 163570000 | Y23: 164470000 | Z23: 166930000 | AA23: 169060000 | AB23: =137610000+33550000 -> 171160000 | AC23: =139180000+33900000 -> 173080000 | AD23: =139590000+34030000 -> 173620000 | AE23: 173620000
B24: Rubber in Tires
B25: Note: 1995 plastic resins proportion were assumed for 1990-1994 as tonnage data by resin were unavailable. 1994 data for synthetic rubber in MSW were assumed for 1990-1993 as tonnage data were unavailable.

Sheet MSW Combusted
A1: MSW Combusted, By State (short tons) | AI1: Percent Combusted of MSW Generated
B2: 1990 | C2: 1991 | D2: 1992 | E2: 1993 | F2: 1994 | G2: 1995 | H2: 1996 | I2: 1997 | J2: 1998 | K2: 1999 | L2: 2000 | M2: 2001 | N2: 2002 | O2: 2003 | P2: 2004 | Q2: 2005 | R2: 2006 | S2: 2007 | T2: 2008 | U2: 2009 | V2: 2010 | W2: 2011 | X2: 2012 | Y2: 2013 | Z2: 2014 | AA2: 2015 | AB2: 2016 | AC2: 2017 | AD2: 2018 | AE2: 2019 | AF2: 2020 | AG2: combustion check | AI2: 1990 | AJ2: 1991 | AK2: 1992 | AL2: 1993 | AM2: 1994 | AN2: 1995 | AO2: 1996 | AP2: 1997 | AQ2: 1998 | AR2: 1999 | AS2: 2000 | AT2: 2001 | AU2: 2002 | AV2: 2003 | AW2: 2004 | AX2: 2005 | AY2: 2006 | AZ2: 2007 | BA2: 2008 | BB2: 2009 | BC2: 2010 | BD2: 2011 | BE2: 2012 | BF2: 2013 | BG2: 2014 | BH2: 2015 | BI2: 2016 | BJ2: 2017 | BK2: 2018 | BL2: 2019 | BM2: 2020
A3: BioCycle
A4: AL | B4: =AI4*'MSW Generated'!B4 -> 88000 | C4: =AJ4*'MSW Generated'!C4 -> 135000 | D4: =AK4*'MSW Generated'!D4 -> 416000 | E4: =AL4*'MSW Generated'!E4 -> 261500 | F4: =AM4*'MSW Generated'!F4 -> 265500 | G4: =AN4*'MSW Generated'!G4 -> 269600 | H4: =AO4*'MSW Generated'!H4 -> 273550 | I4: =AP4*'MSW Generated'!I4 -> 277450 | J4: =AQ4*'MSW Generated'!J4 -> 281500 | K4: =AR4*'MSW Generated'!K4 -> 285500 | L4: =AS4*'MSW Generated'!L4 -> 270000 | M4: =AT4*'MSW Generated'!M4 -> 294963.43 | N4: =AU4*'MSW Generated'!N4 -> 319926.86 | O4: =AV4*'MSW Generated'!O4 -> 252919.546 | P4: =AW4*'MSW Generated'!P4 -> 172598.4027 | Q4: =AX4*'MSW Generated'!Q4 -> 184248.0033 | R4: =AY4*'MSW Generated'!R4 -> 195897.604 | S4: =AZ4*'MSW Generated'!S4 -> 171971.422 | T4: =BA4*'MSW Generated'!T4 -> 148045.24 | U4: =BB4*'MSW Generated'!U4 -> 92847.55464 | V4: =BC4*'MSW Generated'!V4 -> 95424.64728 | W4: =BD4*'MSW Generated'!W4 -> 95774.34127 | X4: =BE4*'MSW Generated'!X4 -> 95895.97396 | Y4: =BF4*'MSW Generated'!Y4 -> 96952.65797 | Z4: =BG4*'MSW Generated'!Z4 -> 98218.39816 | AA4: =BH4*'MSW Generated'!AA4 -> 99628.57717 | AB4: =BI4*'MSW Generated'!AB4 -> 101418.8583 | AC4: =BJ4*'MSW Generated'!AC4 -> 101787.5574 | AD4: =BK4*'MSW Generated'!AD4 -> 101787.5574 | AE4: =BL4*'MSW Generated'!AE4 -> 0 | AF4: =BM4*'MSW Generated'!AF4 -> 0 | AG4: =IF(SUM(B4:Q4)>0,1,0) -> 1 | AI4: 0.02 | AJ4: 0.03 | AK4: 0.08 | AL4: 0.05 | AM4: 0.05 | AN4: 0.05 | AO4: 0.05 | AP4: 0.05 | AQ4: 0.05 | AR4: 0.05 | AS4: 0.06 | AT4: =AS4 -> 0.06 | AU4: =AT4 -> 0.06 | AV4: =AVERAGE(AU4,AW4) -> 0.044 | AW4: 0.028 | AX4: =AW4 -> 0.028 | AY4: =AX4 -> 0.028 | AZ4: =R4/'MSW Generated'!R4 -> 0.028 | BA4: =S4/'MSW Generated'!S4 -> 0.028 | BB4: =T4/'MSW Generated'!T4 -> 0.028 | BC4: =U4/'MSW Generated'!U4 -> 0.028 | BD4: =V4/'MSW Generated'!V4 -> 0.028 | BE4: =W4/'MSW Generated'!W4 -> 0.028 | BF4: =X4/'MSW Generated'!X4 -> 0.028 | BG4: =Y4/'MSW Generated'!Y4 -> 0.028 | BH4: =Z4/'MSW Generated'!Z4 -> 0.028 | BI4: =AA4/'MSW Generated'!AA4 -> 0.028 | BJ4: =AB4/'MSW Generated'!AB4 -> 0.028 | BK4: =AC4/'MSW Generated'!AC4 -> 0.028
A5: AK | B5: =AI5*'MSW Generated'!B5 -> 45990 | C5: =AJ5*'MSW Generated'!C5 -> 75000 | D5: =AK5*'MSW Generated'!D5 -> 75000 | E5: =AL5*'MSW Generated'!E5 -> 75000 | F5: =AM5*'MSW Generated'!F5 -> 75000 | G5: =AN5*'MSW Generated'!G5 -> 75000 | H5: =AO5*'MSW Generated'!H5 -> 75000 | I5: =AP5*'MSW Generated'!I5 -> 84000 | J5: =AQ5*'MSW Generated'!J5 -> 101250 | K5: =AR5*'MSW Generated'!K5 -> 74250 | L5: =AS5*'MSW Generated'!L5 -> 68600 | M5: =AT5*'MSW Generated'!M5 -> 69922.56667 | N5: =AU5*'MSW Generated'!N5 -> 71245.13333 | O5: =AV5*'MSW Generated'!O5 -> 46443.328 | P5: =AW5*'MSW Generated'!P5 -> 20689.27467 | Q5: =AX5*'MSW Generated'!Q5 -> 21059.59333 | R5: =AY5*'MSW Generated'!R5 -> 21429.912 | S5: =AZ5*'MSW Generated'!S5 -> 19720.498 | T5: =BA5*'MSW Generated'!T5 -> 18011.084 | U5: =BB5*'MSW Generated'!U5 -> 11295.77085 | V5: =BC5*'MSW Generated'!V5 -> 11609.2982 | W5: =BD5*'MSW Generated'!W5 -> 11651.84173 | X5: =BE5*'MSW Generated'!X5 -> 11666.63948 | Y5: =BF5*'MSW Generated'!Y5 -> 11795.19495 | Z5: =BG5*'MSW Generated'!Z5 -> 11949.18404 | AA5: =BH5*'MSW Generated'!AA5 -> 12120.74547 | AB5: =BI5*'MSW Generated'!AB5 -> 12338.54987 | AC5: =BJ5*'MSW Generated'!AC5 -> 12383.40555 | AD5: =BK5*'MSW Generated'!AD5 -> 12383.40555 | AE5: =BL5*'MSW Generated'!AE5 -> 0 | AF5: =BM5*'MSW Generated'!AF5 -> 0 | AG5: =IF(SUM(B5:Q5)>0,1,0) -> 1 | AI5: 0.09 | AJ5: 0.15 | AK5: 0.15 | AL5: 0.15 | AM5: 0.15 | AN5: 0.15 | AO5: 0.15 | AP5: 0.15 | AQ5: 0.15 | AR5: 0.11 | AS5: 0.1 | AT5: =AS5 -> 0.1 | AU5: =AT5 -> 0.1 | AV5: =AVERAGE(AU5,AW5) -> 0.064 | AW5: 0.028 | AX5: =AW5 -> 0.028 | AY5: 0.028 | AZ5: =R5/'MSW Generated'!R5 -> 0.028 | BA5: =S5/'MSW Generated'!S5 -> 0.028 | BB5: =T5/'MSW Generated'!T5 -> 0.028 | BC5: =U5/'MSW Generated'!U5 -> 0.028 | BD5: =V5/'MSW Generated'!V5 -> 0.028 | BE5: =W5/'MSW Generated'!W5 -> 0.028 | BF5: =X5/'MSW Generated'!X5 -> 0.028 | BG5: =Y5/'MSW Generated'!Y5 -> 0.028 | BH5: =Z5/'MSW Generated'!Z5 -> 0.028 | BI5: =AA5/'MSW Generated'!AA5 -> 0.028 | BJ5: =AB5/'MSW Generated'!AB5 -> 0.028 | BK5: =AC5/'MSW Generated'!AC5 -> 0.028
A6: AZ | B6: =AI6*'MSW Generated'!B6 -> 0 | C6: =AJ6*'MSW Generated'!C6 -> 0 | D6: =AK6*'MSW Generated'!D6 -> 0 | E6: =AL6*'MSW Generated'!E6 -> 0 | F6: =AM6*'MSW Generated'!F6 -> 0 | G6: =AN6*'MSW Generated'!G6 -> 0 | H6: =AO6*'MSW Generated'!H6 -> 0 | I6: =AP6*'MSW Generated'!I6 -> 0 | J6: =AQ6*'MSW Generated'!J6 -> 0 | K6: =AR6*'MSW Generated'!K6 -> 25935 | L6: =AS6*'MSW Generated'!L6 -> 0 | M6: =AT6*'MSW Generated'!M6 -> 0 | N6: =AU6*'MSW Generated'!N6 -> 0 | O6: =AV6*'MSW Generated'!O6 -> 0 | P6: =AW6*'MSW Generated'!P6 -> 0 | Q6: =AX6*'MSW Generated'!Q6 -> 0 | R6: =AY6*'MSW Generated'!R6 -> 0 | S6: =AZ6*'MSW Generated'!S6 -> 0 | T6: =BA6*'MSW Generated'!T6 -> 0 | U6: =BB6*'MSW Generated'!U6 -> 0 | V6: =BC6*'MSW Generated'!V6 -> 0 | W6: =BD6*'MSW Generated'!W6 -> 0 | X6: =BE6*'MSW Generated'!X6 -> 0 | Y6: =BF6*'MSW Generated'!Y6 -> 0 | Z6: =BG6*'MSW Generated'!Z6 -> 0 | AA6: =BH6*'MSW Generated'!AA6 -> 0 | AB6: =BI6*'MSW Generated'!AB6 -> 0 | AC6: =BJ6*'MSW Generated'!AC6 -> 0 | AD6: =BK6*'MSW Generated'!AD6 -> 0 | AE6: =BL6*'MSW Generated'!AE6 -> 0 | AF6: =BM6*'MSW Generated'!AF6 -> 0 | AG6: 1 | AI6: 0 | AJ6: 0 | AK6: 0 | AL6: 0 | AM6: 0 | AN6: 0 | AO6: 0 | AP6: 0 | AQ6: 0 | AR6: 0.005 | AS6: 0 | AT6: =AVERAGE(AS6,AU6) -> 0 | AU6: 0 | AV6: 0 | AW6: 0 | AX6: 0 | AY6: 0 | AZ6: =R6/'MSW Generated'!R6 -> 0 | BA6: =S6/'MSW Generated'!S6 -> 0 | BB6: =T6/'MSW Generated'!T6 -> 0 | BC6: =U6/'MSW Generated'!U6 -> 0 | BD6: =V6/'MSW Generated'!V6 -> 0 | BE6: =W6/'MSW Generated'!W6 -> 0 | BF6: =X6/'MSW Generated'!X6 -> 0 | BG6: =Y6/'MSW Generated'!Y6 -> 0 | BH6: =Z6/'MSW Generated'!Z6 -> 0 | BI6: =AA6/'MSW Generated'!AA6 -> 0 | BJ6: =AB6/'MSW Generated'!AB6 -> 0 | BK6: =AC6/'MSW Generated'!AC6 -> 0
A7: AR | B7: =AI7*'MSW Generated'!B7 -> 60000 | C7: =AJ7*'MSW Generated'!C7 -> 140000 | D7: =AK7*'MSW Generated'!D7 -> 107700 | E7: =AL7*'MSW Generated'!E7 -> 107700 | F7: =AM7*'MSW Generated'!F7 -> 107700 | G7: =AN7*'MSW Generated'!G7 -> 21540 | H7: =AO7*'MSW Generated'!H7 -> 21540 | I7: =AP7*'MSW Generated'!I7 -> 42870 | J7: =AQ7*'MSW Generated'!J7 -> 16580 | K7: =AR7*'MSW Generated'!K7 -> 40630 | L7: =AS7*'MSW Generated'!L7 -> 20560 | M7: =AT7*'MSW Generated'!M7 -> 38232.05 | N7: =AU7*'MSW Generated'!N7 -> 60916.92 | O7: =AV7*'MSW Generated'!O7 -> 54782.791 | P7: =AW7*'MSW Generated'!P7 -> 48944.805 | Q7: =AX7*'MSW Generated'!Q7 -> 47019.8755 | R7: =AY7*'MSW Generated'!R7 -> 45094.946 | S7: =AZ7*'MSW Generated'!S7 -> 53072.344 | T7: =BA7*'MSW Generated'!T7 -> 61049.742 | U7: =BB7*'MSW Generated'!U7 -> 38287.7508 | V7: =BC7*'MSW Generated'!V7 -> 39350.47217 | W7: =BD7*'MSW Generated'!W7 -> 39494.67625 | X7: =BE7*'MSW Generated'!X7 -> 39544.8342 | Y7: =BF7*'MSW Generated'!Y7 -> 39980.58131 | Z7: =BG7*'MSW Generated'!Z7 -> 40502.53738 | AA7: =BH7*'MSW Generated'!AA7 -> 41084.05601 | AB7: =BI7*'MSW Generated'!AB7 -> 41822.31821 | AC7: =BJ7*'MSW Generated'!AC7 -> 41974.35946 | AD7: =BK7*'MSW Generated'!AD7 -> 41974.35946 | AE7: =BL7*'MSW Generated'!AE7 -> 0 | AF7: =BM7*'MSW Generated'!AF7 -> 0 | AG7: 1 | AI7: 0.03 | AJ7: 0.07 | AK7: 0.05 | AL7: 0.05 | AM7: 0.05 | AN7: 0.01 | AO7: 0.01 | AP7: 0.01 | AQ7: 0.005 | AR7: 0.01 | AS7: 0.01 | AT7: =AVERAGE(AS7,AU7) -> 0.0125 | AU7: 0.015 | AV7: 0.014 | AW7: 0.013 | AX7: 0.013 | AY7: 0.013 | AZ7: =R7/'MSW Generated'!R7 -> 0.013 | BA7: =S7/'MSW Generated'!S7 -> 0.013 | BB7: =T7/'MSW Generated'!T7 -> 0.013 | BC7: =U7/'MSW Generated'!U7 -> 0.013 | BD7: =V7/'MSW Generated'!V7 -> 0.013 | BE7: =W7/'MSW Generated'!W7 -> 0.013 | BF7: =X7/'MSW Generated'!X7 -> 0.013 | BG7: =Y7/'MSW Generated'!Y7 -> 0.013 | BH7: =Z7/'MSW Generated'!Z7 -> 0.013 | BI7: =AA7/'MSW Generated'!AA7 -> 0.013 | BJ7: =AB7/'MSW Generated'!AB7 -> 0.013 | BK7: =AC7/'MSW Generated'!AC7 -> 0.013
A8: CA | B8: =AI8*'MSW Generated'!B8 -> 1000000 | C8: =AJ8*'MSW Generated'!C8 -> 900000 | D8: =AK8*'MSW Generated'!D8 -> 890700 | E8: =AL8*'MSW Generated'!E8 -> 890260 | F8: =AM8*'MSW Generated'!F8 -> 900000 | G8: =AN8*'MSW Generated'!G8 -> 880000 | H8: =AO8*'MSW Generated'!H8 -> 880000 | I8: =AP8*'MSW Generated'!I8 -> 0 | J8: =AQ8*'MSW Generated'!J8 -> 0 | K8: =AR8*'MSW Generated'!K8 -> 0 | L8: =AS8*'MSW Generated'!L8 -> 661000 | M8: =AT8*'MSW Generated'!M8 -> 897650 | N8: =AU8*'MSW Generated'!N8 -> 1152000 | O8: =AV8*'MSW Generated'!O8 -> 1161725 | P8: =AW8*'MSW Generated'!P8 -> 1168500 | Q8: =AX8*'MSW Generated'!Q8 -> 958695 | R8: =AY8*'MSW Generated'!R8 -> 748890 | S8: =AZ8*'MSW Generated'!S8 -> 833524.335 | T8: =BA8*'MSW Generated'!T8 -> 918158.67 | U8: =BB8*'MSW Generated'!U8 -> 575829.3024 | V8: =BC8*'MSW Generated'!V8 -> 591812.1193 | W8: =BD8*'MSW Generated'!W8 -> 593980.8791 | X8: =BE8*'MSW Generated'!X8 -> 594735.2303 | Y8: =BF8*'MSW Generated'!Y8 -> 601288.6567 | Z8: =BG8*'MSW Generated'!Z8 -> 609138.6243 | AA8: =BH8*'MSW Generated'!AA8 -> 617884.3839 | AB8: =BI8*'MSW Generated'!AB8 -> 628987.4912 | AC8: =BJ8*'MSW Generated'!AC8 -> 631274.1184 | AD8: =BK8*'MSW Generated'!AD8 -> 631274.1184 | AE8: =BL8*'MSW Generated'!AE8 -> 0 | AF8: =BM8*'MSW Generated'!AF8 -> 0 | AG8: 1 | AI8: 0.02 | AJ8: 0.02 | AK8: 0.02 | AL8: 0.02 | AM8: 0.02 | AN8: 0.02 | AO8: 0.02 | AP8: 0 | AQ8: 0 | AR8: 0 | AS8: 0.01 | AT8: 0.013 | AU8: 0.016 | AV8: 0.0155 | AW8: 0.015 | AX8: 0.015 | AY8: 0.015 | AZ8: =R8/'MSW Generated'!R8 -> 0.015 | BA8: =S8/'MSW Generated'!S8 -> 0.015 | BB8: =T8/'MSW Generated'!T8 -> 0.015 | BC8: =U8/'MSW Generated'!U8 -> 0.015 | BD8: =V8/'MSW Generated'!V8 -> 0.015 | BE8: =W8/'MSW Generated'!W8 -> 0.015 | BF8: =X8/'MSW Generated'!X8 -> 0.015 | BG8: =Y8/'MSW Generated'!Y8 -> 0.015 | BH8: =Z8/'MSW Generated'!Z8 -> 0.015 | BI8: =AA8/'MSW Generated'!AA8 -> 0.015 | BJ8: =AB8/'MSW Generated'!AB8 -> 0.015 | BK8: =AC8/'MSW Generated'!AC8 -> 0.015
A9: CO | B9: =AI9*'MSW Generated'!B9 -> 0 | C9: =AJ9*'MSW Generated'!C9 -> 0 | D9: =AK9*'MSW Generated'!D9 -> 35000 | E9: =AL9*'MSW Generated'!E9 -> 44000 | F9: =AM9*'MSW Generated'!F9 -> 28000 | G9: =AN9*'MSW Generated'!G9 -> 0 | H9: =AO9*'MSW Generated'!H9 -> 0 | I9: =AP9*'MSW Generated'!I9 -> 0 | J9: =AQ9*'MSW Generated'!J9 -> 25425 | K9: =AR9*'MSW Generated'!K9 -> 32275 | L9: =AS9*'MSW Generated'!L9 -> 0 | M9: =AT9*'MSW Generated'!M9 -> 0 | N9: =AU9*'MSW Generated'!N9 -> 0 | O9: =AV9*'MSW Generated'!O9 -> 0 | P9: =AW9*'MSW Generated'!P9 -> 0 | Q9: =AX9*'MSW Generated'!Q9 -> 0 | R9: =AY9*'MSW Generated'!R9 -> 0 | S9: =AZ9*'MSW Generated'!S9 -> 0 | T9: =BA9*'MSW Generated'!T9 -> 0 | U9: =BB9*'MSW Generated'!U9 -> 0 | V9: =BC9*'MSW Generated'!V9 -> 0 | W9: =BD9*'MSW Generated'!W9 -> 0 | X9: =BE9*'MSW Generated'!X9 -> 0 | Y9: =BF9*'MSW Generated'!Y9 -> 0 | Z9: =BG9*'MSW Generated'!Z9 -> 0 | AA9: =BH9*'MSW Generated'!AA9 -> 0 | AB9: =BI9*'MSW Generated'!AB9 -> 0 | AC9: =BJ9*'MSW Generated'!AC9 -> 0 | AD9: =BK9*'MSW Generated'!AD9 -> 0 | AE9: =BL9*'MSW Generated'!AE9 -> 0 | AF9: =BM9*'MSW Generated'!AF9 -> 0 | AG9: 1 | AI9: 0 | AJ9: 0 | AK9: 0.01 | AL9: 0.01 | AM9: 0.01 | AN9: 0 | AO9: 0 | AP9: 0 | AQ9: 0.005 | AR9: =AQ9 -> 0.005 | AS9: 0 | AT9: 0 | AU9: 0 | AV9: 0 | AW9: 0 | AX9: 0 | AY9: 0 | AZ9: =R9/'MSW Generated'!R9 -> 0 | BA9: =S9/'MSW Generated'!S9 -> 0 | BB9: =T9/'MSW Generated'!T9 -> 0 | BC9: =U9/'MSW Generated'!U9 -> 0 | BD9: =V9/'MSW Generated'!V9 -> 0 | BE9: =W9/'MSW Generated'!W9 -> 0 | BF9: =X9/'MSW Generated'!X9 -> 0 | BG9: =Y9/'MSW Generated'!Y9 -> 0 | BH9: =Z9/'MSW Generated'!Z9 -> 0 | BI9: =AA9/'MSW Generated'!AA9 -> 0 | BJ9: =AB9/'MSW Generated'!AB9 -> 0 | BK9: =AC9/'MSW Generated'!AC9 -> 0
A10: CT | B10: =AI10*'MSW Generated'!B10 -> 1711000 | C10: =AJ10*'MSW Generated'!C10 -> 1885000 | D10: =AK10*'MSW Generated'!D10 -> 1653000 | E10: =AL10*'MSW Generated'!E10 -> 1311570 | F10: =AM10*'MSW Generated'!F10 -> 1830150 | G10: =AN10*'MSW Generated'!G10 -> 1824600 | H10: =AO10*'MSW Generated'!H10 -> 1770600 | I10: =AP10*'MSW Generated'!I10 -> 1770000 | J10: =AQ10*'MSW Generated'!J10 -> 1950080 | K10: =AR10*'MSW Generated'!K10 -> 2059200 | L10: =AS10*'MSW Generated'!L10 -> 2102100 | M10: =AT10*'MSW Generated'!M10 -> 1844969.775 | N10: =AU10*'MSW Generated'!N10 -> 1563741.45 | O10: =AV10*'MSW Generated'!O10 -> 1897040.498 | P10: =AW10*'MSW Generated'!P10 -> 2225826.625 | Q10: =AX10*'MSW Generated'!Q10 -> 2203536.071 | R10: =AY10*'MSW Generated'!R10 -> 2181245.517 | S10: =AZ10*'MSW Generated'!S10 -> 2222814.292 | T10: =BA10*'MSW Generated'!T10 -> 2264383.066 | U10: =BB10*'MSW Generated'!U10 -> 1420122.865 | V10: =BC10*'MSW Generated'!V10 -> 1459540.039 | W10: =BD10*'MSW Generated'!W10 -> 1464888.682 | X10: =BE10*'MSW Generated'!X10 -> 1466749.08 | Y10: =BF10*'MSW Generated'!Y10 -> 1482911.284 | Z10: =BG10*'MSW Generated'!Z10 -> 1502271.046 | AA10: =BH10*'MSW Generated'!AA10 -> 1523840.031 | AB10: =BI10*'MSW Generated'!AB10 -> 1551222.757 | AC10: =BJ10*'MSW Generated'!AC10 -> 1556862.088 | AD10: =BK10*'MSW Generated'!AD10 -> 1556862.088 | AE10: =BL10*'MSW Generated'!AE10 -> 0 | AF10: =BM10*'MSW Generated'!AF10 -> 0 | AG10: 1 | AI10: 0.59 | AJ10: 0.65 | AK10: 0.57 | AL10: 0.57 | AM10: 0.63 | AN10: 0.6 | AO10: 0.6 | AP10: 0.6 | AQ10: 0.64 | AR10: 0.65 | AS10: 0.65 | AT10: 0.55 | AU10: 0.45 | AV10: 0.5495 | AW10: 0.649 | AX10: 0.649 | AY10: 0.649 | AZ10: =R10/'MSW Generated'!R10 -> 0.649 | BA10: =S10/'MSW Generated'!S10 -> 0.649 | BB10: =T10/'MSW Generated'!T10 -> 0.649 | BC10: =U10/'MSW Generated'!U10 -> 0.649 | BD10: =V10/'MSW Generated'!V10 -> 0.649 | BE10: =W10/'MSW Generated'!W10 -> 0.649 | BF10: =X10/'MSW Generated'!X10 -> 0.649 | BG10: =Y10/'MSW Generated'!Y10 -> 0.649 | BH10: =Z10/'MSW Generated'!Z10 -> 0.649 | BI10: =AA10/'MSW Generated'!AA10 -> 0.649 | BJ10: =AB10/'MSW Generated'!AB10 -> 0.649 | BK10: =AC10/'MSW Generated'!AC10 -> 0.649
